Workbook

Sheet ReadMe
A1: ISO 18621-11 Gamut Volume Computation Tool
A2: version: | B2: 2020-06-04
A4: This Excel workbook is provided by ISO TC130/JWG14 working group on Print Quality Measurement Methods
B5: to facilitate users of the ISO Technical Specification ISO TS 18621-11:201 on Colour Gamut Analysis
B6: to compute the volume of a printer colour gamut based on CIELABdata
B7: from common CMYK color characterization targets like ISO 12642-2, IT8.7/4, ECI2002
A9: Usage: | B9: 1. Double click this Excel template to open a copy of the program
B10: 2. Open by Excel your datafile of interest, with data appropriately separated into columns
B11: 3. Copy the complete sheet with your data and paste it on top of the 'INPUTdata' sheet
B12: 4. Find the total volume of the gamut associated with the data on the 'Volumes' sheet
A14: The various sheets and their function is as follows:
B15: INPUTdata | C15: This sheet has example input data that can be replaced by your measurement data
C16: or data from any existing CMYK characterization data set available at the ICC website
C18: The datafile shall have columns with 'SampleID', 'LAB_L', 'LAB_A' and 'LAB_B'
C19: The 'SampleID' shall correpond to colour patches with CMYK input values
C20: that matches the definition in ISO 12642-2 (ECI2002 will work as well)
C21: The data for 'SampleID' shall be in 1st column (column A). This may be in random order.
C22: The data for 'LAB_L', 'LAB_A' and 'LAB_B' must bein any of the columns B thru L.
C24: The datafile should have columns with 'CMYK_C', 'CMYK_M', 'CMYK_Y', 'CMYK_K',
C25: if not then the computation still works but without checking correct use of SampleID's
B27: Vertices | C27: This sheet defines a list of 193 vertices that are used for the triangular faces at the gamut boundary.
C28: These vertices correspond to a selected sub-set of colour patches present in the INPUTdata sheet.
B30: Faces | C30: This sheet defines a list of 382 triangular faces that constitute a complete gamut enclosure.
C31: For each face the 3 vertices are indicated by their index as defined on the 'Vertices' sheet.
B33: Volumes | C33: This sheet shows in a traceable manner the computation of the 'signed' volume
C34: for each tetrahedron specified by the faces in the 'Faces' sheet and
C35: a common centre point 'p4' taken as the average of 2 samples, paper-white
C36: and a very dark color patch (100, 100, 0, 100).
C38: In case a negative volume is determined for a tetrahedron
C39: this is due to unexpected relative positions of the vertices.
C40: For the total volume computation this negative contribution is
C41: corrected by extra positive contributions from other tetrahedrons.
C43: Cell C4 provides the total gamut volume
C44: Cell B4 provides the sample name which is copied from the value
C45: for the 'DESCRIPTOR' of 'FILE_DESCRIPTOR' keyword on the 'INPUTdata' sheet.

Sheet INPUTdata
A1: ISO28178
A2: ORIGINATOR "ISO TC130"
A3: FILE_DESCRIPTOR | B3: ISO15339-2-CRPC6
A4: # | B4: Characterized Reference Printing Condition 6 | C4: Universal Premium Coated
A5: CREATED "December | B5: 2012"
A6: MEASUREMENT_GEOMETRY "ISO 13655 - Reflection | B6: M1 | C6: white backing"
A7: FILTER "D50"
A8: # | B8: Reference White Point (LAB) = 95.00 1.00 -4.00
A9: # | B9: Reference Black Point (LAB) = 9.05 0.20 0.39
A10: NUMBER_OF_FIELDS 8
A11: BEGIN_DATA_FORMAT
A12: SAMPLE_ID | B12: CMYK_C | C12: CMYK_M | D12: CMYK_Y | E12: CMYK_K | F12: LAB_L | G12: LAB_A | H12: LAB_B
A13: END_DATA_FORMAT
A14: NUMBER_OF_SETS 1617
A15: BEGIN_DATA
A16: 1 | B16: 0 | C16: 0 | D16: 0 | E16: 0 | F16: 95 | G16: 1 | H16: -4
A17: 2 | B17: 0 | C17: 10 | D17: 0 | E17: 0 | F17: 89.89 | G17: 7.72 | H17: -5.04
A18: 3 | B18: 0 | C18: 20 | D18: 0 | E18: 0 | F18: 85.05 | G18: 14.22 | H18: -5.96
A19: 4 | B19: 0 | C19: 30 | D19: 0 | E19: 0 | F19: 80.06 | G19: 21.14 | H19: -6.71
A20: 5 | B20: 0 | C20: 40 | D20: 0 | E20: 0 | F20: 75.09 | G20: 28.3 | H20: -7.25
A21: 6 | B21: 0 | C21: 55 | D21: 0 | E21: 0 | F21: 67.5 | G21: 40.05 | H21: -7.48
A22: 7 | B22: 0 | C22: 70 | D22: 0 | E22: 0 | F22: 59.97 | G22: 52.78 | H22: -6.79
A23: 8 | B23: 0 | C23: 85 | D23: 0 | E23: 0 | F23: 52.96 | G23: 65.55 | H23: -5.37
A24: 9 | B24: 0 | C24: 100 | D24: 0 | E24: 0 | F24: 48 | G24: 75 | H24: -4
A25: 10 | B25: 10 | C25: 0 | D25: 0 | E25: 0 | F25: 90.99 | G25: -2.33 | H25: -8.84
A26: 11 | B26: 10 | C26: 10 | D26: 0 | E26: 0 | F26: 86.16 | G26: 4.15 | H26: -9.7
A27: 12 | B27: 10 | C27: 20 | D27: 0 | E27: 0 | F27: 81.51 | G27: 10.45 | H27: -10.46
A28: 13 | B28: 10 | C28: 30 | D28: 0 | E28: 0 | F28: 76.73 | G28: 17.16 | H28: -11.11
A29: 14 | B29: 10 | C29: 40 | D29: 0 | E29: 0 | F29: 71.93 | G29: 24.14 | H29: -11.59
A30: 15 | B30: 10 | C30: 55 | D30: 0 | E30: 0 | F30: 64.65 | G30: 35.5 | H30: -11.71
A31: 16 | B31: 10 | C31: 70 | D31: 0 | E31: 0 | F31: 57.4 | G31: 47.81 | H31: -11.05
A32: 17 | B32: 10 | C32: 85 | D32: 0 | E32: 0 | F32: 50.62 | G32: 60.22 | H32: -9.77
A33: 18 | B33: 10 | C33: 100 | D33: 0 | E33: 0 | F33: 45.82 | G33: 69.39 | H33: -8.63
A34: 19 | B34: 20 | C34: 0 | D34: 0 | E34: 0 | F34: 87.09 | G34: -5.66 | H34: -13.59
A35: 20 | B35: 20 | C35: 10 | D35: 0 | E35: 0 | F35: 82.45 | G35: 0.61 | H35: -14.26
A36: 21 | B36: 20 | C36: 20 | D36: 0 | E36: 0 | F36: 78.03 | G36: 6.71 | H36: -14.88
A37: 22 | B37: 20 | C37: 30 | D37: 0 | E37: 0 | F37: 73.45 | G37: 13.21 | H37: -15.39
A38: 23 | B38: 20 | C38: 40 | D38: 0 | E38: 0 | F38: 68.85 | G38: 20.07 | H38: -15.71
A39: 24 | B39: 20 | C39: 55 | D39: 0 | E39: 0 | F39: 61.85 | G39: 31.01 | H39: -15.82
A40: 25 | B40: 20 | C40: 70 | D40: 0 | E40: 0 | F40: 54.86 | G40: 42.94 | H40: -15.19
A41: 26 | B41: 20 | C41: 85 | D41: 0 | E41: 0 | F41: 48.28 | G41: 55 | H41: -14.07
A42: 27 | B42: 20 | C42: 100 | D42: 0 | E42: 0 | F42: 43.6 | G42: 63.95 | H42: -13.07
A43: 28 | B43: 30 | C43: 0 | D43: 0 | E43: 0 | F43: 83.14 | G43: -9.14 | H43: -18.38
A44: 29 | B44: 30 | C44: 10 | D44: 0 | E44: 0 | F44: 78.72 | G44: -3.09 | H44: -18.84
A45: 30 | B45: 30 | C45: 20 | D45: 0 | E45: 0 | F45: 74.5 | G45: 2.83 | H45: -19.33
A46: 31 | B46: 30 | C46: 30 | D46: 0 | E46: 0 | F46: 70.14 | G46: 9.13 | H46: -19.7
A47: 32 | B47: 30 | C47: 40 | D47: 0 | E47: 0 | F47: 65.74 | G47: 15.77 | H47: -19.92
A48: 33 | B48: 30 | C48: 55 | D48: 0 | E48: 0 | F48: 59.01 | G48: 26.41 | H48: -19.95
A49: 34 | B49: 30 | C49: 70 | D49: 0 | E49: 0 | F49: 52.28 | G49: 37.97 | H49: -19.36
A50: 35 | B50: 30 | C50: 85 | D50: 0 | E50: 0 | F50: 45.9 | G50: 49.72 | H50: -18.34
A51: 36 | B51: 30 | C51: 100 | D51: 0 | E51: 0 | F51: 41.34 | G51: 58.43 | H51: -17.5
A52: 37 | B52: 40 | C52: 0 | D52: 0 | E52: 0 | F52: 79.15 | G52: -12.76 | H52: -23.17
A53: 38 | B53: 40 | C53: 10 | D53: 0 | E53: 0 | F53: 74.93 | G53: -6.85 | H53: -23.48
A54: 39 | B54: 40 | C54: 20 | D54: 0 | E54: 0 | F54: 70.91 | G54: -1.14 | H54: -23.78
A55: 40 | B55: 40 | C55: 30 | D55: 0 | E55: 0 | F55: 66.76 | G55: 4.97 | H55: -24
A56: 41 | B56: 40 | C56: 40 | D56: 0 | E56: 0 | F56: 62.61 | G56: 11.35 | H56: -24.11
A57: 42 | B57: 40 | C57: 55 | D57: 0 | E57: 0 | F57: 56.14 | G57: 21.68 | H57: -24.04
A58: 43 | B58: 40 | C58: 70 | D58: 0 | E58: 0 | F58: 49.66 | G58: 32.93 | H58: -23.47
A59: 44 | B59: 40 | C59: 85 | D59: 0 | E59: 0 | F59: 43.48 | G59: 44.33 | H59: -22.6
A60: 45 | B60: 40 | C60: 100 | D60: 0 | E60: 0 | F60: 39.03 | G60: 52.81 | H60: -21.85
A61: 46 | B61: 55 | C61: 0 | D61: 0 | E61: 0 | F61: 73.06 | G61: -18.68 | H61: -30.35
A62: 47 | B62: 55 | C62: 10 | D62: 0 | E62: 0 | F62: 69.18 | G62: -12.98 | H62: -30.38
A63: 48 | B63: 55 | C63: 20 | D63: 0 | E63: 0 | F63: 65.47 | G63: -7.49 | H63: -30.47
A64: 49 | B64: 55 | C64: 30 | D64: 0 | E64: 0 | F64: 61.64 | G64: -1.63 | H64: -30.49
A65: 50 | B65: 55 | C65: 40 | D65: 0 | E65: 0 | F65: 57.76 | G65: 4.51 | H65: -30.42
A66: 51 | B66: 55 | C66: 55 | D66: 0 | E66: 0 | F66: 51.76 | G66: 14.32 | H66: -30.28
A67: 52 | B67: 55 | C67: 70 | D67: 0 | E67: 0 | F67: 45.64 | G67: 25.09 | H67: -29.68
A68: 53 | B68: 55 | C68: 85 | D68: 0 | E68: 0 | F68: 39.78 | G68: 36.01 | H68: -28.98
A69: 54 | B69: 55 | C69: 100 | D69: 0 | E69: 0 | F69: 35.51 | G69: 44.18 | H69: -28.46
A70: 55 | B70: 70 | C70: 0 | D70: 0 | E70: 0 | F70: 66.79 | G70: -25.16 | H70: -37.63
A71: 56 | B71: 70 | C71: 10 | D71: 0 | E71: 0 | F71: 63.23 | G71: -19.67 | H71: -37.4
A72: 57 | B72: 70 | C72: 20 | D72: 0 | E72: 0 | F72: 59.85 | G72: -14.41 | H72: -37.22
A73: 58 | B73: 70 | C73: 30 | D73: 0 | E73: 0 | F73: 56.34 | G73: -8.79 | H73: -37.01
A74: 59 | B74: 70 | C74: 40 | D74: 0 | E74: 0 | F74: 52.76 | G74: -2.91 | H74: -36.75
A75: 60 | B75: 70 | C75: 55 | D75: 0 | E75: 0 | F75: 47.19 | G75: 6.5 | H75: -36.43
A76: 61 | B76: 70 | C76: 70 | D76: 0 | E76: 0 | F76: 41.46 | G76: 16.82 | H76: -35.88
A77: 62 | B77: 70 | C77: 85 | D77: 0 | E77: 0 | F77: 35.91 | G77: 27.32 | H77: -35.36
A78: 63 | B78: 70 | C78: 100 | D78: 0 | E78: 0 | F78: 31.84 | G78: 35.11 | H78: -35.02
A79: 64 | B79: 85 | C79: 0 | D79: 0 | E79: 0 | F79: 60.64 | G79: -31.84 | H79: -44.65
A80: 65 | B80: 85 | C80: 10 | D80: 0 | E80: 0 | F80: 57.43 | G80: -26.57 | H80: -44.11
A81: 66 | B81: 85 | C81: 20 | D81: 0 | E81: 0 | F81: 54.38 | G81: -21.5 | H81: -43.65
A82: 67 | B82: 85 | C82: 30 | D82: 0 | E82: 0 | F82: 51.16 | G82: -16.07 | H82: -43.21
A83: 68 | B83: 85 | C83: 40 | D83: 0 | E83: 0 | F83: 47.87 | G83: -10.39 | H83: -42.79
A84: 69 | B84: 85 | C84: 55 | D84: 0 | E84: 0 | F84: 42.73 | G84: -1.3 | H84: -42.26
A85: 70 | B85: 85 | C85: 70 | D85: 0 | E85: 0 | F85: 37.38 | G85: 8.64 | H85: -41.73
A86: 71 | B86: 85 | C86: 85 | D86: 0 | E86: 0 | F86: 32.11 | G86: 18.8 | H86: -41.38
A87: 72 | B87: 85 | C87: 100 | D87: 0 | E87: 0 | F87: 28.19 | G87: 26.32 | H87: -41.22
A88: 73 | B88: 100 | C88: 0 | D88: 0 | E88: 0 | F88: 56 | G88: -37 | H88: -50
A89: 74 | B89: 100 | C89: 10 | D89: 0 | E89: 0 | F89: 53.07 | G89: -32.1 | H89: -49.14
A90: 75 | B90: 100 | C90: 20 | D90: 0 | E90: 0 | F90: 50.23 | G90: -27.18 | H90: -48.51
A91: 76 | B91: 100 | C91: 30 | D91: 0 | E91: 0 | F91: 47.24 | G91: -21.89 | H91: -47.9
A92: 77 | B92: 100 | C92: 40 | D92: 0 | E92: 0 | F92: 44.12 | G92: -16.25 | H92: -47.39
A93: 78 | B93: 100 | C93: 55 | D93: 0 | E93: 0 | F93: 39.27 | G93: -7.4 | H93: -46.77
A94: 79 | B94: 100 | C94: 70 | D94: 0 | E94: 0 | F94: 34.23 | G94: 2.27 | H94: -46.2
A95: 80 | B95: 100 | C95: 85 | D95: 0 | E95: 0 | F95: 29.09 | G95: 12.22 | H95: -46
A96: 81 | B96: 100 | C96: 100 | D96: 0 | E96: 0 | F96: 25 | G96: 20 | H96: -46
A97: 82 | B97: 0 | C97: 0 | D97: 10 | E97: 0 | F97: 94.22 | G97: 0.12 | H97: 4.76
A98: 83 | B98: 0 | C98: 10 | D98: 10 | E98: 0 | F98: 89.26 | G98: 6.85 | H98: 3.27
A99: 84 | B99: 0 | C99: 20 | D99: 10 | E99: 0 | F99: 84.5 | G99: 13.39 | H99: 1.97
A100: 85 | B100: 0 | C100: 30 | D100: 10 | E100: 0 | F100: 79.62 | G100: 20.32 | H100: 0.85
A101: 86 | B101: 0 | C101: 40 | D101: 10 | E101: 0 | F101: 74.73 | G101: 27.53 | H101: 0.06
A102: 87 | B102: 0 | C102: 55 | D102: 10 | E102: 0 | F102: 67.31 | G102: 39.29 | H102: -0.86
A103: 88 | B103: 0 | C103: 70 | D103: 10 | E103: 0 | F103: 59.97 | G103: 51.94 | H103: -0.71
A104: 89 | B104: 0 | C104: 85 | D104: 10 | E104: 0 | F104: 53.14 | G104: 64.66 | H104: 0.04
A105: 90 | B105: 0 | C105: 100 | D105: 10 | E105: 0 | F105: 48.29 | G105: 74.1 | H105: 0.87
A106: 91 | B106: 10 | C106: 0 | D106: 10 | E106: 0 | F106: 90.27 | G106: -3.53 | H106: -0.18
A107: 92 | B107: 10 | C107: 10 | D107: 10 | E107: 0 | F107: 85.54 | G107: 2.36 | H107: -1.59
A108: 93 | B108: 10 | C108: 20 | D108: 10 | E108: 0 | F108: 80.81 | G108: 8.92 | H108: -2.76
A109: 94 | B109: 10 | C109: 30 | D109: 10 | E109: 0 | F109: 76.02 | G109: 15.88 | H109: -3.82
A110: 95 | B110: 10 | C110: 40 | D110: 10 | E110: 0 | F110: 71.21 | G110: 23.19 | H110: -4.59
A111: 96 | B111: 10 | C111: 55 | D111: 10 | E111: 0 | F111: 64.08 | G111: 34.67 | H111: -5.3
A112: 97 | B112: 10 | C112: 70 | D112: 10 | E112: 0 | F112: 56.95 | G112: 47.16 | H112: -5.2
A113: 98 | B113: 10 | C113: 85 | D113: 10 | E113: 0 | F113: 50.47 | G113: 59.33 | H113: -4.52
A114: 99 | B114: 10 | C114: 100 | D114: 10 | E114: 0 | F114: 45.91 | G114: 68.29 | H114: -3.79
A115: 100 | B115: 20 | C115: 0 | D115: 10 | E115: 0 | F115: 86.38 | G115: -7.13 | H115: -5
A116: 101 | B116: 20 | C116: 10 | D116: 10 | E116: 0 | F116: 81.71 | G116: -1.6 | H116: -6.49
A117: 102 | B117: 20 | C117: 20 | D117: 10 | E117: 0 | F117: 77.18 | G117: 4.82 | H117: -7.53
A118: 103 | B118: 20 | C118: 30 | D118: 10 | E118: 0 | F118: 72.61 | G118: 11.58 | H118: -8.44
A119: 104 | B119: 20 | C119: 40 | D119: 10 | E119: 0 | F119: 68.02 | G119: 18.75 | H119: -9.09
A120: 105 | B120: 20 | C120: 55 | D120: 10 | E120: 0 | F120: 61.17 | G120: 29.91 | H120: -9.7
A121: 106 | B121: 20 | C121: 70 | D121: 10 | E121: 0 | F121: 54.29 | G121: 42.07 | H121: -9.62
A122: 107 | B122: 20 | C122: 85 | D122: 10 | E122: 0 | F122: 48.01 | G122: 53.94 | H122: -9.04
A123: 108 | B123: 20 | C123: 100 | D123: 10 | E123: 0 | F123: 43.57 | G123: 62.68 | H123: -8.4
A124: 109 | B124: 30 | C124: 0 | D124: 10 | E124: 0 | F124: 82.47 | G124: -10.88 | H124: -9.88
A125: 110 | B125: 30 | C125: 10 | D125: 10 | E125: 0 | F125: 78.05 | G125: -5.4 | H125: -11.11
A126: 111 | B126: 30 | C126: 20 | D126: 10 | E126: 0 | F126: 73.74 | G126: 0.78 | H126: -12.02
A127: 112 | B127: 30 | C127: 30 | D127: 10 | E127: 0 | F127: 69.32 | G127: 7.32 | H127: -12.84
A128: 113 | B128: 30 | C128: 40 | D128: 10 | E128: 0 | F128: 64.92 | G128: 14.29 | H128: -13.4
A129: 114 | B129: 30 | C129: 55 | D129: 10 | E129: 0 | F129: 58.32 | G129: 25.15 | H129: -13.95
A130: 115 | B130: 30 | C130: 70 | D130: 10 | E130: 0 | F130: 51.67 | G130: 36.98 | H130: -13.9
A131: 116 | B131: 30 | C131: 85 | D131: 10 | E131: 0 | F131: 45.58 | G131: 48.56 | H131: -13.43
A132: 117 | B132: 30 | C132: 100 | D132: 10 | E132: 0 | F132: 41.26 | G132: 57.07 | H132: -12.9
A133: 118 | B133: 40 | C133: 0 | D133: 10 | E133: 0 | F133: 78.55 | G133: -14.75 | H133: -14.77
A134: 119 | B134: 40 | C134: 10 | D134: 10 | E134: 0 | F134: 74.44 | G134: -9.18 | H134: -15.62
A135: 120 | B135: 40 | C135: 20 | D135: 10 | E135: 0 | F135: 70.32 | G135: -3.21 | H135: -16.32
A136: 121 | B136: 40 | C136: 30 | D136: 10 | E136: 0 | F136: 66.12 | G136: 3.14 | H136: -17
A137: 122 | B137: 40 | C137: 40 | D137: 10 | E137: 0 | F137: 61.88 | G137: 9.83 | H137: -17.57
A138: 123 | B138: 40 | C138: 55 | D138: 10 | E138: 0 | F138: 55.52 | G138: 20.38 | H138: -18.07
A139: 124 | B139: 40 | C139: 70 | D139: 10 | E139: 0 | F139: 49.09 | G139: 31.89 | H139: -18.05
A140: 125 | B140: 40 | C140: 85 | D140: 10 | E140: 0 | F140: 43.16 | G140: 43.15 | H140: -17.68
A141: 126 | B141: 40 | C141: 100 | D141: 10 | E141: 0 | F141: 38.94 | G141: 51.44 | H141: -17.23
A142: 127 | B142: 55 | C142: 0 | D142: 10 | E142: 0 | F142: 72.51 | G142: -21.21 | H142: -22.05
A143: 128 | B143: 55 | C143: 10 | D143: 10 | E143: 0 | F143: 68.84 | G143: -15.5 | H143: -22.44
A144: 129 | B144: 55 | C144: 20 | D144: 10 | E144: 0 | F144: 65.06 | G144: -9.73 | H144: -22.97
A145: 130 | B145: 55 | C145: 30 | D145: 10 | E145: 0 | F145: 61.17 | G145: -3.65 | H145: -23.44
A146: 131 | B146: 55 | C146: 40 | D146: 10 | E146: 0 | F146: 57.23 | G146: 2.77 | H146: -23.85
A147: 132 | B147: 55 | C147: 55 | D147: 10 | E147: 0 | F147: 51.22 | G147: 12.89 | H147: -24.27
A148: 133 | B148: 55 | C148: 70 | D148: 10 | E148: 0 | F148: 45.13 | G148: 23.93 | H148: -24.27
A149: 134 | B149: 55 | C149: 85 | D149: 10 | E149: 0 | F149: 39.48 | G149: 34.74 | H149: -24.05
A150: 135 | B150: 55 | C150: 100 | D150: 10 | E150: 0 | F150: 35.43 | G150: 42.71 | H150: -23.79
A151: 136 | B151: 70 | C151: 0 | D151: 10 | E151: 0 | F151: 66.29 | G151: -28.26 | H151: -29.48
A152: 137 | B152: 70 | C152: 10 | D152: 10 | E152: 0 | F152: 63.01 | G152: -22.54 | H152: -29.51
A153: 138 | B153: 70 | C153: 20 | D153: 10 | E153: 0 | F153: 59.56 | G153: -16.99 | H153: -29.76
A154: 139 | B154: 70 | C154: 30 | D154: 10 | E154: 0 | F154: 55.99 | G154: -11.12 | H154: -30.02
A155: 140 | B155: 70 | C155: 40 | D155: 10 | E155: 0 | F155: 52.36 | G155: -4.95 | H155: -30.23
A156: 141 | B156: 70 | C156: 55 | D156: 10 | E156: 0 | F156: 46.78 | G156: 4.8 | H156: -30.45
A157: 142 | B157: 70 | C157: 70 | D157: 10 | E157: 0 | F157: 41.04 | G157: 15.47 | H157: -30.45
A158: 143 | B158: 70 | C158: 85 | D158: 10 | E158: 0 | F158: 35.69 | G158: 25.84 | H158: -30.38
A159: 144 | B159: 70 | C159: 100 | D159: 10 | E159: 0 | F159: 31.82 | G159: 33.45 | H159: -30.27
A160: 145 | B160: 85 | C160: 0 | D160: 10 | E160: 0 | F160: 60.2 | G160: -35.5 | H160: -36.59
A161: 146 | B161: 85 | C161: 10 | D161: 10 | E161: 0 | F161: 57.17 | G161: -30.05 | H161: -36.48
A162: 147 | B162: 85 | C162: 20 | D162: 10 | E162: 0 | F162: 54.04 | G162: -24.66 | H162: -36.5
A163: 148 | B163: 85 | C163: 30 | D163: 10 | E163: 0 | F163: 50.79 | G163: -18.97 | H163: -36.5
A164: 149 | B164: 85 | C164: 40 | D164: 10 | E164: 0 | F164: 47.46 | G164: -13.02 | H164: -36.46
A165: 150 | B165: 85 | C165: 55 | D165: 10 | E165: 0 | F165: 42.31 | G165: -3.57 | H165: -36.48
A166: 151 | B166: 85 | C166: 70 | D166: 10 | E166: 0 | F166: 36.96 | G166: 6.69 | H166: -36.47
A167: 152 | B167: 85 | C167: 85 | D167: 10 | E167: 0 | F167: 31.9 | G167: 16.78 | H167: -36.49
A168: 153 | B168: 85 | C168: 100 | D168: 10 | E168: 0 | F168: 28.23 | G168: 24.12 | H168: -36.53
A169: 154 | B169: 100 | C169: 0 | D169: 10 | E169: 0 | F169: 55.58 | G169: -41.34 | H169: -42.01
A170: 155 | B170: 100 | C170: 10 | D170: 10 | E170: 0 | F170: 52.72 | G170: -36.09 | H170: -41.75
A171: 156 | B171: 100 | C171: 20 | D171: 10 | E171: 0 | F171: 49.84 | G171: -30.84 | H171: -41.54
A172: 157 | B172: 100 | C172: 30 | D172: 10 | E172: 0 | F172: 46.82 | G172: -25.27 | H172: -41.35
A173: 158 | B173: 100 | C173: 40 | D173: 10 | E173: 0 | F173: 43.69 | G173: -19.36 | H173: -41.18
A174: 159 | B174: 100 | C174: 55 | D174: 10 | E174: 0 | F174: 38.86 | G174: -10.09 | H174: -41.05
A175: 160 | B175: 100 | C175: 70 | D175: 10 | E175: 0 | F175: 33.81 | G175: -0.11 | H175: -41.03
A176: 161 | B176: 100 | C176: 85 | D176: 10 | E176: 0 | F176: 28.96 | G176: 9.7 | H176: -41.16
A177: 162 | B177: 100 | C177: 100 | D177: 10 | E177: 0 | F177: 25.29 | G177: 17 | H177: -41.33
A178: 163 | B178: 0 | C178: 0 | D178: 20 | E178: 0 | F178: 93.49 | G178: -0.71 | H178: 13.36
A179: 164 | B179: 0 | C179: 10 | D179: 20 | E179: 0 | F179: 88.6 | G179: 6.01 | H179: 11.51
A180: 165 | B180: 0 | C180: 20 | D180: 20 | E180: 0 | F180: 83.95 | G180: 12.54 | H180: 9.9
A181: 166 | B181: 0 | C181: 30 | D181: 20 | E181: 0 | F181: 79.17 | G181: 19.48 | H181: 8.43
A182: 167 | B182: 0 | C182: 40 | D182: 20 | E182: 0 | F182: 74.38 | G182: 26.78 | H182: 7.27
A183: 168 | B183: 0 | C183: 55 | D183: 20 | E183: 0 | F183: 67.09 | G183: 38.45 | H183: 5.8
A184: 169 | B184: 0 | C184: 70 | D184: 20 | E184: 0 | F184: 59.91 | G184: 51.04 | H184: 5.29
A185: 170 | B185: 0 | C185: 85 | D185: 20 | E185: 0 | F185: 53.21 | G185: 63.72 | H185: 5.47
A186: 171 | B186: 0 | C186: 100 | D186: 20 | E186: 0 | F186: 48.47 | G186: 73.14 | H186: 5.87
A187: 172 | B187: 10 | C187: 0 | D187: 20 | E187: 0 | F187: 89.58 | G187: -4.56 | H187: 8.31
A188: 173 | B188: 10 | C188: 10 | D188: 20 | E188: 0 | F188: 84.92 | G188: 1.26 | H188: 6.76
A189: 174 | B189: 10 | C189: 20 | D189: 20 | E189: 0 | F189: 80.27 | G189: 7.86 | H189: 5.16
A190: 175 | B190: 10 | C190: 30 | D190: 20 | E190: 0 | F190: 75.55 | G190: 14.84 | H190: 3.71
A191: 176 | B191: 10 | C191: 40 | D191: 20 | E191: 0 | F191: 70.83 | G191: 22.2 | H191: 2.55
A192: 177 | B192: 10 | C192: 55 | D192: 20 | E192: 0 | F192: 63.81 | G192: 33.69 | H192: 1.21
A193: 178 | B193: 10 | C193: 70 | D193: 20 | E193: 0 | F193: 56.83 | G193: 46.16 | H193: 0.64
A194: 179 | B194: 10 | C194: 85 | D194: 20 | E194: 0 | F194: 50.47 | G194: 58.34 | H194: 0.77
A195: 180 | B195: 10 | C195: 100 | D195: 20 | E195: 0 | F195: 46 | G195: 67.29 | H195: 1.11
A196: 181 | B196: 20 | C196: 0 | D196: 20 | E196: 0 | F196: 85.76 | G196: -8.38 | H196: 3.36
A197: 182 | B197: 20 | C197: 10 | D197: 20 | E197: 0 | F197: 81.12 | G197: -2.89 | H197: 1.72
A198: 183 | B198: 20 | C198: 20 | D198: 20 | E198: 0 | F198: 76.65 | G198: 3.52 | H198: 0.21
A199: 184 | B199: 20 | C199: 30 | D199: 20 | E199: 0 | F199: 72.09 | G199: 10.3 | H199: -1.11
A200: 185 | B200: 20 | C200: 40 | D200: 20 | E200: 0 | F200: 67.46 | G200: 17.52 | H200: -2.21
... 1433 more rows

Sheet Vertices
A1: ISO 18621-11 Gamut Volume Computation Tool: List of Vertices
B3: This sheet defines a list of 193 vertices that are used for the triangular faces at the gamut boundary.
B4: These vertices correspond to a sub-set from CMYK-defined patches in common characterization data sets.
A5: =IF(COUNT(R11:R203)>0, "ERROR", "") ->  | B5: NB: It is required that the INPUT sheet has a column with 'SampleID' that matches the definition in ISO 12642-2 (or ECI2002) for CMYK patches
B6: The CMYK values and CIELAB values below are extracted from indicated columns from the 'INPUT_CharData' sheet based on 'SampleID'.
B8: INPUTcolumn: | C8: =MATCH("*CMYK_C", INDEX(INPUTdata!A1:L40, MATCH("BEGIN_DATA_FORMAT", INPUTdata!$A1:$A40, 0)+1, 1):INDEX(INPUTdata!A1:L40, MATCH("BEGIN_DATA_FORMAT", INPUTdata!$A1:$A40, 0)+1, 12), 0) -> 2 | D8: =MATCH("*CMYK_M", INDEX(INPUTdata!A1:L40, MATCH("BEGIN_DATA_FORMAT", INPUTdata!$A1:$A40, 0)+1, 1):INDEX(INPUTdata!A1:L40, MATCH("BEGIN_DATA_FORMAT", INPUTdata!$A1:$A40, 0)+1, 12), 0) -> 3 | E8: =MATCH("*CMYK_Y", INDEX(INPUTdata!A1:L40, MATCH("BEGIN_DATA_FORMAT", INPUTdata!$A1:$A40, 0)+1, 1):INDEX(INPUTdata!A1:L40, MATCH("BEGIN_DATA_FORMAT", INPUTdata!$A1:$A40, 0)+1, 12), 0) -> 4 | F8: =MATCH("*CMYK_K", INDEX(INPUTdata!A1:L40, MATCH("BEGIN_DATA_FORMAT", INPUTdata!$A1:$A40, 0)+1, 1):INDEX(INPUTdata!A1:L40, MATCH("BEGIN_DATA_FORMAT", INPUTdata!$A1:$A40, 0)+1, 12), 0) -> 5 | G8: =MATCH("*LAB_L", INDEX(INPUTdata!A1:L40, MATCH("BEGIN_DATA_FORMAT", INPUTdata!$A1:$A40, 0)+1, 1):INDEX(INPUTdata!A1:L40, MATCH("BEGIN_DATA_FORMAT", INPUTdata!$A1:$A40, 0)+1, 12), 0) -> 6 | H8: =MATCH("*LAB_A", INDEX(INPUTdata!A1:L40, MATCH("BEGIN_DATA_FORMAT", INPUTdata!$A1:$A40, 0)+1, 1):INDEX(INPUTdata!A1:L40, MATCH("BEGIN_DATA_FORMAT", INPUTdata!$A1:$A40, 0)+1, 12), 0) -> 7 | I8: =MATCH("*LAB_B", INDEX(INPUTdata!A1:L40, MATCH("BEGIN_DATA_FORMAT", INPUTdata!$A1:$A40, 0)+1, 1):INDEX(INPUTdata!A1:L40, MATCH("BEGIN_DATA_FORMAT", INPUTdata!$A1:$A40, 0)+1, 12), 0) -> 8 | N8: Check for correct assignment CMYK values
Q9: error-count: | R9: =COUNT(R11:R203) -> 0
A10: Vertex# | B10: SampleID | C10: C | D10: M | E10: Y | F10: K | G10: L* | H10: a* | I10: b* | N10: C | O10: M | P10: Y | Q10: K
A11: 1 | B11: 1 | C11: =VLOOKUP($B11,INPUTdata!$A:$L, C$8, FALSE) -> 0 | D11: =VLOOKUP($B11,INPUTdata!$A:$L, D$8, FALSE) -> 0 | E11: =VLOOKUP($B11,INPUTdata!$A:$L, E$8, FALSE) -> 0 | F11: =VLOOKUP($B11,INPUTdata!$A:$L, F$8, FALSE) -> 0 | G11: =VLOOKUP($B11,INPUTdata!$A:$L, G$8, FALSE) -> 95 | H11: =VLOOKUP($B11,INPUTdata!$A:$L, H$8, FALSE) -> 1 | I11: =VLOOKUP($B11,INPUTdata!$A:$L, I$8, FALSE) -> -4 | N11: 0 | O11: 0 | P11: 0 | Q11: 0 | R11: =IF(AND(N11=C11,O11=D11,P11=E11,Q11=F11), "", 1) -> 
A12: 2 | B12: 2 | C12: =VLOOKUP($B12,INPUTdata!$A:$L, C$8, FALSE) -> 0 | D12: =VLOOKUP($B12,INPUTdata!$A:$L, D$8, FALSE) -> 10 | E12: =VLOOKUP($B12,INPUTdata!$A:$L, E$8, FALSE) -> 0 | F12: =VLOOKUP($B12,INPUTdata!$A:$L, F$8, FALSE) -> 0 | G12: =VLOOKUP($B12,INPUTdata!$A:$L, G$8, FALSE) -> 89.89 | H12: =VLOOKUP($B12,INPUTdata!$A:$L, H$8, FALSE) -> 7.72 | I12: =VLOOKUP($B12,INPUTdata!$A:$L, I$8, FALSE) -> -5.04 | N12: 0 | O12: 10 | P12: 0 | Q12: 0 | R12: =IF(AND(N12=C12,O12=D12,P12=E12,Q12=F12), "", 1) -> 
A13: 3 | B13: 3 | C13: =VLOOKUP($B13,INPUTdata!$A:$L, C$8, FALSE) -> 0 | D13: =VLOOKUP($B13,INPUTdata!$A:$L, D$8, FALSE) -> 20 | E13: =VLOOKUP($B13,INPUTdata!$A:$L, E$8, FALSE) -> 0 | F13: =VLOOKUP($B13,INPUTdata!$A:$L, F$8, FALSE) -> 0 | G13: =VLOOKUP($B13,INPUTdata!$A:$L, G$8, FALSE) -> 85.05 | H13: =VLOOKUP($B13,INPUTdata!$A:$L, H$8, FALSE) -> 14.22 | I13: =VLOOKUP($B13,INPUTdata!$A:$L, I$8, FALSE) -> -5.96 | N13: 0 | O13: 20 | P13: 0 | Q13: 0
A14: 4 | B14: 5 | C14: =VLOOKUP($B14,INPUTdata!$A:$L, C$8, FALSE) -> 0 | D14: =VLOOKUP($B14,INPUTdata!$A:$L, D$8, FALSE) -> 40 | E14: =VLOOKUP($B14,INPUTdata!$A:$L, E$8, FALSE) -> 0 | F14: =VLOOKUP($B14,INPUTdata!$A:$L, F$8, FALSE) -> 0 | G14: =VLOOKUP($B14,INPUTdata!$A:$L, G$8, FALSE) -> 75.09 | H14: =VLOOKUP($B14,INPUTdata!$A:$L, H$8, FALSE) -> 28.3 | I14: =VLOOKUP($B14,INPUTdata!$A:$L, I$8, FALSE) -> -7.25 | N14: 0 | O14: 40 | P14: 0 | Q14: 0
A15: 5 | B15: 7 | C15: =VLOOKUP($B15,INPUTdata!$A:$L, C$8, FALSE) -> 0 | D15: =VLOOKUP($B15,INPUTdata!$A:$L, D$8, FALSE) -> 70 | E15: =VLOOKUP($B15,INPUTdata!$A:$L, E$8, FALSE) -> 0 | F15: =VLOOKUP($B15,INPUTdata!$A:$L, F$8, FALSE) -> 0 | G15: =VLOOKUP($B15,INPUTdata!$A:$L, G$8, FALSE) -> 59.97 | H15: =VLOOKUP($B15,INPUTdata!$A:$L, H$8, FALSE) -> 52.78 | I15: =VLOOKUP($B15,INPUTdata!$A:$L, I$8, FALSE) -> -6.79 | N15: 0 | O15: 70 | P15: 0 | Q15: 0
A16: 6 | B16: 9 | C16: =VLOOKUP($B16,INPUTdata!$A:$L, C$8, FALSE) -> 0 | D16: =VLOOKUP($B16,INPUTdata!$A:$L, D$8, FALSE) -> 100 | E16: =VLOOKUP($B16,INPUTdata!$A:$L, E$8, FALSE) -> 0 | F16: =VLOOKUP($B16,INPUTdata!$A:$L, F$8, FALSE) -> 0 | G16: =VLOOKUP($B16,INPUTdata!$A:$L, G$8, FALSE) -> 48 | H16: =VLOOKUP($B16,INPUTdata!$A:$L, H$8, FALSE) -> 75 | I16: =VLOOKUP($B16,INPUTdata!$A:$L, I$8, FALSE) -> -4 | N16: 0 | O16: 100 | P16: 0 | Q16: 0
A17: 7 | B17: 10 | C17: =VLOOKUP($B17,INPUTdata!$A:$L, C$8, FALSE) -> 10 | D17: =VLOOKUP($B17,INPUTdata!$A:$L, D$8, FALSE) -> 0 | E17: =VLOOKUP($B17,INPUTdata!$A:$L, E$8, FALSE) -> 0 | F17: =VLOOKUP($B17,INPUTdata!$A:$L, F$8, FALSE) -> 0 | G17: =VLOOKUP($B17,INPUTdata!$A:$L, G$8, FALSE) -> 90.99 | H17: =VLOOKUP($B17,INPUTdata!$A:$L, H$8, FALSE) -> -2.33 | I17: =VLOOKUP($B17,INPUTdata!$A:$L, I$8, FALSE) -> -8.84 | N17: 10 | O17: 0 | P17: 0 | Q17: 0
A18: 8 | B18: 11 | C18: =VLOOKUP($B18,INPUTdata!$A:$L, C$8, FALSE) -> 10 | D18: =VLOOKUP($B18,INPUTdata!$A:$L, D$8, FALSE) -> 10 | E18: =VLOOKUP($B18,INPUTdata!$A:$L, E$8, FALSE) -> 0 | F18: =VLOOKUP($B18,INPUTdata!$A:$L, F$8, FALSE) -> 0 | G18: =VLOOKUP($B18,INPUTdata!$A:$L, G$8, FALSE) -> 86.16 | H18: =VLOOKUP($B18,INPUTdata!$A:$L, H$8, FALSE) -> 4.15 | I18: =VLOOKUP($B18,INPUTdata!$A:$L, I$8, FALSE) -> -9.7 | N18: 10 | O18: 10 | P18: 0 | Q18: 0
A19: 9 | B19: 12 | C19: =VLOOKUP($B19,INPUTdata!$A:$L, C$8, FALSE) -> 10 | D19: =VLOOKUP($B19,INPUTdata!$A:$L, D$8, FALSE) -> 20 | E19: =VLOOKUP($B19,INPUTdata!$A:$L, E$8, FALSE) -> 0 | F19: =VLOOKUP($B19,INPUTdata!$A:$L, F$8, FALSE) -> 0 | G19: =VLOOKUP($B19,INPUTdata!$A:$L, G$8, FALSE) -> 81.51 | H19: =VLOOKUP($B19,INPUTdata!$A:$L, H$8, FALSE) -> 10.45 | I19: =VLOOKUP($B19,INPUTdata!$A:$L, I$8, FALSE) -> -10.46 | N19: 10 | O19: 20 | P19: 0 | Q19: 0
A20: 10 | B20: 14 | C20: =VLOOKUP($B20,INPUTdata!$A:$L, C$8, FALSE) -> 10 | D20: =VLOOKUP($B20,INPUTdata!$A:$L, D$8, FALSE) -> 40 | E20: =VLOOKUP($B20,INPUTdata!$A:$L, E$8, FALSE) -> 0 | F20: =VLOOKUP($B20,INPUTdata!$A:$L, F$8, FALSE) -> 0 | G20: =VLOOKUP($B20,INPUTdata!$A:$L, G$8, FALSE) -> 71.93 | H20: =VLOOKUP($B20,INPUTdata!$A:$L, H$8, FALSE) -> 24.14 | I20: =VLOOKUP($B20,INPUTdata!$A:$L, I$8, FALSE) -> -11.59 | N20: 10 | O20: 40 | P20: 0 | Q20: 0
A21: 11 | B21: 16 | C21: =VLOOKUP($B21,INPUTdata!$A:$L, C$8, FALSE) -> 10 | D21: =VLOOKUP($B21,INPUTdata!$A:$L, D$8, FALSE) -> 70 | E21: =VLOOKUP($B21,INPUTdata!$A:$L, E$8, FALSE) -> 0 | F21: =VLOOKUP($B21,INPUTdata!$A:$L, F$8, FALSE) -> 0 | G21: =VLOOKUP($B21,INPUTdata!$A:$L, G$8, FALSE) -> 57.4 | H21: =VLOOKUP($B21,INPUTdata!$A:$L, H$8, FALSE) -> 47.81 | I21: =VLOOKUP($B21,INPUTdata!$A:$L, I$8, FALSE) -> -11.05 | N21: 10 | O21: 70 | P21: 0 | Q21: 0
A22: 12 | B22: 18 | C22: =VLOOKUP($B22,INPUTdata!$A:$L, C$8, FALSE) -> 10 | D22: =VLOOKUP($B22,INPUTdata!$A:$L, D$8, FALSE) -> 100 | E22: =VLOOKUP($B22,INPUTdata!$A:$L, E$8, FALSE) -> 0 | F22: =VLOOKUP($B22,INPUTdata!$A:$L, F$8, FALSE) -> 0 | G22: =VLOOKUP($B22,INPUTdata!$A:$L, G$8, FALSE) -> 45.82 | H22: =VLOOKUP($B22,INPUTdata!$A:$L, H$8, FALSE) -> 69.39 | I22: =VLOOKUP($B22,INPUTdata!$A:$L, I$8, FALSE) -> -8.63 | N22: 10 | O22: 100 | P22: 0 | Q22: 0
A23: 13 | B23: 19 | C23: =VLOOKUP($B23,INPUTdata!$A:$L, C$8, FALSE) -> 20 | D23: =VLOOKUP($B23,INPUTdata!$A:$L, D$8, FALSE) -> 0 | E23: =VLOOKUP($B23,INPUTdata!$A:$L, E$8, FALSE) -> 0 | F23: =VLOOKUP($B23,INPUTdata!$A:$L, F$8, FALSE) -> 0 | G23: =VLOOKUP($B23,INPUTdata!$A:$L, G$8, FALSE) -> 87.09 | H23: =VLOOKUP($B23,INPUTdata!$A:$L, H$8, FALSE) -> -5.66 | I23: =VLOOKUP($B23,INPUTdata!$A:$L, I$8, FALSE) -> -13.59 | N23: 20 | O23: 0 | P23: 0 | Q23: 0
A24: 14 | B24: 20 | C24: =VLOOKUP($B24,INPUTdata!$A:$L, C$8, FALSE) -> 20 | D24: =VLOOKUP($B24,INPUTdata!$A:$L, D$8, FALSE) -> 10 | E24: =VLOOKUP($B24,INPUTdata!$A:$L, E$8, FALSE) -> 0 | F24: =VLOOKUP($B24,INPUTdata!$A:$L, F$8, FALSE) -> 0 | G24: =VLOOKUP($B24,INPUTdata!$A:$L, G$8, FALSE) -> 82.45 | H24: =VLOOKUP($B24,INPUTdata!$A:$L, H$8, FALSE) -> 0.61 | I24: =VLOOKUP($B24,INPUTdata!$A:$L, I$8, FALSE) -> -14.26 | N24: 20 | O24: 10 | P24: 0 | Q24: 0
A25: 15 | B25: 21 | C25: =VLOOKUP($B25,INPUTdata!$A:$L, C$8, FALSE) -> 20 | D25: =VLOOKUP($B25,INPUTdata!$A:$L, D$8, FALSE) -> 20 | E25: =VLOOKUP($B25,INPUTdata!$A:$L, E$8, FALSE) -> 0 | F25: =VLOOKUP($B25,INPUTdata!$A:$L, F$8, FALSE) -> 0 | G25: =VLOOKUP($B25,INPUTdata!$A:$L, G$8, FALSE) -> 78.03 | H25: =VLOOKUP($B25,INPUTdata!$A:$L, H$8, FALSE) -> 6.71 | I25: =VLOOKUP($B25,INPUTdata!$A:$L, I$8, FALSE) -> -14.88 | N25: 20 | O25: 20 | P25: 0 | Q25: 0
A26: 16 | B26: 23 | C26: =VLOOKUP($B26,INPUTdata!$A:$L, C$8, FALSE) -> 20 | D26: =VLOOKUP($B26,INPUTdata!$A:$L, D$8, FALSE) -> 40 | E26: =VLOOKUP($B26,INPUTdata!$A:$L, E$8, FALSE) -> 0 | F26: =VLOOKUP($B26,INPUTdata!$A:$L, F$8, FALSE) -> 0 | G26: =VLOOKUP($B26,INPUTdata!$A:$L, G$8, FALSE) -> 68.85 | H26: =VLOOKUP($B26,INPUTdata!$A:$L, H$8, FALSE) -> 20.07 | I26: =VLOOKUP($B26,INPUTdata!$A:$L, I$8, FALSE) -> -15.71 | N26: 20 | O26: 40 | P26: 0 | Q26: 0
A27: 17 | B27: 25 | C27: =VLOOKUP($B27,INPUTdata!$A:$L, C$8, FALSE) -> 20 | D27: =VLOOKUP($B27,INPUTdata!$A:$L, D$8, FALSE) -> 70 | E27: =VLOOKUP($B27,INPUTdata!$A:$L, E$8, FALSE) -> 0 | F27: =VLOOKUP($B27,INPUTdata!$A:$L, F$8, FALSE) -> 0 | G27: =VLOOKUP($B27,INPUTdata!$A:$L, G$8, FALSE) -> 54.86 | H27: =VLOOKUP($B27,INPUTdata!$A:$L, H$8, FALSE) -> 42.94 | I27: =VLOOKUP($B27,INPUTdata!$A:$L, I$8, FALSE) -> -15.19 | N27: 20 | O27: 70 | P27: 0 | Q27: 0
A28: 18 | B28: 27 | C28: =VLOOKUP($B28,INPUTdata!$A:$L, C$8, FALSE) -> 20 | D28: =VLOOKUP($B28,INPUTdata!$A:$L, D$8, FALSE) -> 100 | E28: =VLOOKUP($B28,INPUTdata!$A:$L, E$8, FALSE) -> 0 | F28: =VLOOKUP($B28,INPUTdata!$A:$L, F$8, FALSE) -> 0 | G28: =VLOOKUP($B28,INPUTdata!$A:$L, G$8, FALSE) -> 43.6 | H28: =VLOOKUP($B28,INPUTdata!$A:$L, H$8, FALSE) -> 63.95 | I28: =VLOOKUP($B28,INPUTdata!$A:$L, I$8, FALSE) -> -13.07 | N28: 20 | O28: 100 | P28: 0 | Q28: 0
A29: 19 | B29: 37 | C29: =VLOOKUP($B29,INPUTdata!$A:$L, C$8, FALSE) -> 40 | D29: =VLOOKUP($B29,INPUTdata!$A:$L, D$8, FALSE) -> 0 | E29: =VLOOKUP($B29,INPUTdata!$A:$L, E$8, FALSE) -> 0 | F29: =VLOOKUP($B29,INPUTdata!$A:$L, F$8, FALSE) -> 0 | G29: =VLOOKUP($B29,INPUTdata!$A:$L, G$8, FALSE) -> 79.15 | H29: =VLOOKUP($B29,INPUTdata!$A:$L, H$8, FALSE) -> -12.76 | I29: =VLOOKUP($B29,INPUTdata!$A:$L, I$8, FALSE) -> -23.17 | N29: 40 | O29: 0 | P29: 0 | Q29: 0
A30: 20 | B30: 38 | C30: =VLOOKUP($B30,INPUTdata!$A:$L, C$8, FALSE) -> 40 | D30: =VLOOKUP($B30,INPUTdata!$A:$L, D$8, FALSE) -> 10 | E30: =VLOOKUP($B30,INPUTdata!$A:$L, E$8, FALSE) -> 0 | F30: =VLOOKUP($B30,INPUTdata!$A:$L, F$8, FALSE) -> 0 | G30: =VLOOKUP($B30,INPUTdata!$A:$L, G$8, FALSE) -> 74.93 | H30: =VLOOKUP($B30,INPUTdata!$A:$L, H$8, FALSE) -> -6.85 | I30: =VLOOKUP($B30,INPUTdata!$A:$L, I$8, FALSE) -> -23.48 | N30: 40 | O30: 10 | P30: 0 | Q30: 0
A31: 21 | B31: 39 | C31: =VLOOKUP($B31,INPUTdata!$A:$L, C$8, FALSE) -> 40 | D31: =VLOOKUP($B31,INPUTdata!$A:$L, D$8, FALSE) -> 20 | E31: =VLOOKUP($B31,INPUTdata!$A:$L, E$8, FALSE) -> 0 | F31: =VLOOKUP($B31,INPUTdata!$A:$L, F$8, FALSE) -> 0 | G31: =VLOOKUP($B31,INPUTdata!$A:$L, G$8, FALSE) -> 70.91 | H31: =VLOOKUP($B31,INPUTdata!$A:$L, H$8, FALSE) -> -1.14 | I31: =VLOOKUP($B31,INPUTdata!$A:$L, I$8, FALSE) -> -23.78 | N31: 40 | O31: 20 | P31: 0 | Q31: 0
A32: 22 | B32: 41 | C32: =VLOOKUP($B32,INPUTdata!$A:$L, C$8, FALSE) -> 40 | D32: =VLOOKUP($B32,INPUTdata!$A:$L, D$8, FALSE) -> 40 | E32: =VLOOKUP($B32,INPUTdata!$A:$L, E$8, FALSE) -> 0 | F32: =VLOOKUP($B32,INPUTdata!$A:$L, F$8, FALSE) -> 0 | G32: =VLOOKUP($B32,INPUTdata!$A:$L, G$8, FALSE) -> 62.61 | H32: =VLOOKUP($B32,INPUTdata!$A:$L, H$8, FALSE) -> 11.35 | I32: =VLOOKUP($B32,INPUTdata!$A:$L, I$8, FALSE) -> -24.11 | N32: 40 | O32: 40 | P32: 0 | Q32: 0
A33: 23 | B33: 43 | C33: =VLOOKUP($B33,INPUTdata!$A:$L, C$8, FALSE) -> 40 | D33: =VLOOKUP($B33,INPUTdata!$A:$L, D$8, FALSE) -> 70 | E33: =VLOOKUP($B33,INPUTdata!$A:$L, E$8, FALSE) -> 0 | F33: =VLOOKUP($B33,INPUTdata!$A:$L, F$8, FALSE) -> 0 | G33: =VLOOKUP($B33,INPUTdata!$A:$L, G$8, FALSE) -> 49.66 | H33: =VLOOKUP($B33,INPUTdata!$A:$L, H$8, FALSE) -> 32.93 | I33: =VLOOKUP($B33,INPUTdata!$A:$L, I$8, FALSE) -> -23.47 | N33: 40 | O33: 70 | P33: 0 | Q33: 0
A34: 24 | B34: 45 | C34: =VLOOKUP($B34,INPUTdata!$A:$L, C$8, FALSE) -> 40 | D34: =VLOOKUP($B34,INPUTdata!$A:$L, D$8, FALSE) -> 100 | E34: =VLOOKUP($B34,INPUTdata!$A:$L, E$8, FALSE) -> 0 | F34: =VLOOKUP($B34,INPUTdata!$A:$L, F$8, FALSE) -> 0 | G34: =VLOOKUP($B34,INPUTdata!$A:$L, G$8, FALSE) -> 39.03 | H34: =VLOOKUP($B34,INPUTdata!$A:$L, H$8, FALSE) -> 52.81 | I34: =VLOOKUP($B34,INPUTdata!$A:$L, I$8, FALSE) -> -21.85 | N34: 40 | O34: 100 | P34: 0 | Q34: 0
A35: 25 | B35: 55 | C35: =VLOOKUP($B35,INPUTdata!$A:$L, C$8, FALSE) -> 70 | D35: =VLOOKUP($B35,INPUTdata!$A:$L, D$8, FALSE) -> 0 | E35: =VLOOKUP($B35,INPUTdata!$A:$L, E$8, FALSE) -> 0 | F35: =VLOOKUP($B35,INPUTdata!$A:$L, F$8, FALSE) -> 0 | G35: =VLOOKUP($B35,INPUTdata!$A:$L, G$8, FALSE) -> 66.79 | H35: =VLOOKUP($B35,INPUTdata!$A:$L, H$8, FALSE) -> -25.16 | I35: =VLOOKUP($B35,INPUTdata!$A:$L, I$8, FALSE) -> -37.63 | N35: 70 | O35: 0 | P35: 0 | Q35: 0
A36: 26 | B36: 56 | C36: =VLOOKUP($B36,INPUTdata!$A:$L, C$8, FALSE) -> 70 | D36: =VLOOKUP($B36,INPUTdata!$A:$L, D$8, FALSE) -> 10 | E36: =VLOOKUP($B36,INPUTdata!$A:$L, E$8, FALSE) -> 0 | F36: =VLOOKUP($B36,INPUTdata!$A:$L, F$8, FALSE) -> 0 | G36: =VLOOKUP($B36,INPUTdata!$A:$L, G$8, FALSE) -> 63.23 | H36: =VLOOKUP($B36,INPUTdata!$A:$L, H$8, FALSE) -> -19.67 | I36: =VLOOKUP($B36,INPUTdata!$A:$L, I$8, FALSE) -> -37.4 | N36: 70 | O36: 10 | P36: 0 | Q36: 0
A37: 27 | B37: 57 | C37: =VLOOKUP($B37,INPUTdata!$A:$L, C$8, FALSE) -> 70 | D37: =VLOOKUP($B37,INPUTdata!$A:$L, D$8, FALSE) -> 20 | E37: =VLOOKUP($B37,INPUTdata!$A:$L, E$8, FALSE) -> 0 | F37: =VLOOKUP($B37,INPUTdata!$A:$L, F$8, FALSE) -> 0 | G37: =VLOOKUP($B37,INPUTdata!$A:$L, G$8, FALSE) -> 59.85 | H37: =VLOOKUP($B37,INPUTdata!$A:$L, H$8, FALSE) -> -14.41 | I37: =VLOOKUP($B37,INPUTdata!$A:$L, I$8, FALSE) -> -37.22 | N37: 70 | O37: 20 | P37: 0 | Q37: 0
A38: 28 | B38: 59 | C38: =VLOOKUP($B38,INPUTdata!$A:$L, C$8, FALSE) -> 70 | D38: =VLOOKUP($B38,INPUTdata!$A:$L, D$8, FALSE) -> 40 | E38: =VLOOKUP($B38,INPUTdata!$A:$L, E$8, FALSE) -> 0 | F38: =VLOOKUP($B38,INPUTdata!$A:$L, F$8, FALSE) -> 0 | G38: =VLOOKUP($B38,INPUTdata!$A:$L, G$8, FALSE) -> 52.76 | H38: =VLOOKUP($B38,INPUTdata!$A:$L, H$8, FALSE) -> -2.91 | I38: =VLOOKUP($B38,INPUTdata!$A:$L, I$8, FALSE) -> -36.75 | N38: 70 | O38: 40 | P38: 0 | Q38: 0
A39: 29 | B39: 61 | C39: =VLOOKUP($B39,INPUTdata!$A:$L, C$8, FALSE) -> 70 | D39: =VLOOKUP($B39,INPUTdata!$A:$L, D$8, FALSE) -> 70 | E39: =VLOOKUP($B39,INPUTdata!$A:$L, E$8, FALSE) -> 0 | F39: =VLOOKUP($B39,INPUTdata!$A:$L, F$8, FALSE) -> 0 | G39: =VLOOKUP($B39,INPUTdata!$A:$L, G$8, FALSE) -> 41.46 | H39: =VLOOKUP($B39,INPUTdata!$A:$L, H$8, FALSE) -> 16.82 | I39: =VLOOKUP($B39,INPUTdata!$A:$L, I$8, FALSE) -> -35.88 | N39: 70 | O39: 70 | P39: 0 | Q39: 0
A40: 30 | B40: 63 | C40: =VLOOKUP($B40,INPUTdata!$A:$L, C$8, FALSE) -> 70 | D40: =VLOOKUP($B40,INPUTdata!$A:$L, D$8, FALSE) -> 100 | E40: =VLOOKUP($B40,INPUTdata!$A:$L, E$8, FALSE) -> 0 | F40: =VLOOKUP($B40,INPUTdata!$A:$L, F$8, FALSE) -> 0 | G40: =VLOOKUP($B40,INPUTdata!$A:$L, G$8, FALSE) -> 31.84 | H40: =VLOOKUP($B40,INPUTdata!$A:$L, H$8, FALSE) -> 35.11 | I40: =VLOOKUP($B40,INPUTdata!$A:$L, I$8, FALSE) -> -35.02 | N40: 70 | O40: 100 | P40: 0 | Q40: 0
A41: 31 | B41: 73 | C41: =VLOOKUP($B41,INPUTdata!$A:$L, C$8, FALSE) -> 100 | D41: =VLOOKUP($B41,INPUTdata!$A:$L, D$8, FALSE) -> 0 | E41: =VLOOKUP($B41,INPUTdata!$A:$L, E$8, FALSE) -> 0 | F41: =VLOOKUP($B41,INPUTdata!$A:$L, F$8, FALSE) -> 0 | G41: =VLOOKUP($B41,INPUTdata!$A:$L, G$8, FALSE) -> 56 | H41: =VLOOKUP($B41,INPUTdata!$A:$L, H$8, FALSE) -> -37 | I41: =VLOOKUP($B41,INPUTdata!$A:$L, I$8, FALSE) -> -50 | N41: 100 | O41: 0 | P41: 0 | Q41: 0
A42: 32 | B42: 74 | C42: =VLOOKUP($B42,INPUTdata!$A:$L, C$8, FALSE) -> 100 | D42: =VLOOKUP($B42,INPUTdata!$A:$L, D$8, FALSE) -> 10 | E42: =VLOOKUP($B42,INPUTdata!$A:$L, E$8, FALSE) -> 0 | F42: =VLOOKUP($B42,INPUTdata!$A:$L, F$8, FALSE) -> 0 | G42: =VLOOKUP($B42,INPUTdata!$A:$L, G$8, FALSE) -> 53.07 | H42: =VLOOKUP($B42,INPUTdata!$A:$L, H$8, FALSE) -> -32.1 | I42: =VLOOKUP($B42,INPUTdata!$A:$L, I$8, FALSE) -> -49.14 | N42: 100 | O42: 10 | P42: 0 | Q42: 0
A43: 33 | B43: 75 | C43: =VLOOKUP($B43,INPUTdata!$A:$L, C$8, FALSE) -> 100 | D43: =VLOOKUP($B43,INPUTdata!$A:$L, D$8, FALSE) -> 20 | E43: =VLOOKUP($B43,INPUTdata!$A:$L, E$8, FALSE) -> 0 | F43: =VLOOKUP($B43,INPUTdata!$A:$L, F$8, FALSE) -> 0 | G43: =VLOOKUP($B43,INPUTdata!$A:$L, G$8, FALSE) -> 50.23 | H43: =VLOOKUP($B43,INPUTdata!$A:$L, H$8, FALSE) -> -27.18 | I43: =VLOOKUP($B43,INPUTdata!$A:$L, I$8, FALSE) -> -48.51 | N43: 100 | O43: 20 | P43: 0 | Q43: 0
A44: 34 | B44: 77 | C44: =VLOOKUP($B44,INPUTdata!$A:$L, C$8, FALSE) -> 100 | D44: =VLOOKUP($B44,INPUTdata!$A:$L, D$8, FALSE) -> 40 | E44: =VLOOKUP($B44,INPUTdata!$A:$L, E$8, FALSE) -> 0 | F44: =VLOOKUP($B44,INPUTdata!$A:$L, F$8, FALSE) -> 0 | G44: =VLOOKUP($B44,INPUTdata!$A:$L, G$8, FALSE) -> 44.12 | H44: =VLOOKUP($B44,INPUTdata!$A:$L, H$8, FALSE) -> -16.25 | I44: =VLOOKUP($B44,INPUTdata!$A:$L, I$8, FALSE) -> -47.39 | N44: 100 | O44: 40 | P44: 0 | Q44: 0
A45: 35 | B45: 79 | C45: =VLOOKUP($B45,INPUTdata!$A:$L, C$8, FALSE) -> 100 | D45: =VLOOKUP($B45,INPUTdata!$A:$L, D$8, FALSE) -> 70 | E45: =VLOOKUP($B45,INPUTdata!$A:$L, E$8, FALSE) -> 0 | F45: =VLOOKUP($B45,INPUTdata!$A:$L, F$8, FALSE) -> 0 | G45: =VLOOKUP($B45,INPUTdata!$A:$L, G$8, FALSE) -> 34.23 | H45: =VLOOKUP($B45,INPUTdata!$A:$L, H$8, FALSE) -> 2.27 | I45: =VLOOKUP($B45,INPUTdata!$A:$L, I$8, FALSE) -> -46.2 | N45: 100 | O45: 70 | P45: 0 | Q45: 0
A46: 36 | B46: 81 | C46: =VLOOKUP($B46,INPUTdata!$A:$L, C$8, FALSE) -> 100 | D46: =VLOOKUP($B46,INPUTdata!$A:$L, D$8, FALSE) -> 100 | E46: =VLOOKUP($B46,INPUTdata!$A:$L, E$8, FALSE) -> 0 | F46: =VLOOKUP($B46,INPUTdata!$A:$L, F$8, FALSE) -> 0 | G46: =VLOOKUP($B46,INPUTdata!$A:$L, G$8, FALSE) -> 25 | H46: =VLOOKUP($B46,INPUTdata!$A:$L, H$8, FALSE) -> 20 | I46: =VLOOKUP($B46,INPUTdata!$A:$L, I$8, FALSE) -> -46 | N46: 100 | O46: 100 | P46: 0 | Q46: 0
A47: 37 | B47: 82 | C47: =VLOOKUP($B47,INPUTdata!$A:$L, C$8, FALSE) -> 0 | D47: =VLOOKUP($B47,INPUTdata!$A:$L, D$8, FALSE) -> 0 | E47: =VLOOKUP($B47,INPUTdata!$A:$L, E$8, FALSE) -> 10 | F47: =VLOOKUP($B47,INPUTdata!$A:$L, F$8, FALSE) -> 0 | G47: =VLOOKUP($B47,INPUTdata!$A:$L, G$8, FALSE) -> 94.22 | H47: =VLOOKUP($B47,INPUTdata!$A:$L, H$8, FALSE) -> 0.12 | I47: =VLOOKUP($B47,INPUTdata!$A:$L, I$8, FALSE) -> 4.76 | N47: 0 | O47: 0 | P47: 10 | Q47: 0
A48: 38 | B48: 83 | C48: =VLOOKUP($B48,INPUTdata!$A:$L, C$8, FALSE) -> 0 | D48: =VLOOKUP($B48,INPUTdata!$A:$L, D$8, FALSE) -> 10 | E48: =VLOOKUP($B48,INPUTdata!$A:$L, E$8, FALSE) -> 10 | F48: =VLOOKUP($B48,INPUTdata!$A:$L, F$8, FALSE) -> 0 | G48: =VLOOKUP($B48,INPUTdata!$A:$L, G$8, FALSE) -> 89.26 | H48: =VLOOKUP($B48,INPUTdata!$A:$L, H$8, FALSE) -> 6.85 | I48: =VLOOKUP($B48,INPUTdata!$A:$L, I$8, FALSE) -> 3.27 | N48: 0 | O48: 10 | P48: 10 | Q48: 0
A49: 39 | B49: 84 | C49: =VLOOKUP($B49,INPUTdata!$A:$L, C$8, FALSE) -> 0 | D49: =VLOOKUP($B49,INPUTdata!$A:$L, D$8, FALSE) -> 20 | E49: =VLOOKUP($B49,INPUTdata!$A:$L, E$8, FALSE) -> 10 | F49: =VLOOKUP($B49,INPUTdata!$A:$L, F$8, FALSE) -> 0 | G49: =VLOOKUP($B49,INPUTdata!$A:$L, G$8, FALSE) -> 84.5 | H49: =VLOOKUP($B49,INPUTdata!$A:$L, H$8, FALSE) -> 13.39 | I49: =VLOOKUP($B49,INPUTdata!$A:$L, I$8, FALSE) -> 1.97 | N49: 0 | O49: 20 | P49: 10 | Q49: 0
A50: 40 | B50: 86 | C50: =VLOOKUP($B50,INPUTdata!$A:$L, C$8, FALSE) -> 0 | D50: =VLOOKUP($B50,INPUTdata!$A:$L, D$8, FALSE) -> 40 | E50: =VLOOKUP($B50,INPUTdata!$A:$L, E$8, FALSE) -> 10 | F50: =VLOOKUP($B50,INPUTdata!$A:$L, F$8, FALSE) -> 0 | G50: =VLOOKUP($B50,INPUTdata!$A:$L, G$8, FALSE) -> 74.73 | H50: =VLOOKUP($B50,INPUTdata!$A:$L, H$8, FALSE) -> 27.53 | I50: =VLOOKUP($B50,INPUTdata!$A:$L, I$8, FALSE) -> 0.06 | N50: 0 | O50: 40 | P50: 10 | Q50: 0
A51: 41 | B51: 88 | C51: =VLOOKUP($B51,INPUTdata!$A:$L, C$8, FALSE) -> 0 | D51: =VLOOKUP($B51,INPUTdata!$A:$L, D$8, FALSE) -> 70 | E51: =VLOOKUP($B51,INPUTdata!$A:$L, E$8, FALSE) -> 10 | F51: =VLOOKUP($B51,INPUTdata!$A:$L, F$8, FALSE) -> 0 | G51: =VLOOKUP($B51,INPUTdata!$A:$L, G$8, FALSE) -> 59.97 | H51: =VLOOKUP($B51,INPUTdata!$A:$L, H$8, FALSE) -> 51.94 | I51: =VLOOKUP($B51,INPUTdata!$A:$L, I$8, FALSE) -> -0.71 | N51: 0 | O51: 70 | P51: 10 | Q51: 0
A52: 42 | B52: 90 | C52: =VLOOKUP($B52,INPUTdata!$A:$L, C$8, FALSE) -> 0 | D52: =VLOOKUP($B52,INPUTdata!$A:$L, D$8, FALSE) -> 100 | E52: =VLOOKUP($B52,INPUTdata!$A:$L, E$8, FALSE) -> 10 | F52: =VLOOKUP($B52,INPUTdata!$A:$L, F$8, FALSE) -> 0 | G52: =VLOOKUP($B52,INPUTdata!$A:$L, G$8, FALSE) -> 48.29 | H52: =VLOOKUP($B52,INPUTdata!$A:$L, H$8, FALSE) -> 74.1 | I52: =VLOOKUP($B52,INPUTdata!$A:$L, I$8, FALSE) -> 0.87 | N52: 0 | O52: 100 | P52: 10 | Q52: 0
A53: 43 | B53: 91 | C53: =VLOOKUP($B53,INPUTdata!$A:$L, C$8, FALSE) -> 10 | D53: =VLOOKUP($B53,INPUTdata!$A:$L, D$8, FALSE) -> 0 | E53: =VLOOKUP($B53,INPUTdata!$A:$L, E$8, FALSE) -> 10 | F53: =VLOOKUP($B53,INPUTdata!$A:$L, F$8, FALSE) -> 0 | G53: =VLOOKUP($B53,INPUTdata!$A:$L, G$8, FALSE) -> 90.27 | H53: =VLOOKUP($B53,INPUTdata!$A:$L, H$8, FALSE) -> -3.53 | I53: =VLOOKUP($B53,INPUTdata!$A:$L, I$8, FALSE) -> -0.18 | N53: 10 | O53: 0 | P53: 10 | Q53: 0
A54: 44 | B54: 100 | C54: =VLOOKUP($B54,INPUTdata!$A:$L, C$8, FALSE) -> 20 | D54: =VLOOKUP($B54,INPUTdata!$A:$L, D$8, FALSE) -> 0 | E54: =VLOOKUP($B54,INPUTdata!$A:$L, E$8, FALSE) -> 10 | F54: =VLOOKUP($B54,INPUTdata!$A:$L, F$8, FALSE) -> 0 | G54: =VLOOKUP($B54,INPUTdata!$A:$L, G$8, FALSE) -> 86.38 | H54: =VLOOKUP($B54,INPUTdata!$A:$L, H$8, FALSE) -> -7.13 | I54: =VLOOKUP($B54,INPUTdata!$A:$L, I$8, FALSE) -> -5 | N54: 20 | O54: 0 | P54: 10 | Q54: 0
A55: 45 | B55: 118 | C55: =VLOOKUP($B55,INPUTdata!$A:$L, C$8, FALSE) -> 40 | D55: =VLOOKUP($B55,INPUTdata!$A:$L, D$8, FALSE) -> 0 | E55: =VLOOKUP($B55,INPUTdata!$A:$L, E$8, FALSE) -> 10 | F55: =VLOOKUP($B55,INPUTdata!$A:$L, F$8, FALSE) -> 0 | G55: =VLOOKUP($B55,INPUTdata!$A:$L, G$8, FALSE) -> 78.55 | H55: =VLOOKUP($B55,INPUTdata!$A:$L, H$8, FALSE) -> -14.75 | I55: =VLOOKUP($B55,INPUTdata!$A:$L, I$8, FALSE) -> -14.77 | N55: 40 | O55: 0 | P55: 10 | Q55: 0
A56: 46 | B56: 136 | C56: =VLOOKUP($B56,INPUTdata!$A:$L, C$8, FALSE) -> 70 | D56: =VLOOKUP($B56,INPUTdata!$A:$L, D$8, FALSE) -> 0 | E56: =VLOOKUP($B56,INPUTdata!$A:$L, E$8, FALSE) -> 10 | F56: =VLOOKUP($B56,INPUTdata!$A:$L, F$8, FALSE) -> 0 | G56: =VLOOKUP($B56,INPUTdata!$A:$L, G$8, FALSE) -> 66.29 | H56: =VLOOKUP($B56,INPUTdata!$A:$L, H$8, FALSE) -> -28.26 | I56: =VLOOKUP($B56,INPUTdata!$A:$L, I$8, FALSE) -> -29.48 | N56: 70 | O56: 0 | P56: 10 | Q56: 0
A57: 47 | B57: 154 | C57: =VLOOKUP($B57,INPUTdata!$A:$L, C$8, FALSE) -> 100 | D57: =VLOOKUP($B57,INPUTdata!$A:$L, D$8, FALSE) -> 0 | E57: =VLOOKUP($B57,INPUTdata!$A:$L, E$8, FALSE) -> 10 | F57: =VLOOKUP($B57,INPUTdata!$A:$L, F$8, FALSE) -> 0 | G57: =VLOOKUP($B57,INPUTdata!$A:$L, G$8, FALSE) -> 55.58 | H57: =VLOOKUP($B57,INPUTdata!$A:$L, H$8, FALSE) -> -41.34 | I57: =VLOOKUP($B57,INPUTdata!$A:$L, I$8, FALSE) -> -42.01 | N57: 100 | O57: 0 | P57: 10 | Q57: 0
A58: 48 | B58: 163 | C58: =VLOOKUP($B58,INPUTdata!$A:$L, C$8, FALSE) -> 0 | D58: =VLOOKUP($B58,INPUTdata!$A:$L, D$8, FALSE) -> 0 | E58: =VLOOKUP($B58,INPUTdata!$A:$L, E$8, FALSE) -> 20 | F58: =VLOOKUP($B58,INPUTdata!$A:$L, F$8, FALSE) -> 0 | G58: =VLOOKUP($B58,INPUTdata!$A:$L, G$8, FALSE) -> 93.49 | H58: =VLOOKUP($B58,INPUTdata!$A:$L, H$8, FALSE) -> -0.71 | I58: =VLOOKUP($B58,INPUTdata!$A:$L, I$8, FALSE) -> 13.36 | N58: 0 | O58: 0 | P58: 20 | Q58: 0
A59: 49 | B59: 164 | C59: =VLOOKUP($B59,INPUTdata!$A:$L, C$8, FALSE) -> 0 | D59: =VLOOKUP($B59,INPUTdata!$A:$L, D$8, FALSE) -> 10 | E59: =VLOOKUP($B59,INPUTdata!$A:$L, E$8, FALSE) -> 20 | F59: =VLOOKUP($B59,INPUTdata!$A:$L, F$8, FALSE) -> 0 | G59: =VLOOKUP($B59,INPUTdata!$A:$L, G$8, FALSE) -> 88.6 | H59: =VLOOKUP($B59,INPUTdata!$A:$L, H$8, FALSE) -> 6.01 | I59: =VLOOKUP($B59,INPUTdata!$A:$L, I$8, FALSE) -> 11.51 | N59: 0 | O59: 10 | P59: 20 | Q59: 0
A60: 50 | B60: 165 | C60: =VLOOKUP($B60,INPUTdata!$A:$L, C$8, FALSE) -> 0 | D60: =VLOOKUP($B60,INPUTdata!$A:$L, D$8, FALSE) -> 20 | E60: =VLOOKUP($B60,INPUTdata!$A:$L, E$8, FALSE) -> 20 | F60: =VLOOKUP($B60,INPUTdata!$A:$L, F$8, FALSE) -> 0 | G60: =VLOOKUP($B60,INPUTdata!$A:$L, G$8, FALSE) -> 83.95 | H60: =VLOOKUP($B60,INPUTdata!$A:$L, H$8, FALSE) -> 12.54 | I60: =VLOOKUP($B60,INPUTdata!$A:$L, I$8, FALSE) -> 9.9 | N60: 0 | O60: 20 | P60: 20 | Q60: 0
A61: 51 | B61: 167 | C61: =VLOOKUP($B61,INPUTdata!$A:$L, C$8, FALSE) -> 0 | D61: =VLOOKUP($B61,INPUTdata!$A:$L, D$8, FALSE) -> 40 | E61: =VLOOKUP($B61,INPUTdata!$A:$L, E$8, FALSE) -> 20 | F61: =VLOOKUP($B61,INPUTdata!$A:$L, F$8, FALSE) -> 0 | G61: =VLOOKUP($B61,INPUTdata!$A:$L, G$8, FALSE) -> 74.38 | H61: =VLOOKUP($B61,INPUTdata!$A:$L, H$8, FALSE) -> 26.78 | I61: =VLOOKUP($B61,INPUTdata!$A:$L, I$8, FALSE) -> 7.27 | N61: 0 | O61: 40 | P61: 20 | Q61: 0
A62: 52 | B62: 169 | C62: =VLOOKUP($B62,INPUTdata!$A:$L, C$8, FALSE) -> 0 | D62: =VLOOKUP($B62,INPUTdata!$A:$L, D$8, FALSE) -> 70 | E62: =VLOOKUP($B62,INPUTdata!$A:$L, E$8, FALSE) -> 20 | F62: =VLOOKUP($B62,INPUTdata!$A:$L, F$8, FALSE) -> 0 | G62: =VLOOKUP($B62,INPUTdata!$A:$L, G$8, FALSE) -> 59.91 | H62: =VLOOKUP($B62,INPUTdata!$A:$L, H$8, FALSE) -> 51.04 | I62: =VLOOKUP($B62,INPUTdata!$A:$L, I$8, FALSE) -> 5.29 | N62: 0 | O62: 70 | P62: 20 | Q62: 0
A63: 53 | B63: 171 | C63: =VLOOKUP($B63,INPUTdata!$A:$L, C$8, FALSE) -> 0 | D63: =VLOOKUP($B63,INPUTdata!$A:$L, D$8, FALSE) -> 100 | E63: =VLOOKUP($B63,INPUTdata!$A:$L, E$8, FALSE) -> 20 | F63: =VLOOKUP($B63,INPUTdata!$A:$L, F$8, FALSE) -> 0 | G63: =VLOOKUP($B63,INPUTdata!$A:$L, G$8, FALSE) -> 48.47 | H63: =VLOOKUP($B63,INPUTdata!$A:$L, H$8, FALSE) -> 73.14 | I63: =VLOOKUP($B63,INPUTdata!$A:$L, I$8, FALSE) -> 5.87 | N63: 0 | O63: 100 | P63: 20 | Q63: 0
A64: 54 | B64: 172 | C64: =VLOOKUP($B64,INPUTdata!$A:$L, C$8, FALSE) -> 10 | D64: =VLOOKUP($B64,INPUTdata!$A:$L, D$8, FALSE) -> 0 | E64: =VLOOKUP($B64,INPUTdata!$A:$L, E$8, FALSE) -> 20 | F64: =VLOOKUP($B64,INPUTdata!$A:$L, F$8, FALSE) -> 0 | G64: =VLOOKUP($B64,INPUTdata!$A:$L, G$8, FALSE) -> 89.58 | H64: =VLOOKUP($B64,INPUTdata!$A:$L, H$8, FALSE) -> -4.56 | I64: =VLOOKUP($B64,INPUTdata!$A:$L, I$8, FALSE) -> 8.31 | N64: 10 | O64: 0 | P64: 20 | Q64: 0
A65: 55 | B65: 181 | C65: =VLOOKUP($B65,INPUTdata!$A:$L, C$8, FALSE) -> 20 | D65: =VLOOKUP($B65,INPUTdata!$A:$L, D$8, FALSE) -> 0 | E65: =VLOOKUP($B65,INPUTdata!$A:$L, E$8, FALSE) -> 20 | F65: =VLOOKUP($B65,INPUTdata!$A:$L, F$8, FALSE) -> 0 | G65: =VLOOKUP($B65,INPUTdata!$A:$L, G$8, FALSE) -> 85.76 | H65: =VLOOKUP($B65,INPUTdata!$A:$L, H$8, FALSE) -> -8.38 | I65: =VLOOKUP($B65,INPUTdata!$A:$L, I$8, FALSE) -> 3.36 | N65: 20 | O65: 0 | P65: 20 | Q65: 0
A66: 56 | B66: 199 | C66: =VLOOKUP($B66,INPUTdata!$A:$L, C$8, FALSE) -> 40 | D66: =VLOOKUP($B66,INPUTdata!$A:$L, D$8, FALSE) -> 0 | E66: =VLOOKUP($B66,INPUTdata!$A:$L, E$8, FALSE) -> 20 | F66: =VLOOKUP($B66,INPUTdata!$A:$L, F$8, FALSE) -> 0 | G66: =VLOOKUP($B66,INPUTdata!$A:$L, G$8, FALSE) -> 77.98 | H66: =VLOOKUP($B66,INPUTdata!$A:$L, H$8, FALSE) -> -16.63 | I66: =VLOOKUP($B66,INPUTdata!$A:$L, I$8, FALSE) -> -6.56 | N66: 40 | O66: 0 | P66: 20 | Q66: 0
A67: 57 | B67: 217 | C67: =VLOOKUP($B67,INPUTdata!$A:$L, C$8, FALSE) -> 70 | D67: =VLOOKUP($B67,INPUTdata!$A:$L, D$8, FALSE) -> 0 | E67: =VLOOKUP($B67,INPUTdata!$A:$L, E$8, FALSE) -> 20 | F67: =VLOOKUP($B67,INPUTdata!$A:$L, F$8, FALSE) -> 0 | G67: =VLOOKUP($B67,INPUTdata!$A:$L, G$8, FALSE) -> 65.84 | H67: =VLOOKUP($B67,INPUTdata!$A:$L, H$8, FALSE) -> -31.02 | I67: =VLOOKUP($B67,INPUTdata!$A:$L, I$8, FALSE) -> -21.67 | N67: 70 | O67: 0 | P67: 20 | Q67: 0
A68: 58 | B68: 235 | C68: =VLOOKUP($B68,INPUTdata!$A:$L, C$8, FALSE) -> 100 | D68: =VLOOKUP($B68,INPUTdata!$A:$L, D$8, FALSE) -> 0 | E68: =VLOOKUP($B68,INPUTdata!$A:$L, E$8, FALSE) -> 20 | F68: =VLOOKUP($B68,INPUTdata!$A:$L, F$8, FALSE) -> 0 | G68: =VLOOKUP($B68,INPUTdata!$A:$L, G$8, FALSE) -> 55.21 | H68: =VLOOKUP($B68,INPUTdata!$A:$L, H$8, FALSE) -> -45.11 | I68: =VLOOKUP($B68,INPUTdata!$A:$L, I$8, FALSE) -> -34.45 | N68: 100 | O68: 0 | P68: 20 | Q68: 0
A69: 59 | B69: 325 | C69: =VLOOKUP($B69,INPUTdata!$A:$L, C$8, FALSE) -> 0 | D69: =VLOOKUP($B69,INPUTdata!$A:$L, D$8, FALSE) -> 0 | E69: =VLOOKUP($B69,INPUTdata!$A:$L, E$8, FALSE) -> 40 | F69: =VLOOKUP($B69,INPUTdata!$A:$L, F$8, FALSE) -> 0 | G69: =VLOOKUP($B69,INPUTdata!$A:$L, G$8, FALSE) -> 92.13 | H69: =VLOOKUP($B69,INPUTdata!$A:$L, H$8, FALSE) -> -2.16 | I69: =VLOOKUP($B69,INPUTdata!$A:$L, I$8, FALSE) -> 31.6 | N69: 0 | O69: 0 | P69: 40 | Q69: 0
A70: 60 | B70: 326 | C70: =VLOOKUP($B70,INPUTdata!$A:$L, C$8, FALSE) -> 0 | D70: =VLOOKUP($B70,INPUTdata!$A:$L, D$8, FALSE) -> 10 | E70: =VLOOKUP($B70,INPUTdata!$A:$L, E$8, FALSE) -> 40 | F70: =VLOOKUP($B70,INPUTdata!$A:$L, F$8, FALSE) -> 0 | G70: =VLOOKUP($B70,INPUTdata!$A:$L, G$8, FALSE) -> 87.38 | H70: =VLOOKUP($B70,INPUTdata!$A:$L, H$8, FALSE) -> 4.65 | I70: =VLOOKUP($B70,INPUTdata!$A:$L, I$8, FALSE) -> 28.98 | N70: 0 | O70: 10 | P70: 40 | Q70: 0
A71: 61 | B71: 327 | C71: =VLOOKUP($B71,INPUTdata!$A:$L, C$8, FALSE) -> 0 | D71: =VLOOKUP($B71,INPUTdata!$A:$L, D$8, FALSE) -> 20 | E71: =VLOOKUP($B71,INPUTdata!$A:$L, E$8, FALSE) -> 40 | F71: =VLOOKUP($B71,INPUTdata!$A:$L, F$8, FALSE) -> 0 | G71: =VLOOKUP($B71,INPUTdata!$A:$L, G$8, FALSE) -> 82.9 | H71: =VLOOKUP($B71,INPUTdata!$A:$L, H$8, FALSE) -> 11.2 | I71: =VLOOKUP($B71,INPUTdata!$A:$L, I$8, FALSE) -> 26.63 | N71: 0 | O71: 20 | P71: 40 | Q71: 0
A72: 62 | B72: 329 | C72: =VLOOKUP($B72,INPUTdata!$A:$L, C$8, FALSE) -> 0 | D72: =VLOOKUP($B72,INPUTdata!$A:$L, D$8, FALSE) -> 40 | E72: =VLOOKUP($B72,INPUTdata!$A:$L, E$8, FALSE) -> 40 | F72: =VLOOKUP($B72,INPUTdata!$A:$L, F$8, FALSE) -> 0 | G72: =VLOOKUP($B72,INPUTdata!$A:$L, G$8, FALSE) -> 73.68 | H72: =VLOOKUP($B72,INPUTdata!$A:$L, H$8, FALSE) -> 25.38 | I72: =VLOOKUP($B72,INPUTdata!$A:$L, I$8, FALSE) -> 22.21 | N72: 0 | O72: 40 | P72: 40 | Q72: 0
A73: 63 | B73: 331 | C73: =VLOOKUP($B73,INPUTdata!$A:$L, C$8, FALSE) -> 0 | D73: =VLOOKUP($B73,INPUTdata!$A:$L, D$8, FALSE) -> 70 | E73: =VLOOKUP($B73,INPUTdata!$A:$L, E$8, FALSE) -> 40 | F73: =VLOOKUP($B73,INPUTdata!$A:$L, F$8, FALSE) -> 0 | G73: =VLOOKUP($B73,INPUTdata!$A:$L, G$8, FALSE) -> 59.7 | H73: =VLOOKUP($B73,INPUTdata!$A:$L, H$8, FALSE) -> 49.54 | I73: =VLOOKUP($B73,INPUTdata!$A:$L, I$8, FALSE) -> 17.71 | N73: 0 | O73: 70 | P73: 40 | Q73: 0
A74: 64 | B74: 333 | C74: =VLOOKUP($B74,INPUTdata!$A:$L, C$8, FALSE) -> 0 | D74: =VLOOKUP($B74,INPUTdata!$A:$L, D$8, FALSE) -> 100 | E74: =VLOOKUP($B74,INPUTdata!$A:$L, E$8, FALSE) -> 40 | F74: =VLOOKUP($B74,INPUTdata!$A:$L, F$8, FALSE) -> 0 | G74: =VLOOKUP($B74,INPUTdata!$A:$L, G$8, FALSE) -> 48.61 | H74: =VLOOKUP($B74,INPUTdata!$A:$L, H$8, FALSE) -> 71.46 | I74: =VLOOKUP($B74,INPUTdata!$A:$L, I$8, FALSE) -> 16.14 | N74: 0 | O74: 100 | P74: 40 | Q74: 0
A75: 65 | B75: 334 | C75: =VLOOKUP($B75,INPUTdata!$A:$L, C$8, FALSE) -> 10 | D75: =VLOOKUP($B75,INPUTdata!$A:$L, D$8, FALSE) -> 0 | E75: =VLOOKUP($B75,INPUTdata!$A:$L, E$8, FALSE) -> 40 | F75: =VLOOKUP($B75,INPUTdata!$A:$L, F$8, FALSE) -> 0 | G75: =VLOOKUP($B75,INPUTdata!$A:$L, G$8, FALSE) -> 88.29 | H75: =VLOOKUP($B75,INPUTdata!$A:$L, H$8, FALSE) -> -6.45 | I75: =VLOOKUP($B75,INPUTdata!$A:$L, I$8, FALSE) -> 26.23 | N75: 10 | O75: 0 | P75: 40 | Q75: 0
A76: 66 | B76: 343 | C76: =VLOOKUP($B76,INPUTdata!$A:$L, C$8, FALSE) -> 20 | D76: =VLOOKUP($B76,INPUTdata!$A:$L, D$8, FALSE) -> 0 | E76: =VLOOKUP($B76,INPUTdata!$A:$L, E$8, FALSE) -> 40 | F76: =VLOOKUP($B76,INPUTdata!$A:$L, F$8, FALSE) -> 0 | G76: =VLOOKUP($B76,INPUTdata!$A:$L, G$8, FALSE) -> 84.54 | H76: =VLOOKUP($B76,INPUTdata!$A:$L, H$8, FALSE) -> -10.68 | I76: =VLOOKUP($B76,INPUTdata!$A:$L, I$8, FALSE) -> 21.05 | N76: 20 | O76: 0 | P76: 40 | Q76: 0 | R76: =IF(AND(N76=C76,O76=D76,P76=E76,Q76=F76), "", 1) -> 
A77: 67 | B77: 361 | C77: =VLOOKUP($B77,INPUTdata!$A:$L, C$8, FALSE) -> 40 | D77: =VLOOKUP($B77,INPUTdata!$A:$L, D$8, FALSE) -> 0 | E77: =VLOOKUP($B77,INPUTdata!$A:$L, E$8, FALSE) -> 40 | F77: =VLOOKUP($B77,INPUTdata!$A:$L, F$8, FALSE) -> 0 | G77: =VLOOKUP($B77,INPUTdata!$A:$L, G$8, FALSE) -> 76.89 | H77: =VLOOKUP($B77,INPUTdata!$A:$L, H$8, FALSE) -> -19.94 | I77: =VLOOKUP($B77,INPUTdata!$A:$L, I$8, FALSE) -> 10.51 | N77: 40 | O77: 0 | P77: 40 | Q77: 0
A78: 68 | B78: 379 | C78: =VLOOKUP($B78,INPUTdata!$A:$L, C$8, FALSE) -> 70 | D78: =VLOOKUP($B78,INPUTdata!$A:$L, D$8, FALSE) -> 0 | E78: =VLOOKUP($B78,INPUTdata!$A:$L, E$8, FALSE) -> 40 | F78: =VLOOKUP($B78,INPUTdata!$A:$L, F$8, FALSE) -> 0 | G78: =VLOOKUP($B78,INPUTdata!$A:$L, G$8, FALSE) -> 64.86 | H78: =VLOOKUP($B78,INPUTdata!$A:$L, H$8, FALSE) -> -36.11 | I78: =VLOOKUP($B78,INPUTdata!$A:$L, I$8, FALSE) -> -5.45 | N78: 70 | O78: 0 | P78: 40 | Q78: 0
A79: 69 | B79: 397 | C79: =VLOOKUP($B79,INPUTdata!$A:$L, C$8, FALSE) -> 100 | D79: =VLOOKUP($B79,INPUTdata!$A:$L, D$8, FALSE) -> 0 | E79: =VLOOKUP($B79,INPUTdata!$A:$L, E$8, FALSE) -> 40 | F79: =VLOOKUP($B79,INPUTdata!$A:$L, F$8, FALSE) -> 0 | G79: =VLOOKUP($B79,INPUTdata!$A:$L, G$8, FALSE) -> 54.26 | H79: =VLOOKUP($B79,INPUTdata!$A:$L, H$8, FALSE) -> -52.09 | I79: =VLOOKUP($B79,INPUTdata!$A:$L, I$8, FALSE) -> -19.06 | N79: 100 | O79: 0 | P79: 40 | Q79: 0
A80: 70 | B80: 487 | C80: =VLOOKUP($B80,INPUTdata!$A:$L, C$8, FALSE) -> 0 | D80: =VLOOKUP($B80,INPUTdata!$A:$L, D$8, FALSE) -> 0 | E80: =VLOOKUP($B80,INPUTdata!$A:$L, E$8, FALSE) -> 70 | F80: =VLOOKUP($B80,INPUTdata!$A:$L, F$8, FALSE) -> 0 | G80: =VLOOKUP($B80,INPUTdata!$A:$L, G$8, FALSE) -> 90.29 | H80: =VLOOKUP($B80,INPUTdata!$A:$L, H$8, FALSE) -> -3.55 | I80: =VLOOKUP($B80,INPUTdata!$A:$L, I$8, FALSE) -> 62.44 | N80: 0 | O80: 0 | P80: 70 | Q80: 0
A81: 71 | B81: 488 | C81: =VLOOKUP($B81,INPUTdata!$A:$L, C$8, FALSE) -> 0 | D81: =VLOOKUP($B81,INPUTdata!$A:$L, D$8, FALSE) -> 10 | E81: =VLOOKUP($B81,INPUTdata!$A:$L, E$8, FALSE) -> 70 | F81: =VLOOKUP($B81,INPUTdata!$A:$L, F$8, FALSE) -> 0 | G81: =VLOOKUP($B81,INPUTdata!$A:$L, G$8, FALSE) -> 85.69 | H81: =VLOOKUP($B81,INPUTdata!$A:$L, H$8, FALSE) -> 3.32 | I81: =VLOOKUP($B81,INPUTdata!$A:$L, I$8, FALSE) -> 58.28 | N81: 0 | O81: 10 | P81: 70 | Q81: 0
A82: 72 | B82: 489 | C82: =VLOOKUP($B82,INPUTdata!$A:$L, C$8, FALSE) -> 0 | D82: =VLOOKUP($B82,INPUTdata!$A:$L, D$8, FALSE) -> 20 | E82: =VLOOKUP($B82,INPUTdata!$A:$L, E$8, FALSE) -> 70 | F82: =VLOOKUP($B82,INPUTdata!$A:$L, F$8, FALSE) -> 0 | G82: =VLOOKUP($B82,INPUTdata!$A:$L, G$8, FALSE) -> 81.38 | H82: =VLOOKUP($B82,INPUTdata!$A:$L, H$8, FALSE) -> 9.87 | I82: =VLOOKUP($B82,INPUTdata!$A:$L, I$8, FALSE) -> 54.53 | N82: 0 | O82: 20 | P82: 70 | Q82: 0
A83: 73 | B83: 491 | C83: =VLOOKUP($B83,INPUTdata!$A:$L, C$8, FALSE) -> 0 | D83: =VLOOKUP($B83,INPUTdata!$A:$L, D$8, FALSE) -> 40 | E83: =VLOOKUP($B83,INPUTdata!$A:$L, E$8, FALSE) -> 70 | F83: =VLOOKUP($B83,INPUTdata!$A:$L, F$8, FALSE) -> 0 | G83: =VLOOKUP($B83,INPUTdata!$A:$L, G$8, FALSE) -> 72.49 | H83: =VLOOKUP($B83,INPUTdata!$A:$L, H$8, FALSE) -> 24.04 | I83: =VLOOKUP($B83,INPUTdata!$A:$L, I$8, FALSE) -> 47.27 | N83: 0 | O83: 40 | P83: 70 | Q83: 0
A84: 74 | B84: 493 | C84: =VLOOKUP($B84,INPUTdata!$A:$L, C$8, FALSE) -> 0 | D84: =VLOOKUP($B84,INPUTdata!$A:$L, D$8, FALSE) -> 70 | E84: =VLOOKUP($B84,INPUTdata!$A:$L, E$8, FALSE) -> 70 | F84: =VLOOKUP($B84,INPUTdata!$A:$L, F$8, FALSE) -> 0 | G84: =VLOOKUP($B84,INPUTdata!$A:$L, G$8, FALSE) -> 59.01 | H84: =VLOOKUP($B84,INPUTdata!$A:$L, H$8, FALSE) -> 47.84 | I84: =VLOOKUP($B84,INPUTdata!$A:$L, I$8, FALSE) -> 37.98 | N84: 0 | O84: 70 | P84: 70 | Q84: 0
A85: 75 | B85: 495 | C85: =VLOOKUP($B85,INPUTdata!$A:$L, C$8, FALSE) -> 0 | D85: =VLOOKUP($B85,INPUTdata!$A:$L, D$8, FALSE) -> 100 | E85: =VLOOKUP($B85,INPUTdata!$A:$L, E$8, FALSE) -> 70 | F85: =VLOOKUP($B85,INPUTdata!$A:$L, F$8, FALSE) -> 0 | G85: =VLOOKUP($B85,INPUTdata!$A:$L, G$8, FALSE) -> 48.25 | H85: =VLOOKUP($B85,INPUTdata!$A:$L, H$8, FALSE) -> 69.27 | I85: =VLOOKUP($B85,INPUTdata!$A:$L, I$8, FALSE) -> 32.31 | N85: 0 | O85: 100 | P85: 70 | Q85: 0
A86: 76 | B86: 496 | C86: =VLOOKUP($B86,INPUTdata!$A:$L, C$8, FALSE) -> 10 | D86: =VLOOKUP($B86,INPUTdata!$A:$L, D$8, FALSE) -> 0 | E86: =VLOOKUP($B86,INPUTdata!$A:$L, E$8, FALSE) -> 70 | F86: =VLOOKUP($B86,INPUTdata!$A:$L, F$8, FALSE) -> 0 | G86: =VLOOKUP($B86,INPUTdata!$A:$L, G$8, FALSE) -> 86.53 | H86: =VLOOKUP($B86,INPUTdata!$A:$L, H$8, FALSE) -> -8.34 | I86: =VLOOKUP($B86,INPUTdata!$A:$L, I$8, FALSE) -> 56.4 | N86: 10 | O86: 0 | P86: 70 | Q86: 0
A87: 77 | B87: 505 | C87: =VLOOKUP($B87,INPUTdata!$A:$L, C$8, FALSE) -> 20 | D87: =VLOOKUP($B87,INPUTdata!$A:$L, D$8, FALSE) -> 0 | E87: =VLOOKUP($B87,INPUTdata!$A:$L, E$8, FALSE) -> 70 | F87: =VLOOKUP($B87,INPUTdata!$A:$L, F$8, FALSE) -> 0 | G87: =VLOOKUP($B87,INPUTdata!$A:$L, G$8, FALSE) -> 82.85 | H87: =VLOOKUP($B87,INPUTdata!$A:$L, H$8, FALSE) -> -13.04 | I87: =VLOOKUP($B87,INPUTdata!$A:$L, I$8, FALSE) -> 50.55 | N87: 20 | O87: 0 | P87: 70 | Q87: 0
A88: 78 | B88: 523 | C88: =VLOOKUP($B88,INPUTdata!$A:$L, C$8, FALSE) -> 40 | D88: =VLOOKUP($B88,INPUTdata!$A:$L, D$8, FALSE) -> 0 | E88: =VLOOKUP($B88,INPUTdata!$A:$L, E$8, FALSE) -> 70 | F88: =VLOOKUP($B88,INPUTdata!$A:$L, F$8, FALSE) -> 0 | G88: =VLOOKUP($B88,INPUTdata!$A:$L, G$8, FALSE) -> 75.26 | H88: =VLOOKUP($B88,INPUTdata!$A:$L, H$8, FALSE) -> -23.41 | I88: =VLOOKUP($B88,INPUTdata!$A:$L, I$8, FALSE) -> 38.7 | N88: 40 | O88: 0 | P88: 70 | Q88: 0
A89: 79 | B89: 541 | C89: =VLOOKUP($B89,INPUTdata!$A:$L, C$8, FALSE) -> 70 | D89: =VLOOKUP($B89,INPUTdata!$A:$L, D$8, FALSE) -> 0 | E89: =VLOOKUP($B89,INPUTdata!$A:$L, E$8, FALSE) -> 70 | F89: =VLOOKUP($B89,INPUTdata!$A:$L, F$8, FALSE) -> 0 | G89: =VLOOKUP($B89,INPUTdata!$A:$L, G$8, FALSE) -> 63.25 | H89: =VLOOKUP($B89,INPUTdata!$A:$L, H$8, FALSE) -> -41.99 | I89: =VLOOKUP($B89,INPUTdata!$A:$L, I$8, FALSE) -> 20.43 | N89: 70 | O89: 0 | P89: 70 | Q89: 0
A90: 80 | B90: 559 | C90: =VLOOKUP($B90,INPUTdata!$A:$L, C$8, FALSE) -> 100 | D90: =VLOOKUP($B90,INPUTdata!$A:$L, D$8, FALSE) -> 0 | E90: =VLOOKUP($B90,INPUTdata!$A:$L, E$8, FALSE) -> 70 | F90: =VLOOKUP($B90,INPUTdata!$A:$L, F$8, FALSE) -> 0 | G90: =VLOOKUP($B90,INPUTdata!$A:$L, G$8, FALSE) -> 52.46 | H90: =VLOOKUP($B90,INPUTdata!$A:$L, H$8, FALSE) -> -60.77 | I90: =VLOOKUP($B90,INPUTdata!$A:$L, I$8, FALSE) -> 4.59 | N90: 100 | O90: 0 | P90: 70 | Q90: 0
A91: 81 | B91: 649 | C91: =VLOOKUP($B91,INPUTdata!$A:$L, C$8, FALSE) -> 0 | D91: =VLOOKUP($B91,INPUTdata!$A:$L, D$8, FALSE) -> 0 | E91: =VLOOKUP($B91,INPUTdata!$A:$L, E$8, FALSE) -> 100 | F91: =VLOOKUP($B91,INPUTdata!$A:$L, F$8, FALSE) -> 0 | G91: =VLOOKUP($B91,INPUTdata!$A:$L, G$8, FALSE) -> 89 | H91: =VLOOKUP($B91,INPUTdata!$A:$L, H$8, FALSE) -> -4 | I91: =VLOOKUP($B91,INPUTdata!$A:$L, I$8, FALSE) -> 93 | N91: 0 | O91: 0 | P91: 100 | Q91: 0
A92: 82 | B92: 650 | C92: =VLOOKUP($B92,INPUTdata!$A:$L, C$8, FALSE) -> 0 | D92: =VLOOKUP($B92,INPUTdata!$A:$L, D$8, FALSE) -> 10 | E92: =VLOOKUP($B92,INPUTdata!$A:$L, E$8, FALSE) -> 100 | F92: =VLOOKUP($B92,INPUTdata!$A:$L, F$8, FALSE) -> 0 | G92: =VLOOKUP($B92,INPUTdata!$A:$L, G$8, FALSE) -> 84.44 | H92: =VLOOKUP($B92,INPUTdata!$A:$L, H$8, FALSE) -> 2.78 | I92: =VLOOKUP($B92,INPUTdata!$A:$L, I$8, FALSE) -> 87.22 | N92: 0 | O92: 10 | P92: 100 | Q92: 0
A93: 83 | B93: 651 | C93: =VLOOKUP($B93,INPUTdata!$A:$L, C$8, FALSE) -> 0 | D93: =VLOOKUP($B93,INPUTdata!$A:$L, D$8, FALSE) -> 20 | E93: =VLOOKUP($B93,INPUTdata!$A:$L, E$8, FALSE) -> 100 | F93: =VLOOKUP($B93,INPUTdata!$A:$L, F$8, FALSE) -> 0 | G93: =VLOOKUP($B93,INPUTdata!$A:$L, G$8, FALSE) -> 80.18 | H93: =VLOOKUP($B93,INPUTdata!$A:$L, H$8, FALSE) -> 9.35 | I93: =VLOOKUP($B93,INPUTdata!$A:$L, I$8, FALSE) -> 82.04 | N93: 0 | O93: 20 | P93: 100 | Q93: 0
A94: 84 | B94: 653 | C94: =VLOOKUP($B94,INPUTdata!$A:$L, C$8, FALSE) -> 0 | D94: =VLOOKUP($B94,INPUTdata!$A:$L, D$8, FALSE) -> 40 | E94: =VLOOKUP($B94,INPUTdata!$A:$L, E$8, FALSE) -> 100 | F94: =VLOOKUP($B94,INPUTdata!$A:$L, F$8, FALSE) -> 0 | G94: =VLOOKUP($B94,INPUTdata!$A:$L, G$8, FALSE) -> 71.36 | H94: =VLOOKUP($B94,INPUTdata!$A:$L, H$8, FALSE) -> 23.52 | I94: =VLOOKUP($B94,INPUTdata!$A:$L, I$8, FALSE) -> 71.84 | N94: 0 | O94: 40 | P94: 100 | Q94: 0
A95: 85 | B95: 655 | C95: =VLOOKUP($B95,INPUTdata!$A:$L, C$8, FALSE) -> 0 | D95: =VLOOKUP($B95,INPUTdata!$A:$L, D$8, FALSE) -> 70 | E95: =VLOOKUP($B95,INPUTdata!$A:$L, E$8, FALSE) -> 100 | F95: =VLOOKUP($B95,INPUTdata!$A:$L, F$8, FALSE) -> 0 | G95: =VLOOKUP($B95,INPUTdata!$A:$L, G$8, FALSE) -> 57.98 | H95: =VLOOKUP($B95,INPUTdata!$A:$L, H$8, FALSE) -> 46.89 | I95: =VLOOKUP($B95,INPUTdata!$A:$L, I$8, FALSE) -> 57.54 | N95: 0 | O95: 70 | P95: 100 | Q95: 0
A96: 86 | B96: 657 | C96: =VLOOKUP($B96,INPUTdata!$A:$L, C$8, FALSE) -> 0 | D96: =VLOOKUP($B96,INPUTdata!$A:$L, D$8, FALSE) -> 100 | E96: =VLOOKUP($B96,INPUTdata!$A:$L, E$8, FALSE) -> 100 | F96: =VLOOKUP($B96,INPUTdata!$A:$L, F$8, FALSE) -> 0 | G96: =VLOOKUP($B96,INPUTdata!$A:$L, G$8, FALSE) -> 47 | H96: =VLOOKUP($B96,INPUTdata!$A:$L, H$8, FALSE) -> 68 | I96: =VLOOKUP($B96,INPUTdata!$A:$L, I$8, FALSE) -> 48 | N96: 0 | O96: 100 | P96: 100 | Q96: 0
A97: 87 | B97: 658 | C97: =VLOOKUP($B97,INPUTdata!$A:$L, C$8, FALSE) -> 10 | D97: =VLOOKUP($B97,INPUTdata!$A:$L, D$8, FALSE) -> 0 | E97: =VLOOKUP($B97,INPUTdata!$A:$L, E$8, FALSE) -> 100 | F97: =VLOOKUP($B97,INPUTdata!$A:$L, F$8, FALSE) -> 0 | G97: =VLOOKUP($B97,INPUTdata!$A:$L, G$8, FALSE) -> 85.21 | H97: =VLOOKUP($B97,INPUTdata!$A:$L, H$8, FALSE) -> -8.91 | I97: =VLOOKUP($B97,INPUTdata!$A:$L, I$8, FALSE) -> 86.14 | N97: 10 | O97: 0 | P97: 100 | Q97: 0
A98: 88 | B98: 667 | C98: =VLOOKUP($B98,INPUTdata!$A:$L, C$8, FALSE) -> 20 | D98: =VLOOKUP($B98,INPUTdata!$A:$L, D$8, FALSE) -> 0 | E98: =VLOOKUP($B98,INPUTdata!$A:$L, E$8, FALSE) -> 100 | F98: =VLOOKUP($B98,INPUTdata!$A:$L, F$8, FALSE) -> 0 | G98: =VLOOKUP($B98,INPUTdata!$A:$L, G$8, FALSE) -> 81.53 | H98: =VLOOKUP($B98,INPUTdata!$A:$L, H$8, FALSE) -> -13.75 | I98: =VLOOKUP($B98,INPUTdata!$A:$L, I$8, FALSE) -> 79.52 | N98: 20 | O98: 0 | P98: 100 | Q98: 0
A99: 89 | B99: 685 | C99: =VLOOKUP($B99,INPUTdata!$A:$L, C$8, FALSE) -> 40 | D99: =VLOOKUP($B99,INPUTdata!$A:$L, D$8, FALSE) -> 0 | E99: =VLOOKUP($B99,INPUTdata!$A:$L, E$8, FALSE) -> 100 | F99: =VLOOKUP($B99,INPUTdata!$A:$L, F$8, FALSE) -> 0 | G99: =VLOOKUP($B99,INPUTdata!$A:$L, G$8, FALSE) -> 73.93 | H99: =VLOOKUP($B99,INPUTdata!$A:$L, H$8, FALSE) -> -24.83 | I99: =VLOOKUP($B99,INPUTdata!$A:$L, I$8, FALSE) -> 66.08 | N99: 40 | O99: 0 | P99: 100 | Q99: 0
A100: 90 | B100: 703 | C100: =VLOOKUP($B100,INPUTdata!$A:$L, C$8, FALSE) -> 70 | D100: =VLOOKUP($B100,INPUTdata!$A:$L, D$8, FALSE) -> 0 | E100: =VLOOKUP($B100,INPUTdata!$A:$L, E$8, FALSE) -> 100 | F100: =VLOOKUP($B100,INPUTdata!$A:$L, F$8, FALSE) -> 0 | G100: =VLOOKUP($B100,INPUTdata!$A:$L, G$8, FALSE) -> 61.66 | H100: =VLOOKUP($B100,INPUTdata!$A:$L, H$8, FALSE) -> -45.12 | I100: =VLOOKUP($B100,INPUTdata!$A:$L, I$8, FALSE) -> 44.87 | N100: 70 | O100: 0 | P100: 100 | Q100: 0
A101: 91 | B101: 721 | C101: =VLOOKUP($B101,INPUTdata!$A:$L, C$8, FALSE) -> 100 | D101: =VLOOKUP($B101,INPUTdata!$A:$L, D$8, FALSE) -> 0 | E101: =VLOOKUP($B101,INPUTdata!$A:$L, E$8, FALSE) -> 100 | F101: =VLOOKUP($B101,INPUTdata!$A:$L, F$8, FALSE) -> 0 | G101: =VLOOKUP($B101,INPUTdata!$A:$L, G$8, FALSE) -> 50 | H101: =VLOOKUP($B101,INPUTdata!$A:$L, H$8, FALSE) -> -66 | I101: =VLOOKUP($B101,INPUTdata!$A:$L, I$8, FALSE) -> 26 | N101: 100 | O101: 0 | P101: 100 | Q101: 0
A102: 92 | B102: 735 | C102: =VLOOKUP($B102,INPUTdata!$A:$L, C$8, FALSE) -> 0 | D102: =VLOOKUP($B102,INPUTdata!$A:$L, D$8, FALSE) -> 100 | E102: =VLOOKUP($B102,INPUTdata!$A:$L, E$8, FALSE) -> 0 | F102: =VLOOKUP($B102,INPUTdata!$A:$L, F$8, FALSE) -> 20 | G102: =VLOOKUP($B102,INPUTdata!$A:$L, G$8, FALSE) -> 41.3 | H102: =VLOOKUP($B102,INPUTdata!$A:$L, H$8, FALSE) -> 63.56 | I102: =VLOOKUP($B102,INPUTdata!$A:$L, I$8, FALSE) -> -3.99 | N102: 0 | O102: 100 | P102: 0 | Q102: 20
A103: 93 | B103: 741 | C103: =VLOOKUP($B103,INPUTdata!$A:$L, C$8, FALSE) -> 10 | D103: =VLOOKUP($B103,INPUTdata!$A:$L, D$8, FALSE) -> 100 | E103: =VLOOKUP($B103,INPUTdata!$A:$L, E$8, FALSE) -> 0 | F103: =VLOOKUP($B103,INPUTdata!$A:$L, F$8, FALSE) -> 20 | G103: =VLOOKUP($B103,INPUTdata!$A:$L, G$8, FALSE) -> 39.46 | H103: =VLOOKUP($B103,INPUTdata!$A:$L, H$8, FALSE) -> 58.97 | I103: =VLOOKUP($B103,INPUTdata!$A:$L, I$8, FALSE) -> -7.73 | N103: 10 | O103: 100 | P103: 0 | Q103: 20
A104: 94 | B104: 747 | C104: =VLOOKUP($B104,INPUTdata!$A:$L, C$8, FALSE) -> 20 | D104: =VLOOKUP($B104,INPUTdata!$A:$L, D$8, FALSE) -> 100 | E104: =VLOOKUP($B104,INPUTdata!$A:$L, E$8, FALSE) -> 0 | F104: =VLOOKUP($B104,INPUTdata!$A:$L, F$8, FALSE) -> 20 | G104: =VLOOKUP($B104,INPUTdata!$A:$L, G$8, FALSE) -> 37.55 | H104: =VLOOKUP($B104,INPUTdata!$A:$L, H$8, FALSE) -> 54.19 | I104: =VLOOKUP($B104,INPUTdata!$A:$L, I$8, FALSE) -> -11.57 | N104: 20 | O104: 100 | P104: 0 | Q104: 20
A105: 95 | B105: 753 | C105: =VLOOKUP($B105,INPUTdata!$A:$L, C$8, FALSE) -> 40 | D105: =VLOOKUP($B105,INPUTdata!$A:$L, D$8, FALSE) -> 100 | E105: =VLOOKUP($B105,INPUTdata!$A:$L, E$8, FALSE) -> 0 | F105: =VLOOKUP($B105,INPUTdata!$A:$L, F$8, FALSE) -> 20 | G105: =VLOOKUP($B105,INPUTdata!$A:$L, G$8, FALSE) -> 33.66 | H105: =VLOOKUP($B105,INPUTdata!$A:$L, H$8, FALSE) -> 44.64 | I105: =VLOOKUP($B105,INPUTdata!$A:$L, I$8, FALSE) -> -19.03 | N105: 40 | O105: 100 | P105: 0 | Q105: 20
A106: 96 | B106: 759 | C106: =VLOOKUP($B106,INPUTdata!$A:$L, C$8, FALSE) -> 70 | D106: =VLOOKUP($B106,INPUTdata!$A:$L, D$8, FALSE) -> 100 | E106: =VLOOKUP($B106,INPUTdata!$A:$L, E$8, FALSE) -> 0 | F106: =VLOOKUP($B106,INPUTdata!$A:$L, F$8, FALSE) -> 20 | G106: =VLOOKUP($B106,INPUTdata!$A:$L, G$8, FALSE) -> 27.96 | H106: =VLOOKUP($B106,INPUTdata!$A:$L, H$8, FALSE) -> 29.75 | I106: =VLOOKUP($B106,INPUTdata!$A:$L, I$8, FALSE) -> -29.7 | N106: 70 | O106: 100 | P106: 0 | Q106: 20
A107: 97 | B107: 760 | C107: =VLOOKUP($B107,INPUTdata!$A:$L, C$8, FALSE) -> 100 | D107: =VLOOKUP($B107,INPUTdata!$A:$L, D$8, FALSE) -> 0 | E107: =VLOOKUP($B107,INPUTdata!$A:$L, E$8, FALSE) -> 0 | F107: =VLOOKUP($B107,INPUTdata!$A:$L, F$8, FALSE) -> 20 | G107: =VLOOKUP($B107,INPUTdata!$A:$L, G$8, FALSE) -> 48.21 | H107: =VLOOKUP($B107,INPUTdata!$A:$L, H$8, FALSE) -> -32.49 | I107: =VLOOKUP($B107,INPUTdata!$A:$L, I$8, FALSE) -> -42.5 | N107: 100 | O107: 0 | P107: 0 | Q107: 20
A108: 98 | B108: 761 | C108: =VLOOKUP($B108,INPUTdata!$A:$L, C$8, FALSE) -> 100 | D108: =VLOOKUP($B108,INPUTdata!$A:$L, D$8, FALSE) -> 10 | E108: =VLOOKUP($B108,INPUTdata!$A:$L, E$8, FALSE) -> 0 | F108: =VLOOKUP($B108,INPUTdata!$A:$L, F$8, FALSE) -> 20 | G108: =VLOOKUP($B108,INPUTdata!$A:$L, G$8, FALSE) -> 45.67 | H108: =VLOOKUP($B108,INPUTdata!$A:$L, H$8, FALSE) -> -27.89 | I108: =VLOOKUP($B108,INPUTdata!$A:$L, I$8, FALSE) -> -42.05 | N108: 100 | O108: 10 | P108: 0 | Q108: 20
A109: 99 | B109: 762 | C109: =VLOOKUP($B109,INPUTdata!$A:$L, C$8, FALSE) -> 100 | D109: =VLOOKUP($B109,INPUTdata!$A:$L, D$8, FALSE) -> 20 | E109: =VLOOKUP($B109,INPUTdata!$A:$L, E$8, FALSE) -> 0 | F109: =VLOOKUP($B109,INPUTdata!$A:$L, F$8, FALSE) -> 20 | G109: =VLOOKUP($B109,INPUTdata!$A:$L, G$8, FALSE) -> 43.13 | H109: =VLOOKUP($B109,INPUTdata!$A:$L, H$8, FALSE) -> -23.3 | I109: =VLOOKUP($B109,INPUTdata!$A:$L, I$8, FALSE) -> -41.61 | N109: 100 | O109: 20 | P109: 0 | Q109: 20
A110: 100 | B110: 763 | C110: =VLOOKUP($B110,INPUTdata!$A:$L, C$8, FALSE) -> 100 | D110: =VLOOKUP($B110,INPUTdata!$A:$L, D$8, FALSE) -> 40 | E110: =VLOOKUP($B110,INPUTdata!$A:$L, E$8, FALSE) -> 0 | F110: =VLOOKUP($B110,INPUTdata!$A:$L, F$8, FALSE) -> 20 | G110: =VLOOKUP($B110,INPUTdata!$A:$L, G$8, FALSE) -> 37.83 | H110: =VLOOKUP($B110,INPUTdata!$A:$L, H$8, FALSE) -> -13.6 | I110: =VLOOKUP($B110,INPUTdata!$A:$L, I$8, FALSE) -> -40.81 | N110: 100 | O110: 40 | P110: 0 | Q110: 20
A111: 101 | B111: 764 | C111: =VLOOKUP($B111,INPUTdata!$A:$L, C$8, FALSE) -> 100 | D111: =VLOOKUP($B111,INPUTdata!$A:$L, D$8, FALSE) -> 70 | E111: =VLOOKUP($B111,INPUTdata!$A:$L, E$8, FALSE) -> 0 | F111: =VLOOKUP($B111,INPUTdata!$A:$L, F$8, FALSE) -> 20 | G111: =VLOOKUP($B111,INPUTdata!$A:$L, G$8, FALSE) -> 29.78 | H111: =VLOOKUP($B111,INPUTdata!$A:$L, H$8, FALSE) -> 2.11 | I111: =VLOOKUP($B111,INPUTdata!$A:$L, I$8, FALSE) -> -39.49 | N111: 100 | O111: 70 | P111: 0 | Q111: 20
A112: 102 | B112: 765 | C112: =VLOOKUP($B112,INPUTdata!$A:$L, C$8, FALSE) -> 100 | D112: =VLOOKUP($B112,INPUTdata!$A:$L, D$8, FALSE) -> 100 | E112: =VLOOKUP($B112,INPUTdata!$A:$L, E$8, FALSE) -> 0 | F112: =VLOOKUP($B112,INPUTdata!$A:$L, F$8, FALSE) -> 20 | G112: =VLOOKUP($B112,INPUTdata!$A:$L, G$8, FALSE) -> 23.07 | H112: =VLOOKUP($B112,INPUTdata!$A:$L, H$8, FALSE) -> 16.18 | I112: =VLOOKUP($B112,INPUTdata!$A:$L, I$8, FALSE) -> -38.55 | N112: 100 | O112: 100 | P112: 0 | Q112: 20
A113: 103 | B113: 771 | C113: =VLOOKUP($B113,INPUTdata!$A:$L, C$8, FALSE) -> 0 | D113: =VLOOKUP($B113,INPUTdata!$A:$L, D$8, FALSE) -> 100 | E113: =VLOOKUP($B113,INPUTdata!$A:$L, E$8, FALSE) -> 10 | F113: =VLOOKUP($B113,INPUTdata!$A:$L, F$8, FALSE) -> 20 | G113: =VLOOKUP($B113,INPUTdata!$A:$L, G$8, FALSE) -> 41.46 | H113: =VLOOKUP($B113,INPUTdata!$A:$L, H$8, FALSE) -> 62.73 | I113: =VLOOKUP($B113,INPUTdata!$A:$L, I$8, FALSE) -> 0.23 | N113: 0 | O113: 100 | P113: 10 | Q113: 20
A114: 104 | B114: 796 | C114: =VLOOKUP($B114,INPUTdata!$A:$L, C$8, FALSE) -> 100 | D114: =VLOOKUP($B114,INPUTdata!$A:$L, D$8, FALSE) -> 0 | E114: =VLOOKUP($B114,INPUTdata!$A:$L, E$8, FALSE) -> 10 | F114: =VLOOKUP($B114,INPUTdata!$A:$L, F$8, FALSE) -> 20 | G114: =VLOOKUP($B114,INPUTdata!$A:$L, G$8, FALSE) -> 47.84 | H114: =VLOOKUP($B114,INPUTdata!$A:$L, H$8, FALSE) -> -35.83 | I114: =VLOOKUP($B114,INPUTdata!$A:$L, I$8, FALSE) -> -36.02 | N114: 100 | O114: 0 | P114: 10 | Q114: 20
A115: 105 | B115: 807 | C115: =VLOOKUP($B115,INPUTdata!$A:$L, C$8, FALSE) -> 0 | D115: =VLOOKUP($B115,INPUTdata!$A:$L, D$8, FALSE) -> 100 | E115: =VLOOKUP($B115,INPUTdata!$A:$L, E$8, FALSE) -> 20 | F115: =VLOOKUP($B115,INPUTdata!$A:$L, F$8, FALSE) -> 20 | G115: =VLOOKUP($B115,INPUTdata!$A:$L, G$8, FALSE) -> 41.57 | H115: =VLOOKUP($B115,INPUTdata!$A:$L, H$8, FALSE) -> 61.71 | I115: =VLOOKUP($B115,INPUTdata!$A:$L, I$8, FALSE) -> 4.66 | N115: 0 | O115: 100 | P115: 20 | Q115: 20
A116: 106 | B116: 832 | C116: =VLOOKUP($B116,INPUTdata!$A:$L, C$8, FALSE) -> 100 | D116: =VLOOKUP($B116,INPUTdata!$A:$L, D$8, FALSE) -> 0 | E116: =VLOOKUP($B116,INPUTdata!$A:$L, E$8, FALSE) -> 20 | F116: =VLOOKUP($B116,INPUTdata!$A:$L, F$8, FALSE) -> 20 | G116: =VLOOKUP($B116,INPUTdata!$A:$L, G$8, FALSE) -> 47.53 | H116: =VLOOKUP($B116,INPUTdata!$A:$L, H$8, FALSE) -> -38.93 | I116: =VLOOKUP($B116,INPUTdata!$A:$L, I$8, FALSE) -> -29.46 | N116: 100 | O116: 0 | P116: 20 | Q116: 20
A117: 107 | B117: 843 | C117: =VLOOKUP($B117,INPUTdata!$A:$L, C$8, FALSE) -> 0 | D117: =VLOOKUP($B117,INPUTdata!$A:$L, D$8, FALSE) -> 100 | E117: =VLOOKUP($B117,INPUTdata!$A:$L, E$8, FALSE) -> 40 | F117: =VLOOKUP($B117,INPUTdata!$A:$L, F$8, FALSE) -> 20 | G117: =VLOOKUP($B117,INPUTdata!$A:$L, G$8, FALSE) -> 41.66 | H117: =VLOOKUP($B117,INPUTdata!$A:$L, H$8, FALSE) -> 60.22 | I117: =VLOOKUP($B117,INPUTdata!$A:$L, I$8, FALSE) -> 13.63 | N117: 0 | O117: 100 | P117: 40 | Q117: 20
A118: 108 | B118: 868 | C118: =VLOOKUP($B118,INPUTdata!$A:$L, C$8, FALSE) -> 100 | D118: =VLOOKUP($B118,INPUTdata!$A:$L, D$8, FALSE) -> 0 | E118: =VLOOKUP($B118,INPUTdata!$A:$L, E$8, FALSE) -> 40 | F118: =VLOOKUP($B118,INPUTdata!$A:$L, F$8, FALSE) -> 20 | G118: =VLOOKUP($B118,INPUTdata!$A:$L, G$8, FALSE) -> 46.73 | H118: =VLOOKUP($B118,INPUTdata!$A:$L, H$8, FALSE) -> -44.89 | I118: =VLOOKUP($B118,INPUTdata!$A:$L, I$8, FALSE) -> -16.27 | N118: 100 | O118: 0 | P118: 40 | Q118: 20
A119: 109 | B119: 879 | C119: =VLOOKUP($B119,INPUTdata!$A:$L, C$8, FALSE) -> 0 | D119: =VLOOKUP($B119,INPUTdata!$A:$L, D$8, FALSE) -> 100 | E119: =VLOOKUP($B119,INPUTdata!$A:$L, E$8, FALSE) -> 70 | F119: =VLOOKUP($B119,INPUTdata!$A:$L, F$8, FALSE) -> 20 | G119: =VLOOKUP($B119,INPUTdata!$A:$L, G$8, FALSE) -> 41.35 | H119: =VLOOKUP($B119,INPUTdata!$A:$L, H$8, FALSE) -> 58.07 | I119: =VLOOKUP($B119,INPUTdata!$A:$L, I$8, FALSE) -> 27.09 | N119: 0 | O119: 100 | P119: 70 | Q119: 20
A120: 110 | B120: 904 | C120: =VLOOKUP($B120,INPUTdata!$A:$L, C$8, FALSE) -> 100 | D120: =VLOOKUP($B120,INPUTdata!$A:$L, D$8, FALSE) -> 0 | E120: =VLOOKUP($B120,INPUTdata!$A:$L, E$8, FALSE) -> 70 | F120: =VLOOKUP($B120,INPUTdata!$A:$L, F$8, FALSE) -> 20 | G120: =VLOOKUP($B120,INPUTdata!$A:$L, G$8, FALSE) -> 45.51 | H120: =VLOOKUP($B120,INPUTdata!$A:$L, H$8, FALSE) -> -51.97 | I120: =VLOOKUP($B120,INPUTdata!$A:$L, I$8, FALSE) -> 3.91 | N120: 100 | O120: 0 | P120: 70 | Q120: 20
A121: 111 | B121: 910 | C121: =VLOOKUP($B121,INPUTdata!$A:$L, C$8, FALSE) -> 0 | D121: =VLOOKUP($B121,INPUTdata!$A:$L, D$8, FALSE) -> 0 | E121: =VLOOKUP($B121,INPUTdata!$A:$L, E$8, FALSE) -> 100 | F121: =VLOOKUP($B121,INPUTdata!$A:$L, F$8, FALSE) -> 20 | G121: =VLOOKUP($B121,INPUTdata!$A:$L, G$8, FALSE) -> 75.81 | H121: =VLOOKUP($B121,INPUTdata!$A:$L, H$8, FALSE) -> -4.38 | I121: =VLOOKUP($B121,INPUTdata!$A:$L, I$8, FALSE) -> 78.06 | N121: 0 | O121: 0 | P121: 100 | Q121: 20
A122: 112 | B122: 911 | C122: =VLOOKUP($B122,INPUTdata!$A:$L, C$8, FALSE) -> 0 | D122: =VLOOKUP($B122,INPUTdata!$A:$L, D$8, FALSE) -> 10 | E122: =VLOOKUP($B122,INPUTdata!$A:$L, E$8, FALSE) -> 100 | F122: =VLOOKUP($B122,INPUTdata!$A:$L, F$8, FALSE) -> 20 | G122: =VLOOKUP($B122,INPUTdata!$A:$L, G$8, FALSE) -> 72.06 | H122: =VLOOKUP($B122,INPUTdata!$A:$L, H$8, FALSE) -> 1.38 | I122: =VLOOKUP($B122,INPUTdata!$A:$L, I$8, FALSE) -> 73.54 | N122: 0 | O122: 10 | P122: 100 | Q122: 20
A123: 113 | B123: 912 | C123: =VLOOKUP($B123,INPUTdata!$A:$L, C$8, FALSE) -> 0 | D123: =VLOOKUP($B123,INPUTdata!$A:$L, D$8, FALSE) -> 20 | E123: =VLOOKUP($B123,INPUTdata!$A:$L, E$8, FALSE) -> 100 | F123: =VLOOKUP($B123,INPUTdata!$A:$L, F$8, FALSE) -> 20 | G123: =VLOOKUP($B123,INPUTdata!$A:$L, G$8, FALSE) -> 68.33 | H123: =VLOOKUP($B123,INPUTdata!$A:$L, H$8, FALSE) -> 7.16 | I123: =VLOOKUP($B123,INPUTdata!$A:$L, I$8, FALSE) -> 69.09 | N123: 0 | O123: 20 | P123: 100 | Q123: 20
A124: 114 | B124: 913 | C124: =VLOOKUP($B124,INPUTdata!$A:$L, C$8, FALSE) -> 0 | D124: =VLOOKUP($B124,INPUTdata!$A:$L, D$8, FALSE) -> 40 | E124: =VLOOKUP($B124,INPUTdata!$A:$L, E$8, FALSE) -> 100 | F124: =VLOOKUP($B124,INPUTdata!$A:$L, F$8, FALSE) -> 20 | G124: =VLOOKUP($B124,INPUTdata!$A:$L, G$8, FALSE) -> 60.79 | H124: =VLOOKUP($B124,INPUTdata!$A:$L, H$8, FALSE) -> 19.39 | I124: =VLOOKUP($B124,INPUTdata!$A:$L, I$8, FALSE) -> 60.44 | N124: 0 | O124: 40 | P124: 100 | Q124: 20
A125: 115 | B125: 914 | C125: =VLOOKUP($B125,INPUTdata!$A:$L, C$8, FALSE) -> 0 | D125: =VLOOKUP($B125,INPUTdata!$A:$L, D$8, FALSE) -> 70 | E125: =VLOOKUP($B125,INPUTdata!$A:$L, E$8, FALSE) -> 100 | F125: =VLOOKUP($B125,INPUTdata!$A:$L, F$8, FALSE) -> 20 | G125: =VLOOKUP($B125,INPUTdata!$A:$L, G$8, FALSE) -> 49.56 | H125: =VLOOKUP($B125,INPUTdata!$A:$L, H$8, FALSE) -> 39.05 | I125: =VLOOKUP($B125,INPUTdata!$A:$L, I$8, FALSE) -> 48.25 | N125: 0 | O125: 70 | P125: 100 | Q125: 20
A126: 116 | B126: 915 | C126: =VLOOKUP($B126,INPUTdata!$A:$L, C$8, FALSE) -> 0 | D126: =VLOOKUP($B126,INPUTdata!$A:$L, D$8, FALSE) -> 100 | E126: =VLOOKUP($B126,INPUTdata!$A:$L, E$8, FALSE) -> 100 | F126: =VLOOKUP($B126,INPUTdata!$A:$L, F$8, FALSE) -> 20 | G126: =VLOOKUP($B126,INPUTdata!$A:$L, G$8, FALSE) -> 40.61 | H126: =VLOOKUP($B126,INPUTdata!$A:$L, H$8, FALSE) -> 56.54 | I126: =VLOOKUP($B126,INPUTdata!$A:$L, I$8, FALSE) -> 39.47 | N126: 0 | O126: 100 | P126: 100 | Q126: 20
A127: 117 | B127: 916 | C127: =VLOOKUP($B127,INPUTdata!$A:$L, C$8, FALSE) -> 10 | D127: =VLOOKUP($B127,INPUTdata!$A:$L, D$8, FALSE) -> 0 | E127: =VLOOKUP($B127,INPUTdata!$A:$L, E$8, FALSE) -> 100 | F127: =VLOOKUP($B127,INPUTdata!$A:$L, F$8, FALSE) -> 20 | G127: =VLOOKUP($B127,INPUTdata!$A:$L, G$8, FALSE) -> 72.75 | H127: =VLOOKUP($B127,INPUTdata!$A:$L, H$8, FALSE) -> -8.64 | I127: =VLOOKUP($B127,INPUTdata!$A:$L, I$8, FALSE) -> 72.46 | N127: 10 | O127: 0 | P127: 100 | Q127: 20
A128: 118 | B128: 922 | C128: =VLOOKUP($B128,INPUTdata!$A:$L, C$8, FALSE) -> 20 | D128: =VLOOKUP($B128,INPUTdata!$A:$L, D$8, FALSE) -> 0 | E128: =VLOOKUP($B128,INPUTdata!$A:$L, E$8, FALSE) -> 100 | F128: =VLOOKUP($B128,INPUTdata!$A:$L, F$8, FALSE) -> 20 | G128: =VLOOKUP($B128,INPUTdata!$A:$L, G$8, FALSE) -> 69.56 | H128: =VLOOKUP($B128,INPUTdata!$A:$L, H$8, FALSE) -> -13.02 | I128: =VLOOKUP($B128,INPUTdata!$A:$L, I$8, FALSE) -> 66.66 | N128: 20 | O128: 0 | P128: 100 | Q128: 20
A129: 119 | B129: 928 | C129: =VLOOKUP($B129,INPUTdata!$A:$L, C$8, FALSE) -> 40 | D129: =VLOOKUP($B129,INPUTdata!$A:$L, D$8, FALSE) -> 0 | E129: =VLOOKUP($B129,INPUTdata!$A:$L, E$8, FALSE) -> 100 | F129: =VLOOKUP($B129,INPUTdata!$A:$L, F$8, FALSE) -> 20 | G129: =VLOOKUP($B129,INPUTdata!$A:$L, G$8, FALSE) -> 63.12 | H129: =VLOOKUP($B129,INPUTdata!$A:$L, H$8, FALSE) -> -22.54 | I129: =VLOOKUP($B129,INPUTdata!$A:$L, I$8, FALSE) -> 55.19 | N129: 40 | O129: 0 | P129: 100 | Q129: 20
A130: 120 | B130: 934 | C130: =VLOOKUP($B130,INPUTdata!$A:$L, C$8, FALSE) -> 70 | D130: =VLOOKUP($B130,INPUTdata!$A:$L, D$8, FALSE) -> 0 | E130: =VLOOKUP($B130,INPUTdata!$A:$L, E$8, FALSE) -> 100 | F130: =VLOOKUP($B130,INPUTdata!$A:$L, F$8, FALSE) -> 20 | G130: =VLOOKUP($B130,INPUTdata!$A:$L, G$8, FALSE) -> 53.21 | H130: =VLOOKUP($B130,INPUTdata!$A:$L, H$8, FALSE) -> -39.17 | I130: =VLOOKUP($B130,INPUTdata!$A:$L, I$8, FALSE) -> 37.72 | N130: 70 | O130: 0 | P130: 100 | Q130: 20
A131: 121 | B131: 940 | C131: =VLOOKUP($B131,INPUTdata!$A:$L, C$8, FALSE) -> 100 | D131: =VLOOKUP($B131,INPUTdata!$A:$L, D$8, FALSE) -> 0 | E131: =VLOOKUP($B131,INPUTdata!$A:$L, E$8, FALSE) -> 100 | F131: =VLOOKUP($B131,INPUTdata!$A:$L, F$8, FALSE) -> 20 | G131: =VLOOKUP($B131,INPUTdata!$A:$L, G$8, FALSE) -> 44.35 | H131: =VLOOKUP($B131,INPUTdata!$A:$L, H$8, FALSE) -> -56.2 | I131: =VLOOKUP($B131,INPUTdata!$A:$L, I$8, FALSE) -> 22.36 | N131: 100 | O131: 0 | P131: 100 | Q131: 20
A132: 122 | B132: 950 | C132: =VLOOKUP($B132,INPUTdata!$A:$L, C$8, FALSE) -> 0 | D132: =VLOOKUP($B132,INPUTdata!$A:$L, D$8, FALSE) -> 100 | E132: =VLOOKUP($B132,INPUTdata!$A:$L, E$8, FALSE) -> 0 | F132: =VLOOKUP($B132,INPUTdata!$A:$L, F$8, FALSE) -> 40 | G132: =VLOOKUP($B132,INPUTdata!$A:$L, G$8, FALSE) -> 34.73 | H132: =VLOOKUP($B132,INPUTdata!$A:$L, H$8, FALSE) -> 52.41 | I132: =VLOOKUP($B132,INPUTdata!$A:$L, I$8, FALSE) -> -3.59 | N132: 0 | O132: 100 | P132: 0 | Q132: 40
A133: 123 | B133: 955 | C133: =VLOOKUP($B133,INPUTdata!$A:$L, C$8, FALSE) -> 20 | D133: =VLOOKUP($B133,INPUTdata!$A:$L, D$8, FALSE) -> 100 | E133: =VLOOKUP($B133,INPUTdata!$A:$L, E$8, FALSE) -> 0 | F133: =VLOOKUP($B133,INPUTdata!$A:$L, F$8, FALSE) -> 40 | G133: =VLOOKUP($B133,INPUTdata!$A:$L, G$8, FALSE) -> 31.68 | H133: =VLOOKUP($B133,INPUTdata!$A:$L, H$8, FALSE) -> 44.79 | I133: =VLOOKUP($B133,INPUTdata!$A:$L, I$8, FALSE) -> -9.75 | N133: 20 | O133: 100 | P133: 0 | Q133: 40
A134: 124 | B134: 960 | C134: =VLOOKUP($B134,INPUTdata!$A:$L, C$8, FALSE) -> 40 | D134: =VLOOKUP($B134,INPUTdata!$A:$L, D$8, FALSE) -> 100 | E134: =VLOOKUP($B134,INPUTdata!$A:$L, E$8, FALSE) -> 0 | F134: =VLOOKUP($B134,INPUTdata!$A:$L, F$8, FALSE) -> 40 | G134: =VLOOKUP($B134,INPUTdata!$A:$L, G$8, FALSE) -> 28.54 | H134: =VLOOKUP($B134,INPUTdata!$A:$L, H$8, FALSE) -> 36.98 | I134: =VLOOKUP($B134,INPUTdata!$A:$L, I$8, FALSE) -> -15.54 | N134: 40 | O134: 100 | P134: 0 | Q134: 40
A135: 125 | B135: 965 | C135: =VLOOKUP($B135,INPUTdata!$A:$L, C$8, FALSE) -> 70 | D135: =VLOOKUP($B135,INPUTdata!$A:$L, D$8, FALSE) -> 100 | E135: =VLOOKUP($B135,INPUTdata!$A:$L, E$8, FALSE) -> 0 | F135: =VLOOKUP($B135,INPUTdata!$A:$L, F$8, FALSE) -> 40 | G135: =VLOOKUP($B135,INPUTdata!$A:$L, G$8, FALSE) -> 24.02 | H135: =VLOOKUP($B135,INPUTdata!$A:$L, H$8, FALSE) -> 24.6 | I135: =VLOOKUP($B135,INPUTdata!$A:$L, I$8, FALSE) -> -24.3 | N135: 70 | O135: 100 | P135: 0 | Q135: 40
A136: 126 | B136: 966 | C136: =VLOOKUP($B136,INPUTdata!$A:$L, C$8, FALSE) -> 100 | D136: =VLOOKUP($B136,INPUTdata!$A:$L, D$8, FALSE) -> 0 | E136: =VLOOKUP($B136,INPUTdata!$A:$L, E$8, FALSE) -> 0 | F136: =VLOOKUP($B136,INPUTdata!$A:$L, F$8, FALSE) -> 40 | G136: =VLOOKUP($B136,INPUTdata!$A:$L, G$8, FALSE) -> 40.47 | H136: =VLOOKUP($B136,INPUTdata!$A:$L, H$8, FALSE) -> -27.78 | I136: =VLOOKUP($B136,INPUTdata!$A:$L, I$8, FALSE) -> -35.21 | N136: 100 | O136: 0 | P136: 0 | Q136: 40
A137: 127 | B137: 967 | C137: =VLOOKUP($B137,INPUTdata!$A:$L, C$8, FALSE) -> 100 | D137: =VLOOKUP($B137,INPUTdata!$A:$L, D$8, FALSE) -> 20 | E137: =VLOOKUP($B137,INPUTdata!$A:$L, E$8, FALSE) -> 0 | F137: =VLOOKUP($B137,INPUTdata!$A:$L, F$8, FALSE) -> 40 | G137: =VLOOKUP($B137,INPUTdata!$A:$L, G$8, FALSE) -> 36.25 | H137: =VLOOKUP($B137,INPUTdata!$A:$L, H$8, FALSE) -> -19.71 | I137: =VLOOKUP($B137,INPUTdata!$A:$L, I$8, FALSE) -> -34.61 | N137: 100 | O137: 20 | P137: 0 | Q137: 40
A138: 128 | B138: 968 | C138: =VLOOKUP($B138,INPUTdata!$A:$L, C$8, FALSE) -> 100 | D138: =VLOOKUP($B138,INPUTdata!$A:$L, D$8, FALSE) -> 40 | E138: =VLOOKUP($B138,INPUTdata!$A:$L, E$8, FALSE) -> 0 | F138: =VLOOKUP($B138,INPUTdata!$A:$L, F$8, FALSE) -> 40 | G138: =VLOOKUP($B138,INPUTdata!$A:$L, G$8, FALSE) -> 31.88 | H138: =VLOOKUP($B138,INPUTdata!$A:$L, H$8, FALSE) -> -11.32 | I138: =VLOOKUP($B138,INPUTdata!$A:$L, I$8, FALSE) -> -33.98 | N138: 100 | O138: 40 | P138: 0 | Q138: 40
A139: 129 | B139: 969 | C139: =VLOOKUP($B139,INPUTdata!$A:$L, C$8, FALSE) -> 100 | D139: =VLOOKUP($B139,INPUTdata!$A:$L, D$8, FALSE) -> 70 | E139: =VLOOKUP($B139,INPUTdata!$A:$L, E$8, FALSE) -> 0 | F139: =VLOOKUP($B139,INPUTdata!$A:$L, F$8, FALSE) -> 40 | G139: =VLOOKUP($B139,INPUTdata!$A:$L, G$8, FALSE) -> 25.47 | H139: =VLOOKUP($B139,INPUTdata!$A:$L, H$8, FALSE) -> 1.82 | I139: =VLOOKUP($B139,INPUTdata!$A:$L, I$8, FALSE) -> -32.62 | N139: 100 | O139: 70 | P139: 0 | Q139: 40
A140: 130 | B140: 970 | C140: =VLOOKUP($B140,INPUTdata!$A:$L, C$8, FALSE) -> 100 | D140: =VLOOKUP($B140,INPUTdata!$A:$L, D$8, FALSE) -> 100 | E140: =VLOOKUP($B140,INPUTdata!$A:$L, E$8, FALSE) -> 0 | F140: =VLOOKUP($B140,INPUTdata!$A:$L, F$8, FALSE) -> 40 | G140: =VLOOKUP($B140,INPUTdata!$A:$L, G$8, FALSE) -> 20.33 | H140: =VLOOKUP($B140,INPUTdata!$A:$L, H$8, FALSE) -> 13.31 | I140: =VLOOKUP($B140,INPUTdata!$A:$L, I$8, FALSE) -> -31.27 | N140: 100 | O140: 100 | P140: 0 | Q140: 40 | R140: =IF(AND(N140=C140,O140=D140,P140=E140,Q140=F140), "", 1) -> 
A141: 131 | B141: 975 | C141: =VLOOKUP($B141,INPUTdata!$A:$L, C$8, FALSE) -> 0 | D141: =VLOOKUP($B141,INPUTdata!$A:$L, D$8, FALSE) -> 100 | E141: =VLOOKUP($B141,INPUTdata!$A:$L, E$8, FALSE) -> 20 | F141: =VLOOKUP($B141,INPUTdata!$A:$L, F$8, FALSE) -> 40 | G141: =VLOOKUP($B141,INPUTdata!$A:$L, G$8, FALSE) -> 34.92 | H141: =VLOOKUP($B141,INPUTdata!$A:$L, H$8, FALSE) -> 50.69 | I141: =VLOOKUP($B141,INPUTdata!$A:$L, I$8, FALSE) -> 3.68 | N141: 0 | O141: 100 | P141: 20 | Q141: 40
A142: 132 | B142: 991 | C142: =VLOOKUP($B142,INPUTdata!$A:$L, C$8, FALSE) -> 100 | D142: =VLOOKUP($B142,INPUTdata!$A:$L, D$8, FALSE) -> 0 | E142: =VLOOKUP($B142,INPUTdata!$A:$L, E$8, FALSE) -> 20 | F142: =VLOOKUP($B142,INPUTdata!$A:$L, F$8, FALSE) -> 40 | G142: =VLOOKUP($B142,INPUTdata!$A:$L, G$8, FALSE) -> 39.9 | H142: =VLOOKUP($B142,INPUTdata!$A:$L, H$8, FALSE) -> -33 | I142: =VLOOKUP($B142,INPUTdata!$A:$L, I$8, FALSE) -> -24.49 | N142: 100 | O142: 0 | P142: 20 | Q142: 40
A143: 133 | B143: 1000 | C143: =VLOOKUP($B143,INPUTdata!$A:$L, C$8, FALSE) -> 0 | D143: =VLOOKUP($B143,INPUTdata!$A:$L, D$8, FALSE) -> 100 | E143: =VLOOKUP($B143,INPUTdata!$A:$L, E$8, FALSE) -> 40 | F143: =VLOOKUP($B143,INPUTdata!$A:$L, F$8, FALSE) -> 40 | G143: =VLOOKUP($B143,INPUTdata!$A:$L, G$8, FALSE) -> 34.82 | H143: =VLOOKUP($B143,INPUTdata!$A:$L, H$8, FALSE) -> 49.2 | I143: =VLOOKUP($B143,INPUTdata!$A:$L, I$8, FALSE) -> 11.03 | N143: 0 | O143: 100 | P143: 40 | Q143: 40
A144: 134 | B144: 1016 | C144: =VLOOKUP($B144,INPUTdata!$A:$L, C$8, FALSE) -> 100 | D144: =VLOOKUP($B144,INPUTdata!$A:$L, D$8, FALSE) -> 0 | E144: =VLOOKUP($B144,INPUTdata!$A:$L, E$8, FALSE) -> 40 | F144: =VLOOKUP($B144,INPUTdata!$A:$L, F$8, FALSE) -> 40 | G144: =VLOOKUP($B144,INPUTdata!$A:$L, G$8, FALSE) -> 39.26 | H144: =VLOOKUP($B144,INPUTdata!$A:$L, H$8, FALSE) -> -37.34 | I144: =VLOOKUP($B144,INPUTdata!$A:$L, I$8, FALSE) -> -13.75 | N144: 100 | O144: 0 | P144: 40 | Q144: 40
A145: 135 | B145: 1025 | C145: =VLOOKUP($B145,INPUTdata!$A:$L, C$8, FALSE) -> 0 | D145: =VLOOKUP($B145,INPUTdata!$A:$L, D$8, FALSE) -> 100 | E145: =VLOOKUP($B145,INPUTdata!$A:$L, E$8, FALSE) -> 70 | F145: =VLOOKUP($B145,INPUTdata!$A:$L, F$8, FALSE) -> 40 | G145: =VLOOKUP($B145,INPUTdata!$A:$L, G$8, FALSE) -> 34.66 | H145: =VLOOKUP($B145,INPUTdata!$A:$L, H$8, FALSE) -> 47.17 | I145: =VLOOKUP($B145,INPUTdata!$A:$L, I$8, FALSE) -> 21.98 | N145: 0 | O145: 100 | P145: 70 | Q145: 40
A146: 136 | B146: 1041 | C146: =VLOOKUP($B146,INPUTdata!$A:$L, C$8, FALSE) -> 100 | D146: =VLOOKUP($B146,INPUTdata!$A:$L, D$8, FALSE) -> 0 | E146: =VLOOKUP($B146,INPUTdata!$A:$L, E$8, FALSE) -> 70 | F146: =VLOOKUP($B146,INPUTdata!$A:$L, F$8, FALSE) -> 40 | G146: =VLOOKUP($B146,INPUTdata!$A:$L, G$8, FALSE) -> 38.49 | H146: =VLOOKUP($B146,INPUTdata!$A:$L, H$8, FALSE) -> -43.3 | I146: =VLOOKUP($B146,INPUTdata!$A:$L, I$8, FALSE) -> 3.14 | N146: 100 | O146: 0 | P146: 70 | Q146: 40
A147: 137 | B147: 1046 | C147: =VLOOKUP($B147,INPUTdata!$A:$L, C$8, FALSE) -> 0 | D147: =VLOOKUP($B147,INPUTdata!$A:$L, D$8, FALSE) -> 0 | E147: =VLOOKUP($B147,INPUTdata!$A:$L, E$8, FALSE) -> 100 | F147: =VLOOKUP($B147,INPUTdata!$A:$L, F$8, FALSE) -> 40 | G147: =VLOOKUP($B147,INPUTdata!$A:$L, G$8, FALSE) -> 62.87 | H147: =VLOOKUP($B147,INPUTdata!$A:$L, H$8, FALSE) -> -4.63 | I147: =VLOOKUP($B147,INPUTdata!$A:$L, I$8, FALSE) -> 63.27 | N147: 0 | O147: 0 | P147: 100 | Q147: 40
A148: 138 | B148: 1047 | C148: =VLOOKUP($B148,INPUTdata!$A:$L, C$8, FALSE) -> 0 | D148: =VLOOKUP($B148,INPUTdata!$A:$L, D$8, FALSE) -> 20 | E148: =VLOOKUP($B148,INPUTdata!$A:$L, E$8, FALSE) -> 100 | F148: =VLOOKUP($B148,INPUTdata!$A:$L, F$8, FALSE) -> 40 | G148: =VLOOKUP($B148,INPUTdata!$A:$L, G$8, FALSE) -> 56.78 | H148: =VLOOKUP($B148,INPUTdata!$A:$L, H$8, FALSE) -> 4.88 | I148: =VLOOKUP($B148,INPUTdata!$A:$L, I$8, FALSE) -> 56.16 | N148: 0 | O148: 20 | P148: 100 | Q148: 40
A149: 139 | B149: 1048 | C149: =VLOOKUP($B149,INPUTdata!$A:$L, C$8, FALSE) -> 0 | D149: =VLOOKUP($B149,INPUTdata!$A:$L, D$8, FALSE) -> 40 | E149: =VLOOKUP($B149,INPUTdata!$A:$L, E$8, FALSE) -> 100 | F149: =VLOOKUP($B149,INPUTdata!$A:$L, F$8, FALSE) -> 40 | G149: =VLOOKUP($B149,INPUTdata!$A:$L, G$8, FALSE) -> 50.64 | H149: =VLOOKUP($B149,INPUTdata!$A:$L, H$8, FALSE) -> 15.02 | I149: =VLOOKUP($B149,INPUTdata!$A:$L, I$8, FALSE) -> 49.41 | N149: 0 | O149: 40 | P149: 100 | Q149: 40
A150: 140 | B150: 1049 | C150: =VLOOKUP($B150,INPUTdata!$A:$L, C$8, FALSE) -> 0 | D150: =VLOOKUP($B150,INPUTdata!$A:$L, D$8, FALSE) -> 70 | E150: =VLOOKUP($B150,INPUTdata!$A:$L, E$8, FALSE) -> 100 | F150: =VLOOKUP($B150,INPUTdata!$A:$L, F$8, FALSE) -> 40 | G150: =VLOOKUP($B150,INPUTdata!$A:$L, G$8, FALSE) -> 41.43 | H150: =VLOOKUP($B150,INPUTdata!$A:$L, H$8, FALSE) -> 31.24 | I150: =VLOOKUP($B150,INPUTdata!$A:$L, I$8, FALSE) -> 39.23 | N150: 0 | O150: 70 | P150: 100 | Q150: 40
A151: 141 | B151: 1050 | C151: =VLOOKUP($B151,INPUTdata!$A:$L, C$8, FALSE) -> 0 | D151: =VLOOKUP($B151,INPUTdata!$A:$L, D$8, FALSE) -> 100 | E151: =VLOOKUP($B151,INPUTdata!$A:$L, E$8, FALSE) -> 100 | F151: =VLOOKUP($B151,INPUTdata!$A:$L, F$8, FALSE) -> 40 | G151: =VLOOKUP($B151,INPUTdata!$A:$L, G$8, FALSE) -> 34.12 | H151: =VLOOKUP($B151,INPUTdata!$A:$L, H$8, FALSE) -> 45.71 | I151: =VLOOKUP($B151,INPUTdata!$A:$L, I$8, FALSE) -> 31.75 | N151: 0 | O151: 100 | P151: 100 | Q151: 40
A152: 142 | B152: 1051 | C152: =VLOOKUP($B152,INPUTdata!$A:$L, C$8, FALSE) -> 20 | D152: =VLOOKUP($B152,INPUTdata!$A:$L, D$8, FALSE) -> 0 | E152: =VLOOKUP($B152,INPUTdata!$A:$L, E$8, FALSE) -> 100 | F152: =VLOOKUP($B152,INPUTdata!$A:$L, F$8, FALSE) -> 40 | G152: =VLOOKUP($B152,INPUTdata!$A:$L, G$8, FALSE) -> 57.8 | H152: =VLOOKUP($B152,INPUTdata!$A:$L, H$8, FALSE) -> -11.85 | I152: =VLOOKUP($B152,INPUTdata!$A:$L, I$8, FALSE) -> 53.93 | N152: 20 | O152: 0 | P152: 100 | Q152: 40
A153: 143 | B153: 1056 | C153: =VLOOKUP($B153,INPUTdata!$A:$L, C$8, FALSE) -> 40 | D153: =VLOOKUP($B153,INPUTdata!$A:$L, D$8, FALSE) -> 0 | E153: =VLOOKUP($B153,INPUTdata!$A:$L, E$8, FALSE) -> 100 | F153: =VLOOKUP($B153,INPUTdata!$A:$L, F$8, FALSE) -> 40 | G153: =VLOOKUP($B153,INPUTdata!$A:$L, G$8, FALSE) -> 52.64 | H153: =VLOOKUP($B153,INPUTdata!$A:$L, H$8, FALSE) -> -19.78 | I153: =VLOOKUP($B153,INPUTdata!$A:$L, I$8, FALSE) -> 44.88 | N153: 40 | O153: 0 | P153: 100 | Q153: 40
A154: 144 | B154: 1061 | C154: =VLOOKUP($B154,INPUTdata!$A:$L, C$8, FALSE) -> 70 | D154: =VLOOKUP($B154,INPUTdata!$A:$L, D$8, FALSE) -> 0 | E154: =VLOOKUP($B154,INPUTdata!$A:$L, E$8, FALSE) -> 100 | F154: =VLOOKUP($B154,INPUTdata!$A:$L, F$8, FALSE) -> 40 | G154: =VLOOKUP($B154,INPUTdata!$A:$L, G$8, FALSE) -> 44.75 | H154: =VLOOKUP($B154,INPUTdata!$A:$L, H$8, FALSE) -> -33.19 | I154: =VLOOKUP($B154,INPUTdata!$A:$L, I$8, FALSE) -> 30.74 | N154: 70 | O154: 0 | P154: 100 | Q154: 40
A155: 145 | B155: 1066 | C155: =VLOOKUP($B155,INPUTdata!$A:$L, C$8, FALSE) -> 100 | D155: =VLOOKUP($B155,INPUTdata!$A:$L, D$8, FALSE) -> 0 | E155: =VLOOKUP($B155,INPUTdata!$A:$L, E$8, FALSE) -> 100 | F155: =VLOOKUP($B155,INPUTdata!$A:$L, F$8, FALSE) -> 40 | G155: =VLOOKUP($B155,INPUTdata!$A:$L, G$8, FALSE) -> 37.9 | H155: =VLOOKUP($B155,INPUTdata!$A:$L, H$8, FALSE) -> -46.57 | I155: =VLOOKUP($B155,INPUTdata!$A:$L, I$8, FALSE) -> 18.61 | N155: 100 | O155: 0 | P155: 100 | Q155: 40
A156: 146 | B156: 1075 | C156: =VLOOKUP($B156,INPUTdata!$A:$L, C$8, FALSE) -> 0 | D156: =VLOOKUP($B156,INPUTdata!$A:$L, D$8, FALSE) -> 100 | E156: =VLOOKUP($B156,INPUTdata!$A:$L, E$8, FALSE) -> 0 | F156: =VLOOKUP($B156,INPUTdata!$A:$L, F$8, FALSE) -> 60 | G156: =VLOOKUP($B156,INPUTdata!$A:$L, G$8, FALSE) -> 27.7 | H156: =VLOOKUP($B156,INPUTdata!$A:$L, H$8, FALSE) -> 41.31 | I156: =VLOOKUP($B156,INPUTdata!$A:$L, I$8, FALSE) -> -2.47 | N156: 0 | O156: 100 | P156: 0 | Q156: 60
A157: 147 | B157: 1080 | C157: =VLOOKUP($B157,INPUTdata!$A:$L, C$8, FALSE) -> 20 | D157: =VLOOKUP($B157,INPUTdata!$A:$L, D$8, FALSE) -> 100 | E157: =VLOOKUP($B157,INPUTdata!$A:$L, E$8, FALSE) -> 0 | F157: =VLOOKUP($B157,INPUTdata!$A:$L, F$8, FALSE) -> 60 | G157: =VLOOKUP($B157,INPUTdata!$A:$L, G$8, FALSE) -> 25.41 | H157: =VLOOKUP($B157,INPUTdata!$A:$L, H$8, FALSE) -> 35.38 | I157: =VLOOKUP($B157,INPUTdata!$A:$L, I$8, FALSE) -> -7.21 | N157: 20 | O157: 100 | P157: 0 | Q157: 60
A158: 148 | B158: 1085 | C158: =VLOOKUP($B158,INPUTdata!$A:$L, C$8, FALSE) -> 40 | D158: =VLOOKUP($B158,INPUTdata!$A:$L, D$8, FALSE) -> 100 | E158: =VLOOKUP($B158,INPUTdata!$A:$L, E$8, FALSE) -> 0 | F158: =VLOOKUP($B158,INPUTdata!$A:$L, F$8, FALSE) -> 60 | G158: =VLOOKUP($B158,INPUTdata!$A:$L, G$8, FALSE) -> 23.17 | H158: =VLOOKUP($B158,INPUTdata!$A:$L, H$8, FALSE) -> 29.32 | I158: =VLOOKUP($B158,INPUTdata!$A:$L, I$8, FALSE) -> -11.7 | N158: 40 | O158: 100 | P158: 0 | Q158: 60
A159: 149 | B159: 1090 | C159: =VLOOKUP($B159,INPUTdata!$A:$L, C$8, FALSE) -> 70 | D159: =VLOOKUP($B159,INPUTdata!$A:$L, D$8, FALSE) -> 100 | E159: =VLOOKUP($B159,INPUTdata!$A:$L, E$8, FALSE) -> 0 | F159: =VLOOKUP($B159,INPUTdata!$A:$L, F$8, FALSE) -> 60 | G159: =VLOOKUP($B159,INPUTdata!$A:$L, G$8, FALSE) -> 19.82 | H159: =VLOOKUP($B159,INPUTdata!$A:$L, H$8, FALSE) -> 19.56 | I159: =VLOOKUP($B159,INPUTdata!$A:$L, I$8, FALSE) -> -18.55 | N159: 70 | O159: 100 | P159: 0 | Q159: 60
A160: 150 | B160: 1091 | C160: =VLOOKUP($B160,INPUTdata!$A:$L, C$8, FALSE) -> 100 | D160: =VLOOKUP($B160,INPUTdata!$A:$L, D$8, FALSE) -> 0 | E160: =VLOOKUP($B160,INPUTdata!$A:$L, E$8, FALSE) -> 0 | F160: =VLOOKUP($B160,INPUTdata!$A:$L, F$8, FALSE) -> 60 | G160: =VLOOKUP($B160,INPUTdata!$A:$L, G$8, FALSE) -> 32.07 | H160: =VLOOKUP($B160,INPUTdata!$A:$L, H$8, FALSE) -> -22.41 | I160: =VLOOKUP($B160,INPUTdata!$A:$L, I$8, FALSE) -> -28.05 | N160: 100 | O160: 0 | P160: 0 | Q160: 60
A161: 151 | B161: 1092 | C161: =VLOOKUP($B161,INPUTdata!$A:$L, C$8, FALSE) -> 100 | D161: =VLOOKUP($B161,INPUTdata!$A:$L, D$8, FALSE) -> 20 | E161: =VLOOKUP($B161,INPUTdata!$A:$L, E$8, FALSE) -> 0 | F161: =VLOOKUP($B161,INPUTdata!$A:$L, F$8, FALSE) -> 60 | G161: =VLOOKUP($B161,INPUTdata!$A:$L, G$8, FALSE) -> 28.84 | H161: =VLOOKUP($B161,INPUTdata!$A:$L, H$8, FALSE) -> -15.73 | I161: =VLOOKUP($B161,INPUTdata!$A:$L, I$8, FALSE) -> -27.45 | N161: 100 | O161: 20 | P161: 0 | Q161: 60
A162: 152 | B162: 1093 | C162: =VLOOKUP($B162,INPUTdata!$A:$L, C$8, FALSE) -> 100 | D162: =VLOOKUP($B162,INPUTdata!$A:$L, D$8, FALSE) -> 40 | E162: =VLOOKUP($B162,INPUTdata!$A:$L, E$8, FALSE) -> 0 | F162: =VLOOKUP($B162,INPUTdata!$A:$L, F$8, FALSE) -> 60 | G162: =VLOOKUP($B162,INPUTdata!$A:$L, G$8, FALSE) -> 25.63 | H162: =VLOOKUP($B162,INPUTdata!$A:$L, H$8, FALSE) -> -8.92 | I162: =VLOOKUP($B162,INPUTdata!$A:$L, I$8, FALSE) -> -26.77 | N162: 100 | O162: 40 | P162: 0 | Q162: 60
A163: 153 | B163: 1094 | C163: =VLOOKUP($B163,INPUTdata!$A:$L, C$8, FALSE) -> 100 | D163: =VLOOKUP($B163,INPUTdata!$A:$L, D$8, FALSE) -> 70 | E163: =VLOOKUP($B163,INPUTdata!$A:$L, E$8, FALSE) -> 0 | F163: =VLOOKUP($B163,INPUTdata!$A:$L, F$8, FALSE) -> 60 | G163: =VLOOKUP($B163,INPUTdata!$A:$L, G$8, FALSE) -> 20.91 | H163: =VLOOKUP($B163,INPUTdata!$A:$L, H$8, FALSE) -> 1.64 | I163: =VLOOKUP($B163,INPUTdata!$A:$L, I$8, FALSE) -> -25.33 | N163: 100 | O163: 70 | P163: 0 | Q163: 60
A164: 154 | B164: 1095 | C164: =VLOOKUP($B164,INPUTdata!$A:$L, C$8, FALSE) -> 100 | D164: =VLOOKUP($B164,INPUTdata!$A:$L, D$8, FALSE) -> 100 | E164: =VLOOKUP($B164,INPUTdata!$A:$L, E$8, FALSE) -> 0 | F164: =VLOOKUP($B164,INPUTdata!$A:$L, F$8, FALSE) -> 60 | G164: =VLOOKUP($B164,INPUTdata!$A:$L, G$8, FALSE) -> 17.19 | H164: =VLOOKUP($B164,INPUTdata!$A:$L, H$8, FALSE) -> 10.82 | I164: =VLOOKUP($B164,INPUTdata!$A:$L, I$8, FALSE) -> -23.85 | N164: 100 | O164: 100 | P164: 0 | Q164: 60
A165: 155 | B165: 1100 | C165: =VLOOKUP($B165,INPUTdata!$A:$L, C$8, FALSE) -> 0 | D165: =VLOOKUP($B165,INPUTdata!$A:$L, D$8, FALSE) -> 100 | E165: =VLOOKUP($B165,INPUTdata!$A:$L, E$8, FALSE) -> 20 | F165: =VLOOKUP($B165,INPUTdata!$A:$L, F$8, FALSE) -> 60 | G165: =VLOOKUP($B165,INPUTdata!$A:$L, G$8, FALSE) -> 27.86 | H165: =VLOOKUP($B165,INPUTdata!$A:$L, H$8, FALSE) -> 39.67 | I165: =VLOOKUP($B165,INPUTdata!$A:$L, I$8, FALSE) -> 3.2 | N165: 0 | O165: 100 | P165: 20 | Q165: 60
A166: 156 | B166: 1116 | C166: =VLOOKUP($B166,INPUTdata!$A:$L, C$8, FALSE) -> 100 | D166: =VLOOKUP($B166,INPUTdata!$A:$L, D$8, FALSE) -> 0 | E166: =VLOOKUP($B166,INPUTdata!$A:$L, E$8, FALSE) -> 20 | F166: =VLOOKUP($B166,INPUTdata!$A:$L, F$8, FALSE) -> 60 | G166: =VLOOKUP($B166,INPUTdata!$A:$L, G$8, FALSE) -> 31.66 | H166: =VLOOKUP($B166,INPUTdata!$A:$L, H$8, FALSE) -> -26.5 | I166: =VLOOKUP($B166,INPUTdata!$A:$L, I$8, FALSE) -> -19.53 | N166: 100 | O166: 0 | P166: 20 | Q166: 60
A167: 157 | B167: 1125 | C167: =VLOOKUP($B167,INPUTdata!$A:$L, C$8, FALSE) -> 0 | D167: =VLOOKUP($B167,INPUTdata!$A:$L, D$8, FALSE) -> 100 | E167: =VLOOKUP($B167,INPUTdata!$A:$L, E$8, FALSE) -> 40 | F167: =VLOOKUP($B167,INPUTdata!$A:$L, F$8, FALSE) -> 60 | G167: =VLOOKUP($B167,INPUTdata!$A:$L, G$8, FALSE) -> 27.84 | H167: =VLOOKUP($B167,INPUTdata!$A:$L, H$8, FALSE) -> 38.18 | I167: =VLOOKUP($B167,INPUTdata!$A:$L, I$8, FALSE) -> 8.74 | N167: 0 | O167: 100 | P167: 40 | Q167: 60
A168: 158 | B168: 1141 | C168: =VLOOKUP($B168,INPUTdata!$A:$L, C$8, FALSE) -> 100 | D168: =VLOOKUP($B168,INPUTdata!$A:$L, D$8, FALSE) -> 0 | E168: =VLOOKUP($B168,INPUTdata!$A:$L, E$8, FALSE) -> 40 | F168: =VLOOKUP($B168,INPUTdata!$A:$L, F$8, FALSE) -> 60 | G168: =VLOOKUP($B168,INPUTdata!$A:$L, G$8, FALSE) -> 31.37 | H168: =VLOOKUP($B168,INPUTdata!$A:$L, H$8, FALSE) -> -29.74 | I168: =VLOOKUP($B168,INPUTdata!$A:$L, I$8, FALSE) -> -11.06 | N168: 100 | O168: 0 | P168: 40 | Q168: 60
A169: 159 | B169: 1150 | C169: =VLOOKUP($B169,INPUTdata!$A:$L, C$8, FALSE) -> 0 | D169: =VLOOKUP($B169,INPUTdata!$A:$L, D$8, FALSE) -> 100 | E169: =VLOOKUP($B169,INPUTdata!$A:$L, E$8, FALSE) -> 70 | F169: =VLOOKUP($B169,INPUTdata!$A:$L, F$8, FALSE) -> 60 | G169: =VLOOKUP($B169,INPUTdata!$A:$L, G$8, FALSE) -> 27.8 | H169: =VLOOKUP($B169,INPUTdata!$A:$L, H$8, FALSE) -> 36.18 | I169: =VLOOKUP($B169,INPUTdata!$A:$L, I$8, FALSE) -> 16.94 | N169: 0 | O169: 100 | P169: 70 | Q169: 60
A170: 160 | B170: 1166 | C170: =VLOOKUP($B170,INPUTdata!$A:$L, C$8, FALSE) -> 100 | D170: =VLOOKUP($B170,INPUTdata!$A:$L, D$8, FALSE) -> 0 | E170: =VLOOKUP($B170,INPUTdata!$A:$L, E$8, FALSE) -> 70 | F170: =VLOOKUP($B170,INPUTdata!$A:$L, F$8, FALSE) -> 60 | G170: =VLOOKUP($B170,INPUTdata!$A:$L, G$8, FALSE) -> 31.05 | H170: =VLOOKUP($B170,INPUTdata!$A:$L, H$8, FALSE) -> -34.39 | I170: =VLOOKUP($B170,INPUTdata!$A:$L, I$8, FALSE) -> 2.31 | N170: 100 | O170: 0 | P170: 70 | Q170: 60
A171: 161 | B171: 1171 | C171: =VLOOKUP($B171,INPUTdata!$A:$L, C$8, FALSE) -> 0 | D171: =VLOOKUP($B171,INPUTdata!$A:$L, D$8, FALSE) -> 0 | E171: =VLOOKUP($B171,INPUTdata!$A:$L, E$8, FALSE) -> 100 | F171: =VLOOKUP($B171,INPUTdata!$A:$L, F$8, FALSE) -> 60 | G171: =VLOOKUP($B171,INPUTdata!$A:$L, G$8, FALSE) -> 49.44 | H171: =VLOOKUP($B171,INPUTdata!$A:$L, H$8, FALSE) -> -4.7 | I171: =VLOOKUP($B171,INPUTdata!$A:$L, I$8, FALSE) -> 48.48 | N171: 0 | O171: 0 | P171: 100 | Q171: 60
A172: 162 | B172: 1172 | C172: =VLOOKUP($B172,INPUTdata!$A:$L, C$8, FALSE) -> 0 | D172: =VLOOKUP($B172,INPUTdata!$A:$L, D$8, FALSE) -> 20 | E172: =VLOOKUP($B172,INPUTdata!$A:$L, E$8, FALSE) -> 100 | F172: =VLOOKUP($B172,INPUTdata!$A:$L, F$8, FALSE) -> 60 | G172: =VLOOKUP($B172,INPUTdata!$A:$L, G$8, FALSE) -> 44.75 | H172: =VLOOKUP($B172,INPUTdata!$A:$L, H$8, FALSE) -> 2.76 | I172: =VLOOKUP($B172,INPUTdata!$A:$L, I$8, FALSE) -> 43.09 | N172: 0 | O172: 20 | P172: 100 | Q172: 60
A173: 163 | B173: 1173 | C173: =VLOOKUP($B173,INPUTdata!$A:$L, C$8, FALSE) -> 0 | D173: =VLOOKUP($B173,INPUTdata!$A:$L, D$8, FALSE) -> 40 | E173: =VLOOKUP($B173,INPUTdata!$A:$L, E$8, FALSE) -> 100 | F173: =VLOOKUP($B173,INPUTdata!$A:$L, F$8, FALSE) -> 60 | G173: =VLOOKUP($B173,INPUTdata!$A:$L, G$8, FALSE) -> 40.13 | H173: =VLOOKUP($B173,INPUTdata!$A:$L, H$8, FALSE) -> 10.7 | I173: =VLOOKUP($B173,INPUTdata!$A:$L, I$8, FALSE) -> 37.98 | N173: 0 | O173: 40 | P173: 100 | Q173: 60
A174: 164 | B174: 1174 | C174: =VLOOKUP($B174,INPUTdata!$A:$L, C$8, FALSE) -> 0 | D174: =VLOOKUP($B174,INPUTdata!$A:$L, D$8, FALSE) -> 70 | E174: =VLOOKUP($B174,INPUTdata!$A:$L, E$8, FALSE) -> 100 | F174: =VLOOKUP($B174,INPUTdata!$A:$L, F$8, FALSE) -> 60 | G174: =VLOOKUP($B174,INPUTdata!$A:$L, G$8, FALSE) -> 33.06 | H174: =VLOOKUP($B174,INPUTdata!$A:$L, H$8, FALSE) -> 23.39 | I174: =VLOOKUP($B174,INPUTdata!$A:$L, I$8, FALSE) -> 29.99 | N174: 0 | O174: 70 | P174: 100 | Q174: 60
A175: 165 | B175: 1175 | C175: =VLOOKUP($B175,INPUTdata!$A:$L, C$8, FALSE) -> 0 | D175: =VLOOKUP($B175,INPUTdata!$A:$L, D$8, FALSE) -> 100 | E175: =VLOOKUP($B175,INPUTdata!$A:$L, E$8, FALSE) -> 100 | F175: =VLOOKUP($B175,INPUTdata!$A:$L, F$8, FALSE) -> 60 | G175: =VLOOKUP($B175,INPUTdata!$A:$L, G$8, FALSE) -> 27.49 | H175: =VLOOKUP($B175,INPUTdata!$A:$L, H$8, FALSE) -> 34.66 | I175: =VLOOKUP($B175,INPUTdata!$A:$L, I$8, FALSE) -> 24.24 | N175: 0 | O175: 100 | P175: 100 | Q175: 60
A176: 166 | B176: 1176 | C176: =VLOOKUP($B176,INPUTdata!$A:$L, C$8, FALSE) -> 20 | D176: =VLOOKUP($B176,INPUTdata!$A:$L, D$8, FALSE) -> 0 | E176: =VLOOKUP($B176,INPUTdata!$A:$L, E$8, FALSE) -> 100 | F176: =VLOOKUP($B176,INPUTdata!$A:$L, F$8, FALSE) -> 60 | G176: =VLOOKUP($B176,INPUTdata!$A:$L, G$8, FALSE) -> 45.55 | H176: =VLOOKUP($B176,INPUTdata!$A:$L, H$8, FALSE) -> -10.43 | I176: =VLOOKUP($B176,INPUTdata!$A:$L, I$8, FALSE) -> 41.25 | N176: 20 | O176: 0 | P176: 100 | Q176: 60
A177: 167 | B177: 1181 | C177: =VLOOKUP($B177,INPUTdata!$A:$L, C$8, FALSE) -> 40 | D177: =VLOOKUP($B177,INPUTdata!$A:$L, D$8, FALSE) -> 0 | E177: =VLOOKUP($B177,INPUTdata!$A:$L, E$8, FALSE) -> 100 | F177: =VLOOKUP($B177,INPUTdata!$A:$L, F$8, FALSE) -> 60 | G177: =VLOOKUP($B177,INPUTdata!$A:$L, G$8, FALSE) -> 41.75 | H177: =VLOOKUP($B177,INPUTdata!$A:$L, H$8, FALSE) -> -16.62 | I177: =VLOOKUP($B177,INPUTdata!$A:$L, I$8, FALSE) -> 34.35 | N177: 40 | O177: 0 | P177: 100 | Q177: 60
A178: 168 | B178: 1186 | C178: =VLOOKUP($B178,INPUTdata!$A:$L, C$8, FALSE) -> 70 | D178: =VLOOKUP($B178,INPUTdata!$A:$L, D$8, FALSE) -> 0 | E178: =VLOOKUP($B178,INPUTdata!$A:$L, E$8, FALSE) -> 100 | F178: =VLOOKUP($B178,INPUTdata!$A:$L, F$8, FALSE) -> 60 | G178: =VLOOKUP($B178,INPUTdata!$A:$L, G$8, FALSE) -> 35.9 | H178: =VLOOKUP($B178,INPUTdata!$A:$L, H$8, FALSE) -> -26.85 | I178: =VLOOKUP($B178,INPUTdata!$A:$L, I$8, FALSE) -> 23.63 | N178: 70 | O178: 0 | P178: 100 | Q178: 60
A179: 169 | B179: 1191 | C179: =VLOOKUP($B179,INPUTdata!$A:$L, C$8, FALSE) -> 100 | D179: =VLOOKUP($B179,INPUTdata!$A:$L, D$8, FALSE) -> 0 | E179: =VLOOKUP($B179,INPUTdata!$A:$L, E$8, FALSE) -> 100 | F179: =VLOOKUP($B179,INPUTdata!$A:$L, F$8, FALSE) -> 60 | G179: =VLOOKUP($B179,INPUTdata!$A:$L, G$8, FALSE) -> 30.93 | H179: =VLOOKUP($B179,INPUTdata!$A:$L, H$8, FALSE) -> -36.82 | I179: =VLOOKUP($B179,INPUTdata!$A:$L, I$8, FALSE) -> 14.62 | N179: 100 | O179: 0 | P179: 100 | Q179: 60
A180: 170 | B180: 1199 | C180: =VLOOKUP($B180,INPUTdata!$A:$L, C$8, FALSE) -> 0 | D180: =VLOOKUP($B180,INPUTdata!$A:$L, D$8, FALSE) -> 100 | E180: =VLOOKUP($B180,INPUTdata!$A:$L, E$8, FALSE) -> 0 | F180: =VLOOKUP($B180,INPUTdata!$A:$L, F$8, FALSE) -> 80 | G180: =VLOOKUP($B180,INPUTdata!$A:$L, G$8, FALSE) -> 19.3 | H180: =VLOOKUP($B180,INPUTdata!$A:$L, H$8, FALSE) -> 28.12 | I180: =VLOOKUP($B180,INPUTdata!$A:$L, I$8, FALSE) -> -0.32 | N180: 0 | O180: 100 | P180: 0 | Q180: 80
A181: 171 | B181: 1203 | C181: =VLOOKUP($B181,INPUTdata!$A:$L, C$8, FALSE) -> 40 | D181: =VLOOKUP($B181,INPUTdata!$A:$L, D$8, FALSE) -> 100 | E181: =VLOOKUP($B181,INPUTdata!$A:$L, E$8, FALSE) -> 0 | F181: =VLOOKUP($B181,INPUTdata!$A:$L, F$8, FALSE) -> 80 | G181: =VLOOKUP($B181,INPUTdata!$A:$L, G$8, FALSE) -> 16.65 | H181: =VLOOKUP($B181,INPUTdata!$A:$L, H$8, FALSE) -> 21.02 | I181: =VLOOKUP($B181,INPUTdata!$A:$L, I$8, FALSE) -> -6.3 | N181: 40 | O181: 100 | P181: 0 | Q181: 80
A182: 172 | B182: 1207 | C182: =VLOOKUP($B182,INPUTdata!$A:$L, C$8, FALSE) -> 70 | D182: =VLOOKUP($B182,INPUTdata!$A:$L, D$8, FALSE) -> 100 | E182: =VLOOKUP($B182,INPUTdata!$A:$L, E$8, FALSE) -> 0 | F182: =VLOOKUP($B182,INPUTdata!$A:$L, F$8, FALSE) -> 80 | G182: =VLOOKUP($B182,INPUTdata!$A:$L, G$8, FALSE) -> 14.48 | H182: =VLOOKUP($B182,INPUTdata!$A:$L, H$8, FALSE) -> 14.33 | I182: =VLOOKUP($B182,INPUTdata!$A:$L, I$8, FALSE) -> -11.55 | N182: 70 | O182: 100 | P182: 0 | Q182: 80
A183: 173 | B183: 1208 | C183: =VLOOKUP($B183,INPUTdata!$A:$L, C$8, FALSE) -> 100 | D183: =VLOOKUP($B183,INPUTdata!$A:$L, D$8, FALSE) -> 0 | E183: =VLOOKUP($B183,INPUTdata!$A:$L, E$8, FALSE) -> 0 | F183: =VLOOKUP($B183,INPUTdata!$A:$L, F$8, FALSE) -> 80 | G183: =VLOOKUP($B183,INPUTdata!$A:$L, G$8, FALSE) -> 21.74 | H183: =VLOOKUP($B183,INPUTdata!$A:$L, H$8, FALSE) -> -15.31 | I183: =VLOOKUP($B183,INPUTdata!$A:$L, I$8, FALSE) -> -19.73 | N183: 100 | O183: 0 | P183: 0 | Q183: 80
A184: 174 | B184: 1209 | C184: =VLOOKUP($B184,INPUTdata!$A:$L, C$8, FALSE) -> 100 | D184: =VLOOKUP($B184,INPUTdata!$A:$L, D$8, FALSE) -> 40 | E184: =VLOOKUP($B184,INPUTdata!$A:$L, E$8, FALSE) -> 0 | F184: =VLOOKUP($B184,INPUTdata!$A:$L, F$8, FALSE) -> 80 | G184: =VLOOKUP($B184,INPUTdata!$A:$L, G$8, FALSE) -> 18.12 | H184: =VLOOKUP($B184,INPUTdata!$A:$L, H$8, FALSE) -> -6.07 | I184: =VLOOKUP($B184,INPUTdata!$A:$L, I$8, FALSE) -> -17.97 | N184: 100 | O184: 40 | P184: 0 | Q184: 80
A185: 175 | B185: 1210 | C185: =VLOOKUP($B185,INPUTdata!$A:$L, C$8, FALSE) -> 100 | D185: =VLOOKUP($B185,INPUTdata!$A:$L, D$8, FALSE) -> 70 | E185: =VLOOKUP($B185,INPUTdata!$A:$L, E$8, FALSE) -> 0 | F185: =VLOOKUP($B185,INPUTdata!$A:$L, F$8, FALSE) -> 80 | G185: =VLOOKUP($B185,INPUTdata!$A:$L, G$8, FALSE) -> 15.27 | H185: =VLOOKUP($B185,INPUTdata!$A:$L, H$8, FALSE) -> 1.66 | I185: =VLOOKUP($B185,INPUTdata!$A:$L, I$8, FALSE) -> -16.74 | N185: 100 | O185: 70 | P185: 0 | Q185: 80
A186: 176 | B186: 1211 | C186: =VLOOKUP($B186,INPUTdata!$A:$L, C$8, FALSE) -> 100 | D186: =VLOOKUP($B186,INPUTdata!$A:$L, D$8, FALSE) -> 100 | E186: =VLOOKUP($B186,INPUTdata!$A:$L, E$8, FALSE) -> 0 | F186: =VLOOKUP($B186,INPUTdata!$A:$L, F$8, FALSE) -> 80 | G186: =VLOOKUP($B186,INPUTdata!$A:$L, G$8, FALSE) -> 12.86 | H186: =VLOOKUP($B186,INPUTdata!$A:$L, H$8, FALSE) -> 8.39 | I186: =VLOOKUP($B186,INPUTdata!$A:$L, I$8, FALSE) -> -14.5 | N186: 100 | O186: 100 | P186: 0 | Q186: 80
A187: 177 | B187: 1215 | C187: =VLOOKUP($B187,INPUTdata!$A:$L, C$8, FALSE) -> 0 | D187: =VLOOKUP($B187,INPUTdata!$A:$L, D$8, FALSE) -> 100 | E187: =VLOOKUP($B187,INPUTdata!$A:$L, E$8, FALSE) -> 40 | F187: =VLOOKUP($B187,INPUTdata!$A:$L, F$8, FALSE) -> 80 | G187: =VLOOKUP($B187,INPUTdata!$A:$L, G$8, FALSE) -> 19.54 | H187: =VLOOKUP($B187,INPUTdata!$A:$L, H$8, FALSE) -> 25.34 | I187: =VLOOKUP($B187,INPUTdata!$A:$L, I$8, FALSE) -> 6.31 | N187: 0 | O187: 100 | P187: 40 | Q187: 80
A188: 178 | B188: 1224 | C188: =VLOOKUP($B188,INPUTdata!$A:$L, C$8, FALSE) -> 100 | D188: =VLOOKUP($B188,INPUTdata!$A:$L, D$8, FALSE) -> 0 | E188: =VLOOKUP($B188,INPUTdata!$A:$L, E$8, FALSE) -> 40 | F188: =VLOOKUP($B188,INPUTdata!$A:$L, F$8, FALSE) -> 80 | G188: =VLOOKUP($B188,INPUTdata!$A:$L, G$8, FALSE) -> 21.57 | H188: =VLOOKUP($B188,INPUTdata!$A:$L, H$8, FALSE) -> -20.61 | I188: =VLOOKUP($B188,INPUTdata!$A:$L, I$8, FALSE) -> -8.32 | N188: 100 | O188: 0 | P188: 40 | Q188: 80
A189: 179 | B189: 1231 | C189: =VLOOKUP($B189,INPUTdata!$A:$L, C$8, FALSE) -> 0 | D189: =VLOOKUP($B189,INPUTdata!$A:$L, D$8, FALSE) -> 100 | E189: =VLOOKUP($B189,INPUTdata!$A:$L, E$8, FALSE) -> 70 | F189: =VLOOKUP($B189,INPUTdata!$A:$L, F$8, FALSE) -> 80 | G189: =VLOOKUP($B189,INPUTdata!$A:$L, G$8, FALSE) -> 19.83 | H189: =VLOOKUP($B189,INPUTdata!$A:$L, H$8, FALSE) -> 23.89 | I189: =VLOOKUP($B189,INPUTdata!$A:$L, I$8, FALSE) -> 11.63 | N189: 0 | O189: 100 | P189: 70 | Q189: 80
A190: 180 | B190: 1240 | C190: =VLOOKUP($B190,INPUTdata!$A:$L, C$8, FALSE) -> 100 | D190: =VLOOKUP($B190,INPUTdata!$A:$L, D$8, FALSE) -> 0 | E190: =VLOOKUP($B190,INPUTdata!$A:$L, E$8, FALSE) -> 70 | F190: =VLOOKUP($B190,INPUTdata!$A:$L, F$8, FALSE) -> 80 | G190: =VLOOKUP($B190,INPUTdata!$A:$L, G$8, FALSE) -> 21.84 | H190: =VLOOKUP($B190,INPUTdata!$A:$L, H$8, FALSE) -> -24.34 | I190: =VLOOKUP($B190,INPUTdata!$A:$L, I$8, FALSE) -> 1.1 | N190: 100 | O190: 0 | P190: 70 | Q190: 80
A191: 181 | B191: 1244 | C191: =VLOOKUP($B191,INPUTdata!$A:$L, C$8, FALSE) -> 0 | D191: =VLOOKUP($B191,INPUTdata!$A:$L, D$8, FALSE) -> 0 | E191: =VLOOKUP($B191,INPUTdata!$A:$L, E$8, FALSE) -> 100 | F191: =VLOOKUP($B191,INPUTdata!$A:$L, F$8, FALSE) -> 80 | G191: =VLOOKUP($B191,INPUTdata!$A:$L, G$8, FALSE) -> 33.41 | H191: =VLOOKUP($B191,INPUTdata!$A:$L, H$8, FALSE) -> -4.52 | I191: =VLOOKUP($B191,INPUTdata!$A:$L, I$8, FALSE) -> 30.96 | N191: 0 | O191: 0 | P191: 100 | Q191: 80
A192: 182 | B192: 1245 | C192: =VLOOKUP($B192,INPUTdata!$A:$L, C$8, FALSE) -> 0 | D192: =VLOOKUP($B192,INPUTdata!$A:$L, D$8, FALSE) -> 40 | E192: =VLOOKUP($B192,INPUTdata!$A:$L, E$8, FALSE) -> 100 | F192: =VLOOKUP($B192,INPUTdata!$A:$L, F$8, FALSE) -> 80 | G192: =VLOOKUP($B192,INPUTdata!$A:$L, G$8, FALSE) -> 27.79 | H192: =VLOOKUP($B192,INPUTdata!$A:$L, H$8, FALSE) -> 5.3 | I192: =VLOOKUP($B192,INPUTdata!$A:$L, I$8, FALSE) -> 24.68 | N192: 0 | O192: 40 | P192: 100 | Q192: 80
A193: 183 | B193: 1246 | C193: =VLOOKUP($B193,INPUTdata!$A:$L, C$8, FALSE) -> 0 | D193: =VLOOKUP($B193,INPUTdata!$A:$L, D$8, FALSE) -> 70 | E193: =VLOOKUP($B193,INPUTdata!$A:$L, E$8, FALSE) -> 100 | F193: =VLOOKUP($B193,INPUTdata!$A:$L, F$8, FALSE) -> 80 | G193: =VLOOKUP($B193,INPUTdata!$A:$L, G$8, FALSE) -> 23.44 | H193: =VLOOKUP($B193,INPUTdata!$A:$L, H$8, FALSE) -> 14.43 | I193: =VLOOKUP($B193,INPUTdata!$A:$L, I$8, FALSE) -> 19.89 | N193: 0 | O193: 70 | P193: 100 | Q193: 80
A194: 184 | B194: 1247 | C194: =VLOOKUP($B194,INPUTdata!$A:$L, C$8, FALSE) -> 0 | D194: =VLOOKUP($B194,INPUTdata!$A:$L, D$8, FALSE) -> 100 | E194: =VLOOKUP($B194,INPUTdata!$A:$L, E$8, FALSE) -> 100 | F194: =VLOOKUP($B194,INPUTdata!$A:$L, F$8, FALSE) -> 80 | G194: =VLOOKUP($B194,INPUTdata!$A:$L, G$8, FALSE) -> 19.54 | H194: =VLOOKUP($B194,INPUTdata!$A:$L, H$8, FALSE) -> 21.84 | I194: =VLOOKUP($B194,INPUTdata!$A:$L, I$8, FALSE) -> 15.87 | N194: 0 | O194: 100 | P194: 100 | Q194: 80
A195: 185 | B195: 1248 | C195: =VLOOKUP($B195,INPUTdata!$A:$L, C$8, FALSE) -> 40 | D195: =VLOOKUP($B195,INPUTdata!$A:$L, D$8, FALSE) -> 0 | E195: =VLOOKUP($B195,INPUTdata!$A:$L, E$8, FALSE) -> 100 | F195: =VLOOKUP($B195,INPUTdata!$A:$L, F$8, FALSE) -> 80 | G195: =VLOOKUP($B195,INPUTdata!$A:$L, G$8, FALSE) -> 28.73 | H195: =VLOOKUP($B195,INPUTdata!$A:$L, H$8, FALSE) -> -12 | I195: =VLOOKUP($B195,INPUTdata!$A:$L, I$8, FALSE) -> 22.34 | N195: 40 | O195: 0 | P195: 100 | Q195: 80
A196: 186 | B196: 1252 | C196: =VLOOKUP($B196,INPUTdata!$A:$L, C$8, FALSE) -> 70 | D196: =VLOOKUP($B196,INPUTdata!$A:$L, D$8, FALSE) -> 0 | E196: =VLOOKUP($B196,INPUTdata!$A:$L, E$8, FALSE) -> 100 | F196: =VLOOKUP($B196,INPUTdata!$A:$L, F$8, FALSE) -> 80 | G196: =VLOOKUP($B196,INPUTdata!$A:$L, G$8, FALSE) -> 25.08 | H196: =VLOOKUP($B196,INPUTdata!$A:$L, H$8, FALSE) -> -19.51 | I196: =VLOOKUP($B196,INPUTdata!$A:$L, I$8, FALSE) -> 15.39 | N196: 70 | O196: 0 | P196: 100 | Q196: 80
A197: 187 | B197: 1256 | C197: =VLOOKUP($B197,INPUTdata!$A:$L, C$8, FALSE) -> 100 | D197: =VLOOKUP($B197,INPUTdata!$A:$L, D$8, FALSE) -> 0 | E197: =VLOOKUP($B197,INPUTdata!$A:$L, E$8, FALSE) -> 100 | F197: =VLOOKUP($B197,INPUTdata!$A:$L, F$8, FALSE) -> 80 | G197: =VLOOKUP($B197,INPUTdata!$A:$L, G$8, FALSE) -> 21.55 | H197: =VLOOKUP($B197,INPUTdata!$A:$L, H$8, FALSE) -> -25.5 | I197: =VLOOKUP($B197,INPUTdata!$A:$L, I$8, FALSE) -> 9.39 | N197: 100 | O197: 0 | P197: 100 | Q197: 80
A198: 188 | B198: 1262 | C198: =VLOOKUP($B198,INPUTdata!$A:$L, C$8, FALSE) -> 0 | D198: =VLOOKUP($B198,INPUTdata!$A:$L, D$8, FALSE) -> 100 | E198: =VLOOKUP($B198,INPUTdata!$A:$L, E$8, FALSE) -> 0 | F198: =VLOOKUP($B198,INPUTdata!$A:$L, F$8, FALSE) -> 100 | G198: =VLOOKUP($B198,INPUTdata!$A:$L, G$8, FALSE) -> 10.35 | H198: =VLOOKUP($B198,INPUTdata!$A:$L, H$8, FALSE) -> 14.1 | I198: =VLOOKUP($B198,INPUTdata!$A:$L, I$8, FALSE) -> 2.2 | N198: 0 | O198: 100 | P198: 0 | Q198: 100
A199: 189 | B199: 1266 | C199: =VLOOKUP($B199,INPUTdata!$A:$L, C$8, FALSE) -> 100 | D199: =VLOOKUP($B199,INPUTdata!$A:$L, D$8, FALSE) -> 0 | E199: =VLOOKUP($B199,INPUTdata!$A:$L, E$8, FALSE) -> 0 | F199: =VLOOKUP($B199,INPUTdata!$A:$L, F$8, FALSE) -> 100 | G199: =VLOOKUP($B199,INPUTdata!$A:$L, G$8, FALSE) -> 10.64 | H199: =VLOOKUP($B199,INPUTdata!$A:$L, H$8, FALSE) -> -7.57 | I199: =VLOOKUP($B199,INPUTdata!$A:$L, I$8, FALSE) -> -10.68 | N199: 100 | O199: 0 | P199: 0 | Q199: 100
A200: 190 | B200: 1268 | C200: =VLOOKUP($B200,INPUTdata!$A:$L, C$8, FALSE) -> 100 | D200: =VLOOKUP($B200,INPUTdata!$A:$L, D$8, FALSE) -> 100 | E200: =VLOOKUP($B200,INPUTdata!$A:$L, E$8, FALSE) -> 0 | F200: =VLOOKUP($B200,INPUTdata!$A:$L, F$8, FALSE) -> 100 | G200: =VLOOKUP($B200,INPUTdata!$A:$L, G$8, FALSE) -> 7.91 | H200: =VLOOKUP($B200,INPUTdata!$A:$L, H$8, FALSE) -> 6.23 | I200: =VLOOKUP($B200,INPUTdata!$A:$L, I$8, FALSE) -> -4.82 | N200: 100 | O200: 100 | P200: 0 | Q200: 100
A201: 191 | B201: 1278 | C201: =VLOOKUP($B201,INPUTdata!$A:$L, C$8, FALSE) -> 0 | D201: =VLOOKUP($B201,INPUTdata!$A:$L, D$8, FALSE) -> 0 | E201: =VLOOKUP($B201,INPUTdata!$A:$L, E$8, FALSE) -> 100 | F201: =VLOOKUP($B201,INPUTdata!$A:$L, F$8, FALSE) -> 100 | G201: =VLOOKUP($B201,INPUTdata!$A:$L, G$8, FALSE) -> 16.19 | H201: =VLOOKUP($B201,INPUTdata!$A:$L, H$8, FALSE) -> -4.31 | I201: =VLOOKUP($B201,INPUTdata!$A:$L, I$8, FALSE) -> 11.95 | N201: 0 | O201: 0 | P201: 100 | Q201: 100
A202: 192 | B202: 1280 | C202: =VLOOKUP($B202,INPUTdata!$A:$L, C$8, FALSE) -> 0 | D202: =VLOOKUP($B202,INPUTdata!$A:$L, D$8, FALSE) -> 100 | E202: =VLOOKUP($B202,INPUTdata!$A:$L, E$8, FALSE) -> 100 | F202: =VLOOKUP($B202,INPUTdata!$A:$L, F$8, FALSE) -> 100 | G202: =VLOOKUP($B202,INPUTdata!$A:$L, G$8, FALSE) -> 11.1 | H202: =VLOOKUP($B202,INPUTdata!$A:$L, H$8, FALSE) -> 8.2 | I202: =VLOOKUP($B202,INPUTdata!$A:$L, I$8, FALSE) -> 7.28 | N202: 0 | O202: 100 | P202: 100 | Q202: 100
... 1 more rows

Sheet Faces
A1: ISO 18621-11 Gamut Volume Computation Tool: List of Faces
B3: This sheet defines a list of 382 triangular faces that constitute a complete gamut enclosure.
B4: For each face the 3 vertices are indicated by their index as defined on the 'Vertices' sheet.
B5: The CMYK values for each of the vertices is copied from the 'Vertices' sheet
B6: The CMYK tables match those in the spreadsheet at http://www.color.org/resources/gamut/gamut-analysis.xalter
F9: Vertex_p1 | J9: Vertex_p2 | N9: Vertex_p3
A10: Face# | B10: Vertex_p1 | C10: Vertex_p2 | D10: Vertex_p3 | F10: C | G10: M | H10: Y | I10: K | J10: C | K10: M | L10: Y | M10: K | N10: C | O10: M | P10: Y | Q10: K
A11: 1 | B11: 1 | C11: 8 | D11: 7 | F11: =VLOOKUP($B11,Vertices!$A$10:$F$203, 3, FALSE) -> 0 | G11: =VLOOKUP($B11,Vertices!$A$10:$F$203, 4, FALSE) -> 0 | H11: =VLOOKUP($B11,Vertices!$A$10:$F$203, 5, FALSE) -> 0 | I11: =VLOOKUP($B11,Vertices!$A$10:$F$203, 6, FALSE) -> 0 | J11: =VLOOKUP($C11,Vertices!$A$10:$F$203, 3, FALSE) -> 10 | K11: =VLOOKUP($C11,Vertices!$A$10:$F$203, 4, FALSE) -> 10 | L11: =VLOOKUP($C11,Vertices!$A$10:$F$203, 5, FALSE) -> 0 | M11: =VLOOKUP($C11,Vertices!$A$10:$F$203, 6, FALSE) -> 0 | N11: =VLOOKUP($D11,Vertices!$A$10:$F$203, 3, FALSE) -> 10 | O11: =VLOOKUP($D11,Vertices!$A$10:$F$203, 4, FALSE) -> 0 | P11: =VLOOKUP($D11,Vertices!$A$10:$F$203, 5, FALSE) -> 0 | Q11: =VLOOKUP($D11,Vertices!$A$10:$F$203, 6, FALSE) -> 0
A12: 2 | B12: 1 | C12: 2 | D12: 8 | F12: =VLOOKUP($B12,Vertices!$A$10:$F$203, 3, FALSE) -> 0 | G12: =VLOOKUP($B12,Vertices!$A$10:$F$203, 4, FALSE) -> 0 | H12: =VLOOKUP($B12,Vertices!$A$10:$F$203, 5, FALSE) -> 0 | I12: =VLOOKUP($B12,Vertices!$A$10:$F$203, 6, FALSE) -> 0 | J12: =VLOOKUP($C12,Vertices!$A$10:$F$203, 3, FALSE) -> 0 | K12: =VLOOKUP($C12,Vertices!$A$10:$F$203, 4, FALSE) -> 10 | L12: =VLOOKUP($C12,Vertices!$A$10:$F$203, 5, FALSE) -> 0 | M12: =VLOOKUP($C12,Vertices!$A$10:$F$203, 6, FALSE) -> 0 | N12: =VLOOKUP($D12,Vertices!$A$10:$F$203, 3, FALSE) -> 10 | O12: =VLOOKUP($D12,Vertices!$A$10:$F$203, 4, FALSE) -> 10 | P12: =VLOOKUP($D12,Vertices!$A$10:$F$203, 5, FALSE) -> 0 | Q12: =VLOOKUP($D12,Vertices!$A$10:$F$203, 6, FALSE) -> 0
A13: 3 | B13: 7 | C13: 14 | D13: 13 | F13: =VLOOKUP($B13,Vertices!$A$10:$F$203, 3, FALSE) -> 10 | G13: =VLOOKUP($B13,Vertices!$A$10:$F$203, 4, FALSE) -> 0 | H13: =VLOOKUP($B13,Vertices!$A$10:$F$203, 5, FALSE) -> 0 | I13: =VLOOKUP($B13,Vertices!$A$10:$F$203, 6, FALSE) -> 0 | J13: =VLOOKUP($C13,Vertices!$A$10:$F$203, 3, FALSE) -> 20 | K13: =VLOOKUP($C13,Vertices!$A$10:$F$203, 4, FALSE) -> 10 | L13: =VLOOKUP($C13,Vertices!$A$10:$F$203, 5, FALSE) -> 0 | M13: =VLOOKUP($C13,Vertices!$A$10:$F$203, 6, FALSE) -> 0 | N13: =VLOOKUP($D13,Vertices!$A$10:$F$203, 3, FALSE) -> 20 | O13: =VLOOKUP($D13,Vertices!$A$10:$F$203, 4, FALSE) -> 0 | P13: =VLOOKUP($D13,Vertices!$A$10:$F$203, 5, FALSE) -> 0 | Q13: =VLOOKUP($D13,Vertices!$A$10:$F$203, 6, FALSE) -> 0
A14: 4 | B14: 7 | C14: 8 | D14: 14 | F14: =VLOOKUP($B14,Vertices!$A$10:$F$203, 3, FALSE) -> 10 | G14: =VLOOKUP($B14,Vertices!$A$10:$F$203, 4, FALSE) -> 0 | H14: =VLOOKUP($B14,Vertices!$A$10:$F$203, 5, FALSE) -> 0 | I14: =VLOOKUP($B14,Vertices!$A$10:$F$203, 6, FALSE) -> 0 | J14: =VLOOKUP($C14,Vertices!$A$10:$F$203, 3, FALSE) -> 10 | K14: =VLOOKUP($C14,Vertices!$A$10:$F$203, 4, FALSE) -> 10 | L14: =VLOOKUP($C14,Vertices!$A$10:$F$203, 5, FALSE) -> 0 | M14: =VLOOKUP($C14,Vertices!$A$10:$F$203, 6, FALSE) -> 0 | N14: =VLOOKUP($D14,Vertices!$A$10:$F$203, 3, FALSE) -> 20 | O14: =VLOOKUP($D14,Vertices!$A$10:$F$203, 4, FALSE) -> 10 | P14: =VLOOKUP($D14,Vertices!$A$10:$F$203, 5, FALSE) -> 0 | Q14: =VLOOKUP($D14,Vertices!$A$10:$F$203, 6, FALSE) -> 0
A15: 5 | B15: 8 | C15: 15 | D15: 14 | F15: =VLOOKUP($B15,Vertices!$A$10:$F$203, 3, FALSE) -> 10 | G15: =VLOOKUP($B15,Vertices!$A$10:$F$203, 4, FALSE) -> 10 | H15: =VLOOKUP($B15,Vertices!$A$10:$F$203, 5, FALSE) -> 0 | I15: =VLOOKUP($B15,Vertices!$A$10:$F$203, 6, FALSE) -> 0 | J15: =VLOOKUP($C15,Vertices!$A$10:$F$203, 3, FALSE) -> 20 | K15: =VLOOKUP($C15,Vertices!$A$10:$F$203, 4, FALSE) -> 20 | L15: =VLOOKUP($C15,Vertices!$A$10:$F$203, 5, FALSE) -> 0 | M15: =VLOOKUP($C15,Vertices!$A$10:$F$203, 6, FALSE) -> 0 | N15: =VLOOKUP($D15,Vertices!$A$10:$F$203, 3, FALSE) -> 20 | O15: =VLOOKUP($D15,Vertices!$A$10:$F$203, 4, FALSE) -> 10 | P15: =VLOOKUP($D15,Vertices!$A$10:$F$203, 5, FALSE) -> 0 | Q15: =VLOOKUP($D15,Vertices!$A$10:$F$203, 6, FALSE) -> 0
A16: 6 | B16: 8 | C16: 9 | D16: 15 | F16: =VLOOKUP($B16,Vertices!$A$10:$F$203, 3, FALSE) -> 10 | G16: =VLOOKUP($B16,Vertices!$A$10:$F$203, 4, FALSE) -> 10 | H16: =VLOOKUP($B16,Vertices!$A$10:$F$203, 5, FALSE) -> 0 | I16: =VLOOKUP($B16,Vertices!$A$10:$F$203, 6, FALSE) -> 0 | J16: =VLOOKUP($C16,Vertices!$A$10:$F$203, 3, FALSE) -> 10 | K16: =VLOOKUP($C16,Vertices!$A$10:$F$203, 4, FALSE) -> 20 | L16: =VLOOKUP($C16,Vertices!$A$10:$F$203, 5, FALSE) -> 0 | M16: =VLOOKUP($C16,Vertices!$A$10:$F$203, 6, FALSE) -> 0 | N16: =VLOOKUP($D16,Vertices!$A$10:$F$203, 3, FALSE) -> 20 | O16: =VLOOKUP($D16,Vertices!$A$10:$F$203, 4, FALSE) -> 20 | P16: =VLOOKUP($D16,Vertices!$A$10:$F$203, 5, FALSE) -> 0 | Q16: =VLOOKUP($D16,Vertices!$A$10:$F$203, 6, FALSE) -> 0
A17: 7 | B17: 2 | C17: 9 | D17: 8 | F17: =VLOOKUP($B17,Vertices!$A$10:$F$203, 3, FALSE) -> 0 | G17: =VLOOKUP($B17,Vertices!$A$10:$F$203, 4, FALSE) -> 10 | H17: =VLOOKUP($B17,Vertices!$A$10:$F$203, 5, FALSE) -> 0 | I17: =VLOOKUP($B17,Vertices!$A$10:$F$203, 6, FALSE) -> 0 | J17: =VLOOKUP($C17,Vertices!$A$10:$F$203, 3, FALSE) -> 10 | K17: =VLOOKUP($C17,Vertices!$A$10:$F$203, 4, FALSE) -> 20 | L17: =VLOOKUP($C17,Vertices!$A$10:$F$203, 5, FALSE) -> 0 | M17: =VLOOKUP($C17,Vertices!$A$10:$F$203, 6, FALSE) -> 0 | N17: =VLOOKUP($D17,Vertices!$A$10:$F$203, 3, FALSE) -> 10 | O17: =VLOOKUP($D17,Vertices!$A$10:$F$203, 4, FALSE) -> 10 | P17: =VLOOKUP($D17,Vertices!$A$10:$F$203, 5, FALSE) -> 0 | Q17: =VLOOKUP($D17,Vertices!$A$10:$F$203, 6, FALSE) -> 0
A18: 8 | B18: 2 | C18: 3 | D18: 9 | F18: =VLOOKUP($B18,Vertices!$A$10:$F$203, 3, FALSE) -> 0 | G18: =VLOOKUP($B18,Vertices!$A$10:$F$203, 4, FALSE) -> 10 | H18: =VLOOKUP($B18,Vertices!$A$10:$F$203, 5, FALSE) -> 0 | I18: =VLOOKUP($B18,Vertices!$A$10:$F$203, 6, FALSE) -> 0 | J18: =VLOOKUP($C18,Vertices!$A$10:$F$203, 3, FALSE) -> 0 | K18: =VLOOKUP($C18,Vertices!$A$10:$F$203, 4, FALSE) -> 20 | L18: =VLOOKUP($C18,Vertices!$A$10:$F$203, 5, FALSE) -> 0 | M18: =VLOOKUP($C18,Vertices!$A$10:$F$203, 6, FALSE) -> 0 | N18: =VLOOKUP($D18,Vertices!$A$10:$F$203, 3, FALSE) -> 10 | O18: =VLOOKUP($D18,Vertices!$A$10:$F$203, 4, FALSE) -> 20 | P18: =VLOOKUP($D18,Vertices!$A$10:$F$203, 5, FALSE) -> 0 | Q18: =VLOOKUP($D18,Vertices!$A$10:$F$203, 6, FALSE) -> 0
A19: 9 | B19: 13 | C19: 20 | D19: 19 | F19: =VLOOKUP($B19,Vertices!$A$10:$F$203, 3, FALSE) -> 20 | G19: =VLOOKUP($B19,Vertices!$A$10:$F$203, 4, FALSE) -> 0 | H19: =VLOOKUP($B19,Vertices!$A$10:$F$203, 5, FALSE) -> 0 | I19: =VLOOKUP($B19,Vertices!$A$10:$F$203, 6, FALSE) -> 0 | J19: =VLOOKUP($C19,Vertices!$A$10:$F$203, 3, FALSE) -> 40 | K19: =VLOOKUP($C19,Vertices!$A$10:$F$203, 4, FALSE) -> 10 | L19: =VLOOKUP($C19,Vertices!$A$10:$F$203, 5, FALSE) -> 0 | M19: =VLOOKUP($C19,Vertices!$A$10:$F$203, 6, FALSE) -> 0 | N19: =VLOOKUP($D19,Vertices!$A$10:$F$203, 3, FALSE) -> 40 | O19: =VLOOKUP($D19,Vertices!$A$10:$F$203, 4, FALSE) -> 0 | P19: =VLOOKUP($D19,Vertices!$A$10:$F$203, 5, FALSE) -> 0 | Q19: =VLOOKUP($D19,Vertices!$A$10:$F$203, 6, FALSE) -> 0
A20: 10 | B20: 13 | C20: 14 | D20: 20 | F20: =VLOOKUP($B20,Vertices!$A$10:$F$203, 3, FALSE) -> 20 | G20: =VLOOKUP($B20,Vertices!$A$10:$F$203, 4, FALSE) -> 0 | H20: =VLOOKUP($B20,Vertices!$A$10:$F$203, 5, FALSE) -> 0 | I20: =VLOOKUP($B20,Vertices!$A$10:$F$203, 6, FALSE) -> 0 | J20: =VLOOKUP($C20,Vertices!$A$10:$F$203, 3, FALSE) -> 20 | K20: =VLOOKUP($C20,Vertices!$A$10:$F$203, 4, FALSE) -> 10 | L20: =VLOOKUP($C20,Vertices!$A$10:$F$203, 5, FALSE) -> 0 | M20: =VLOOKUP($C20,Vertices!$A$10:$F$203, 6, FALSE) -> 0 | N20: =VLOOKUP($D20,Vertices!$A$10:$F$203, 3, FALSE) -> 40 | O20: =VLOOKUP($D20,Vertices!$A$10:$F$203, 4, FALSE) -> 10 | P20: =VLOOKUP($D20,Vertices!$A$10:$F$203, 5, FALSE) -> 0 | Q20: =VLOOKUP($D20,Vertices!$A$10:$F$203, 6, FALSE) -> 0
A21: 11 | B21: 14 | C21: 21 | D21: 20 | F21: =VLOOKUP($B21,Vertices!$A$10:$F$203, 3, FALSE) -> 20 | G21: =VLOOKUP($B21,Vertices!$A$10:$F$203, 4, FALSE) -> 10 | H21: =VLOOKUP($B21,Vertices!$A$10:$F$203, 5, FALSE) -> 0 | I21: =VLOOKUP($B21,Vertices!$A$10:$F$203, 6, FALSE) -> 0 | J21: =VLOOKUP($C21,Vertices!$A$10:$F$203, 3, FALSE) -> 40 | K21: =VLOOKUP($C21,Vertices!$A$10:$F$203, 4, FALSE) -> 20 | L21: =VLOOKUP($C21,Vertices!$A$10:$F$203, 5, FALSE) -> 0 | M21: =VLOOKUP($C21,Vertices!$A$10:$F$203, 6, FALSE) -> 0 | N21: =VLOOKUP($D21,Vertices!$A$10:$F$203, 3, FALSE) -> 40 | O21: =VLOOKUP($D21,Vertices!$A$10:$F$203, 4, FALSE) -> 10 | P21: =VLOOKUP($D21,Vertices!$A$10:$F$203, 5, FALSE) -> 0 | Q21: =VLOOKUP($D21,Vertices!$A$10:$F$203, 6, FALSE) -> 0
A22: 12 | B22: 14 | C22: 15 | D22: 21 | F22: =VLOOKUP($B22,Vertices!$A$10:$F$203, 3, FALSE) -> 20 | G22: =VLOOKUP($B22,Vertices!$A$10:$F$203, 4, FALSE) -> 10 | H22: =VLOOKUP($B22,Vertices!$A$10:$F$203, 5, FALSE) -> 0 | I22: =VLOOKUP($B22,Vertices!$A$10:$F$203, 6, FALSE) -> 0 | J22: =VLOOKUP($C22,Vertices!$A$10:$F$203, 3, FALSE) -> 20 | K22: =VLOOKUP($C22,Vertices!$A$10:$F$203, 4, FALSE) -> 20 | L22: =VLOOKUP($C22,Vertices!$A$10:$F$203, 5, FALSE) -> 0 | M22: =VLOOKUP($C22,Vertices!$A$10:$F$203, 6, FALSE) -> 0 | N22: =VLOOKUP($D22,Vertices!$A$10:$F$203, 3, FALSE) -> 40 | O22: =VLOOKUP($D22,Vertices!$A$10:$F$203, 4, FALSE) -> 20 | P22: =VLOOKUP($D22,Vertices!$A$10:$F$203, 5, FALSE) -> 0 | Q22: =VLOOKUP($D22,Vertices!$A$10:$F$203, 6, FALSE) -> 0
A23: 13 | B23: 15 | C23: 22 | D23: 21 | F23: =VLOOKUP($B23,Vertices!$A$10:$F$203, 3, FALSE) -> 20 | G23: =VLOOKUP($B23,Vertices!$A$10:$F$203, 4, FALSE) -> 20 | H23: =VLOOKUP($B23,Vertices!$A$10:$F$203, 5, FALSE) -> 0 | I23: =VLOOKUP($B23,Vertices!$A$10:$F$203, 6, FALSE) -> 0 | J23: =VLOOKUP($C23,Vertices!$A$10:$F$203, 3, FALSE) -> 40 | K23: =VLOOKUP($C23,Vertices!$A$10:$F$203, 4, FALSE) -> 40 | L23: =VLOOKUP($C23,Vertices!$A$10:$F$203, 5, FALSE) -> 0 | M23: =VLOOKUP($C23,Vertices!$A$10:$F$203, 6, FALSE) -> 0 | N23: =VLOOKUP($D23,Vertices!$A$10:$F$203, 3, FALSE) -> 40 | O23: =VLOOKUP($D23,Vertices!$A$10:$F$203, 4, FALSE) -> 20 | P23: =VLOOKUP($D23,Vertices!$A$10:$F$203, 5, FALSE) -> 0 | Q23: =VLOOKUP($D23,Vertices!$A$10:$F$203, 6, FALSE) -> 0
A24: 14 | B24: 15 | C24: 16 | D24: 22 | F24: =VLOOKUP($B24,Vertices!$A$10:$F$203, 3, FALSE) -> 20 | G24: =VLOOKUP($B24,Vertices!$A$10:$F$203, 4, FALSE) -> 20 | H24: =VLOOKUP($B24,Vertices!$A$10:$F$203, 5, FALSE) -> 0 | I24: =VLOOKUP($B24,Vertices!$A$10:$F$203, 6, FALSE) -> 0 | J24: =VLOOKUP($C24,Vertices!$A$10:$F$203, 3, FALSE) -> 20 | K24: =VLOOKUP($C24,Vertices!$A$10:$F$203, 4, FALSE) -> 40 | L24: =VLOOKUP($C24,Vertices!$A$10:$F$203, 5, FALSE) -> 0 | M24: =VLOOKUP($C24,Vertices!$A$10:$F$203, 6, FALSE) -> 0 | N24: =VLOOKUP($D24,Vertices!$A$10:$F$203, 3, FALSE) -> 40 | O24: =VLOOKUP($D24,Vertices!$A$10:$F$203, 4, FALSE) -> 40 | P24: =VLOOKUP($D24,Vertices!$A$10:$F$203, 5, FALSE) -> 0 | Q24: =VLOOKUP($D24,Vertices!$A$10:$F$203, 6, FALSE) -> 0
A25: 15 | B25: 9 | C25: 16 | D25: 15 | F25: =VLOOKUP($B25,Vertices!$A$10:$F$203, 3, FALSE) -> 10 | G25: =VLOOKUP($B25,Vertices!$A$10:$F$203, 4, FALSE) -> 20 | H25: =VLOOKUP($B25,Vertices!$A$10:$F$203, 5, FALSE) -> 0 | I25: =VLOOKUP($B25,Vertices!$A$10:$F$203, 6, FALSE) -> 0 | J25: =VLOOKUP($C25,Vertices!$A$10:$F$203, 3, FALSE) -> 20 | K25: =VLOOKUP($C25,Vertices!$A$10:$F$203, 4, FALSE) -> 40 | L25: =VLOOKUP($C25,Vertices!$A$10:$F$203, 5, FALSE) -> 0 | M25: =VLOOKUP($C25,Vertices!$A$10:$F$203, 6, FALSE) -> 0 | N25: =VLOOKUP($D25,Vertices!$A$10:$F$203, 3, FALSE) -> 20 | O25: =VLOOKUP($D25,Vertices!$A$10:$F$203, 4, FALSE) -> 20 | P25: =VLOOKUP($D25,Vertices!$A$10:$F$203, 5, FALSE) -> 0 | Q25: =VLOOKUP($D25,Vertices!$A$10:$F$203, 6, FALSE) -> 0
A26: 16 | B26: 9 | C26: 10 | D26: 16 | F26: =VLOOKUP($B26,Vertices!$A$10:$F$203, 3, FALSE) -> 10 | G26: =VLOOKUP($B26,Vertices!$A$10:$F$203, 4, FALSE) -> 20 | H26: =VLOOKUP($B26,Vertices!$A$10:$F$203, 5, FALSE) -> 0 | I26: =VLOOKUP($B26,Vertices!$A$10:$F$203, 6, FALSE) -> 0 | J26: =VLOOKUP($C26,Vertices!$A$10:$F$203, 3, FALSE) -> 10 | K26: =VLOOKUP($C26,Vertices!$A$10:$F$203, 4, FALSE) -> 40 | L26: =VLOOKUP($C26,Vertices!$A$10:$F$203, 5, FALSE) -> 0 | M26: =VLOOKUP($C26,Vertices!$A$10:$F$203, 6, FALSE) -> 0 | N26: =VLOOKUP($D26,Vertices!$A$10:$F$203, 3, FALSE) -> 20 | O26: =VLOOKUP($D26,Vertices!$A$10:$F$203, 4, FALSE) -> 40 | P26: =VLOOKUP($D26,Vertices!$A$10:$F$203, 5, FALSE) -> 0 | Q26: =VLOOKUP($D26,Vertices!$A$10:$F$203, 6, FALSE) -> 0
A27: 17 | B27: 3 | C27: 10 | D27: 9 | F27: =VLOOKUP($B27,Vertices!$A$10:$F$203, 3, FALSE) -> 0 | G27: =VLOOKUP($B27,Vertices!$A$10:$F$203, 4, FALSE) -> 20 | H27: =VLOOKUP($B27,Vertices!$A$10:$F$203, 5, FALSE) -> 0 | I27: =VLOOKUP($B27,Vertices!$A$10:$F$203, 6, FALSE) -> 0 | J27: =VLOOKUP($C27,Vertices!$A$10:$F$203, 3, FALSE) -> 10 | K27: =VLOOKUP($C27,Vertices!$A$10:$F$203, 4, FALSE) -> 40 | L27: =VLOOKUP($C27,Vertices!$A$10:$F$203, 5, FALSE) -> 0 | M27: =VLOOKUP($C27,Vertices!$A$10:$F$203, 6, FALSE) -> 0 | N27: =VLOOKUP($D27,Vertices!$A$10:$F$203, 3, FALSE) -> 10 | O27: =VLOOKUP($D27,Vertices!$A$10:$F$203, 4, FALSE) -> 20 | P27: =VLOOKUP($D27,Vertices!$A$10:$F$203, 5, FALSE) -> 0 | Q27: =VLOOKUP($D27,Vertices!$A$10:$F$203, 6, FALSE) -> 0
A28: 18 | B28: 3 | C28: 4 | D28: 10 | F28: =VLOOKUP($B28,Vertices!$A$10:$F$203, 3, FALSE) -> 0 | G28: =VLOOKUP($B28,Vertices!$A$10:$F$203, 4, FALSE) -> 20 | H28: =VLOOKUP($B28,Vertices!$A$10:$F$203, 5, FALSE) -> 0 | I28: =VLOOKUP($B28,Vertices!$A$10:$F$203, 6, FALSE) -> 0 | J28: =VLOOKUP($C28,Vertices!$A$10:$F$203, 3, FALSE) -> 0 | K28: =VLOOKUP($C28,Vertices!$A$10:$F$203, 4, FALSE) -> 40 | L28: =VLOOKUP($C28,Vertices!$A$10:$F$203, 5, FALSE) -> 0 | M28: =VLOOKUP($C28,Vertices!$A$10:$F$203, 6, FALSE) -> 0 | N28: =VLOOKUP($D28,Vertices!$A$10:$F$203, 3, FALSE) -> 10 | O28: =VLOOKUP($D28,Vertices!$A$10:$F$203, 4, FALSE) -> 40 | P28: =VLOOKUP($D28,Vertices!$A$10:$F$203, 5, FALSE) -> 0 | Q28: =VLOOKUP($D28,Vertices!$A$10:$F$203, 6, FALSE) -> 0
A29: 19 | B29: 19 | C29: 26 | D29: 25 | F29: =VLOOKUP($B29,Vertices!$A$10:$F$203, 3, FALSE) -> 40 | G29: =VLOOKUP($B29,Vertices!$A$10:$F$203, 4, FALSE) -> 0 | H29: =VLOOKUP($B29,Vertices!$A$10:$F$203, 5, FALSE) -> 0 | I29: =VLOOKUP($B29,Vertices!$A$10:$F$203, 6, FALSE) -> 0 | J29: =VLOOKUP($C29,Vertices!$A$10:$F$203, 3, FALSE) -> 70 | K29: =VLOOKUP($C29,Vertices!$A$10:$F$203, 4, FALSE) -> 10 | L29: =VLOOKUP($C29,Vertices!$A$10:$F$203, 5, FALSE) -> 0 | M29: =VLOOKUP($C29,Vertices!$A$10:$F$203, 6, FALSE) -> 0 | N29: =VLOOKUP($D29,Vertices!$A$10:$F$203, 3, FALSE) -> 70 | O29: =VLOOKUP($D29,Vertices!$A$10:$F$203, 4, FALSE) -> 0 | P29: =VLOOKUP($D29,Vertices!$A$10:$F$203, 5, FALSE) -> 0 | Q29: =VLOOKUP($D29,Vertices!$A$10:$F$203, 6, FALSE) -> 0
A30: 20 | B30: 19 | C30: 20 | D30: 26 | F30: =VLOOKUP($B30,Vertices!$A$10:$F$203, 3, FALSE) -> 40 | G30: =VLOOKUP($B30,Vertices!$A$10:$F$203, 4, FALSE) -> 0 | H30: =VLOOKUP($B30,Vertices!$A$10:$F$203, 5, FALSE) -> 0 | I30: =VLOOKUP($B30,Vertices!$A$10:$F$203, 6, FALSE) -> 0 | J30: =VLOOKUP($C30,Vertices!$A$10:$F$203, 3, FALSE) -> 40 | K30: =VLOOKUP($C30,Vertices!$A$10:$F$203, 4, FALSE) -> 10 | L30: =VLOOKUP($C30,Vertices!$A$10:$F$203, 5, FALSE) -> 0 | M30: =VLOOKUP($C30,Vertices!$A$10:$F$203, 6, FALSE) -> 0 | N30: =VLOOKUP($D30,Vertices!$A$10:$F$203, 3, FALSE) -> 70 | O30: =VLOOKUP($D30,Vertices!$A$10:$F$203, 4, FALSE) -> 10 | P30: =VLOOKUP($D30,Vertices!$A$10:$F$203, 5, FALSE) -> 0 | Q30: =VLOOKUP($D30,Vertices!$A$10:$F$203, 6, FALSE) -> 0
A31: 21 | B31: 20 | C31: 27 | D31: 26 | F31: =VLOOKUP($B31,Vertices!$A$10:$F$203, 3, FALSE) -> 40 | G31: =VLOOKUP($B31,Vertices!$A$10:$F$203, 4, FALSE) -> 10 | H31: =VLOOKUP($B31,Vertices!$A$10:$F$203, 5, FALSE) -> 0 | I31: =VLOOKUP($B31,Vertices!$A$10:$F$203, 6, FALSE) -> 0 | J31: =VLOOKUP($C31,Vertices!$A$10:$F$203, 3, FALSE) -> 70 | K31: =VLOOKUP($C31,Vertices!$A$10:$F$203, 4, FALSE) -> 20 | L31: =VLOOKUP($C31,Vertices!$A$10:$F$203, 5, FALSE) -> 0 | M31: =VLOOKUP($C31,Vertices!$A$10:$F$203, 6, FALSE) -> 0 | N31: =VLOOKUP($D31,Vertices!$A$10:$F$203, 3, FALSE) -> 70 | O31: =VLOOKUP($D31,Vertices!$A$10:$F$203, 4, FALSE) -> 10 | P31: =VLOOKUP($D31,Vertices!$A$10:$F$203, 5, FALSE) -> 0 | Q31: =VLOOKUP($D31,Vertices!$A$10:$F$203, 6, FALSE) -> 0
A32: 22 | B32: 20 | C32: 21 | D32: 27 | F32: =VLOOKUP($B32,Vertices!$A$10:$F$203, 3, FALSE) -> 40 | G32: =VLOOKUP($B32,Vertices!$A$10:$F$203, 4, FALSE) -> 10 | H32: =VLOOKUP($B32,Vertices!$A$10:$F$203, 5, FALSE) -> 0 | I32: =VLOOKUP($B32,Vertices!$A$10:$F$203, 6, FALSE) -> 0 | J32: =VLOOKUP($C32,Vertices!$A$10:$F$203, 3, FALSE) -> 40 | K32: =VLOOKUP($C32,Vertices!$A$10:$F$203, 4, FALSE) -> 20 | L32: =VLOOKUP($C32,Vertices!$A$10:$F$203, 5, FALSE) -> 0 | M32: =VLOOKUP($C32,Vertices!$A$10:$F$203, 6, FALSE) -> 0 | N32: =VLOOKUP($D32,Vertices!$A$10:$F$203, 3, FALSE) -> 70 | O32: =VLOOKUP($D32,Vertices!$A$10:$F$203, 4, FALSE) -> 20 | P32: =VLOOKUP($D32,Vertices!$A$10:$F$203, 5, FALSE) -> 0 | Q32: =VLOOKUP($D32,Vertices!$A$10:$F$203, 6, FALSE) -> 0
A33: 23 | B33: 21 | C33: 28 | D33: 27 | F33: =VLOOKUP($B33,Vertices!$A$10:$F$203, 3, FALSE) -> 40 | G33: =VLOOKUP($B33,Vertices!$A$10:$F$203, 4, FALSE) -> 20 | H33: =VLOOKUP($B33,Vertices!$A$10:$F$203, 5, FALSE) -> 0 | I33: =VLOOKUP($B33,Vertices!$A$10:$F$203, 6, FALSE) -> 0 | J33: =VLOOKUP($C33,Vertices!$A$10:$F$203, 3, FALSE) -> 70 | K33: =VLOOKUP($C33,Vertices!$A$10:$F$203, 4, FALSE) -> 40 | L33: =VLOOKUP($C33,Vertices!$A$10:$F$203, 5, FALSE) -> 0 | M33: =VLOOKUP($C33,Vertices!$A$10:$F$203, 6, FALSE) -> 0 | N33: =VLOOKUP($D33,Vertices!$A$10:$F$203, 3, FALSE) -> 70 | O33: =VLOOKUP($D33,Vertices!$A$10:$F$203, 4, FALSE) -> 20 | P33: =VLOOKUP($D33,Vertices!$A$10:$F$203, 5, FALSE) -> 0 | Q33: =VLOOKUP($D33,Vertices!$A$10:$F$203, 6, FALSE) -> 0
A34: 24 | B34: 21 | C34: 22 | D34: 28 | F34: =VLOOKUP($B34,Vertices!$A$10:$F$203, 3, FALSE) -> 40 | G34: =VLOOKUP($B34,Vertices!$A$10:$F$203, 4, FALSE) -> 20 | H34: =VLOOKUP($B34,Vertices!$A$10:$F$203, 5, FALSE) -> 0 | I34: =VLOOKUP($B34,Vertices!$A$10:$F$203, 6, FALSE) -> 0 | J34: =VLOOKUP($C34,Vertices!$A$10:$F$203, 3, FALSE) -> 40 | K34: =VLOOKUP($C34,Vertices!$A$10:$F$203, 4, FALSE) -> 40 | L34: =VLOOKUP($C34,Vertices!$A$10:$F$203, 5, FALSE) -> 0 | M34: =VLOOKUP($C34,Vertices!$A$10:$F$203, 6, FALSE) -> 0 | N34: =VLOOKUP($D34,Vertices!$A$10:$F$203, 3, FALSE) -> 70 | O34: =VLOOKUP($D34,Vertices!$A$10:$F$203, 4, FALSE) -> 40 | P34: =VLOOKUP($D34,Vertices!$A$10:$F$203, 5, FALSE) -> 0 | Q34: =VLOOKUP($D34,Vertices!$A$10:$F$203, 6, FALSE) -> 0
A35: 25 | B35: 22 | C35: 29 | D35: 28 | F35: =VLOOKUP($B35,Vertices!$A$10:$F$203, 3, FALSE) -> 40 | G35: =VLOOKUP($B35,Vertices!$A$10:$F$203, 4, FALSE) -> 40 | H35: =VLOOKUP($B35,Vertices!$A$10:$F$203, 5, FALSE) -> 0 | I35: =VLOOKUP($B35,Vertices!$A$10:$F$203, 6, FALSE) -> 0 | J35: =VLOOKUP($C35,Vertices!$A$10:$F$203, 3, FALSE) -> 70 | K35: =VLOOKUP($C35,Vertices!$A$10:$F$203, 4, FALSE) -> 70 | L35: =VLOOKUP($C35,Vertices!$A$10:$F$203, 5, FALSE) -> 0 | M35: =VLOOKUP($C35,Vertices!$A$10:$F$203, 6, FALSE) -> 0 | N35: =VLOOKUP($D35,Vertices!$A$10:$F$203, 3, FALSE) -> 70 | O35: =VLOOKUP($D35,Vertices!$A$10:$F$203, 4, FALSE) -> 40 | P35: =VLOOKUP($D35,Vertices!$A$10:$F$203, 5, FALSE) -> 0 | Q35: =VLOOKUP($D35,Vertices!$A$10:$F$203, 6, FALSE) -> 0
A36: 26 | B36: 22 | C36: 23 | D36: 29 | F36: =VLOOKUP($B36,Vertices!$A$10:$F$203, 3, FALSE) -> 40 | G36: =VLOOKUP($B36,Vertices!$A$10:$F$203, 4, FALSE) -> 40 | H36: =VLOOKUP($B36,Vertices!$A$10:$F$203, 5, FALSE) -> 0 | I36: =VLOOKUP($B36,Vertices!$A$10:$F$203, 6, FALSE) -> 0 | J36: =VLOOKUP($C36,Vertices!$A$10:$F$203, 3, FALSE) -> 40 | K36: =VLOOKUP($C36,Vertices!$A$10:$F$203, 4, FALSE) -> 70 | L36: =VLOOKUP($C36,Vertices!$A$10:$F$203, 5, FALSE) -> 0 | M36: =VLOOKUP($C36,Vertices!$A$10:$F$203, 6, FALSE) -> 0 | N36: =VLOOKUP($D36,Vertices!$A$10:$F$203, 3, FALSE) -> 70 | O36: =VLOOKUP($D36,Vertices!$A$10:$F$203, 4, FALSE) -> 70 | P36: =VLOOKUP($D36,Vertices!$A$10:$F$203, 5, FALSE) -> 0 | Q36: =VLOOKUP($D36,Vertices!$A$10:$F$203, 6, FALSE) -> 0
A37: 27 | B37: 16 | C37: 23 | D37: 22 | F37: =VLOOKUP($B37,Vertices!$A$10:$F$203, 3, FALSE) -> 20 | G37: =VLOOKUP($B37,Vertices!$A$10:$F$203, 4, FALSE) -> 40 | H37: =VLOOKUP($B37,Vertices!$A$10:$F$203, 5, FALSE) -> 0 | I37: =VLOOKUP($B37,Vertices!$A$10:$F$203, 6, FALSE) -> 0 | J37: =VLOOKUP($C37,Vertices!$A$10:$F$203, 3, FALSE) -> 40 | K37: =VLOOKUP($C37,Vertices!$A$10:$F$203, 4, FALSE) -> 70 | L37: =VLOOKUP($C37,Vertices!$A$10:$F$203, 5, FALSE) -> 0 | M37: =VLOOKUP($C37,Vertices!$A$10:$F$203, 6, FALSE) -> 0 | N37: =VLOOKUP($D37,Vertices!$A$10:$F$203, 3, FALSE) -> 40 | O37: =VLOOKUP($D37,Vertices!$A$10:$F$203, 4, FALSE) -> 40 | P37: =VLOOKUP($D37,Vertices!$A$10:$F$203, 5, FALSE) -> 0 | Q37: =VLOOKUP($D37,Vertices!$A$10:$F$203, 6, FALSE) -> 0
A38: 28 | B38: 16 | C38: 17 | D38: 23 | F38: =VLOOKUP($B38,Vertices!$A$10:$F$203, 3, FALSE) -> 20 | G38: =VLOOKUP($B38,Vertices!$A$10:$F$203, 4, FALSE) -> 40 | H38: =VLOOKUP($B38,Vertices!$A$10:$F$203, 5, FALSE) -> 0 | I38: =VLOOKUP($B38,Vertices!$A$10:$F$203, 6, FALSE) -> 0 | J38: =VLOOKUP($C38,Vertices!$A$10:$F$203, 3, FALSE) -> 20 | K38: =VLOOKUP($C38,Vertices!$A$10:$F$203, 4, FALSE) -> 70 | L38: =VLOOKUP($C38,Vertices!$A$10:$F$203, 5, FALSE) -> 0 | M38: =VLOOKUP($C38,Vertices!$A$10:$F$203, 6, FALSE) -> 0 | N38: =VLOOKUP($D38,Vertices!$A$10:$F$203, 3, FALSE) -> 40 | O38: =VLOOKUP($D38,Vertices!$A$10:$F$203, 4, FALSE) -> 70 | P38: =VLOOKUP($D38,Vertices!$A$10:$F$203, 5, FALSE) -> 0 | Q38: =VLOOKUP($D38,Vertices!$A$10:$F$203, 6, FALSE) -> 0
A39: 29 | B39: 10 | C39: 17 | D39: 16 | F39: =VLOOKUP($B39,Vertices!$A$10:$F$203, 3, FALSE) -> 10 | G39: =VLOOKUP($B39,Vertices!$A$10:$F$203, 4, FALSE) -> 40 | H39: =VLOOKUP($B39,Vertices!$A$10:$F$203, 5, FALSE) -> 0 | I39: =VLOOKUP($B39,Vertices!$A$10:$F$203, 6, FALSE) -> 0 | J39: =VLOOKUP($C39,Vertices!$A$10:$F$203, 3, FALSE) -> 20 | K39: =VLOOKUP($C39,Vertices!$A$10:$F$203, 4, FALSE) -> 70 | L39: =VLOOKUP($C39,Vertices!$A$10:$F$203, 5, FALSE) -> 0 | M39: =VLOOKUP($C39,Vertices!$A$10:$F$203, 6, FALSE) -> 0 | N39: =VLOOKUP($D39,Vertices!$A$10:$F$203, 3, FALSE) -> 20 | O39: =VLOOKUP($D39,Vertices!$A$10:$F$203, 4, FALSE) -> 40 | P39: =VLOOKUP($D39,Vertices!$A$10:$F$203, 5, FALSE) -> 0 | Q39: =VLOOKUP($D39,Vertices!$A$10:$F$203, 6, FALSE) -> 0
A40: 30 | B40: 10 | C40: 11 | D40: 17 | F40: =VLOOKUP($B40,Vertices!$A$10:$F$203, 3, FALSE) -> 10 | G40: =VLOOKUP($B40,Vertices!$A$10:$F$203, 4, FALSE) -> 40 | H40: =VLOOKUP($B40,Vertices!$A$10:$F$203, 5, FALSE) -> 0 | I40: =VLOOKUP($B40,Vertices!$A$10:$F$203, 6, FALSE) -> 0 | J40: =VLOOKUP($C40,Vertices!$A$10:$F$203, 3, FALSE) -> 10 | K40: =VLOOKUP($C40,Vertices!$A$10:$F$203, 4, FALSE) -> 70 | L40: =VLOOKUP($C40,Vertices!$A$10:$F$203, 5, FALSE) -> 0 | M40: =VLOOKUP($C40,Vertices!$A$10:$F$203, 6, FALSE) -> 0 | N40: =VLOOKUP($D40,Vertices!$A$10:$F$203, 3, FALSE) -> 20 | O40: =VLOOKUP($D40,Vertices!$A$10:$F$203, 4, FALSE) -> 70 | P40: =VLOOKUP($D40,Vertices!$A$10:$F$203, 5, FALSE) -> 0 | Q40: =VLOOKUP($D40,Vertices!$A$10:$F$203, 6, FALSE) -> 0
A41: 31 | B41: 4 | C41: 11 | D41: 10 | F41: =VLOOKUP($B41,Vertices!$A$10:$F$203, 3, FALSE) -> 0 | G41: =VLOOKUP($B41,Vertices!$A$10:$F$203, 4, FALSE) -> 40 | H41: =VLOOKUP($B41,Vertices!$A$10:$F$203, 5, FALSE) -> 0 | I41: =VLOOKUP($B41,Vertices!$A$10:$F$203, 6, FALSE) -> 0 | J41: =VLOOKUP($C41,Vertices!$A$10:$F$203, 3, FALSE) -> 10 | K41: =VLOOKUP($C41,Vertices!$A$10:$F$203, 4, FALSE) -> 70 | L41: =VLOOKUP($C41,Vertices!$A$10:$F$203, 5, FALSE) -> 0 | M41: =VLOOKUP($C41,Vertices!$A$10:$F$203, 6, FALSE) -> 0 | N41: =VLOOKUP($D41,Vertices!$A$10:$F$203, 3, FALSE) -> 10 | O41: =VLOOKUP($D41,Vertices!$A$10:$F$203, 4, FALSE) -> 40 | P41: =VLOOKUP($D41,Vertices!$A$10:$F$203, 5, FALSE) -> 0 | Q41: =VLOOKUP($D41,Vertices!$A$10:$F$203, 6, FALSE) -> 0
A42: 32 | B42: 4 | C42: 5 | D42: 11 | F42: =VLOOKUP($B42,Vertices!$A$10:$F$203, 3, FALSE) -> 0 | G42: =VLOOKUP($B42,Vertices!$A$10:$F$203, 4, FALSE) -> 40 | H42: =VLOOKUP($B42,Vertices!$A$10:$F$203, 5, FALSE) -> 0 | I42: =VLOOKUP($B42,Vertices!$A$10:$F$203, 6, FALSE) -> 0 | J42: =VLOOKUP($C42,Vertices!$A$10:$F$203, 3, FALSE) -> 0 | K42: =VLOOKUP($C42,Vertices!$A$10:$F$203, 4, FALSE) -> 70 | L42: =VLOOKUP($C42,Vertices!$A$10:$F$203, 5, FALSE) -> 0 | M42: =VLOOKUP($C42,Vertices!$A$10:$F$203, 6, FALSE) -> 0 | N42: =VLOOKUP($D42,Vertices!$A$10:$F$203, 3, FALSE) -> 10 | O42: =VLOOKUP($D42,Vertices!$A$10:$F$203, 4, FALSE) -> 70 | P42: =VLOOKUP($D42,Vertices!$A$10:$F$203, 5, FALSE) -> 0 | Q42: =VLOOKUP($D42,Vertices!$A$10:$F$203, 6, FALSE) -> 0
A43: 33 | B43: 25 | C43: 32 | D43: 31 | F43: =VLOOKUP($B43,Vertices!$A$10:$F$203, 3, FALSE) -> 70 | G43: =VLOOKUP($B43,Vertices!$A$10:$F$203, 4, FALSE) -> 0 | H43: =VLOOKUP($B43,Vertices!$A$10:$F$203, 5, FALSE) -> 0 | I43: =VLOOKUP($B43,Vertices!$A$10:$F$203, 6, FALSE) -> 0 | J43: =VLOOKUP($C43,Vertices!$A$10:$F$203, 3, FALSE) -> 100 | K43: =VLOOKUP($C43,Vertices!$A$10:$F$203, 4, FALSE) -> 10 | L43: =VLOOKUP($C43,Vertices!$A$10:$F$203, 5, FALSE) -> 0 | M43: =VLOOKUP($C43,Vertices!$A$10:$F$203, 6, FALSE) -> 0 | N43: =VLOOKUP($D43,Vertices!$A$10:$F$203, 3, FALSE) -> 100 | O43: =VLOOKUP($D43,Vertices!$A$10:$F$203, 4, FALSE) -> 0 | P43: =VLOOKUP($D43,Vertices!$A$10:$F$203, 5, FALSE) -> 0 | Q43: =VLOOKUP($D43,Vertices!$A$10:$F$203, 6, FALSE) -> 0
A44: 34 | B44: 25 | C44: 26 | D44: 32 | F44: =VLOOKUP($B44,Vertices!$A$10:$F$203, 3, FALSE) -> 70 | G44: =VLOOKUP($B44,Vertices!$A$10:$F$203, 4, FALSE) -> 0 | H44: =VLOOKUP($B44,Vertices!$A$10:$F$203, 5, FALSE) -> 0 | I44: =VLOOKUP($B44,Vertices!$A$10:$F$203, 6, FALSE) -> 0 | J44: =VLOOKUP($C44,Vertices!$A$10:$F$203, 3, FALSE) -> 70 | K44: =VLOOKUP($C44,Vertices!$A$10:$F$203, 4, FALSE) -> 10 | L44: =VLOOKUP($C44,Vertices!$A$10:$F$203, 5, FALSE) -> 0 | M44: =VLOOKUP($C44,Vertices!$A$10:$F$203, 6, FALSE) -> 0 | N44: =VLOOKUP($D44,Vertices!$A$10:$F$203, 3, FALSE) -> 100 | O44: =VLOOKUP($D44,Vertices!$A$10:$F$203, 4, FALSE) -> 10 | P44: =VLOOKUP($D44,Vertices!$A$10:$F$203, 5, FALSE) -> 0 | Q44: =VLOOKUP($D44,Vertices!$A$10:$F$203, 6, FALSE) -> 0
A45: 35 | B45: 26 | C45: 33 | D45: 32 | F45: =VLOOKUP($B45,Vertices!$A$10:$F$203, 3, FALSE) -> 70 | G45: =VLOOKUP($B45,Vertices!$A$10:$F$203, 4, FALSE) -> 10 | H45: =VLOOKUP($B45,Vertices!$A$10:$F$203, 5, FALSE) -> 0 | I45: =VLOOKUP($B45,Vertices!$A$10:$F$203, 6, FALSE) -> 0 | J45: =VLOOKUP($C45,Vertices!$A$10:$F$203, 3, FALSE) -> 100 | K45: =VLOOKUP($C45,Vertices!$A$10:$F$203, 4, FALSE) -> 20 | L45: =VLOOKUP($C45,Vertices!$A$10:$F$203, 5, FALSE) -> 0 | M45: =VLOOKUP($C45,Vertices!$A$10:$F$203, 6, FALSE) -> 0 | N45: =VLOOKUP($D45,Vertices!$A$10:$F$203, 3, FALSE) -> 100 | O45: =VLOOKUP($D45,Vertices!$A$10:$F$203, 4, FALSE) -> 10 | P45: =VLOOKUP($D45,Vertices!$A$10:$F$203, 5, FALSE) -> 0 | Q45: =VLOOKUP($D45,Vertices!$A$10:$F$203, 6, FALSE) -> 0
A46: 36 | B46: 26 | C46: 27 | D46: 33 | F46: =VLOOKUP($B46,Vertices!$A$10:$F$203, 3, FALSE) -> 70 | G46: =VLOOKUP($B46,Vertices!$A$10:$F$203, 4, FALSE) -> 10 | H46: =VLOOKUP($B46,Vertices!$A$10:$F$203, 5, FALSE) -> 0 | I46: =VLOOKUP($B46,Vertices!$A$10:$F$203, 6, FALSE) -> 0 | J46: =VLOOKUP($C46,Vertices!$A$10:$F$203, 3, FALSE) -> 70 | K46: =VLOOKUP($C46,Vertices!$A$10:$F$203, 4, FALSE) -> 20 | L46: =VLOOKUP($C46,Vertices!$A$10:$F$203, 5, FALSE) -> 0 | M46: =VLOOKUP($C46,Vertices!$A$10:$F$203, 6, FALSE) -> 0 | N46: =VLOOKUP($D46,Vertices!$A$10:$F$203, 3, FALSE) -> 100 | O46: =VLOOKUP($D46,Vertices!$A$10:$F$203, 4, FALSE) -> 20 | P46: =VLOOKUP($D46,Vertices!$A$10:$F$203, 5, FALSE) -> 0 | Q46: =VLOOKUP($D46,Vertices!$A$10:$F$203, 6, FALSE) -> 0
A47: 37 | B47: 27 | C47: 34 | D47: 33 | F47: =VLOOKUP($B47,Vertices!$A$10:$F$203, 3, FALSE) -> 70 | G47: =VLOOKUP($B47,Vertices!$A$10:$F$203, 4, FALSE) -> 20 | H47: =VLOOKUP($B47,Vertices!$A$10:$F$203, 5, FALSE) -> 0 | I47: =VLOOKUP($B47,Vertices!$A$10:$F$203, 6, FALSE) -> 0 | J47: =VLOOKUP($C47,Vertices!$A$10:$F$203, 3, FALSE) -> 100 | K47: =VLOOKUP($C47,Vertices!$A$10:$F$203, 4, FALSE) -> 40 | L47: =VLOOKUP($C47,Vertices!$A$10:$F$203, 5, FALSE) -> 0 | M47: =VLOOKUP($C47,Vertices!$A$10:$F$203, 6, FALSE) -> 0 | N47: =VLOOKUP($D47,Vertices!$A$10:$F$203, 3, FALSE) -> 100 | O47: =VLOOKUP($D47,Vertices!$A$10:$F$203, 4, FALSE) -> 20 | P47: =VLOOKUP($D47,Vertices!$A$10:$F$203, 5, FALSE) -> 0 | Q47: =VLOOKUP($D47,Vertices!$A$10:$F$203, 6, FALSE) -> 0
A48: 38 | B48: 27 | C48: 28 | D48: 34 | F48: =VLOOKUP($B48,Vertices!$A$10:$F$203, 3, FALSE) -> 70 | G48: =VLOOKUP($B48,Vertices!$A$10:$F$203, 4, FALSE) -> 20 | H48: =VLOOKUP($B48,Vertices!$A$10:$F$203, 5, FALSE) -> 0 | I48: =VLOOKUP($B48,Vertices!$A$10:$F$203, 6, FALSE) -> 0 | J48: =VLOOKUP($C48,Vertices!$A$10:$F$203, 3, FALSE) -> 70 | K48: =VLOOKUP($C48,Vertices!$A$10:$F$203, 4, FALSE) -> 40 | L48: =VLOOKUP($C48,Vertices!$A$10:$F$203, 5, FALSE) -> 0 | M48: =VLOOKUP($C48,Vertices!$A$10:$F$203, 6, FALSE) -> 0 | N48: =VLOOKUP($D48,Vertices!$A$10:$F$203, 3, FALSE) -> 100 | O48: =VLOOKUP($D48,Vertices!$A$10:$F$203, 4, FALSE) -> 40 | P48: =VLOOKUP($D48,Vertices!$A$10:$F$203, 5, FALSE) -> 0 | Q48: =VLOOKUP($D48,Vertices!$A$10:$F$203, 6, FALSE) -> 0
A49: 39 | B49: 28 | C49: 35 | D49: 34 | F49: =VLOOKUP($B49,Vertices!$A$10:$F$203, 3, FALSE) -> 70 | G49: =VLOOKUP($B49,Vertices!$A$10:$F$203, 4, FALSE) -> 40 | H49: =VLOOKUP($B49,Vertices!$A$10:$F$203, 5, FALSE) -> 0 | I49: =VLOOKUP($B49,Vertices!$A$10:$F$203, 6, FALSE) -> 0 | J49: =VLOOKUP($C49,Vertices!$A$10:$F$203, 3, FALSE) -> 100 | K49: =VLOOKUP($C49,Vertices!$A$10:$F$203, 4, FALSE) -> 70 | L49: =VLOOKUP($C49,Vertices!$A$10:$F$203, 5, FALSE) -> 0 | M49: =VLOOKUP($C49,Vertices!$A$10:$F$203, 6, FALSE) -> 0 | N49: =VLOOKUP($D49,Vertices!$A$10:$F$203, 3, FALSE) -> 100 | O49: =VLOOKUP($D49,Vertices!$A$10:$F$203, 4, FALSE) -> 40 | P49: =VLOOKUP($D49,Vertices!$A$10:$F$203, 5, FALSE) -> 0 | Q49: =VLOOKUP($D49,Vertices!$A$10:$F$203, 6, FALSE) -> 0
A50: 40 | B50: 28 | C50: 29 | D50: 35 | F50: =VLOOKUP($B50,Vertices!$A$10:$F$203, 3, FALSE) -> 70 | G50: =VLOOKUP($B50,Vertices!$A$10:$F$203, 4, FALSE) -> 40 | H50: =VLOOKUP($B50,Vertices!$A$10:$F$203, 5, FALSE) -> 0 | I50: =VLOOKUP($B50,Vertices!$A$10:$F$203, 6, FALSE) -> 0 | J50: =VLOOKUP($C50,Vertices!$A$10:$F$203, 3, FALSE) -> 70 | K50: =VLOOKUP($C50,Vertices!$A$10:$F$203, 4, FALSE) -> 70 | L50: =VLOOKUP($C50,Vertices!$A$10:$F$203, 5, FALSE) -> 0 | M50: =VLOOKUP($C50,Vertices!$A$10:$F$203, 6, FALSE) -> 0 | N50: =VLOOKUP($D50,Vertices!$A$10:$F$203, 3, FALSE) -> 100 | O50: =VLOOKUP($D50,Vertices!$A$10:$F$203, 4, FALSE) -> 70 | P50: =VLOOKUP($D50,Vertices!$A$10:$F$203, 5, FALSE) -> 0 | Q50: =VLOOKUP($D50,Vertices!$A$10:$F$203, 6, FALSE) -> 0
A51: 41 | B51: 29 | C51: 36 | D51: 35 | F51: =VLOOKUP($B51,Vertices!$A$10:$F$203, 3, FALSE) -> 70 | G51: =VLOOKUP($B51,Vertices!$A$10:$F$203, 4, FALSE) -> 70 | H51: =VLOOKUP($B51,Vertices!$A$10:$F$203, 5, FALSE) -> 0 | I51: =VLOOKUP($B51,Vertices!$A$10:$F$203, 6, FALSE) -> 0 | J51: =VLOOKUP($C51,Vertices!$A$10:$F$203, 3, FALSE) -> 100 | K51: =VLOOKUP($C51,Vertices!$A$10:$F$203, 4, FALSE) -> 100 | L51: =VLOOKUP($C51,Vertices!$A$10:$F$203, 5, FALSE) -> 0 | M51: =VLOOKUP($C51,Vertices!$A$10:$F$203, 6, FALSE) -> 0 | N51: =VLOOKUP($D51,Vertices!$A$10:$F$203, 3, FALSE) -> 100 | O51: =VLOOKUP($D51,Vertices!$A$10:$F$203, 4, FALSE) -> 70 | P51: =VLOOKUP($D51,Vertices!$A$10:$F$203, 5, FALSE) -> 0 | Q51: =VLOOKUP($D51,Vertices!$A$10:$F$203, 6, FALSE) -> 0
A52: 42 | B52: 29 | C52: 30 | D52: 36 | F52: =VLOOKUP($B52,Vertices!$A$10:$F$203, 3, FALSE) -> 70 | G52: =VLOOKUP($B52,Vertices!$A$10:$F$203, 4, FALSE) -> 70 | H52: =VLOOKUP($B52,Vertices!$A$10:$F$203, 5, FALSE) -> 0 | I52: =VLOOKUP($B52,Vertices!$A$10:$F$203, 6, FALSE) -> 0 | J52: =VLOOKUP($C52,Vertices!$A$10:$F$203, 3, FALSE) -> 70 | K52: =VLOOKUP($C52,Vertices!$A$10:$F$203, 4, FALSE) -> 100 | L52: =VLOOKUP($C52,Vertices!$A$10:$F$203, 5, FALSE) -> 0 | M52: =VLOOKUP($C52,Vertices!$A$10:$F$203, 6, FALSE) -> 0 | N52: =VLOOKUP($D52,Vertices!$A$10:$F$203, 3, FALSE) -> 100 | O52: =VLOOKUP($D52,Vertices!$A$10:$F$203, 4, FALSE) -> 100 | P52: =VLOOKUP($D52,Vertices!$A$10:$F$203, 5, FALSE) -> 0 | Q52: =VLOOKUP($D52,Vertices!$A$10:$F$203, 6, FALSE) -> 0
A53: 43 | B53: 23 | C53: 30 | D53: 29 | F53: =VLOOKUP($B53,Vertices!$A$10:$F$203, 3, FALSE) -> 40 | G53: =VLOOKUP($B53,Vertices!$A$10:$F$203, 4, FALSE) -> 70 | H53: =VLOOKUP($B53,Vertices!$A$10:$F$203, 5, FALSE) -> 0 | I53: =VLOOKUP($B53,Vertices!$A$10:$F$203, 6, FALSE) -> 0 | J53: =VLOOKUP($C53,Vertices!$A$10:$F$203, 3, FALSE) -> 70 | K53: =VLOOKUP($C53,Vertices!$A$10:$F$203, 4, FALSE) -> 100 | L53: =VLOOKUP($C53,Vertices!$A$10:$F$203, 5, FALSE) -> 0 | M53: =VLOOKUP($C53,Vertices!$A$10:$F$203, 6, FALSE) -> 0 | N53: =VLOOKUP($D53,Vertices!$A$10:$F$203, 3, FALSE) -> 70 | O53: =VLOOKUP($D53,Vertices!$A$10:$F$203, 4, FALSE) -> 70 | P53: =VLOOKUP($D53,Vertices!$A$10:$F$203, 5, FALSE) -> 0 | Q53: =VLOOKUP($D53,Vertices!$A$10:$F$203, 6, FALSE) -> 0
A54: 44 | B54: 23 | C54: 24 | D54: 30 | F54: =VLOOKUP($B54,Vertices!$A$10:$F$203, 3, FALSE) -> 40 | G54: =VLOOKUP($B54,Vertices!$A$10:$F$203, 4, FALSE) -> 70 | H54: =VLOOKUP($B54,Vertices!$A$10:$F$203, 5, FALSE) -> 0 | I54: =VLOOKUP($B54,Vertices!$A$10:$F$203, 6, FALSE) -> 0 | J54: =VLOOKUP($C54,Vertices!$A$10:$F$203, 3, FALSE) -> 40 | K54: =VLOOKUP($C54,Vertices!$A$10:$F$203, 4, FALSE) -> 100 | L54: =VLOOKUP($C54,Vertices!$A$10:$F$203, 5, FALSE) -> 0 | M54: =VLOOKUP($C54,Vertices!$A$10:$F$203, 6, FALSE) -> 0 | N54: =VLOOKUP($D54,Vertices!$A$10:$F$203, 3, FALSE) -> 70 | O54: =VLOOKUP($D54,Vertices!$A$10:$F$203, 4, FALSE) -> 100 | P54: =VLOOKUP($D54,Vertices!$A$10:$F$203, 5, FALSE) -> 0 | Q54: =VLOOKUP($D54,Vertices!$A$10:$F$203, 6, FALSE) -> 0
A55: 45 | B55: 17 | C55: 24 | D55: 23 | F55: =VLOOKUP($B55,Vertices!$A$10:$F$203, 3, FALSE) -> 20 | G55: =VLOOKUP($B55,Vertices!$A$10:$F$203, 4, FALSE) -> 70 | H55: =VLOOKUP($B55,Vertices!$A$10:$F$203, 5, FALSE) -> 0 | I55: =VLOOKUP($B55,Vertices!$A$10:$F$203, 6, FALSE) -> 0 | J55: =VLOOKUP($C55,Vertices!$A$10:$F$203, 3, FALSE) -> 40 | K55: =VLOOKUP($C55,Vertices!$A$10:$F$203, 4, FALSE) -> 100 | L55: =VLOOKUP($C55,Vertices!$A$10:$F$203, 5, FALSE) -> 0 | M55: =VLOOKUP($C55,Vertices!$A$10:$F$203, 6, FALSE) -> 0 | N55: =VLOOKUP($D55,Vertices!$A$10:$F$203, 3, FALSE) -> 40 | O55: =VLOOKUP($D55,Vertices!$A$10:$F$203, 4, FALSE) -> 70 | P55: =VLOOKUP($D55,Vertices!$A$10:$F$203, 5, FALSE) -> 0 | Q55: =VLOOKUP($D55,Vertices!$A$10:$F$203, 6, FALSE) -> 0
A56: 46 | B56: 17 | C56: 18 | D56: 24 | F56: =VLOOKUP($B56,Vertices!$A$10:$F$203, 3, FALSE) -> 20 | G56: =VLOOKUP($B56,Vertices!$A$10:$F$203, 4, FALSE) -> 70 | H56: =VLOOKUP($B56,Vertices!$A$10:$F$203, 5, FALSE) -> 0 | I56: =VLOOKUP($B56,Vertices!$A$10:$F$203, 6, FALSE) -> 0 | J56: =VLOOKUP($C56,Vertices!$A$10:$F$203, 3, FALSE) -> 20 | K56: =VLOOKUP($C56,Vertices!$A$10:$F$203, 4, FALSE) -> 100 | L56: =VLOOKUP($C56,Vertices!$A$10:$F$203, 5, FALSE) -> 0 | M56: =VLOOKUP($C56,Vertices!$A$10:$F$203, 6, FALSE) -> 0 | N56: =VLOOKUP($D56,Vertices!$A$10:$F$203, 3, FALSE) -> 40 | O56: =VLOOKUP($D56,Vertices!$A$10:$F$203, 4, FALSE) -> 100 | P56: =VLOOKUP($D56,Vertices!$A$10:$F$203, 5, FALSE) -> 0 | Q56: =VLOOKUP($D56,Vertices!$A$10:$F$203, 6, FALSE) -> 0
A57: 47 | B57: 11 | C57: 18 | D57: 17 | F57: =VLOOKUP($B57,Vertices!$A$10:$F$203, 3, FALSE) -> 10 | G57: =VLOOKUP($B57,Vertices!$A$10:$F$203, 4, FALSE) -> 70 | H57: =VLOOKUP($B57,Vertices!$A$10:$F$203, 5, FALSE) -> 0 | I57: =VLOOKUP($B57,Vertices!$A$10:$F$203, 6, FALSE) -> 0 | J57: =VLOOKUP($C57,Vertices!$A$10:$F$203, 3, FALSE) -> 20 | K57: =VLOOKUP($C57,Vertices!$A$10:$F$203, 4, FALSE) -> 100 | L57: =VLOOKUP($C57,Vertices!$A$10:$F$203, 5, FALSE) -> 0 | M57: =VLOOKUP($C57,Vertices!$A$10:$F$203, 6, FALSE) -> 0 | N57: =VLOOKUP($D57,Vertices!$A$10:$F$203, 3, FALSE) -> 20 | O57: =VLOOKUP($D57,Vertices!$A$10:$F$203, 4, FALSE) -> 70 | P57: =VLOOKUP($D57,Vertices!$A$10:$F$203, 5, FALSE) -> 0 | Q57: =VLOOKUP($D57,Vertices!$A$10:$F$203, 6, FALSE) -> 0
A58: 48 | B58: 11 | C58: 12 | D58: 18 | F58: =VLOOKUP($B58,Vertices!$A$10:$F$203, 3, FALSE) -> 10 | G58: =VLOOKUP($B58,Vertices!$A$10:$F$203, 4, FALSE) -> 70 | H58: =VLOOKUP($B58,Vertices!$A$10:$F$203, 5, FALSE) -> 0 | I58: =VLOOKUP($B58,Vertices!$A$10:$F$203, 6, FALSE) -> 0 | J58: =VLOOKUP($C58,Vertices!$A$10:$F$203, 3, FALSE) -> 10 | K58: =VLOOKUP($C58,Vertices!$A$10:$F$203, 4, FALSE) -> 100 | L58: =VLOOKUP($C58,Vertices!$A$10:$F$203, 5, FALSE) -> 0 | M58: =VLOOKUP($C58,Vertices!$A$10:$F$203, 6, FALSE) -> 0 | N58: =VLOOKUP($D58,Vertices!$A$10:$F$203, 3, FALSE) -> 20 | O58: =VLOOKUP($D58,Vertices!$A$10:$F$203, 4, FALSE) -> 100 | P58: =VLOOKUP($D58,Vertices!$A$10:$F$203, 5, FALSE) -> 0 | Q58: =VLOOKUP($D58,Vertices!$A$10:$F$203, 6, FALSE) -> 0
A59: 49 | B59: 5 | C59: 12 | D59: 11 | F59: =VLOOKUP($B59,Vertices!$A$10:$F$203, 3, FALSE) -> 0 | G59: =VLOOKUP($B59,Vertices!$A$10:$F$203, 4, FALSE) -> 70 | H59: =VLOOKUP($B59,Vertices!$A$10:$F$203, 5, FALSE) -> 0 | I59: =VLOOKUP($B59,Vertices!$A$10:$F$203, 6, FALSE) -> 0 | J59: =VLOOKUP($C59,Vertices!$A$10:$F$203, 3, FALSE) -> 10 | K59: =VLOOKUP($C59,Vertices!$A$10:$F$203, 4, FALSE) -> 100 | L59: =VLOOKUP($C59,Vertices!$A$10:$F$203, 5, FALSE) -> 0 | M59: =VLOOKUP($C59,Vertices!$A$10:$F$203, 6, FALSE) -> 0 | N59: =VLOOKUP($D59,Vertices!$A$10:$F$203, 3, FALSE) -> 10 | O59: =VLOOKUP($D59,Vertices!$A$10:$F$203, 4, FALSE) -> 70 | P59: =VLOOKUP($D59,Vertices!$A$10:$F$203, 5, FALSE) -> 0 | Q59: =VLOOKUP($D59,Vertices!$A$10:$F$203, 6, FALSE) -> 0
A60: 50 | B60: 5 | C60: 6 | D60: 12 | F60: =VLOOKUP($B60,Vertices!$A$10:$F$203, 3, FALSE) -> 0 | G60: =VLOOKUP($B60,Vertices!$A$10:$F$203, 4, FALSE) -> 70 | H60: =VLOOKUP($B60,Vertices!$A$10:$F$203, 5, FALSE) -> 0 | I60: =VLOOKUP($B60,Vertices!$A$10:$F$203, 6, FALSE) -> 0 | J60: =VLOOKUP($C60,Vertices!$A$10:$F$203, 3, FALSE) -> 0 | K60: =VLOOKUP($C60,Vertices!$A$10:$F$203, 4, FALSE) -> 100 | L60: =VLOOKUP($C60,Vertices!$A$10:$F$203, 5, FALSE) -> 0 | M60: =VLOOKUP($C60,Vertices!$A$10:$F$203, 6, FALSE) -> 0 | N60: =VLOOKUP($D60,Vertices!$A$10:$F$203, 3, FALSE) -> 10 | O60: =VLOOKUP($D60,Vertices!$A$10:$F$203, 4, FALSE) -> 100 | P60: =VLOOKUP($D60,Vertices!$A$10:$F$203, 5, FALSE) -> 0 | Q60: =VLOOKUP($D60,Vertices!$A$10:$F$203, 6, FALSE) -> 0
A61: 51 | B61: 1 | C61: 38 | D61: 2 | F61: =VLOOKUP($B61,Vertices!$A$10:$F$203, 3, FALSE) -> 0 | G61: =VLOOKUP($B61,Vertices!$A$10:$F$203, 4, FALSE) -> 0 | H61: =VLOOKUP($B61,Vertices!$A$10:$F$203, 5, FALSE) -> 0 | I61: =VLOOKUP($B61,Vertices!$A$10:$F$203, 6, FALSE) -> 0 | J61: =VLOOKUP($C61,Vertices!$A$10:$F$203, 3, FALSE) -> 0 | K61: =VLOOKUP($C61,Vertices!$A$10:$F$203, 4, FALSE) -> 10 | L61: =VLOOKUP($C61,Vertices!$A$10:$F$203, 5, FALSE) -> 10 | M61: =VLOOKUP($C61,Vertices!$A$10:$F$203, 6, FALSE) -> 0 | N61: =VLOOKUP($D61,Vertices!$A$10:$F$203, 3, FALSE) -> 0 | O61: =VLOOKUP($D61,Vertices!$A$10:$F$203, 4, FALSE) -> 10 | P61: =VLOOKUP($D61,Vertices!$A$10:$F$203, 5, FALSE) -> 0 | Q61: =VLOOKUP($D61,Vertices!$A$10:$F$203, 6, FALSE) -> 0
A62: 52 | B62: 1 | C62: 37 | D62: 38 | F62: =VLOOKUP($B62,Vertices!$A$10:$F$203, 3, FALSE) -> 0 | G62: =VLOOKUP($B62,Vertices!$A$10:$F$203, 4, FALSE) -> 0 | H62: =VLOOKUP($B62,Vertices!$A$10:$F$203, 5, FALSE) -> 0 | I62: =VLOOKUP($B62,Vertices!$A$10:$F$203, 6, FALSE) -> 0 | J62: =VLOOKUP($C62,Vertices!$A$10:$F$203, 3, FALSE) -> 0 | K62: =VLOOKUP($C62,Vertices!$A$10:$F$203, 4, FALSE) -> 0 | L62: =VLOOKUP($C62,Vertices!$A$10:$F$203, 5, FALSE) -> 10 | M62: =VLOOKUP($C62,Vertices!$A$10:$F$203, 6, FALSE) -> 0 | N62: =VLOOKUP($D62,Vertices!$A$10:$F$203, 3, FALSE) -> 0 | O62: =VLOOKUP($D62,Vertices!$A$10:$F$203, 4, FALSE) -> 10 | P62: =VLOOKUP($D62,Vertices!$A$10:$F$203, 5, FALSE) -> 10 | Q62: =VLOOKUP($D62,Vertices!$A$10:$F$203, 6, FALSE) -> 0
A63: 53 | B63: 2 | C63: 39 | D63: 3 | F63: =VLOOKUP($B63,Vertices!$A$10:$F$203, 3, FALSE) -> 0 | G63: =VLOOKUP($B63,Vertices!$A$10:$F$203, 4, FALSE) -> 10 | H63: =VLOOKUP($B63,Vertices!$A$10:$F$203, 5, FALSE) -> 0 | I63: =VLOOKUP($B63,Vertices!$A$10:$F$203, 6, FALSE) -> 0 | J63: =VLOOKUP($C63,Vertices!$A$10:$F$203, 3, FALSE) -> 0 | K63: =VLOOKUP($C63,Vertices!$A$10:$F$203, 4, FALSE) -> 20 | L63: =VLOOKUP($C63,Vertices!$A$10:$F$203, 5, FALSE) -> 10 | M63: =VLOOKUP($C63,Vertices!$A$10:$F$203, 6, FALSE) -> 0 | N63: =VLOOKUP($D63,Vertices!$A$10:$F$203, 3, FALSE) -> 0 | O63: =VLOOKUP($D63,Vertices!$A$10:$F$203, 4, FALSE) -> 20 | P63: =VLOOKUP($D63,Vertices!$A$10:$F$203, 5, FALSE) -> 0 | Q63: =VLOOKUP($D63,Vertices!$A$10:$F$203, 6, FALSE) -> 0
A64: 54 | B64: 2 | C64: 38 | D64: 39 | F64: =VLOOKUP($B64,Vertices!$A$10:$F$203, 3, FALSE) -> 0 | G64: =VLOOKUP($B64,Vertices!$A$10:$F$203, 4, FALSE) -> 10 | H64: =VLOOKUP($B64,Vertices!$A$10:$F$203, 5, FALSE) -> 0 | I64: =VLOOKUP($B64,Vertices!$A$10:$F$203, 6, FALSE) -> 0 | J64: =VLOOKUP($C64,Vertices!$A$10:$F$203, 3, FALSE) -> 0 | K64: =VLOOKUP($C64,Vertices!$A$10:$F$203, 4, FALSE) -> 10 | L64: =VLOOKUP($C64,Vertices!$A$10:$F$203, 5, FALSE) -> 10 | M64: =VLOOKUP($C64,Vertices!$A$10:$F$203, 6, FALSE) -> 0 | N64: =VLOOKUP($D64,Vertices!$A$10:$F$203, 3, FALSE) -> 0 | O64: =VLOOKUP($D64,Vertices!$A$10:$F$203, 4, FALSE) -> 20 | P64: =VLOOKUP($D64,Vertices!$A$10:$F$203, 5, FALSE) -> 10 | Q64: =VLOOKUP($D64,Vertices!$A$10:$F$203, 6, FALSE) -> 0
A65: 55 | B65: 38 | C65: 50 | D65: 39 | F65: =VLOOKUP($B65,Vertices!$A$10:$F$203, 3, FALSE) -> 0 | G65: =VLOOKUP($B65,Vertices!$A$10:$F$203, 4, FALSE) -> 10 | H65: =VLOOKUP($B65,Vertices!$A$10:$F$203, 5, FALSE) -> 10 | I65: =VLOOKUP($B65,Vertices!$A$10:$F$203, 6, FALSE) -> 0 | J65: =VLOOKUP($C65,Vertices!$A$10:$F$203, 3, FALSE) -> 0 | K65: =VLOOKUP($C65,Vertices!$A$10:$F$203, 4, FALSE) -> 20 | L65: =VLOOKUP($C65,Vertices!$A$10:$F$203, 5, FALSE) -> 20 | M65: =VLOOKUP($C65,Vertices!$A$10:$F$203, 6, FALSE) -> 0 | N65: =VLOOKUP($D65,Vertices!$A$10:$F$203, 3, FALSE) -> 0 | O65: =VLOOKUP($D65,Vertices!$A$10:$F$203, 4, FALSE) -> 20 | P65: =VLOOKUP($D65,Vertices!$A$10:$F$203, 5, FALSE) -> 10 | Q65: =VLOOKUP($D65,Vertices!$A$10:$F$203, 6, FALSE) -> 0
A66: 56 | B66: 38 | C66: 49 | D66: 50 | F66: =VLOOKUP($B66,Vertices!$A$10:$F$203, 3, FALSE) -> 0 | G66: =VLOOKUP($B66,Vertices!$A$10:$F$203, 4, FALSE) -> 10 | H66: =VLOOKUP($B66,Vertices!$A$10:$F$203, 5, FALSE) -> 10 | I66: =VLOOKUP($B66,Vertices!$A$10:$F$203, 6, FALSE) -> 0 | J66: =VLOOKUP($C66,Vertices!$A$10:$F$203, 3, FALSE) -> 0 | K66: =VLOOKUP($C66,Vertices!$A$10:$F$203, 4, FALSE) -> 10 | L66: =VLOOKUP($C66,Vertices!$A$10:$F$203, 5, FALSE) -> 20 | M66: =VLOOKUP($C66,Vertices!$A$10:$F$203, 6, FALSE) -> 0 | N66: =VLOOKUP($D66,Vertices!$A$10:$F$203, 3, FALSE) -> 0 | O66: =VLOOKUP($D66,Vertices!$A$10:$F$203, 4, FALSE) -> 20 | P66: =VLOOKUP($D66,Vertices!$A$10:$F$203, 5, FALSE) -> 20 | Q66: =VLOOKUP($D66,Vertices!$A$10:$F$203, 6, FALSE) -> 0
A67: 57 | B67: 37 | C67: 49 | D67: 38 | F67: =VLOOKUP($B67,Vertices!$A$10:$F$203, 3, FALSE) -> 0 | G67: =VLOOKUP($B67,Vertices!$A$10:$F$203, 4, FALSE) -> 0 | H67: =VLOOKUP($B67,Vertices!$A$10:$F$203, 5, FALSE) -> 10 | I67: =VLOOKUP($B67,Vertices!$A$10:$F$203, 6, FALSE) -> 0 | J67: =VLOOKUP($C67,Vertices!$A$10:$F$203, 3, FALSE) -> 0 | K67: =VLOOKUP($C67,Vertices!$A$10:$F$203, 4, FALSE) -> 10 | L67: =VLOOKUP($C67,Vertices!$A$10:$F$203, 5, FALSE) -> 20 | M67: =VLOOKUP($C67,Vertices!$A$10:$F$203, 6, FALSE) -> 0 | N67: =VLOOKUP($D67,Vertices!$A$10:$F$203, 3, FALSE) -> 0 | O67: =VLOOKUP($D67,Vertices!$A$10:$F$203, 4, FALSE) -> 10 | P67: =VLOOKUP($D67,Vertices!$A$10:$F$203, 5, FALSE) -> 10 | Q67: =VLOOKUP($D67,Vertices!$A$10:$F$203, 6, FALSE) -> 0
A68: 58 | B68: 37 | C68: 48 | D68: 49 | F68: =VLOOKUP($B68,Vertices!$A$10:$F$203, 3, FALSE) -> 0 | G68: =VLOOKUP($B68,Vertices!$A$10:$F$203, 4, FALSE) -> 0 | H68: =VLOOKUP($B68,Vertices!$A$10:$F$203, 5, FALSE) -> 10 | I68: =VLOOKUP($B68,Vertices!$A$10:$F$203, 6, FALSE) -> 0 | J68: =VLOOKUP($C68,Vertices!$A$10:$F$203, 3, FALSE) -> 0 | K68: =VLOOKUP($C68,Vertices!$A$10:$F$203, 4, FALSE) -> 0 | L68: =VLOOKUP($C68,Vertices!$A$10:$F$203, 5, FALSE) -> 20 | M68: =VLOOKUP($C68,Vertices!$A$10:$F$203, 6, FALSE) -> 0 | N68: =VLOOKUP($D68,Vertices!$A$10:$F$203, 3, FALSE) -> 0 | O68: =VLOOKUP($D68,Vertices!$A$10:$F$203, 4, FALSE) -> 10 | P68: =VLOOKUP($D68,Vertices!$A$10:$F$203, 5, FALSE) -> 20 | Q68: =VLOOKUP($D68,Vertices!$A$10:$F$203, 6, FALSE) -> 0
A69: 59 | B69: 3 | C69: 40 | D69: 4 | F69: =VLOOKUP($B69,Vertices!$A$10:$F$203, 3, FALSE) -> 0 | G69: =VLOOKUP($B69,Vertices!$A$10:$F$203, 4, FALSE) -> 20 | H69: =VLOOKUP($B69,Vertices!$A$10:$F$203, 5, FALSE) -> 0 | I69: =VLOOKUP($B69,Vertices!$A$10:$F$203, 6, FALSE) -> 0 | J69: =VLOOKUP($C69,Vertices!$A$10:$F$203, 3, FALSE) -> 0 | K69: =VLOOKUP($C69,Vertices!$A$10:$F$203, 4, FALSE) -> 40 | L69: =VLOOKUP($C69,Vertices!$A$10:$F$203, 5, FALSE) -> 10 | M69: =VLOOKUP($C69,Vertices!$A$10:$F$203, 6, FALSE) -> 0 | N69: =VLOOKUP($D69,Vertices!$A$10:$F$203, 3, FALSE) -> 0 | O69: =VLOOKUP($D69,Vertices!$A$10:$F$203, 4, FALSE) -> 40 | P69: =VLOOKUP($D69,Vertices!$A$10:$F$203, 5, FALSE) -> 0 | Q69: =VLOOKUP($D69,Vertices!$A$10:$F$203, 6, FALSE) -> 0
A70: 60 | B70: 3 | C70: 39 | D70: 40 | F70: =VLOOKUP($B70,Vertices!$A$10:$F$203, 3, FALSE) -> 0 | G70: =VLOOKUP($B70,Vertices!$A$10:$F$203, 4, FALSE) -> 20 | H70: =VLOOKUP($B70,Vertices!$A$10:$F$203, 5, FALSE) -> 0 | I70: =VLOOKUP($B70,Vertices!$A$10:$F$203, 6, FALSE) -> 0 | J70: =VLOOKUP($C70,Vertices!$A$10:$F$203, 3, FALSE) -> 0 | K70: =VLOOKUP($C70,Vertices!$A$10:$F$203, 4, FALSE) -> 20 | L70: =VLOOKUP($C70,Vertices!$A$10:$F$203, 5, FALSE) -> 10 | M70: =VLOOKUP($C70,Vertices!$A$10:$F$203, 6, FALSE) -> 0 | N70: =VLOOKUP($D70,Vertices!$A$10:$F$203, 3, FALSE) -> 0 | O70: =VLOOKUP($D70,Vertices!$A$10:$F$203, 4, FALSE) -> 40 | P70: =VLOOKUP($D70,Vertices!$A$10:$F$203, 5, FALSE) -> 10 | Q70: =VLOOKUP($D70,Vertices!$A$10:$F$203, 6, FALSE) -> 0
A71: 61 | B71: 39 | C71: 51 | D71: 40 | F71: =VLOOKUP($B71,Vertices!$A$10:$F$203, 3, FALSE) -> 0 | G71: =VLOOKUP($B71,Vertices!$A$10:$F$203, 4, FALSE) -> 20 | H71: =VLOOKUP($B71,Vertices!$A$10:$F$203, 5, FALSE) -> 10 | I71: =VLOOKUP($B71,Vertices!$A$10:$F$203, 6, FALSE) -> 0 | J71: =VLOOKUP($C71,Vertices!$A$10:$F$203, 3, FALSE) -> 0 | K71: =VLOOKUP($C71,Vertices!$A$10:$F$203, 4, FALSE) -> 40 | L71: =VLOOKUP($C71,Vertices!$A$10:$F$203, 5, FALSE) -> 20 | M71: =VLOOKUP($C71,Vertices!$A$10:$F$203, 6, FALSE) -> 0 | N71: =VLOOKUP($D71,Vertices!$A$10:$F$203, 3, FALSE) -> 0 | O71: =VLOOKUP($D71,Vertices!$A$10:$F$203, 4, FALSE) -> 40 | P71: =VLOOKUP($D71,Vertices!$A$10:$F$203, 5, FALSE) -> 10 | Q71: =VLOOKUP($D71,Vertices!$A$10:$F$203, 6, FALSE) -> 0
A72: 62 | B72: 39 | C72: 50 | D72: 51 | F72: =VLOOKUP($B72,Vertices!$A$10:$F$203, 3, FALSE) -> 0 | G72: =VLOOKUP($B72,Vertices!$A$10:$F$203, 4, FALSE) -> 20 | H72: =VLOOKUP($B72,Vertices!$A$10:$F$203, 5, FALSE) -> 10 | I72: =VLOOKUP($B72,Vertices!$A$10:$F$203, 6, FALSE) -> 0 | J72: =VLOOKUP($C72,Vertices!$A$10:$F$203, 3, FALSE) -> 0 | K72: =VLOOKUP($C72,Vertices!$A$10:$F$203, 4, FALSE) -> 20 | L72: =VLOOKUP($C72,Vertices!$A$10:$F$203, 5, FALSE) -> 20 | M72: =VLOOKUP($C72,Vertices!$A$10:$F$203, 6, FALSE) -> 0 | N72: =VLOOKUP($D72,Vertices!$A$10:$F$203, 3, FALSE) -> 0 | O72: =VLOOKUP($D72,Vertices!$A$10:$F$203, 4, FALSE) -> 40 | P72: =VLOOKUP($D72,Vertices!$A$10:$F$203, 5, FALSE) -> 20 | Q72: =VLOOKUP($D72,Vertices!$A$10:$F$203, 6, FALSE) -> 0
A73: 63 | B73: 50 | C73: 62 | D73: 51 | F73: =VLOOKUP($B73,Vertices!$A$10:$F$203, 3, FALSE) -> 0 | G73: =VLOOKUP($B73,Vertices!$A$10:$F$203, 4, FALSE) -> 20 | H73: =VLOOKUP($B73,Vertices!$A$10:$F$203, 5, FALSE) -> 20 | I73: =VLOOKUP($B73,Vertices!$A$10:$F$203, 6, FALSE) -> 0 | J73: =VLOOKUP($C73,Vertices!$A$10:$F$203, 3, FALSE) -> 0 | K73: =VLOOKUP($C73,Vertices!$A$10:$F$203, 4, FALSE) -> 40 | L73: =VLOOKUP($C73,Vertices!$A$10:$F$203, 5, FALSE) -> 40 | M73: =VLOOKUP($C73,Vertices!$A$10:$F$203, 6, FALSE) -> 0 | N73: =VLOOKUP($D73,Vertices!$A$10:$F$203, 3, FALSE) -> 0 | O73: =VLOOKUP($D73,Vertices!$A$10:$F$203, 4, FALSE) -> 40 | P73: =VLOOKUP($D73,Vertices!$A$10:$F$203, 5, FALSE) -> 20 | Q73: =VLOOKUP($D73,Vertices!$A$10:$F$203, 6, FALSE) -> 0
A74: 64 | B74: 50 | C74: 61 | D74: 62 | F74: =VLOOKUP($B74,Vertices!$A$10:$F$203, 3, FALSE) -> 0 | G74: =VLOOKUP($B74,Vertices!$A$10:$F$203, 4, FALSE) -> 20 | H74: =VLOOKUP($B74,Vertices!$A$10:$F$203, 5, FALSE) -> 20 | I74: =VLOOKUP($B74,Vertices!$A$10:$F$203, 6, FALSE) -> 0 | J74: =VLOOKUP($C74,Vertices!$A$10:$F$203, 3, FALSE) -> 0 | K74: =VLOOKUP($C74,Vertices!$A$10:$F$203, 4, FALSE) -> 20 | L74: =VLOOKUP($C74,Vertices!$A$10:$F$203, 5, FALSE) -> 40 | M74: =VLOOKUP($C74,Vertices!$A$10:$F$203, 6, FALSE) -> 0 | N74: =VLOOKUP($D74,Vertices!$A$10:$F$203, 3, FALSE) -> 0 | O74: =VLOOKUP($D74,Vertices!$A$10:$F$203, 4, FALSE) -> 40 | P74: =VLOOKUP($D74,Vertices!$A$10:$F$203, 5, FALSE) -> 40 | Q74: =VLOOKUP($D74,Vertices!$A$10:$F$203, 6, FALSE) -> 0
A75: 65 | B75: 49 | C75: 61 | D75: 50 | F75: =VLOOKUP($B75,Vertices!$A$10:$F$203, 3, FALSE) -> 0 | G75: =VLOOKUP($B75,Vertices!$A$10:$F$203, 4, FALSE) -> 10 | H75: =VLOOKUP($B75,Vertices!$A$10:$F$203, 5, FALSE) -> 20 | I75: =VLOOKUP($B75,Vertices!$A$10:$F$203, 6, FALSE) -> 0 | J75: =VLOOKUP($C75,Vertices!$A$10:$F$203, 3, FALSE) -> 0 | K75: =VLOOKUP($C75,Vertices!$A$10:$F$203, 4, FALSE) -> 20 | L75: =VLOOKUP($C75,Vertices!$A$10:$F$203, 5, FALSE) -> 40 | M75: =VLOOKUP($C75,Vertices!$A$10:$F$203, 6, FALSE) -> 0 | N75: =VLOOKUP($D75,Vertices!$A$10:$F$203, 3, FALSE) -> 0 | O75: =VLOOKUP($D75,Vertices!$A$10:$F$203, 4, FALSE) -> 20 | P75: =VLOOKUP($D75,Vertices!$A$10:$F$203, 5, FALSE) -> 20 | Q75: =VLOOKUP($D75,Vertices!$A$10:$F$203, 6, FALSE) -> 0
A76: 66 | B76: 49 | C76: 60 | D76: 61 | F76: =VLOOKUP($B76,Vertices!$A$10:$F$203, 3, FALSE) -> 0 | G76: =VLOOKUP($B76,Vertices!$A$10:$F$203, 4, FALSE) -> 10 | H76: =VLOOKUP($B76,Vertices!$A$10:$F$203, 5, FALSE) -> 20 | I76: =VLOOKUP($B76,Vertices!$A$10:$F$203, 6, FALSE) -> 0 | J76: =VLOOKUP($C76,Vertices!$A$10:$F$203, 3, FALSE) -> 0 | K76: =VLOOKUP($C76,Vertices!$A$10:$F$203, 4, FALSE) -> 10 | L76: =VLOOKUP($C76,Vertices!$A$10:$F$203, 5, FALSE) -> 40 | M76: =VLOOKUP($C76,Vertices!$A$10:$F$203, 6, FALSE) -> 0 | N76: =VLOOKUP($D76,Vertices!$A$10:$F$203, 3, FALSE) -> 0 | O76: =VLOOKUP($D76,Vertices!$A$10:$F$203, 4, FALSE) -> 20 | P76: =VLOOKUP($D76,Vertices!$A$10:$F$203, 5, FALSE) -> 40 | Q76: =VLOOKUP($D76,Vertices!$A$10:$F$203, 6, FALSE) -> 0
A77: 67 | B77: 48 | C77: 60 | D77: 49 | F77: =VLOOKUP($B77,Vertices!$A$10:$F$203, 3, FALSE) -> 0 | G77: =VLOOKUP($B77,Vertices!$A$10:$F$203, 4, FALSE) -> 0 | H77: =VLOOKUP($B77,Vertices!$A$10:$F$203, 5, FALSE) -> 20 | I77: =VLOOKUP($B77,Vertices!$A$10:$F$203, 6, FALSE) -> 0 | J77: =VLOOKUP($C77,Vertices!$A$10:$F$203, 3, FALSE) -> 0 | K77: =VLOOKUP($C77,Vertices!$A$10:$F$203, 4, FALSE) -> 10 | L77: =VLOOKUP($C77,Vertices!$A$10:$F$203, 5, FALSE) -> 40 | M77: =VLOOKUP($C77,Vertices!$A$10:$F$203, 6, FALSE) -> 0 | N77: =VLOOKUP($D77,Vertices!$A$10:$F$203, 3, FALSE) -> 0 | O77: =VLOOKUP($D77,Vertices!$A$10:$F$203, 4, FALSE) -> 10 | P77: =VLOOKUP($D77,Vertices!$A$10:$F$203, 5, FALSE) -> 20 | Q77: =VLOOKUP($D77,Vertices!$A$10:$F$203, 6, FALSE) -> 0
A78: 68 | B78: 48 | C78: 59 | D78: 60 | F78: =VLOOKUP($B78,Vertices!$A$10:$F$203, 3, FALSE) -> 0 | G78: =VLOOKUP($B78,Vertices!$A$10:$F$203, 4, FALSE) -> 0 | H78: =VLOOKUP($B78,Vertices!$A$10:$F$203, 5, FALSE) -> 20 | I78: =VLOOKUP($B78,Vertices!$A$10:$F$203, 6, FALSE) -> 0 | J78: =VLOOKUP($C78,Vertices!$A$10:$F$203, 3, FALSE) -> 0 | K78: =VLOOKUP($C78,Vertices!$A$10:$F$203, 4, FALSE) -> 0 | L78: =VLOOKUP($C78,Vertices!$A$10:$F$203, 5, FALSE) -> 40 | M78: =VLOOKUP($C78,Vertices!$A$10:$F$203, 6, FALSE) -> 0 | N78: =VLOOKUP($D78,Vertices!$A$10:$F$203, 3, FALSE) -> 0 | O78: =VLOOKUP($D78,Vertices!$A$10:$F$203, 4, FALSE) -> 10 | P78: =VLOOKUP($D78,Vertices!$A$10:$F$203, 5, FALSE) -> 40 | Q78: =VLOOKUP($D78,Vertices!$A$10:$F$203, 6, FALSE) -> 0
A79: 69 | B79: 4 | C79: 41 | D79: 5 | F79: =VLOOKUP($B79,Vertices!$A$10:$F$203, 3, FALSE) -> 0 | G79: =VLOOKUP($B79,Vertices!$A$10:$F$203, 4, FALSE) -> 40 | H79: =VLOOKUP($B79,Vertices!$A$10:$F$203, 5, FALSE) -> 0 | I79: =VLOOKUP($B79,Vertices!$A$10:$F$203, 6, FALSE) -> 0 | J79: =VLOOKUP($C79,Vertices!$A$10:$F$203, 3, FALSE) -> 0 | K79: =VLOOKUP($C79,Vertices!$A$10:$F$203, 4, FALSE) -> 70 | L79: =VLOOKUP($C79,Vertices!$A$10:$F$203, 5, FALSE) -> 10 | M79: =VLOOKUP($C79,Vertices!$A$10:$F$203, 6, FALSE) -> 0 | N79: =VLOOKUP($D79,Vertices!$A$10:$F$203, 3, FALSE) -> 0 | O79: =VLOOKUP($D79,Vertices!$A$10:$F$203, 4, FALSE) -> 70 | P79: =VLOOKUP($D79,Vertices!$A$10:$F$203, 5, FALSE) -> 0 | Q79: =VLOOKUP($D79,Vertices!$A$10:$F$203, 6, FALSE) -> 0
A80: 70 | B80: 4 | C80: 40 | D80: 41 | F80: =VLOOKUP($B80,Vertices!$A$10:$F$203, 3, FALSE) -> 0 | G80: =VLOOKUP($B80,Vertices!$A$10:$F$203, 4, FALSE) -> 40 | H80: =VLOOKUP($B80,Vertices!$A$10:$F$203, 5, FALSE) -> 0 | I80: =VLOOKUP($B80,Vertices!$A$10:$F$203, 6, FALSE) -> 0 | J80: =VLOOKUP($C80,Vertices!$A$10:$F$203, 3, FALSE) -> 0 | K80: =VLOOKUP($C80,Vertices!$A$10:$F$203, 4, FALSE) -> 40 | L80: =VLOOKUP($C80,Vertices!$A$10:$F$203, 5, FALSE) -> 10 | M80: =VLOOKUP($C80,Vertices!$A$10:$F$203, 6, FALSE) -> 0 | N80: =VLOOKUP($D80,Vertices!$A$10:$F$203, 3, FALSE) -> 0 | O80: =VLOOKUP($D80,Vertices!$A$10:$F$203, 4, FALSE) -> 70 | P80: =VLOOKUP($D80,Vertices!$A$10:$F$203, 5, FALSE) -> 10 | Q80: =VLOOKUP($D80,Vertices!$A$10:$F$203, 6, FALSE) -> 0
A81: 71 | B81: 40 | C81: 52 | D81: 41 | F81: =VLOOKUP($B81,Vertices!$A$10:$F$203, 3, FALSE) -> 0 | G81: =VLOOKUP($B81,Vertices!$A$10:$F$203, 4, FALSE) -> 40 | H81: =VLOOKUP($B81,Vertices!$A$10:$F$203, 5, FALSE) -> 10 | I81: =VLOOKUP($B81,Vertices!$A$10:$F$203, 6, FALSE) -> 0 | J81: =VLOOKUP($C81,Vertices!$A$10:$F$203, 3, FALSE) -> 0 | K81: =VLOOKUP($C81,Vertices!$A$10:$F$203, 4, FALSE) -> 70 | L81: =VLOOKUP($C81,Vertices!$A$10:$F$203, 5, FALSE) -> 20 | M81: =VLOOKUP($C81,Vertices!$A$10:$F$203, 6, FALSE) -> 0 | N81: =VLOOKUP($D81,Vertices!$A$10:$F$203, 3, FALSE) -> 0 | O81: =VLOOKUP($D81,Vertices!$A$10:$F$203, 4, FALSE) -> 70 | P81: =VLOOKUP($D81,Vertices!$A$10:$F$203, 5, FALSE) -> 10 | Q81: =VLOOKUP($D81,Vertices!$A$10:$F$203, 6, FALSE) -> 0
A82: 72 | B82: 40 | C82: 51 | D82: 52 | F82: =VLOOKUP($B82,Vertices!$A$10:$F$203, 3, FALSE) -> 0 | G82: =VLOOKUP($B82,Vertices!$A$10:$F$203, 4, FALSE) -> 40 | H82: =VLOOKUP($B82,Vertices!$A$10:$F$203, 5, FALSE) -> 10 | I82: =VLOOKUP($B82,Vertices!$A$10:$F$203, 6, FALSE) -> 0 | J82: =VLOOKUP($C82,Vertices!$A$10:$F$203, 3, FALSE) -> 0 | K82: =VLOOKUP($C82,Vertices!$A$10:$F$203, 4, FALSE) -> 40 | L82: =VLOOKUP($C82,Vertices!$A$10:$F$203, 5, FALSE) -> 20 | M82: =VLOOKUP($C82,Vertices!$A$10:$F$203, 6, FALSE) -> 0 | N82: =VLOOKUP($D82,Vertices!$A$10:$F$203, 3, FALSE) -> 0 | O82: =VLOOKUP($D82,Vertices!$A$10:$F$203, 4, FALSE) -> 70 | P82: =VLOOKUP($D82,Vertices!$A$10:$F$203, 5, FALSE) -> 20 | Q82: =VLOOKUP($D82,Vertices!$A$10:$F$203, 6, FALSE) -> 0
A83: 73 | B83: 51 | C83: 63 | D83: 52 | F83: =VLOOKUP($B83,Vertices!$A$10:$F$203, 3, FALSE) -> 0 | G83: =VLOOKUP($B83,Vertices!$A$10:$F$203, 4, FALSE) -> 40 | H83: =VLOOKUP($B83,Vertices!$A$10:$F$203, 5, FALSE) -> 20 | I83: =VLOOKUP($B83,Vertices!$A$10:$F$203, 6, FALSE) -> 0 | J83: =VLOOKUP($C83,Vertices!$A$10:$F$203, 3, FALSE) -> 0 | K83: =VLOOKUP($C83,Vertices!$A$10:$F$203, 4, FALSE) -> 70 | L83: =VLOOKUP($C83,Vertices!$A$10:$F$203, 5, FALSE) -> 40 | M83: =VLOOKUP($C83,Vertices!$A$10:$F$203, 6, FALSE) -> 0 | N83: =VLOOKUP($D83,Vertices!$A$10:$F$203, 3, FALSE) -> 0 | O83: =VLOOKUP($D83,Vertices!$A$10:$F$203, 4, FALSE) -> 70 | P83: =VLOOKUP($D83,Vertices!$A$10:$F$203, 5, FALSE) -> 20 | Q83: =VLOOKUP($D83,Vertices!$A$10:$F$203, 6, FALSE) -> 0
A84: 74 | B84: 51 | C84: 62 | D84: 63 | F84: =VLOOKUP($B84,Vertices!$A$10:$F$203, 3, FALSE) -> 0 | G84: =VLOOKUP($B84,Vertices!$A$10:$F$203, 4, FALSE) -> 40 | H84: =VLOOKUP($B84,Vertices!$A$10:$F$203, 5, FALSE) -> 20 | I84: =VLOOKUP($B84,Vertices!$A$10:$F$203, 6, FALSE) -> 0 | J84: =VLOOKUP($C84,Vertices!$A$10:$F$203, 3, FALSE) -> 0 | K84: =VLOOKUP($C84,Vertices!$A$10:$F$203, 4, FALSE) -> 40 | L84: =VLOOKUP($C84,Vertices!$A$10:$F$203, 5, FALSE) -> 40 | M84: =VLOOKUP($C84,Vertices!$A$10:$F$203, 6, FALSE) -> 0 | N84: =VLOOKUP($D84,Vertices!$A$10:$F$203, 3, FALSE) -> 0 | O84: =VLOOKUP($D84,Vertices!$A$10:$F$203, 4, FALSE) -> 70 | P84: =VLOOKUP($D84,Vertices!$A$10:$F$203, 5, FALSE) -> 40 | Q84: =VLOOKUP($D84,Vertices!$A$10:$F$203, 6, FALSE) -> 0
A85: 75 | B85: 62 | C85: 74 | D85: 63 | F85: =VLOOKUP($B85,Vertices!$A$10:$F$203, 3, FALSE) -> 0 | G85: =VLOOKUP($B85,Vertices!$A$10:$F$203, 4, FALSE) -> 40 | H85: =VLOOKUP($B85,Vertices!$A$10:$F$203, 5, FALSE) -> 40 | I85: =VLOOKUP($B85,Vertices!$A$10:$F$203, 6, FALSE) -> 0 | J85: =VLOOKUP($C85,Vertices!$A$10:$F$203, 3, FALSE) -> 0 | K85: =VLOOKUP($C85,Vertices!$A$10:$F$203, 4, FALSE) -> 70 | L85: =VLOOKUP($C85,Vertices!$A$10:$F$203, 5, FALSE) -> 70 | M85: =VLOOKUP($C85,Vertices!$A$10:$F$203, 6, FALSE) -> 0 | N85: =VLOOKUP($D85,Vertices!$A$10:$F$203, 3, FALSE) -> 0 | O85: =VLOOKUP($D85,Vertices!$A$10:$F$203, 4, FALSE) -> 70 | P85: =VLOOKUP($D85,Vertices!$A$10:$F$203, 5, FALSE) -> 40 | Q85: =VLOOKUP($D85,Vertices!$A$10:$F$203, 6, FALSE) -> 0
A86: 76 | B86: 62 | C86: 73 | D86: 74 | F86: =VLOOKUP($B86,Vertices!$A$10:$F$203, 3, FALSE) -> 0 | G86: =VLOOKUP($B86,Vertices!$A$10:$F$203, 4, FALSE) -> 40 | H86: =VLOOKUP($B86,Vertices!$A$10:$F$203, 5, FALSE) -> 40 | I86: =VLOOKUP($B86,Vertices!$A$10:$F$203, 6, FALSE) -> 0 | J86: =VLOOKUP($C86,Vertices!$A$10:$F$203, 3, FALSE) -> 0 | K86: =VLOOKUP($C86,Vertices!$A$10:$F$203, 4, FALSE) -> 40 | L86: =VLOOKUP($C86,Vertices!$A$10:$F$203, 5, FALSE) -> 70 | M86: =VLOOKUP($C86,Vertices!$A$10:$F$203, 6, FALSE) -> 0 | N86: =VLOOKUP($D86,Vertices!$A$10:$F$203, 3, FALSE) -> 0 | O86: =VLOOKUP($D86,Vertices!$A$10:$F$203, 4, FALSE) -> 70 | P86: =VLOOKUP($D86,Vertices!$A$10:$F$203, 5, FALSE) -> 70 | Q86: =VLOOKUP($D86,Vertices!$A$10:$F$203, 6, FALSE) -> 0
A87: 77 | B87: 61 | C87: 73 | D87: 62 | F87: =VLOOKUP($B87,Vertices!$A$10:$F$203, 3, FALSE) -> 0 | G87: =VLOOKUP($B87,Vertices!$A$10:$F$203, 4, FALSE) -> 20 | H87: =VLOOKUP($B87,Vertices!$A$10:$F$203, 5, FALSE) -> 40 | I87: =VLOOKUP($B87,Vertices!$A$10:$F$203, 6, FALSE) -> 0 | J87: =VLOOKUP($C87,Vertices!$A$10:$F$203, 3, FALSE) -> 0 | K87: =VLOOKUP($C87,Vertices!$A$10:$F$203, 4, FALSE) -> 40 | L87: =VLOOKUP($C87,Vertices!$A$10:$F$203, 5, FALSE) -> 70 | M87: =VLOOKUP($C87,Vertices!$A$10:$F$203, 6, FALSE) -> 0 | N87: =VLOOKUP($D87,Vertices!$A$10:$F$203, 3, FALSE) -> 0 | O87: =VLOOKUP($D87,Vertices!$A$10:$F$203, 4, FALSE) -> 40 | P87: =VLOOKUP($D87,Vertices!$A$10:$F$203, 5, FALSE) -> 40 | Q87: =VLOOKUP($D87,Vertices!$A$10:$F$203, 6, FALSE) -> 0
A88: 78 | B88: 61 | C88: 72 | D88: 73 | F88: =VLOOKUP($B88,Vertices!$A$10:$F$203, 3, FALSE) -> 0 | G88: =VLOOKUP($B88,Vertices!$A$10:$F$203, 4, FALSE) -> 20 | H88: =VLOOKUP($B88,Vertices!$A$10:$F$203, 5, FALSE) -> 40 | I88: =VLOOKUP($B88,Vertices!$A$10:$F$203, 6, FALSE) -> 0 | J88: =VLOOKUP($C88,Vertices!$A$10:$F$203, 3, FALSE) -> 0 | K88: =VLOOKUP($C88,Vertices!$A$10:$F$203, 4, FALSE) -> 20 | L88: =VLOOKUP($C88,Vertices!$A$10:$F$203, 5, FALSE) -> 70 | M88: =VLOOKUP($C88,Vertices!$A$10:$F$203, 6, FALSE) -> 0 | N88: =VLOOKUP($D88,Vertices!$A$10:$F$203, 3, FALSE) -> 0 | O88: =VLOOKUP($D88,Vertices!$A$10:$F$203, 4, FALSE) -> 40 | P88: =VLOOKUP($D88,Vertices!$A$10:$F$203, 5, FALSE) -> 70 | Q88: =VLOOKUP($D88,Vertices!$A$10:$F$203, 6, FALSE) -> 0
A89: 79 | B89: 60 | C89: 72 | D89: 61 | F89: =VLOOKUP($B89,Vertices!$A$10:$F$203, 3, FALSE) -> 0 | G89: =VLOOKUP($B89,Vertices!$A$10:$F$203, 4, FALSE) -> 10 | H89: =VLOOKUP($B89,Vertices!$A$10:$F$203, 5, FALSE) -> 40 | I89: =VLOOKUP($B89,Vertices!$A$10:$F$203, 6, FALSE) -> 0 | J89: =VLOOKUP($C89,Vertices!$A$10:$F$203, 3, FALSE) -> 0 | K89: =VLOOKUP($C89,Vertices!$A$10:$F$203, 4, FALSE) -> 20 | L89: =VLOOKUP($C89,Vertices!$A$10:$F$203, 5, FALSE) -> 70 | M89: =VLOOKUP($C89,Vertices!$A$10:$F$203, 6, FALSE) -> 0 | N89: =VLOOKUP($D89,Vertices!$A$10:$F$203, 3, FALSE) -> 0 | O89: =VLOOKUP($D89,Vertices!$A$10:$F$203, 4, FALSE) -> 20 | P89: =VLOOKUP($D89,Vertices!$A$10:$F$203, 5, FALSE) -> 40 | Q89: =VLOOKUP($D89,Vertices!$A$10:$F$203, 6, FALSE) -> 0
A90: 80 | B90: 60 | C90: 71 | D90: 72 | F90: =VLOOKUP($B90,Vertices!$A$10:$F$203, 3, FALSE) -> 0 | G90: =VLOOKUP($B90,Vertices!$A$10:$F$203, 4, FALSE) -> 10 | H90: =VLOOKUP($B90,Vertices!$A$10:$F$203, 5, FALSE) -> 40 | I90: =VLOOKUP($B90,Vertices!$A$10:$F$203, 6, FALSE) -> 0 | J90: =VLOOKUP($C90,Vertices!$A$10:$F$203, 3, FALSE) -> 0 | K90: =VLOOKUP($C90,Vertices!$A$10:$F$203, 4, FALSE) -> 10 | L90: =VLOOKUP($C90,Vertices!$A$10:$F$203, 5, FALSE) -> 70 | M90: =VLOOKUP($C90,Vertices!$A$10:$F$203, 6, FALSE) -> 0 | N90: =VLOOKUP($D90,Vertices!$A$10:$F$203, 3, FALSE) -> 0 | O90: =VLOOKUP($D90,Vertices!$A$10:$F$203, 4, FALSE) -> 20 | P90: =VLOOKUP($D90,Vertices!$A$10:$F$203, 5, FALSE) -> 70 | Q90: =VLOOKUP($D90,Vertices!$A$10:$F$203, 6, FALSE) -> 0
A91: 81 | B91: 59 | C91: 71 | D91: 60 | F91: =VLOOKUP($B91,Vertices!$A$10:$F$203, 3, FALSE) -> 0 | G91: =VLOOKUP($B91,Vertices!$A$10:$F$203, 4, FALSE) -> 0 | H91: =VLOOKUP($B91,Vertices!$A$10:$F$203, 5, FALSE) -> 40 | I91: =VLOOKUP($B91,Vertices!$A$10:$F$203, 6, FALSE) -> 0 | J91: =VLOOKUP($C91,Vertices!$A$10:$F$203, 3, FALSE) -> 0 | K91: =VLOOKUP($C91,Vertices!$A$10:$F$203, 4, FALSE) -> 10 | L91: =VLOOKUP($C91,Vertices!$A$10:$F$203, 5, FALSE) -> 70 | M91: =VLOOKUP($C91,Vertices!$A$10:$F$203, 6, FALSE) -> 0 | N91: =VLOOKUP($D91,Vertices!$A$10:$F$203, 3, FALSE) -> 0 | O91: =VLOOKUP($D91,Vertices!$A$10:$F$203, 4, FALSE) -> 10 | P91: =VLOOKUP($D91,Vertices!$A$10:$F$203, 5, FALSE) -> 40 | Q91: =VLOOKUP($D91,Vertices!$A$10:$F$203, 6, FALSE) -> 0
A92: 82 | B92: 59 | C92: 70 | D92: 71 | F92: =VLOOKUP($B92,Vertices!$A$10:$F$203, 3, FALSE) -> 0 | G92: =VLOOKUP($B92,Vertices!$A$10:$F$203, 4, FALSE) -> 0 | H92: =VLOOKUP($B92,Vertices!$A$10:$F$203, 5, FALSE) -> 40 | I92: =VLOOKUP($B92,Vertices!$A$10:$F$203, 6, FALSE) -> 0 | J92: =VLOOKUP($C92,Vertices!$A$10:$F$203, 3, FALSE) -> 0 | K92: =VLOOKUP($C92,Vertices!$A$10:$F$203, 4, FALSE) -> 0 | L92: =VLOOKUP($C92,Vertices!$A$10:$F$203, 5, FALSE) -> 70 | M92: =VLOOKUP($C92,Vertices!$A$10:$F$203, 6, FALSE) -> 0 | N92: =VLOOKUP($D92,Vertices!$A$10:$F$203, 3, FALSE) -> 0 | O92: =VLOOKUP($D92,Vertices!$A$10:$F$203, 4, FALSE) -> 10 | P92: =VLOOKUP($D92,Vertices!$A$10:$F$203, 5, FALSE) -> 70 | Q92: =VLOOKUP($D92,Vertices!$A$10:$F$203, 6, FALSE) -> 0
A93: 83 | B93: 5 | C93: 42 | D93: 6 | F93: =VLOOKUP($B93,Vertices!$A$10:$F$203, 3, FALSE) -> 0 | G93: =VLOOKUP($B93,Vertices!$A$10:$F$203, 4, FALSE) -> 70 | H93: =VLOOKUP($B93,Vertices!$A$10:$F$203, 5, FALSE) -> 0 | I93: =VLOOKUP($B93,Vertices!$A$10:$F$203, 6, FALSE) -> 0 | J93: =VLOOKUP($C93,Vertices!$A$10:$F$203, 3, FALSE) -> 0 | K93: =VLOOKUP($C93,Vertices!$A$10:$F$203, 4, FALSE) -> 100 | L93: =VLOOKUP($C93,Vertices!$A$10:$F$203, 5, FALSE) -> 10 | M93: =VLOOKUP($C93,Vertices!$A$10:$F$203, 6, FALSE) -> 0 | N93: =VLOOKUP($D93,Vertices!$A$10:$F$203, 3, FALSE) -> 0 | O93: =VLOOKUP($D93,Vertices!$A$10:$F$203, 4, FALSE) -> 100 | P93: =VLOOKUP($D93,Vertices!$A$10:$F$203, 5, FALSE) -> 0 | Q93: =VLOOKUP($D93,Vertices!$A$10:$F$203, 6, FALSE) -> 0
A94: 84 | B94: 5 | C94: 41 | D94: 42 | F94: =VLOOKUP($B94,Vertices!$A$10:$F$203, 3, FALSE) -> 0 | G94: =VLOOKUP($B94,Vertices!$A$10:$F$203, 4, FALSE) -> 70 | H94: =VLOOKUP($B94,Vertices!$A$10:$F$203, 5, FALSE) -> 0 | I94: =VLOOKUP($B94,Vertices!$A$10:$F$203, 6, FALSE) -> 0 | J94: =VLOOKUP($C94,Vertices!$A$10:$F$203, 3, FALSE) -> 0 | K94: =VLOOKUP($C94,Vertices!$A$10:$F$203, 4, FALSE) -> 70 | L94: =VLOOKUP($C94,Vertices!$A$10:$F$203, 5, FALSE) -> 10 | M94: =VLOOKUP($C94,Vertices!$A$10:$F$203, 6, FALSE) -> 0 | N94: =VLOOKUP($D94,Vertices!$A$10:$F$203, 3, FALSE) -> 0 | O94: =VLOOKUP($D94,Vertices!$A$10:$F$203, 4, FALSE) -> 100 | P94: =VLOOKUP($D94,Vertices!$A$10:$F$203, 5, FALSE) -> 10 | Q94: =VLOOKUP($D94,Vertices!$A$10:$F$203, 6, FALSE) -> 0
A95: 85 | B95: 41 | C95: 53 | D95: 42 | F95: =VLOOKUP($B95,Vertices!$A$10:$F$203, 3, FALSE) -> 0 | G95: =VLOOKUP($B95,Vertices!$A$10:$F$203, 4, FALSE) -> 70 | H95: =VLOOKUP($B95,Vertices!$A$10:$F$203, 5, FALSE) -> 10 | I95: =VLOOKUP($B95,Vertices!$A$10:$F$203, 6, FALSE) -> 0 | J95: =VLOOKUP($C95,Vertices!$A$10:$F$203, 3, FALSE) -> 0 | K95: =VLOOKUP($C95,Vertices!$A$10:$F$203, 4, FALSE) -> 100 | L95: =VLOOKUP($C95,Vertices!$A$10:$F$203, 5, FALSE) -> 20 | M95: =VLOOKUP($C95,Vertices!$A$10:$F$203, 6, FALSE) -> 0 | N95: =VLOOKUP($D95,Vertices!$A$10:$F$203, 3, FALSE) -> 0 | O95: =VLOOKUP($D95,Vertices!$A$10:$F$203, 4, FALSE) -> 100 | P95: =VLOOKUP($D95,Vertices!$A$10:$F$203, 5, FALSE) -> 10 | Q95: =VLOOKUP($D95,Vertices!$A$10:$F$203, 6, FALSE) -> 0
A96: 86 | B96: 41 | C96: 52 | D96: 53 | F96: =VLOOKUP($B96,Vertices!$A$10:$F$203, 3, FALSE) -> 0 | G96: =VLOOKUP($B96,Vertices!$A$10:$F$203, 4, FALSE) -> 70 | H96: =VLOOKUP($B96,Vertices!$A$10:$F$203, 5, FALSE) -> 10 | I96: =VLOOKUP($B96,Vertices!$A$10:$F$203, 6, FALSE) -> 0 | J96: =VLOOKUP($C96,Vertices!$A$10:$F$203, 3, FALSE) -> 0 | K96: =VLOOKUP($C96,Vertices!$A$10:$F$203, 4, FALSE) -> 70 | L96: =VLOOKUP($C96,Vertices!$A$10:$F$203, 5, FALSE) -> 20 | M96: =VLOOKUP($C96,Vertices!$A$10:$F$203, 6, FALSE) -> 0 | N96: =VLOOKUP($D96,Vertices!$A$10:$F$203, 3, FALSE) -> 0 | O96: =VLOOKUP($D96,Vertices!$A$10:$F$203, 4, FALSE) -> 100 | P96: =VLOOKUP($D96,Vertices!$A$10:$F$203, 5, FALSE) -> 20 | Q96: =VLOOKUP($D96,Vertices!$A$10:$F$203, 6, FALSE) -> 0
A97: 87 | B97: 52 | C97: 64 | D97: 53 | F97: =VLOOKUP($B97,Vertices!$A$10:$F$203, 3, FALSE) -> 0 | G97: =VLOOKUP($B97,Vertices!$A$10:$F$203, 4, FALSE) -> 70 | H97: =VLOOKUP($B97,Vertices!$A$10:$F$203, 5, FALSE) -> 20 | I97: =VLOOKUP($B97,Vertices!$A$10:$F$203, 6, FALSE) -> 0 | J97: =VLOOKUP($C97,Vertices!$A$10:$F$203, 3, FALSE) -> 0 | K97: =VLOOKUP($C97,Vertices!$A$10:$F$203, 4, FALSE) -> 100 | L97: =VLOOKUP($C97,Vertices!$A$10:$F$203, 5, FALSE) -> 40 | M97: =VLOOKUP($C97,Vertices!$A$10:$F$203, 6, FALSE) -> 0 | N97: =VLOOKUP($D97,Vertices!$A$10:$F$203, 3, FALSE) -> 0 | O97: =VLOOKUP($D97,Vertices!$A$10:$F$203, 4, FALSE) -> 100 | P97: =VLOOKUP($D97,Vertices!$A$10:$F$203, 5, FALSE) -> 20 | Q97: =VLOOKUP($D97,Vertices!$A$10:$F$203, 6, FALSE) -> 0
A98: 88 | B98: 52 | C98: 63 | D98: 64 | F98: =VLOOKUP($B98,Vertices!$A$10:$F$203, 3, FALSE) -> 0 | G98: =VLOOKUP($B98,Vertices!$A$10:$F$203, 4, FALSE) -> 70 | H98: =VLOOKUP($B98,Vertices!$A$10:$F$203, 5, FALSE) -> 20 | I98: =VLOOKUP($B98,Vertices!$A$10:$F$203, 6, FALSE) -> 0 | J98: =VLOOKUP($C98,Vertices!$A$10:$F$203, 3, FALSE) -> 0 | K98: =VLOOKUP($C98,Vertices!$A$10:$F$203, 4, FALSE) -> 70 | L98: =VLOOKUP($C98,Vertices!$A$10:$F$203, 5, FALSE) -> 40 | M98: =VLOOKUP($C98,Vertices!$A$10:$F$203, 6, FALSE) -> 0 | N98: =VLOOKUP($D98,Vertices!$A$10:$F$203, 3, FALSE) -> 0 | O98: =VLOOKUP($D98,Vertices!$A$10:$F$203, 4, FALSE) -> 100 | P98: =VLOOKUP($D98,Vertices!$A$10:$F$203, 5, FALSE) -> 40 | Q98: =VLOOKUP($D98,Vertices!$A$10:$F$203, 6, FALSE) -> 0
A99: 89 | B99: 63 | C99: 75 | D99: 64 | F99: =VLOOKUP($B99,Vertices!$A$10:$F$203, 3, FALSE) -> 0 | G99: =VLOOKUP($B99,Vertices!$A$10:$F$203, 4, FALSE) -> 70 | H99: =VLOOKUP($B99,Vertices!$A$10:$F$203, 5, FALSE) -> 40 | I99: =VLOOKUP($B99,Vertices!$A$10:$F$203, 6, FALSE) -> 0 | J99: =VLOOKUP($C99,Vertices!$A$10:$F$203, 3, FALSE) -> 0 | K99: =VLOOKUP($C99,Vertices!$A$10:$F$203, 4, FALSE) -> 100 | L99: =VLOOKUP($C99,Vertices!$A$10:$F$203, 5, FALSE) -> 70 | M99: =VLOOKUP($C99,Vertices!$A$10:$F$203, 6, FALSE) -> 0 | N99: =VLOOKUP($D99,Vertices!$A$10:$F$203, 3, FALSE) -> 0 | O99: =VLOOKUP($D99,Vertices!$A$10:$F$203, 4, FALSE) -> 100 | P99: =VLOOKUP($D99,Vertices!$A$10:$F$203, 5, FALSE) -> 40 | Q99: =VLOOKUP($D99,Vertices!$A$10:$F$203, 6, FALSE) -> 0
A100: 90 | B100: 63 | C100: 74 | D100: 75 | F100: =VLOOKUP($B100,Vertices!$A$10:$F$203, 3, FALSE) -> 0 | G100: =VLOOKUP($B100,Vertices!$A$10:$F$203, 4, FALSE) -> 70 | H100: =VLOOKUP($B100,Vertices!$A$10:$F$203, 5, FALSE) -> 40 | I100: =VLOOKUP($B100,Vertices!$A$10:$F$203, 6, FALSE) -> 0 | J100: =VLOOKUP($C100,Vertices!$A$10:$F$203, 3, FALSE) -> 0 | K100: =VLOOKUP($C100,Vertices!$A$10:$F$203, 4, FALSE) -> 70 | L100: =VLOOKUP($C100,Vertices!$A$10:$F$203, 5, FALSE) -> 70 | M100: =VLOOKUP($C100,Vertices!$A$10:$F$203, 6, FALSE) -> 0 | N100: =VLOOKUP($D100,Vertices!$A$10:$F$203, 3, FALSE) -> 0 | O100: =VLOOKUP($D100,Vertices!$A$10:$F$203, 4, FALSE) -> 100 | P100: =VLOOKUP($D100,Vertices!$A$10:$F$203, 5, FALSE) -> 70 | Q100: =VLOOKUP($D100,Vertices!$A$10:$F$203, 6, FALSE) -> 0
A101: 91 | B101: 74 | C101: 86 | D101: 75 | F101: =VLOOKUP($B101,Vertices!$A$10:$F$203, 3, FALSE) -> 0 | G101: =VLOOKUP($B101,Vertices!$A$10:$F$203, 4, FALSE) -> 70 | H101: =VLOOKUP($B101,Vertices!$A$10:$F$203, 5, FALSE) -> 70 | I101: =VLOOKUP($B101,Vertices!$A$10:$F$203, 6, FALSE) -> 0 | J101: =VLOOKUP($C101,Vertices!$A$10:$F$203, 3, FALSE) -> 0 | K101: =VLOOKUP($C101,Vertices!$A$10:$F$203, 4, FALSE) -> 100 | L101: =VLOOKUP($C101,Vertices!$A$10:$F$203, 5, FALSE) -> 100 | M101: =VLOOKUP($C101,Vertices!$A$10:$F$203, 6, FALSE) -> 0 | N101: =VLOOKUP($D101,Vertices!$A$10:$F$203, 3, FALSE) -> 0 | O101: =VLOOKUP($D101,Vertices!$A$10:$F$203, 4, FALSE) -> 100 | P101: =VLOOKUP($D101,Vertices!$A$10:$F$203, 5, FALSE) -> 70 | Q101: =VLOOKUP($D101,Vertices!$A$10:$F$203, 6, FALSE) -> 0
A102: 92 | B102: 74 | C102: 85 | D102: 86 | F102: =VLOOKUP($B102,Vertices!$A$10:$F$203, 3, FALSE) -> 0 | G102: =VLOOKUP($B102,Vertices!$A$10:$F$203, 4, FALSE) -> 70 | H102: =VLOOKUP($B102,Vertices!$A$10:$F$203, 5, FALSE) -> 70 | I102: =VLOOKUP($B102,Vertices!$A$10:$F$203, 6, FALSE) -> 0 | J102: =VLOOKUP($C102,Vertices!$A$10:$F$203, 3, FALSE) -> 0 | K102: =VLOOKUP($C102,Vertices!$A$10:$F$203, 4, FALSE) -> 70 | L102: =VLOOKUP($C102,Vertices!$A$10:$F$203, 5, FALSE) -> 100 | M102: =VLOOKUP($C102,Vertices!$A$10:$F$203, 6, FALSE) -> 0 | N102: =VLOOKUP($D102,Vertices!$A$10:$F$203, 3, FALSE) -> 0 | O102: =VLOOKUP($D102,Vertices!$A$10:$F$203, 4, FALSE) -> 100 | P102: =VLOOKUP($D102,Vertices!$A$10:$F$203, 5, FALSE) -> 100 | Q102: =VLOOKUP($D102,Vertices!$A$10:$F$203, 6, FALSE) -> 0
A103: 93 | B103: 73 | C103: 85 | D103: 74 | F103: =VLOOKUP($B103,Vertices!$A$10:$F$203, 3, FALSE) -> 0 | G103: =VLOOKUP($B103,Vertices!$A$10:$F$203, 4, FALSE) -> 40 | H103: =VLOOKUP($B103,Vertices!$A$10:$F$203, 5, FALSE) -> 70 | I103: =VLOOKUP($B103,Vertices!$A$10:$F$203, 6, FALSE) -> 0 | J103: =VLOOKUP($C103,Vertices!$A$10:$F$203, 3, FALSE) -> 0 | K103: =VLOOKUP($C103,Vertices!$A$10:$F$203, 4, FALSE) -> 70 | L103: =VLOOKUP($C103,Vertices!$A$10:$F$203, 5, FALSE) -> 100 | M103: =VLOOKUP($C103,Vertices!$A$10:$F$203, 6, FALSE) -> 0 | N103: =VLOOKUP($D103,Vertices!$A$10:$F$203, 3, FALSE) -> 0 | O103: =VLOOKUP($D103,Vertices!$A$10:$F$203, 4, FALSE) -> 70 | P103: =VLOOKUP($D103,Vertices!$A$10:$F$203, 5, FALSE) -> 70 | Q103: =VLOOKUP($D103,Vertices!$A$10:$F$203, 6, FALSE) -> 0
A104: 94 | B104: 73 | C104: 84 | D104: 85 | F104: =VLOOKUP($B104,Vertices!$A$10:$F$203, 3, FALSE) -> 0 | G104: =VLOOKUP($B104,Vertices!$A$10:$F$203, 4, FALSE) -> 40 | H104: =VLOOKUP($B104,Vertices!$A$10:$F$203, 5, FALSE) -> 70 | I104: =VLOOKUP($B104,Vertices!$A$10:$F$203, 6, FALSE) -> 0 | J104: =VLOOKUP($C104,Vertices!$A$10:$F$203, 3, FALSE) -> 0 | K104: =VLOOKUP($C104,Vertices!$A$10:$F$203, 4, FALSE) -> 40 | L104: =VLOOKUP($C104,Vertices!$A$10:$F$203, 5, FALSE) -> 100 | M104: =VLOOKUP($C104,Vertices!$A$10:$F$203, 6, FALSE) -> 0 | N104: =VLOOKUP($D104,Vertices!$A$10:$F$203, 3, FALSE) -> 0 | O104: =VLOOKUP($D104,Vertices!$A$10:$F$203, 4, FALSE) -> 70 | P104: =VLOOKUP($D104,Vertices!$A$10:$F$203, 5, FALSE) -> 100 | Q104: =VLOOKUP($D104,Vertices!$A$10:$F$203, 6, FALSE) -> 0
A105: 95 | B105: 72 | C105: 84 | D105: 73 | F105: =VLOOKUP($B105,Vertices!$A$10:$F$203, 3, FALSE) -> 0 | G105: =VLOOKUP($B105,Vertices!$A$10:$F$203, 4, FALSE) -> 20 | H105: =VLOOKUP($B105,Vertices!$A$10:$F$203, 5, FALSE) -> 70 | I105: =VLOOKUP($B105,Vertices!$A$10:$F$203, 6, FALSE) -> 0 | J105: =VLOOKUP($C105,Vertices!$A$10:$F$203, 3, FALSE) -> 0 | K105: =VLOOKUP($C105,Vertices!$A$10:$F$203, 4, FALSE) -> 40 | L105: =VLOOKUP($C105,Vertices!$A$10:$F$203, 5, FALSE) -> 100 | M105: =VLOOKUP($C105,Vertices!$A$10:$F$203, 6, FALSE) -> 0 | N105: =VLOOKUP($D105,Vertices!$A$10:$F$203, 3, FALSE) -> 0 | O105: =VLOOKUP($D105,Vertices!$A$10:$F$203, 4, FALSE) -> 40 | P105: =VLOOKUP($D105,Vertices!$A$10:$F$203, 5, FALSE) -> 70 | Q105: =VLOOKUP($D105,Vertices!$A$10:$F$203, 6, FALSE) -> 0
A106: 96 | B106: 72 | C106: 83 | D106: 84 | F106: =VLOOKUP($B106,Vertices!$A$10:$F$203, 3, FALSE) -> 0 | G106: =VLOOKUP($B106,Vertices!$A$10:$F$203, 4, FALSE) -> 20 | H106: =VLOOKUP($B106,Vertices!$A$10:$F$203, 5, FALSE) -> 70 | I106: =VLOOKUP($B106,Vertices!$A$10:$F$203, 6, FALSE) -> 0 | J106: =VLOOKUP($C106,Vertices!$A$10:$F$203, 3, FALSE) -> 0 | K106: =VLOOKUP($C106,Vertices!$A$10:$F$203, 4, FALSE) -> 20 | L106: =VLOOKUP($C106,Vertices!$A$10:$F$203, 5, FALSE) -> 100 | M106: =VLOOKUP($C106,Vertices!$A$10:$F$203, 6, FALSE) -> 0 | N106: =VLOOKUP($D106,Vertices!$A$10:$F$203, 3, FALSE) -> 0 | O106: =VLOOKUP($D106,Vertices!$A$10:$F$203, 4, FALSE) -> 40 | P106: =VLOOKUP($D106,Vertices!$A$10:$F$203, 5, FALSE) -> 100 | Q106: =VLOOKUP($D106,Vertices!$A$10:$F$203, 6, FALSE) -> 0
A107: 97 | B107: 71 | C107: 83 | D107: 72 | F107: =VLOOKUP($B107,Vertices!$A$10:$F$203, 3, FALSE) -> 0 | G107: =VLOOKUP($B107,Vertices!$A$10:$F$203, 4, FALSE) -> 10 | H107: =VLOOKUP($B107,Vertices!$A$10:$F$203, 5, FALSE) -> 70 | I107: =VLOOKUP($B107,Vertices!$A$10:$F$203, 6, FALSE) -> 0 | J107: =VLOOKUP($C107,Vertices!$A$10:$F$203, 3, FALSE) -> 0 | K107: =VLOOKUP($C107,Vertices!$A$10:$F$203, 4, FALSE) -> 20 | L107: =VLOOKUP($C107,Vertices!$A$10:$F$203, 5, FALSE) -> 100 | M107: =VLOOKUP($C107,Vertices!$A$10:$F$203, 6, FALSE) -> 0 | N107: =VLOOKUP($D107,Vertices!$A$10:$F$203, 3, FALSE) -> 0 | O107: =VLOOKUP($D107,Vertices!$A$10:$F$203, 4, FALSE) -> 20 | P107: =VLOOKUP($D107,Vertices!$A$10:$F$203, 5, FALSE) -> 70 | Q107: =VLOOKUP($D107,Vertices!$A$10:$F$203, 6, FALSE) -> 0
A108: 98 | B108: 71 | C108: 82 | D108: 83 | F108: =VLOOKUP($B108,Vertices!$A$10:$F$203, 3, FALSE) -> 0 | G108: =VLOOKUP($B108,Vertices!$A$10:$F$203, 4, FALSE) -> 10 | H108: =VLOOKUP($B108,Vertices!$A$10:$F$203, 5, FALSE) -> 70 | I108: =VLOOKUP($B108,Vertices!$A$10:$F$203, 6, FALSE) -> 0 | J108: =VLOOKUP($C108,Vertices!$A$10:$F$203, 3, FALSE) -> 0 | K108: =VLOOKUP($C108,Vertices!$A$10:$F$203, 4, FALSE) -> 10 | L108: =VLOOKUP($C108,Vertices!$A$10:$F$203, 5, FALSE) -> 100 | M108: =VLOOKUP($C108,Vertices!$A$10:$F$203, 6, FALSE) -> 0 | N108: =VLOOKUP($D108,Vertices!$A$10:$F$203, 3, FALSE) -> 0 | O108: =VLOOKUP($D108,Vertices!$A$10:$F$203, 4, FALSE) -> 20 | P108: =VLOOKUP($D108,Vertices!$A$10:$F$203, 5, FALSE) -> 100 | Q108: =VLOOKUP($D108,Vertices!$A$10:$F$203, 6, FALSE) -> 0
A109: 99 | B109: 70 | C109: 82 | D109: 71 | F109: =VLOOKUP($B109,Vertices!$A$10:$F$203, 3, FALSE) -> 0 | G109: =VLOOKUP($B109,Vertices!$A$10:$F$203, 4, FALSE) -> 0 | H109: =VLOOKUP($B109,Vertices!$A$10:$F$203, 5, FALSE) -> 70 | I109: =VLOOKUP($B109,Vertices!$A$10:$F$203, 6, FALSE) -> 0 | J109: =VLOOKUP($C109,Vertices!$A$10:$F$203, 3, FALSE) -> 0 | K109: =VLOOKUP($C109,Vertices!$A$10:$F$203, 4, FALSE) -> 10 | L109: =VLOOKUP($C109,Vertices!$A$10:$F$203, 5, FALSE) -> 100 | M109: =VLOOKUP($C109,Vertices!$A$10:$F$203, 6, FALSE) -> 0 | N109: =VLOOKUP($D109,Vertices!$A$10:$F$203, 3, FALSE) -> 0 | O109: =VLOOKUP($D109,Vertices!$A$10:$F$203, 4, FALSE) -> 10 | P109: =VLOOKUP($D109,Vertices!$A$10:$F$203, 5, FALSE) -> 70 | Q109: =VLOOKUP($D109,Vertices!$A$10:$F$203, 6, FALSE) -> 0
A110: 100 | B110: 70 | C110: 81 | D110: 82 | F110: =VLOOKUP($B110,Vertices!$A$10:$F$203, 3, FALSE) -> 0 | G110: =VLOOKUP($B110,Vertices!$A$10:$F$203, 4, FALSE) -> 0 | H110: =VLOOKUP($B110,Vertices!$A$10:$F$203, 5, FALSE) -> 70 | I110: =VLOOKUP($B110,Vertices!$A$10:$F$203, 6, FALSE) -> 0 | J110: =VLOOKUP($C110,Vertices!$A$10:$F$203, 3, FALSE) -> 0 | K110: =VLOOKUP($C110,Vertices!$A$10:$F$203, 4, FALSE) -> 0 | L110: =VLOOKUP($C110,Vertices!$A$10:$F$203, 5, FALSE) -> 100 | M110: =VLOOKUP($C110,Vertices!$A$10:$F$203, 6, FALSE) -> 0 | N110: =VLOOKUP($D110,Vertices!$A$10:$F$203, 3, FALSE) -> 0 | O110: =VLOOKUP($D110,Vertices!$A$10:$F$203, 4, FALSE) -> 10 | P110: =VLOOKUP($D110,Vertices!$A$10:$F$203, 5, FALSE) -> 100 | Q110: =VLOOKUP($D110,Vertices!$A$10:$F$203, 6, FALSE) -> 0
A111: 101 | B111: 1 | C111: 7 | D111: 43 | F111: =VLOOKUP($B111,Vertices!$A$10:$F$203, 3, FALSE) -> 0 | G111: =VLOOKUP($B111,Vertices!$A$10:$F$203, 4, FALSE) -> 0 | H111: =VLOOKUP($B111,Vertices!$A$10:$F$203, 5, FALSE) -> 0 | I111: =VLOOKUP($B111,Vertices!$A$10:$F$203, 6, FALSE) -> 0 | J111: =VLOOKUP($C111,Vertices!$A$10:$F$203, 3, FALSE) -> 10 | K111: =VLOOKUP($C111,Vertices!$A$10:$F$203, 4, FALSE) -> 0 | L111: =VLOOKUP($C111,Vertices!$A$10:$F$203, 5, FALSE) -> 0 | M111: =VLOOKUP($C111,Vertices!$A$10:$F$203, 6, FALSE) -> 0 | N111: =VLOOKUP($D111,Vertices!$A$10:$F$203, 3, FALSE) -> 10 | O111: =VLOOKUP($D111,Vertices!$A$10:$F$203, 4, FALSE) -> 0 | P111: =VLOOKUP($D111,Vertices!$A$10:$F$203, 5, FALSE) -> 10 | Q111: =VLOOKUP($D111,Vertices!$A$10:$F$203, 6, FALSE) -> 0
A112: 102 | B112: 1 | C112: 43 | D112: 37 | F112: =VLOOKUP($B112,Vertices!$A$10:$F$203, 3, FALSE) -> 0 | G112: =VLOOKUP($B112,Vertices!$A$10:$F$203, 4, FALSE) -> 0 | H112: =VLOOKUP($B112,Vertices!$A$10:$F$203, 5, FALSE) -> 0 | I112: =VLOOKUP($B112,Vertices!$A$10:$F$203, 6, FALSE) -> 0 | J112: =VLOOKUP($C112,Vertices!$A$10:$F$203, 3, FALSE) -> 10 | K112: =VLOOKUP($C112,Vertices!$A$10:$F$203, 4, FALSE) -> 0 | L112: =VLOOKUP($C112,Vertices!$A$10:$F$203, 5, FALSE) -> 10 | M112: =VLOOKUP($C112,Vertices!$A$10:$F$203, 6, FALSE) -> 0 | N112: =VLOOKUP($D112,Vertices!$A$10:$F$203, 3, FALSE) -> 0 | O112: =VLOOKUP($D112,Vertices!$A$10:$F$203, 4, FALSE) -> 0 | P112: =VLOOKUP($D112,Vertices!$A$10:$F$203, 5, FALSE) -> 10 | Q112: =VLOOKUP($D112,Vertices!$A$10:$F$203, 6, FALSE) -> 0
A113: 103 | B113: 7 | C113: 13 | D113: 44 | F113: =VLOOKUP($B113,Vertices!$A$10:$F$203, 3, FALSE) -> 10 | G113: =VLOOKUP($B113,Vertices!$A$10:$F$203, 4, FALSE) -> 0 | H113: =VLOOKUP($B113,Vertices!$A$10:$F$203, 5, FALSE) -> 0 | I113: =VLOOKUP($B113,Vertices!$A$10:$F$203, 6, FALSE) -> 0 | J113: =VLOOKUP($C113,Vertices!$A$10:$F$203, 3, FALSE) -> 20 | K113: =VLOOKUP($C113,Vertices!$A$10:$F$203, 4, FALSE) -> 0 | L113: =VLOOKUP($C113,Vertices!$A$10:$F$203, 5, FALSE) -> 0 | M113: =VLOOKUP($C113,Vertices!$A$10:$F$203, 6, FALSE) -> 0 | N113: =VLOOKUP($D113,Vertices!$A$10:$F$203, 3, FALSE) -> 20 | O113: =VLOOKUP($D113,Vertices!$A$10:$F$203, 4, FALSE) -> 0 | P113: =VLOOKUP($D113,Vertices!$A$10:$F$203, 5, FALSE) -> 10 | Q113: =VLOOKUP($D113,Vertices!$A$10:$F$203, 6, FALSE) -> 0
A114: 104 | B114: 7 | C114: 44 | D114: 43 | F114: =VLOOKUP($B114,Vertices!$A$10:$F$203, 3, FALSE) -> 10 | G114: =VLOOKUP($B114,Vertices!$A$10:$F$203, 4, FALSE) -> 0 | H114: =VLOOKUP($B114,Vertices!$A$10:$F$203, 5, FALSE) -> 0 | I114: =VLOOKUP($B114,Vertices!$A$10:$F$203, 6, FALSE) -> 0 | J114: =VLOOKUP($C114,Vertices!$A$10:$F$203, 3, FALSE) -> 20 | K114: =VLOOKUP($C114,Vertices!$A$10:$F$203, 4, FALSE) -> 0 | L114: =VLOOKUP($C114,Vertices!$A$10:$F$203, 5, FALSE) -> 10 | M114: =VLOOKUP($C114,Vertices!$A$10:$F$203, 6, FALSE) -> 0 | N114: =VLOOKUP($D114,Vertices!$A$10:$F$203, 3, FALSE) -> 10 | O114: =VLOOKUP($D114,Vertices!$A$10:$F$203, 4, FALSE) -> 0 | P114: =VLOOKUP($D114,Vertices!$A$10:$F$203, 5, FALSE) -> 10 | Q114: =VLOOKUP($D114,Vertices!$A$10:$F$203, 6, FALSE) -> 0
A115: 105 | B115: 43 | C115: 44 | D115: 55 | F115: =VLOOKUP($B115,Vertices!$A$10:$F$203, 3, FALSE) -> 10 | G115: =VLOOKUP($B115,Vertices!$A$10:$F$203, 4, FALSE) -> 0 | H115: =VLOOKUP($B115,Vertices!$A$10:$F$203, 5, FALSE) -> 10 | I115: =VLOOKUP($B115,Vertices!$A$10:$F$203, 6, FALSE) -> 0 | J115: =VLOOKUP($C115,Vertices!$A$10:$F$203, 3, FALSE) -> 20 | K115: =VLOOKUP($C115,Vertices!$A$10:$F$203, 4, FALSE) -> 0 | L115: =VLOOKUP($C115,Vertices!$A$10:$F$203, 5, FALSE) -> 10 | M115: =VLOOKUP($C115,Vertices!$A$10:$F$203, 6, FALSE) -> 0 | N115: =VLOOKUP($D115,Vertices!$A$10:$F$203, 3, FALSE) -> 20 | O115: =VLOOKUP($D115,Vertices!$A$10:$F$203, 4, FALSE) -> 0 | P115: =VLOOKUP($D115,Vertices!$A$10:$F$203, 5, FALSE) -> 20 | Q115: =VLOOKUP($D115,Vertices!$A$10:$F$203, 6, FALSE) -> 0
A116: 106 | B116: 43 | C116: 55 | D116: 54 | F116: =VLOOKUP($B116,Vertices!$A$10:$F$203, 3, FALSE) -> 10 | G116: =VLOOKUP($B116,Vertices!$A$10:$F$203, 4, FALSE) -> 0 | H116: =VLOOKUP($B116,Vertices!$A$10:$F$203, 5, FALSE) -> 10 | I116: =VLOOKUP($B116,Vertices!$A$10:$F$203, 6, FALSE) -> 0 | J116: =VLOOKUP($C116,Vertices!$A$10:$F$203, 3, FALSE) -> 20 | K116: =VLOOKUP($C116,Vertices!$A$10:$F$203, 4, FALSE) -> 0 | L116: =VLOOKUP($C116,Vertices!$A$10:$F$203, 5, FALSE) -> 20 | M116: =VLOOKUP($C116,Vertices!$A$10:$F$203, 6, FALSE) -> 0 | N116: =VLOOKUP($D116,Vertices!$A$10:$F$203, 3, FALSE) -> 10 | O116: =VLOOKUP($D116,Vertices!$A$10:$F$203, 4, FALSE) -> 0 | P116: =VLOOKUP($D116,Vertices!$A$10:$F$203, 5, FALSE) -> 20 | Q116: =VLOOKUP($D116,Vertices!$A$10:$F$203, 6, FALSE) -> 0
A117: 107 | B117: 37 | C117: 43 | D117: 54 | F117: =VLOOKUP($B117,Vertices!$A$10:$F$203, 3, FALSE) -> 0 | G117: =VLOOKUP($B117,Vertices!$A$10:$F$203, 4, FALSE) -> 0 | H117: =VLOOKUP($B117,Vertices!$A$10:$F$203, 5, FALSE) -> 10 | I117: =VLOOKUP($B117,Vertices!$A$10:$F$203, 6, FALSE) -> 0 | J117: =VLOOKUP($C117,Vertices!$A$10:$F$203, 3, FALSE) -> 10 | K117: =VLOOKUP($C117,Vertices!$A$10:$F$203, 4, FALSE) -> 0 | L117: =VLOOKUP($C117,Vertices!$A$10:$F$203, 5, FALSE) -> 10 | M117: =VLOOKUP($C117,Vertices!$A$10:$F$203, 6, FALSE) -> 0 | N117: =VLOOKUP($D117,Vertices!$A$10:$F$203, 3, FALSE) -> 10 | O117: =VLOOKUP($D117,Vertices!$A$10:$F$203, 4, FALSE) -> 0 | P117: =VLOOKUP($D117,Vertices!$A$10:$F$203, 5, FALSE) -> 20 | Q117: =VLOOKUP($D117,Vertices!$A$10:$F$203, 6, FALSE) -> 0
A118: 108 | B118: 37 | C118: 54 | D118: 48 | F118: =VLOOKUP($B118,Vertices!$A$10:$F$203, 3, FALSE) -> 0 | G118: =VLOOKUP($B118,Vertices!$A$10:$F$203, 4, FALSE) -> 0 | H118: =VLOOKUP($B118,Vertices!$A$10:$F$203, 5, FALSE) -> 10 | I118: =VLOOKUP($B118,Vertices!$A$10:$F$203, 6, FALSE) -> 0 | J118: =VLOOKUP($C118,Vertices!$A$10:$F$203, 3, FALSE) -> 10 | K118: =VLOOKUP($C118,Vertices!$A$10:$F$203, 4, FALSE) -> 0 | L118: =VLOOKUP($C118,Vertices!$A$10:$F$203, 5, FALSE) -> 20 | M118: =VLOOKUP($C118,Vertices!$A$10:$F$203, 6, FALSE) -> 0 | N118: =VLOOKUP($D118,Vertices!$A$10:$F$203, 3, FALSE) -> 0 | O118: =VLOOKUP($D118,Vertices!$A$10:$F$203, 4, FALSE) -> 0 | P118: =VLOOKUP($D118,Vertices!$A$10:$F$203, 5, FALSE) -> 20 | Q118: =VLOOKUP($D118,Vertices!$A$10:$F$203, 6, FALSE) -> 0
A119: 109 | B119: 13 | C119: 19 | D119: 45 | F119: =VLOOKUP($B119,Vertices!$A$10:$F$203, 3, FALSE) -> 20 | G119: =VLOOKUP($B119,Vertices!$A$10:$F$203, 4, FALSE) -> 0 | H119: =VLOOKUP($B119,Vertices!$A$10:$F$203, 5, FALSE) -> 0 | I119: =VLOOKUP($B119,Vertices!$A$10:$F$203, 6, FALSE) -> 0 | J119: =VLOOKUP($C119,Vertices!$A$10:$F$203, 3, FALSE) -> 40 | K119: =VLOOKUP($C119,Vertices!$A$10:$F$203, 4, FALSE) -> 0 | L119: =VLOOKUP($C119,Vertices!$A$10:$F$203, 5, FALSE) -> 0 | M119: =VLOOKUP($C119,Vertices!$A$10:$F$203, 6, FALSE) -> 0 | N119: =VLOOKUP($D119,Vertices!$A$10:$F$203, 3, FALSE) -> 40 | O119: =VLOOKUP($D119,Vertices!$A$10:$F$203, 4, FALSE) -> 0 | P119: =VLOOKUP($D119,Vertices!$A$10:$F$203, 5, FALSE) -> 10 | Q119: =VLOOKUP($D119,Vertices!$A$10:$F$203, 6, FALSE) -> 0
A120: 110 | B120: 13 | C120: 45 | D120: 44 | F120: =VLOOKUP($B120,Vertices!$A$10:$F$203, 3, FALSE) -> 20 | G120: =VLOOKUP($B120,Vertices!$A$10:$F$203, 4, FALSE) -> 0 | H120: =VLOOKUP($B120,Vertices!$A$10:$F$203, 5, FALSE) -> 0 | I120: =VLOOKUP($B120,Vertices!$A$10:$F$203, 6, FALSE) -> 0 | J120: =VLOOKUP($C120,Vertices!$A$10:$F$203, 3, FALSE) -> 40 | K120: =VLOOKUP($C120,Vertices!$A$10:$F$203, 4, FALSE) -> 0 | L120: =VLOOKUP($C120,Vertices!$A$10:$F$203, 5, FALSE) -> 10 | M120: =VLOOKUP($C120,Vertices!$A$10:$F$203, 6, FALSE) -> 0 | N120: =VLOOKUP($D120,Vertices!$A$10:$F$203, 3, FALSE) -> 20 | O120: =VLOOKUP($D120,Vertices!$A$10:$F$203, 4, FALSE) -> 0 | P120: =VLOOKUP($D120,Vertices!$A$10:$F$203, 5, FALSE) -> 10 | Q120: =VLOOKUP($D120,Vertices!$A$10:$F$203, 6, FALSE) -> 0
A121: 111 | B121: 44 | C121: 45 | D121: 56 | F121: =VLOOKUP($B121,Vertices!$A$10:$F$203, 3, FALSE) -> 20 | G121: =VLOOKUP($B121,Vertices!$A$10:$F$203, 4, FALSE) -> 0 | H121: =VLOOKUP($B121,Vertices!$A$10:$F$203, 5, FALSE) -> 10 | I121: =VLOOKUP($B121,Vertices!$A$10:$F$203, 6, FALSE) -> 0 | J121: =VLOOKUP($C121,Vertices!$A$10:$F$203, 3, FALSE) -> 40 | K121: =VLOOKUP($C121,Vertices!$A$10:$F$203, 4, FALSE) -> 0 | L121: =VLOOKUP($C121,Vertices!$A$10:$F$203, 5, FALSE) -> 10 | M121: =VLOOKUP($C121,Vertices!$A$10:$F$203, 6, FALSE) -> 0 | N121: =VLOOKUP($D121,Vertices!$A$10:$F$203, 3, FALSE) -> 40 | O121: =VLOOKUP($D121,Vertices!$A$10:$F$203, 4, FALSE) -> 0 | P121: =VLOOKUP($D121,Vertices!$A$10:$F$203, 5, FALSE) -> 20 | Q121: =VLOOKUP($D121,Vertices!$A$10:$F$203, 6, FALSE) -> 0
A122: 112 | B122: 44 | C122: 56 | D122: 55 | F122: =VLOOKUP($B122,Vertices!$A$10:$F$203, 3, FALSE) -> 20 | G122: =VLOOKUP($B122,Vertices!$A$10:$F$203, 4, FALSE) -> 0 | H122: =VLOOKUP($B122,Vertices!$A$10:$F$203, 5, FALSE) -> 10 | I122: =VLOOKUP($B122,Vertices!$A$10:$F$203, 6, FALSE) -> 0 | J122: =VLOOKUP($C122,Vertices!$A$10:$F$203, 3, FALSE) -> 40 | K122: =VLOOKUP($C122,Vertices!$A$10:$F$203, 4, FALSE) -> 0 | L122: =VLOOKUP($C122,Vertices!$A$10:$F$203, 5, FALSE) -> 20 | M122: =VLOOKUP($C122,Vertices!$A$10:$F$203, 6, FALSE) -> 0 | N122: =VLOOKUP($D122,Vertices!$A$10:$F$203, 3, FALSE) -> 20 | O122: =VLOOKUP($D122,Vertices!$A$10:$F$203, 4, FALSE) -> 0 | P122: =VLOOKUP($D122,Vertices!$A$10:$F$203, 5, FALSE) -> 20 | Q122: =VLOOKUP($D122,Vertices!$A$10:$F$203, 6, FALSE) -> 0
A123: 113 | B123: 55 | C123: 56 | D123: 67 | F123: =VLOOKUP($B123,Vertices!$A$10:$F$203, 3, FALSE) -> 20 | G123: =VLOOKUP($B123,Vertices!$A$10:$F$203, 4, FALSE) -> 0 | H123: =VLOOKUP($B123,Vertices!$A$10:$F$203, 5, FALSE) -> 20 | I123: =VLOOKUP($B123,Vertices!$A$10:$F$203, 6, FALSE) -> 0 | J123: =VLOOKUP($C123,Vertices!$A$10:$F$203, 3, FALSE) -> 40 | K123: =VLOOKUP($C123,Vertices!$A$10:$F$203, 4, FALSE) -> 0 | L123: =VLOOKUP($C123,Vertices!$A$10:$F$203, 5, FALSE) -> 20 | M123: =VLOOKUP($C123,Vertices!$A$10:$F$203, 6, FALSE) -> 0 | N123: =VLOOKUP($D123,Vertices!$A$10:$F$203, 3, FALSE) -> 40 | O123: =VLOOKUP($D123,Vertices!$A$10:$F$203, 4, FALSE) -> 0 | P123: =VLOOKUP($D123,Vertices!$A$10:$F$203, 5, FALSE) -> 40 | Q123: =VLOOKUP($D123,Vertices!$A$10:$F$203, 6, FALSE) -> 0
A124: 114 | B124: 55 | C124: 67 | D124: 66 | F124: =VLOOKUP($B124,Vertices!$A$10:$F$203, 3, FALSE) -> 20 | G124: =VLOOKUP($B124,Vertices!$A$10:$F$203, 4, FALSE) -> 0 | H124: =VLOOKUP($B124,Vertices!$A$10:$F$203, 5, FALSE) -> 20 | I124: =VLOOKUP($B124,Vertices!$A$10:$F$203, 6, FALSE) -> 0 | J124: =VLOOKUP($C124,Vertices!$A$10:$F$203, 3, FALSE) -> 40 | K124: =VLOOKUP($C124,Vertices!$A$10:$F$203, 4, FALSE) -> 0 | L124: =VLOOKUP($C124,Vertices!$A$10:$F$203, 5, FALSE) -> 40 | M124: =VLOOKUP($C124,Vertices!$A$10:$F$203, 6, FALSE) -> 0 | N124: =VLOOKUP($D124,Vertices!$A$10:$F$203, 3, FALSE) -> 20 | O124: =VLOOKUP($D124,Vertices!$A$10:$F$203, 4, FALSE) -> 0 | P124: =VLOOKUP($D124,Vertices!$A$10:$F$203, 5, FALSE) -> 40 | Q124: =VLOOKUP($D124,Vertices!$A$10:$F$203, 6, FALSE) -> 0
A125: 115 | B125: 54 | C125: 55 | D125: 66 | F125: =VLOOKUP($B125,Vertices!$A$10:$F$203, 3, FALSE) -> 10 | G125: =VLOOKUP($B125,Vertices!$A$10:$F$203, 4, FALSE) -> 0 | H125: =VLOOKUP($B125,Vertices!$A$10:$F$203, 5, FALSE) -> 20 | I125: =VLOOKUP($B125,Vertices!$A$10:$F$203, 6, FALSE) -> 0 | J125: =VLOOKUP($C125,Vertices!$A$10:$F$203, 3, FALSE) -> 20 | K125: =VLOOKUP($C125,Vertices!$A$10:$F$203, 4, FALSE) -> 0 | L125: =VLOOKUP($C125,Vertices!$A$10:$F$203, 5, FALSE) -> 20 | M125: =VLOOKUP($C125,Vertices!$A$10:$F$203, 6, FALSE) -> 0 | N125: =VLOOKUP($D125,Vertices!$A$10:$F$203, 3, FALSE) -> 20 | O125: =VLOOKUP($D125,Vertices!$A$10:$F$203, 4, FALSE) -> 0 | P125: =VLOOKUP($D125,Vertices!$A$10:$F$203, 5, FALSE) -> 40 | Q125: =VLOOKUP($D125,Vertices!$A$10:$F$203, 6, FALSE) -> 0
A126: 116 | B126: 54 | C126: 66 | D126: 65 | F126: =VLOOKUP($B126,Vertices!$A$10:$F$203, 3, FALSE) -> 10 | G126: =VLOOKUP($B126,Vertices!$A$10:$F$203, 4, FALSE) -> 0 | H126: =VLOOKUP($B126,Vertices!$A$10:$F$203, 5, FALSE) -> 20 | I126: =VLOOKUP($B126,Vertices!$A$10:$F$203, 6, FALSE) -> 0 | J126: =VLOOKUP($C126,Vertices!$A$10:$F$203, 3, FALSE) -> 20 | K126: =VLOOKUP($C126,Vertices!$A$10:$F$203, 4, FALSE) -> 0 | L126: =VLOOKUP($C126,Vertices!$A$10:$F$203, 5, FALSE) -> 40 | M126: =VLOOKUP($C126,Vertices!$A$10:$F$203, 6, FALSE) -> 0 | N126: =VLOOKUP($D126,Vertices!$A$10:$F$203, 3, FALSE) -> 10 | O126: =VLOOKUP($D126,Vertices!$A$10:$F$203, 4, FALSE) -> 0 | P126: =VLOOKUP($D126,Vertices!$A$10:$F$203, 5, FALSE) -> 40 | Q126: =VLOOKUP($D126,Vertices!$A$10:$F$203, 6, FALSE) -> 0
A127: 117 | B127: 48 | C127: 54 | D127: 65 | F127: =VLOOKUP($B127,Vertices!$A$10:$F$203, 3, FALSE) -> 0 | G127: =VLOOKUP($B127,Vertices!$A$10:$F$203, 4, FALSE) -> 0 | H127: =VLOOKUP($B127,Vertices!$A$10:$F$203, 5, FALSE) -> 20 | I127: =VLOOKUP($B127,Vertices!$A$10:$F$203, 6, FALSE) -> 0 | J127: =VLOOKUP($C127,Vertices!$A$10:$F$203, 3, FALSE) -> 10 | K127: =VLOOKUP($C127,Vertices!$A$10:$F$203, 4, FALSE) -> 0 | L127: =VLOOKUP($C127,Vertices!$A$10:$F$203, 5, FALSE) -> 20 | M127: =VLOOKUP($C127,Vertices!$A$10:$F$203, 6, FALSE) -> 0 | N127: =VLOOKUP($D127,Vertices!$A$10:$F$203, 3, FALSE) -> 10 | O127: =VLOOKUP($D127,Vertices!$A$10:$F$203, 4, FALSE) -> 0 | P127: =VLOOKUP($D127,Vertices!$A$10:$F$203, 5, FALSE) -> 40 | Q127: =VLOOKUP($D127,Vertices!$A$10:$F$203, 6, FALSE) -> 0
A128: 118 | B128: 48 | C128: 65 | D128: 59 | F128: =VLOOKUP($B128,Vertices!$A$10:$F$203, 3, FALSE) -> 0 | G128: =VLOOKUP($B128,Vertices!$A$10:$F$203, 4, FALSE) -> 0 | H128: =VLOOKUP($B128,Vertices!$A$10:$F$203, 5, FALSE) -> 20 | I128: =VLOOKUP($B128,Vertices!$A$10:$F$203, 6, FALSE) -> 0 | J128: =VLOOKUP($C128,Vertices!$A$10:$F$203, 3, FALSE) -> 10 | K128: =VLOOKUP($C128,Vertices!$A$10:$F$203, 4, FALSE) -> 0 | L128: =VLOOKUP($C128,Vertices!$A$10:$F$203, 5, FALSE) -> 40 | M128: =VLOOKUP($C128,Vertices!$A$10:$F$203, 6, FALSE) -> 0 | N128: =VLOOKUP($D128,Vertices!$A$10:$F$203, 3, FALSE) -> 0 | O128: =VLOOKUP($D128,Vertices!$A$10:$F$203, 4, FALSE) -> 0 | P128: =VLOOKUP($D128,Vertices!$A$10:$F$203, 5, FALSE) -> 40 | Q128: =VLOOKUP($D128,Vertices!$A$10:$F$203, 6, FALSE) -> 0
A129: 119 | B129: 19 | C129: 25 | D129: 46 | F129: =VLOOKUP($B129,Vertices!$A$10:$F$203, 3, FALSE) -> 40 | G129: =VLOOKUP($B129,Vertices!$A$10:$F$203, 4, FALSE) -> 0 | H129: =VLOOKUP($B129,Vertices!$A$10:$F$203, 5, FALSE) -> 0 | I129: =VLOOKUP($B129,Vertices!$A$10:$F$203, 6, FALSE) -> 0 | J129: =VLOOKUP($C129,Vertices!$A$10:$F$203, 3, FALSE) -> 70 | K129: =VLOOKUP($C129,Vertices!$A$10:$F$203, 4, FALSE) -> 0 | L129: =VLOOKUP($C129,Vertices!$A$10:$F$203, 5, FALSE) -> 0 | M129: =VLOOKUP($C129,Vertices!$A$10:$F$203, 6, FALSE) -> 0 | N129: =VLOOKUP($D129,Vertices!$A$10:$F$203, 3, FALSE) -> 70 | O129: =VLOOKUP($D129,Vertices!$A$10:$F$203, 4, FALSE) -> 0 | P129: =VLOOKUP($D129,Vertices!$A$10:$F$203, 5, FALSE) -> 10 | Q129: =VLOOKUP($D129,Vertices!$A$10:$F$203, 6, FALSE) -> 0
A130: 120 | B130: 19 | C130: 46 | D130: 45 | F130: =VLOOKUP($B130,Vertices!$A$10:$F$203, 3, FALSE) -> 40 | G130: =VLOOKUP($B130,Vertices!$A$10:$F$203, 4, FALSE) -> 0 | H130: =VLOOKUP($B130,Vertices!$A$10:$F$203, 5, FALSE) -> 0 | I130: =VLOOKUP($B130,Vertices!$A$10:$F$203, 6, FALSE) -> 0 | J130: =VLOOKUP($C130,Vertices!$A$10:$F$203, 3, FALSE) -> 70 | K130: =VLOOKUP($C130,Vertices!$A$10:$F$203, 4, FALSE) -> 0 | L130: =VLOOKUP($C130,Vertices!$A$10:$F$203, 5, FALSE) -> 10 | M130: =VLOOKUP($C130,Vertices!$A$10:$F$203, 6, FALSE) -> 0 | N130: =VLOOKUP($D130,Vertices!$A$10:$F$203, 3, FALSE) -> 40 | O130: =VLOOKUP($D130,Vertices!$A$10:$F$203, 4, FALSE) -> 0 | P130: =VLOOKUP($D130,Vertices!$A$10:$F$203, 5, FALSE) -> 10 | Q130: =VLOOKUP($D130,Vertices!$A$10:$F$203, 6, FALSE) -> 0
A131: 121 | B131: 45 | C131: 46 | D131: 57 | F131: =VLOOKUP($B131,Vertices!$A$10:$F$203, 3, FALSE) -> 40 | G131: =VLOOKUP($B131,Vertices!$A$10:$F$203, 4, FALSE) -> 0 | H131: =VLOOKUP($B131,Vertices!$A$10:$F$203, 5, FALSE) -> 10 | I131: =VLOOKUP($B131,Vertices!$A$10:$F$203, 6, FALSE) -> 0 | J131: =VLOOKUP($C131,Vertices!$A$10:$F$203, 3, FALSE) -> 70 | K131: =VLOOKUP($C131,Vertices!$A$10:$F$203, 4, FALSE) -> 0 | L131: =VLOOKUP($C131,Vertices!$A$10:$F$203, 5, FALSE) -> 10 | M131: =VLOOKUP($C131,Vertices!$A$10:$F$203, 6, FALSE) -> 0 | N131: =VLOOKUP($D131,Vertices!$A$10:$F$203, 3, FALSE) -> 70 | O131: =VLOOKUP($D131,Vertices!$A$10:$F$203, 4, FALSE) -> 0 | P131: =VLOOKUP($D131,Vertices!$A$10:$F$203, 5, FALSE) -> 20 | Q131: =VLOOKUP($D131,Vertices!$A$10:$F$203, 6, FALSE) -> 0
A132: 122 | B132: 45 | C132: 57 | D132: 56 | F132: =VLOOKUP($B132,Vertices!$A$10:$F$203, 3, FALSE) -> 40 | G132: =VLOOKUP($B132,Vertices!$A$10:$F$203, 4, FALSE) -> 0 | H132: =VLOOKUP($B132,Vertices!$A$10:$F$203, 5, FALSE) -> 10 | I132: =VLOOKUP($B132,Vertices!$A$10:$F$203, 6, FALSE) -> 0 | J132: =VLOOKUP($C132,Vertices!$A$10:$F$203, 3, FALSE) -> 70 | K132: =VLOOKUP($C132,Vertices!$A$10:$F$203, 4, FALSE) -> 0 | L132: =VLOOKUP($C132,Vertices!$A$10:$F$203, 5, FALSE) -> 20 | M132: =VLOOKUP($C132,Vertices!$A$10:$F$203, 6, FALSE) -> 0 | N132: =VLOOKUP($D132,Vertices!$A$10:$F$203, 3, FALSE) -> 40 | O132: =VLOOKUP($D132,Vertices!$A$10:$F$203, 4, FALSE) -> 0 | P132: =VLOOKUP($D132,Vertices!$A$10:$F$203, 5, FALSE) -> 20 | Q132: =VLOOKUP($D132,Vertices!$A$10:$F$203, 6, FALSE) -> 0
A133: 123 | B133: 56 | C133: 57 | D133: 68 | F133: =VLOOKUP($B133,Vertices!$A$10:$F$203, 3, FALSE) -> 40 | G133: =VLOOKUP($B133,Vertices!$A$10:$F$203, 4, FALSE) -> 0 | H133: =VLOOKUP($B133,Vertices!$A$10:$F$203, 5, FALSE) -> 20 | I133: =VLOOKUP($B133,Vertices!$A$10:$F$203, 6, FALSE) -> 0 | J133: =VLOOKUP($C133,Vertices!$A$10:$F$203, 3, FALSE) -> 70 | K133: =VLOOKUP($C133,Vertices!$A$10:$F$203, 4, FALSE) -> 0 | L133: =VLOOKUP($C133,Vertices!$A$10:$F$203, 5, FALSE) -> 20 | M133: =VLOOKUP($C133,Vertices!$A$10:$F$203, 6, FALSE) -> 0 | N133: =VLOOKUP($D133,Vertices!$A$10:$F$203, 3, FALSE) -> 70 | O133: =VLOOKUP($D133,Vertices!$A$10:$F$203, 4, FALSE) -> 0 | P133: =VLOOKUP($D133,Vertices!$A$10:$F$203, 5, FALSE) -> 40 | Q133: =VLOOKUP($D133,Vertices!$A$10:$F$203, 6, FALSE) -> 0
A134: 124 | B134: 56 | C134: 68 | D134: 67 | F134: =VLOOKUP($B134,Vertices!$A$10:$F$203, 3, FALSE) -> 40 | G134: =VLOOKUP($B134,Vertices!$A$10:$F$203, 4, FALSE) -> 0 | H134: =VLOOKUP($B134,Vertices!$A$10:$F$203, 5, FALSE) -> 20 | I134: =VLOOKUP($B134,Vertices!$A$10:$F$203, 6, FALSE) -> 0 | J134: =VLOOKUP($C134,Vertices!$A$10:$F$203, 3, FALSE) -> 70 | K134: =VLOOKUP($C134,Vertices!$A$10:$F$203, 4, FALSE) -> 0 | L134: =VLOOKUP($C134,Vertices!$A$10:$F$203, 5, FALSE) -> 40 | M134: =VLOOKUP($C134,Vertices!$A$10:$F$203, 6, FALSE) -> 0 | N134: =VLOOKUP($D134,Vertices!$A$10:$F$203, 3, FALSE) -> 40 | O134: =VLOOKUP($D134,Vertices!$A$10:$F$203, 4, FALSE) -> 0 | P134: =VLOOKUP($D134,Vertices!$A$10:$F$203, 5, FALSE) -> 40 | Q134: =VLOOKUP($D134,Vertices!$A$10:$F$203, 6, FALSE) -> 0
A135: 125 | B135: 67 | C135: 68 | D135: 79 | F135: =VLOOKUP($B135,Vertices!$A$10:$F$203, 3, FALSE) -> 40 | G135: =VLOOKUP($B135,Vertices!$A$10:$F$203, 4, FALSE) -> 0 | H135: =VLOOKUP($B135,Vertices!$A$10:$F$203, 5, FALSE) -> 40 | I135: =VLOOKUP($B135,Vertices!$A$10:$F$203, 6, FALSE) -> 0 | J135: =VLOOKUP($C135,Vertices!$A$10:$F$203, 3, FALSE) -> 70 | K135: =VLOOKUP($C135,Vertices!$A$10:$F$203, 4, FALSE) -> 0 | L135: =VLOOKUP($C135,Vertices!$A$10:$F$203, 5, FALSE) -> 40 | M135: =VLOOKUP($C135,Vertices!$A$10:$F$203, 6, FALSE) -> 0 | N135: =VLOOKUP($D135,Vertices!$A$10:$F$203, 3, FALSE) -> 70 | O135: =VLOOKUP($D135,Vertices!$A$10:$F$203, 4, FALSE) -> 0 | P135: =VLOOKUP($D135,Vertices!$A$10:$F$203, 5, FALSE) -> 70 | Q135: =VLOOKUP($D135,Vertices!$A$10:$F$203, 6, FALSE) -> 0
A136: 126 | B136: 67 | C136: 79 | D136: 78 | F136: =VLOOKUP($B136,Vertices!$A$10:$F$203, 3, FALSE) -> 40 | G136: =VLOOKUP($B136,Vertices!$A$10:$F$203, 4, FALSE) -> 0 | H136: =VLOOKUP($B136,Vertices!$A$10:$F$203, 5, FALSE) -> 40 | I136: =VLOOKUP($B136,Vertices!$A$10:$F$203, 6, FALSE) -> 0 | J136: =VLOOKUP($C136,Vertices!$A$10:$F$203, 3, FALSE) -> 70 | K136: =VLOOKUP($C136,Vertices!$A$10:$F$203, 4, FALSE) -> 0 | L136: =VLOOKUP($C136,Vertices!$A$10:$F$203, 5, FALSE) -> 70 | M136: =VLOOKUP($C136,Vertices!$A$10:$F$203, 6, FALSE) -> 0 | N136: =VLOOKUP($D136,Vertices!$A$10:$F$203, 3, FALSE) -> 40 | O136: =VLOOKUP($D136,Vertices!$A$10:$F$203, 4, FALSE) -> 0 | P136: =VLOOKUP($D136,Vertices!$A$10:$F$203, 5, FALSE) -> 70 | Q136: =VLOOKUP($D136,Vertices!$A$10:$F$203, 6, FALSE) -> 0
A137: 127 | B137: 66 | C137: 67 | D137: 78 | F137: =VLOOKUP($B137,Vertices!$A$10:$F$203, 3, FALSE) -> 20 | G137: =VLOOKUP($B137,Vertices!$A$10:$F$203, 4, FALSE) -> 0 | H137: =VLOOKUP($B137,Vertices!$A$10:$F$203, 5, FALSE) -> 40 | I137: =VLOOKUP($B137,Vertices!$A$10:$F$203, 6, FALSE) -> 0 | J137: =VLOOKUP($C137,Vertices!$A$10:$F$203, 3, FALSE) -> 40 | K137: =VLOOKUP($C137,Vertices!$A$10:$F$203, 4, FALSE) -> 0 | L137: =VLOOKUP($C137,Vertices!$A$10:$F$203, 5, FALSE) -> 40 | M137: =VLOOKUP($C137,Vertices!$A$10:$F$203, 6, FALSE) -> 0 | N137: =VLOOKUP($D137,Vertices!$A$10:$F$203, 3, FALSE) -> 40 | O137: =VLOOKUP($D137,Vertices!$A$10:$F$203, 4, FALSE) -> 0 | P137: =VLOOKUP($D137,Vertices!$A$10:$F$203, 5, FALSE) -> 70 | Q137: =VLOOKUP($D137,Vertices!$A$10:$F$203, 6, FALSE) -> 0
A138: 128 | B138: 66 | C138: 78 | D138: 77 | F138: =VLOOKUP($B138,Vertices!$A$10:$F$203, 3, FALSE) -> 20 | G138: =VLOOKUP($B138,Vertices!$A$10:$F$203, 4, FALSE) -> 0 | H138: =VLOOKUP($B138,Vertices!$A$10:$F$203, 5, FALSE) -> 40 | I138: =VLOOKUP($B138,Vertices!$A$10:$F$203, 6, FALSE) -> 0 | J138: =VLOOKUP($C138,Vertices!$A$10:$F$203, 3, FALSE) -> 40 | K138: =VLOOKUP($C138,Vertices!$A$10:$F$203, 4, FALSE) -> 0 | L138: =VLOOKUP($C138,Vertices!$A$10:$F$203, 5, FALSE) -> 70 | M138: =VLOOKUP($C138,Vertices!$A$10:$F$203, 6, FALSE) -> 0 | N138: =VLOOKUP($D138,Vertices!$A$10:$F$203, 3, FALSE) -> 20 | O138: =VLOOKUP($D138,Vertices!$A$10:$F$203, 4, FALSE) -> 0 | P138: =VLOOKUP($D138,Vertices!$A$10:$F$203, 5, FALSE) -> 70 | Q138: =VLOOKUP($D138,Vertices!$A$10:$F$203, 6, FALSE) -> 0
A139: 129 | B139: 65 | C139: 66 | D139: 77 | F139: =VLOOKUP($B139,Vertices!$A$10:$F$203, 3, FALSE) -> 10 | G139: =VLOOKUP($B139,Vertices!$A$10:$F$203, 4, FALSE) -> 0 | H139: =VLOOKUP($B139,Vertices!$A$10:$F$203, 5, FALSE) -> 40 | I139: =VLOOKUP($B139,Vertices!$A$10:$F$203, 6, FALSE) -> 0 | J139: =VLOOKUP($C139,Vertices!$A$10:$F$203, 3, FALSE) -> 20 | K139: =VLOOKUP($C139,Vertices!$A$10:$F$203, 4, FALSE) -> 0 | L139: =VLOOKUP($C139,Vertices!$A$10:$F$203, 5, FALSE) -> 40 | M139: =VLOOKUP($C139,Vertices!$A$10:$F$203, 6, FALSE) -> 0 | N139: =VLOOKUP($D139,Vertices!$A$10:$F$203, 3, FALSE) -> 20 | O139: =VLOOKUP($D139,Vertices!$A$10:$F$203, 4, FALSE) -> 0 | P139: =VLOOKUP($D139,Vertices!$A$10:$F$203, 5, FALSE) -> 70 | Q139: =VLOOKUP($D139,Vertices!$A$10:$F$203, 6, FALSE) -> 0
A140: 130 | B140: 65 | C140: 77 | D140: 76 | F140: =VLOOKUP($B140,Vertices!$A$10:$F$203, 3, FALSE) -> 10 | G140: =VLOOKUP($B140,Vertices!$A$10:$F$203, 4, FALSE) -> 0 | H140: =VLOOKUP($B140,Vertices!$A$10:$F$203, 5, FALSE) -> 40 | I140: =VLOOKUP($B140,Vertices!$A$10:$F$203, 6, FALSE) -> 0 | J140: =VLOOKUP($C140,Vertices!$A$10:$F$203, 3, FALSE) -> 20 | K140: =VLOOKUP($C140,Vertices!$A$10:$F$203, 4, FALSE) -> 0 | L140: =VLOOKUP($C140,Vertices!$A$10:$F$203, 5, FALSE) -> 70 | M140: =VLOOKUP($C140,Vertices!$A$10:$F$203, 6, FALSE) -> 0 | N140: =VLOOKUP($D140,Vertices!$A$10:$F$203, 3, FALSE) -> 10 | O140: =VLOOKUP($D140,Vertices!$A$10:$F$203, 4, FALSE) -> 0 | P140: =VLOOKUP($D140,Vertices!$A$10:$F$203, 5, FALSE) -> 70 | Q140: =VLOOKUP($D140,Vertices!$A$10:$F$203, 6, FALSE) -> 0
A141: 131 | B141: 59 | C141: 65 | D141: 76 | F141: =VLOOKUP($B141,Vertices!$A$10:$F$203, 3, FALSE) -> 0 | G141: =VLOOKUP($B141,Vertices!$A$10:$F$203, 4, FALSE) -> 0 | H141: =VLOOKUP($B141,Vertices!$A$10:$F$203, 5, FALSE) -> 40 | I141: =VLOOKUP($B141,Vertices!$A$10:$F$203, 6, FALSE) -> 0 | J141: =VLOOKUP($C141,Vertices!$A$10:$F$203, 3, FALSE) -> 10 | K141: =VLOOKUP($C141,Vertices!$A$10:$F$203, 4, FALSE) -> 0 | L141: =VLOOKUP($C141,Vertices!$A$10:$F$203, 5, FALSE) -> 40 | M141: =VLOOKUP($C141,Vertices!$A$10:$F$203, 6, FALSE) -> 0 | N141: =VLOOKUP($D141,Vertices!$A$10:$F$203, 3, FALSE) -> 10 | O141: =VLOOKUP($D141,Vertices!$A$10:$F$203, 4, FALSE) -> 0 | P141: =VLOOKUP($D141,Vertices!$A$10:$F$203, 5, FALSE) -> 70 | Q141: =VLOOKUP($D141,Vertices!$A$10:$F$203, 6, FALSE) -> 0
A142: 132 | B142: 59 | C142: 76 | D142: 70 | F142: =VLOOKUP($B142,Vertices!$A$10:$F$203, 3, FALSE) -> 0 | G142: =VLOOKUP($B142,Vertices!$A$10:$F$203, 4, FALSE) -> 0 | H142: =VLOOKUP($B142,Vertices!$A$10:$F$203, 5, FALSE) -> 40 | I142: =VLOOKUP($B142,Vertices!$A$10:$F$203, 6, FALSE) -> 0 | J142: =VLOOKUP($C142,Vertices!$A$10:$F$203, 3, FALSE) -> 10 | K142: =VLOOKUP($C142,Vertices!$A$10:$F$203, 4, FALSE) -> 0 | L142: =VLOOKUP($C142,Vertices!$A$10:$F$203, 5, FALSE) -> 70 | M142: =VLOOKUP($C142,Vertices!$A$10:$F$203, 6, FALSE) -> 0 | N142: =VLOOKUP($D142,Vertices!$A$10:$F$203, 3, FALSE) -> 0 | O142: =VLOOKUP($D142,Vertices!$A$10:$F$203, 4, FALSE) -> 0 | P142: =VLOOKUP($D142,Vertices!$A$10:$F$203, 5, FALSE) -> 70 | Q142: =VLOOKUP($D142,Vertices!$A$10:$F$203, 6, FALSE) -> 0
A143: 133 | B143: 25 | C143: 31 | D143: 47 | F143: =VLOOKUP($B143,Vertices!$A$10:$F$203, 3, FALSE) -> 70 | G143: =VLOOKUP($B143,Vertices!$A$10:$F$203, 4, FALSE) -> 0 | H143: =VLOOKUP($B143,Vertices!$A$10:$F$203, 5, FALSE) -> 0 | I143: =VLOOKUP($B143,Vertices!$A$10:$F$203, 6, FALSE) -> 0 | J143: =VLOOKUP($C143,Vertices!$A$10:$F$203, 3, FALSE) -> 100 | K143: =VLOOKUP($C143,Vertices!$A$10:$F$203, 4, FALSE) -> 0 | L143: =VLOOKUP($C143,Vertices!$A$10:$F$203, 5, FALSE) -> 0 | M143: =VLOOKUP($C143,Vertices!$A$10:$F$203, 6, FALSE) -> 0 | N143: =VLOOKUP($D143,Vertices!$A$10:$F$203, 3, FALSE) -> 100 | O143: =VLOOKUP($D143,Vertices!$A$10:$F$203, 4, FALSE) -> 0 | P143: =VLOOKUP($D143,Vertices!$A$10:$F$203, 5, FALSE) -> 10 | Q143: =VLOOKUP($D143,Vertices!$A$10:$F$203, 6, FALSE) -> 0
A144: 134 | B144: 25 | C144: 47 | D144: 46 | F144: =VLOOKUP($B144,Vertices!$A$10:$F$203, 3, FALSE) -> 70 | G144: =VLOOKUP($B144,Vertices!$A$10:$F$203, 4, FALSE) -> 0 | H144: =VLOOKUP($B144,Vertices!$A$10:$F$203, 5, FALSE) -> 0 | I144: =VLOOKUP($B144,Vertices!$A$10:$F$203, 6, FALSE) -> 0 | J144: =VLOOKUP($C144,Vertices!$A$10:$F$203, 3, FALSE) -> 100 | K144: =VLOOKUP($C144,Vertices!$A$10:$F$203, 4, FALSE) -> 0 | L144: =VLOOKUP($C144,Vertices!$A$10:$F$203, 5, FALSE) -> 10 | M144: =VLOOKUP($C144,Vertices!$A$10:$F$203, 6, FALSE) -> 0 | N144: =VLOOKUP($D144,Vertices!$A$10:$F$203, 3, FALSE) -> 70 | O144: =VLOOKUP($D144,Vertices!$A$10:$F$203, 4, FALSE) -> 0 | P144: =VLOOKUP($D144,Vertices!$A$10:$F$203, 5, FALSE) -> 10 | Q144: =VLOOKUP($D144,Vertices!$A$10:$F$203, 6, FALSE) -> 0
A145: 135 | B145: 46 | C145: 47 | D145: 58 | F145: =VLOOKUP($B145,Vertices!$A$10:$F$203, 3, FALSE) -> 70 | G145: =VLOOKUP($B145,Vertices!$A$10:$F$203, 4, FALSE) -> 0 | H145: =VLOOKUP($B145,Vertices!$A$10:$F$203, 5, FALSE) -> 10 | I145: =VLOOKUP($B145,Vertices!$A$10:$F$203, 6, FALSE) -> 0 | J145: =VLOOKUP($C145,Vertices!$A$10:$F$203, 3, FALSE) -> 100 | K145: =VLOOKUP($C145,Vertices!$A$10:$F$203, 4, FALSE) -> 0 | L145: =VLOOKUP($C145,Vertices!$A$10:$F$203, 5, FALSE) -> 10 | M145: =VLOOKUP($C145,Vertices!$A$10:$F$203, 6, FALSE) -> 0 | N145: =VLOOKUP($D145,Vertices!$A$10:$F$203, 3, FALSE) -> 100 | O145: =VLOOKUP($D145,Vertices!$A$10:$F$203, 4, FALSE) -> 0 | P145: =VLOOKUP($D145,Vertices!$A$10:$F$203, 5, FALSE) -> 20 | Q145: =VLOOKUP($D145,Vertices!$A$10:$F$203, 6, FALSE) -> 0
A146: 136 | B146: 46 | C146: 58 | D146: 57 | F146: =VLOOKUP($B146,Vertices!$A$10:$F$203, 3, FALSE) -> 70 | G146: =VLOOKUP($B146,Vertices!$A$10:$F$203, 4, FALSE) -> 0 | H146: =VLOOKUP($B146,Vertices!$A$10:$F$203, 5, FALSE) -> 10 | I146: =VLOOKUP($B146,Vertices!$A$10:$F$203, 6, FALSE) -> 0 | J146: =VLOOKUP($C146,Vertices!$A$10:$F$203, 3, FALSE) -> 100 | K146: =VLOOKUP($C146,Vertices!$A$10:$F$203, 4, FALSE) -> 0 | L146: =VLOOKUP($C146,Vertices!$A$10:$F$203, 5, FALSE) -> 20 | M146: =VLOOKUP($C146,Vertices!$A$10:$F$203, 6, FALSE) -> 0 | N146: =VLOOKUP($D146,Vertices!$A$10:$F$203, 3, FALSE) -> 70 | O146: =VLOOKUP($D146,Vertices!$A$10:$F$203, 4, FALSE) -> 0 | P146: =VLOOKUP($D146,Vertices!$A$10:$F$203, 5, FALSE) -> 20 | Q146: =VLOOKUP($D146,Vertices!$A$10:$F$203, 6, FALSE) -> 0
A147: 137 | B147: 57 | C147: 58 | D147: 69 | F147: =VLOOKUP($B147,Vertices!$A$10:$F$203, 3, FALSE) -> 70 | G147: =VLOOKUP($B147,Vertices!$A$10:$F$203, 4, FALSE) -> 0 | H147: =VLOOKUP($B147,Vertices!$A$10:$F$203, 5, FALSE) -> 20 | I147: =VLOOKUP($B147,Vertices!$A$10:$F$203, 6, FALSE) -> 0 | J147: =VLOOKUP($C147,Vertices!$A$10:$F$203, 3, FALSE) -> 100 | K147: =VLOOKUP($C147,Vertices!$A$10:$F$203, 4, FALSE) -> 0 | L147: =VLOOKUP($C147,Vertices!$A$10:$F$203, 5, FALSE) -> 20 | M147: =VLOOKUP($C147,Vertices!$A$10:$F$203, 6, FALSE) -> 0 | N147: =VLOOKUP($D147,Vertices!$A$10:$F$203, 3, FALSE) -> 100 | O147: =VLOOKUP($D147,Vertices!$A$10:$F$203, 4, FALSE) -> 0 | P147: =VLOOKUP($D147,Vertices!$A$10:$F$203, 5, FALSE) -> 40 | Q147: =VLOOKUP($D147,Vertices!$A$10:$F$203, 6, FALSE) -> 0
A148: 138 | B148: 57 | C148: 69 | D148: 68 | F148: =VLOOKUP($B148,Vertices!$A$10:$F$203, 3, FALSE) -> 70 | G148: =VLOOKUP($B148,Vertices!$A$10:$F$203, 4, FALSE) -> 0 | H148: =VLOOKUP($B148,Vertices!$A$10:$F$203, 5, FALSE) -> 20 | I148: =VLOOKUP($B148,Vertices!$A$10:$F$203, 6, FALSE) -> 0 | J148: =VLOOKUP($C148,Vertices!$A$10:$F$203, 3, FALSE) -> 100 | K148: =VLOOKUP($C148,Vertices!$A$10:$F$203, 4, FALSE) -> 0 | L148: =VLOOKUP($C148,Vertices!$A$10:$F$203, 5, FALSE) -> 40 | M148: =VLOOKUP($C148,Vertices!$A$10:$F$203, 6, FALSE) -> 0 | N148: =VLOOKUP($D148,Vertices!$A$10:$F$203, 3, FALSE) -> 70 | O148: =VLOOKUP($D148,Vertices!$A$10:$F$203, 4, FALSE) -> 0 | P148: =VLOOKUP($D148,Vertices!$A$10:$F$203, 5, FALSE) -> 40 | Q148: =VLOOKUP($D148,Vertices!$A$10:$F$203, 6, FALSE) -> 0
A149: 139 | B149: 68 | C149: 69 | D149: 80 | F149: =VLOOKUP($B149,Vertices!$A$10:$F$203, 3, FALSE) -> 70 | G149: =VLOOKUP($B149,Vertices!$A$10:$F$203, 4, FALSE) -> 0 | H149: =VLOOKUP($B149,Vertices!$A$10:$F$203, 5, FALSE) -> 40 | I149: =VLOOKUP($B149,Vertices!$A$10:$F$203, 6, FALSE) -> 0 | J149: =VLOOKUP($C149,Vertices!$A$10:$F$203, 3, FALSE) -> 100 | K149: =VLOOKUP($C149,Vertices!$A$10:$F$203, 4, FALSE) -> 0 | L149: =VLOOKUP($C149,Vertices!$A$10:$F$203, 5, FALSE) -> 40 | M149: =VLOOKUP($C149,Vertices!$A$10:$F$203, 6, FALSE) -> 0 | N149: =VLOOKUP($D149,Vertices!$A$10:$F$203, 3, FALSE) -> 100 | O149: =VLOOKUP($D149,Vertices!$A$10:$F$203, 4, FALSE) -> 0 | P149: =VLOOKUP($D149,Vertices!$A$10:$F$203, 5, FALSE) -> 70 | Q149: =VLOOKUP($D149,Vertices!$A$10:$F$203, 6, FALSE) -> 0
A150: 140 | B150: 68 | C150: 80 | D150: 79 | F150: =VLOOKUP($B150,Vertices!$A$10:$F$203, 3, FALSE) -> 70 | G150: =VLOOKUP($B150,Vertices!$A$10:$F$203, 4, FALSE) -> 0 | H150: =VLOOKUP($B150,Vertices!$A$10:$F$203, 5, FALSE) -> 40 | I150: =VLOOKUP($B150,Vertices!$A$10:$F$203, 6, FALSE) -> 0 | J150: =VLOOKUP($C150,Vertices!$A$10:$F$203, 3, FALSE) -> 100 | K150: =VLOOKUP($C150,Vertices!$A$10:$F$203, 4, FALSE) -> 0 | L150: =VLOOKUP($C150,Vertices!$A$10:$F$203, 5, FALSE) -> 70 | M150: =VLOOKUP($C150,Vertices!$A$10:$F$203, 6, FALSE) -> 0 | N150: =VLOOKUP($D150,Vertices!$A$10:$F$203, 3, FALSE) -> 70 | O150: =VLOOKUP($D150,Vertices!$A$10:$F$203, 4, FALSE) -> 0 | P150: =VLOOKUP($D150,Vertices!$A$10:$F$203, 5, FALSE) -> 70 | Q150: =VLOOKUP($D150,Vertices!$A$10:$F$203, 6, FALSE) -> 0
A151: 141 | B151: 79 | C151: 80 | D151: 91 | F151: =VLOOKUP($B151,Vertices!$A$10:$F$203, 3, FALSE) -> 70 | G151: =VLOOKUP($B151,Vertices!$A$10:$F$203, 4, FALSE) -> 0 | H151: =VLOOKUP($B151,Vertices!$A$10:$F$203, 5, FALSE) -> 70 | I151: =VLOOKUP($B151,Vertices!$A$10:$F$203, 6, FALSE) -> 0 | J151: =VLOOKUP($C151,Vertices!$A$10:$F$203, 3, FALSE) -> 100 | K151: =VLOOKUP($C151,Vertices!$A$10:$F$203, 4, FALSE) -> 0 | L151: =VLOOKUP($C151,Vertices!$A$10:$F$203, 5, FALSE) -> 70 | M151: =VLOOKUP($C151,Vertices!$A$10:$F$203, 6, FALSE) -> 0 | N151: =VLOOKUP($D151,Vertices!$A$10:$F$203, 3, FALSE) -> 100 | O151: =VLOOKUP($D151,Vertices!$A$10:$F$203, 4, FALSE) -> 0 | P151: =VLOOKUP($D151,Vertices!$A$10:$F$203, 5, FALSE) -> 100 | Q151: =VLOOKUP($D151,Vertices!$A$10:$F$203, 6, FALSE) -> 0
A152: 142 | B152: 79 | C152: 91 | D152: 90 | F152: =VLOOKUP($B152,Vertices!$A$10:$F$203, 3, FALSE) -> 70 | G152: =VLOOKUP($B152,Vertices!$A$10:$F$203, 4, FALSE) -> 0 | H152: =VLOOKUP($B152,Vertices!$A$10:$F$203, 5, FALSE) -> 70 | I152: =VLOOKUP($B152,Vertices!$A$10:$F$203, 6, FALSE) -> 0 | J152: =VLOOKUP($C152,Vertices!$A$10:$F$203, 3, FALSE) -> 100 | K152: =VLOOKUP($C152,Vertices!$A$10:$F$203, 4, FALSE) -> 0 | L152: =VLOOKUP($C152,Vertices!$A$10:$F$203, 5, FALSE) -> 100 | M152: =VLOOKUP($C152,Vertices!$A$10:$F$203, 6, FALSE) -> 0 | N152: =VLOOKUP($D152,Vertices!$A$10:$F$203, 3, FALSE) -> 70 | O152: =VLOOKUP($D152,Vertices!$A$10:$F$203, 4, FALSE) -> 0 | P152: =VLOOKUP($D152,Vertices!$A$10:$F$203, 5, FALSE) -> 100 | Q152: =VLOOKUP($D152,Vertices!$A$10:$F$203, 6, FALSE) -> 0
A153: 143 | B153: 78 | C153: 79 | D153: 90 | F153: =VLOOKUP($B153,Vertices!$A$10:$F$203, 3, FALSE) -> 40 | G153: =VLOOKUP($B153,Vertices!$A$10:$F$203, 4, FALSE) -> 0 | H153: =VLOOKUP($B153,Vertices!$A$10:$F$203, 5, FALSE) -> 70 | I153: =VLOOKUP($B153,Vertices!$A$10:$F$203, 6, FALSE) -> 0 | J153: =VLOOKUP($C153,Vertices!$A$10:$F$203, 3, FALSE) -> 70 | K153: =VLOOKUP($C153,Vertices!$A$10:$F$203, 4, FALSE) -> 0 | L153: =VLOOKUP($C153,Vertices!$A$10:$F$203, 5, FALSE) -> 70 | M153: =VLOOKUP($C153,Vertices!$A$10:$F$203, 6, FALSE) -> 0 | N153: =VLOOKUP($D153,Vertices!$A$10:$F$203, 3, FALSE) -> 70 | O153: =VLOOKUP($D153,Vertices!$A$10:$F$203, 4, FALSE) -> 0 | P153: =VLOOKUP($D153,Vertices!$A$10:$F$203, 5, FALSE) -> 100 | Q153: =VLOOKUP($D153,Vertices!$A$10:$F$203, 6, FALSE) -> 0
A154: 144 | B154: 78 | C154: 90 | D154: 89 | F154: =VLOOKUP($B154,Vertices!$A$10:$F$203, 3, FALSE) -> 40 | G154: =VLOOKUP($B154,Vertices!$A$10:$F$203, 4, FALSE) -> 0 | H154: =VLOOKUP($B154,Vertices!$A$10:$F$203, 5, FALSE) -> 70 | I154: =VLOOKUP($B154,Vertices!$A$10:$F$203, 6, FALSE) -> 0 | J154: =VLOOKUP($C154,Vertices!$A$10:$F$203, 3, FALSE) -> 70 | K154: =VLOOKUP($C154,Vertices!$A$10:$F$203, 4, FALSE) -> 0 | L154: =VLOOKUP($C154,Vertices!$A$10:$F$203, 5, FALSE) -> 100 | M154: =VLOOKUP($C154,Vertices!$A$10:$F$203, 6, FALSE) -> 0 | N154: =VLOOKUP($D154,Vertices!$A$10:$F$203, 3, FALSE) -> 40 | O154: =VLOOKUP($D154,Vertices!$A$10:$F$203, 4, FALSE) -> 0 | P154: =VLOOKUP($D154,Vertices!$A$10:$F$203, 5, FALSE) -> 100 | Q154: =VLOOKUP($D154,Vertices!$A$10:$F$203, 6, FALSE) -> 0
A155: 145 | B155: 77 | C155: 78 | D155: 89 | F155: =VLOOKUP($B155,Vertices!$A$10:$F$203, 3, FALSE) -> 20 | G155: =VLOOKUP($B155,Vertices!$A$10:$F$203, 4, FALSE) -> 0 | H155: =VLOOKUP($B155,Vertices!$A$10:$F$203, 5, FALSE) -> 70 | I155: =VLOOKUP($B155,Vertices!$A$10:$F$203, 6, FALSE) -> 0 | J155: =VLOOKUP($C155,Vertices!$A$10:$F$203, 3, FALSE) -> 40 | K155: =VLOOKUP($C155,Vertices!$A$10:$F$203, 4, FALSE) -> 0 | L155: =VLOOKUP($C155,Vertices!$A$10:$F$203, 5, FALSE) -> 70 | M155: =VLOOKUP($C155,Vertices!$A$10:$F$203, 6, FALSE) -> 0 | N155: =VLOOKUP($D155,Vertices!$A$10:$F$203, 3, FALSE) -> 40 | O155: =VLOOKUP($D155,Vertices!$A$10:$F$203, 4, FALSE) -> 0 | P155: =VLOOKUP($D155,Vertices!$A$10:$F$203, 5, FALSE) -> 100 | Q155: =VLOOKUP($D155,Vertices!$A$10:$F$203, 6, FALSE) -> 0
A156: 146 | B156: 77 | C156: 89 | D156: 88 | F156: =VLOOKUP($B156,Vertices!$A$10:$F$203, 3, FALSE) -> 20 | G156: =VLOOKUP($B156,Vertices!$A$10:$F$203, 4, FALSE) -> 0 | H156: =VLOOKUP($B156,Vertices!$A$10:$F$203, 5, FALSE) -> 70 | I156: =VLOOKUP($B156,Vertices!$A$10:$F$203, 6, FALSE) -> 0 | J156: =VLOOKUP($C156,Vertices!$A$10:$F$203, 3, FALSE) -> 40 | K156: =VLOOKUP($C156,Vertices!$A$10:$F$203, 4, FALSE) -> 0 | L156: =VLOOKUP($C156,Vertices!$A$10:$F$203, 5, FALSE) -> 100 | M156: =VLOOKUP($C156,Vertices!$A$10:$F$203, 6, FALSE) -> 0 | N156: =VLOOKUP($D156,Vertices!$A$10:$F$203, 3, FALSE) -> 20 | O156: =VLOOKUP($D156,Vertices!$A$10:$F$203, 4, FALSE) -> 0 | P156: =VLOOKUP($D156,Vertices!$A$10:$F$203, 5, FALSE) -> 100 | Q156: =VLOOKUP($D156,Vertices!$A$10:$F$203, 6, FALSE) -> 0
A157: 147 | B157: 76 | C157: 77 | D157: 88 | F157: =VLOOKUP($B157,Vertices!$A$10:$F$203, 3, FALSE) -> 10 | G157: =VLOOKUP($B157,Vertices!$A$10:$F$203, 4, FALSE) -> 0 | H157: =VLOOKUP($B157,Vertices!$A$10:$F$203, 5, FALSE) -> 70 | I157: =VLOOKUP($B157,Vertices!$A$10:$F$203, 6, FALSE) -> 0 | J157: =VLOOKUP($C157,Vertices!$A$10:$F$203, 3, FALSE) -> 20 | K157: =VLOOKUP($C157,Vertices!$A$10:$F$203, 4, FALSE) -> 0 | L157: =VLOOKUP($C157,Vertices!$A$10:$F$203, 5, FALSE) -> 70 | M157: =VLOOKUP($C157,Vertices!$A$10:$F$203, 6, FALSE) -> 0 | N157: =VLOOKUP($D157,Vertices!$A$10:$F$203, 3, FALSE) -> 20 | O157: =VLOOKUP($D157,Vertices!$A$10:$F$203, 4, FALSE) -> 0 | P157: =VLOOKUP($D157,Vertices!$A$10:$F$203, 5, FALSE) -> 100 | Q157: =VLOOKUP($D157,Vertices!$A$10:$F$203, 6, FALSE) -> 0
A158: 148 | B158: 76 | C158: 88 | D158: 87 | F158: =VLOOKUP($B158,Vertices!$A$10:$F$203, 3, FALSE) -> 10 | G158: =VLOOKUP($B158,Vertices!$A$10:$F$203, 4, FALSE) -> 0 | H158: =VLOOKUP($B158,Vertices!$A$10:$F$203, 5, FALSE) -> 70 | I158: =VLOOKUP($B158,Vertices!$A$10:$F$203, 6, FALSE) -> 0 | J158: =VLOOKUP($C158,Vertices!$A$10:$F$203, 3, FALSE) -> 20 | K158: =VLOOKUP($C158,Vertices!$A$10:$F$203, 4, FALSE) -> 0 | L158: =VLOOKUP($C158,Vertices!$A$10:$F$203, 5, FALSE) -> 100 | M158: =VLOOKUP($C158,Vertices!$A$10:$F$203, 6, FALSE) -> 0 | N158: =VLOOKUP($D158,Vertices!$A$10:$F$203, 3, FALSE) -> 10 | O158: =VLOOKUP($D158,Vertices!$A$10:$F$203, 4, FALSE) -> 0 | P158: =VLOOKUP($D158,Vertices!$A$10:$F$203, 5, FALSE) -> 100 | Q158: =VLOOKUP($D158,Vertices!$A$10:$F$203, 6, FALSE) -> 0
A159: 149 | B159: 70 | C159: 76 | D159: 87 | F159: =VLOOKUP($B159,Vertices!$A$10:$F$203, 3, FALSE) -> 0 | G159: =VLOOKUP($B159,Vertices!$A$10:$F$203, 4, FALSE) -> 0 | H159: =VLOOKUP($B159,Vertices!$A$10:$F$203, 5, FALSE) -> 70 | I159: =VLOOKUP($B159,Vertices!$A$10:$F$203, 6, FALSE) -> 0 | J159: =VLOOKUP($C159,Vertices!$A$10:$F$203, 3, FALSE) -> 10 | K159: =VLOOKUP($C159,Vertices!$A$10:$F$203, 4, FALSE) -> 0 | L159: =VLOOKUP($C159,Vertices!$A$10:$F$203, 5, FALSE) -> 70 | M159: =VLOOKUP($C159,Vertices!$A$10:$F$203, 6, FALSE) -> 0 | N159: =VLOOKUP($D159,Vertices!$A$10:$F$203, 3, FALSE) -> 10 | O159: =VLOOKUP($D159,Vertices!$A$10:$F$203, 4, FALSE) -> 0 | P159: =VLOOKUP($D159,Vertices!$A$10:$F$203, 5, FALSE) -> 100 | Q159: =VLOOKUP($D159,Vertices!$A$10:$F$203, 6, FALSE) -> 0
A160: 150 | B160: 70 | C160: 87 | D160: 81 | F160: =VLOOKUP($B160,Vertices!$A$10:$F$203, 3, FALSE) -> 0 | G160: =VLOOKUP($B160,Vertices!$A$10:$F$203, 4, FALSE) -> 0 | H160: =VLOOKUP($B160,Vertices!$A$10:$F$203, 5, FALSE) -> 70 | I160: =VLOOKUP($B160,Vertices!$A$10:$F$203, 6, FALSE) -> 0 | J160: =VLOOKUP($C160,Vertices!$A$10:$F$203, 3, FALSE) -> 10 | K160: =VLOOKUP($C160,Vertices!$A$10:$F$203, 4, FALSE) -> 0 | L160: =VLOOKUP($C160,Vertices!$A$10:$F$203, 5, FALSE) -> 100 | M160: =VLOOKUP($C160,Vertices!$A$10:$F$203, 6, FALSE) -> 0 | N160: =VLOOKUP($D160,Vertices!$A$10:$F$203, 3, FALSE) -> 0 | O160: =VLOOKUP($D160,Vertices!$A$10:$F$203, 4, FALSE) -> 0 | P160: =VLOOKUP($D160,Vertices!$A$10:$F$203, 5, FALSE) -> 100 | Q160: =VLOOKUP($D160,Vertices!$A$10:$F$203, 6, FALSE) -> 0
A161: 151 | B161: 31 | C161: 98 | D161: 97 | F161: =VLOOKUP($B161,Vertices!$A$10:$F$203, 3, FALSE) -> 100 | G161: =VLOOKUP($B161,Vertices!$A$10:$F$203, 4, FALSE) -> 0 | H161: =VLOOKUP($B161,Vertices!$A$10:$F$203, 5, FALSE) -> 0 | I161: =VLOOKUP($B161,Vertices!$A$10:$F$203, 6, FALSE) -> 0 | J161: =VLOOKUP($C161,Vertices!$A$10:$F$203, 3, FALSE) -> 100 | K161: =VLOOKUP($C161,Vertices!$A$10:$F$203, 4, FALSE) -> 10 | L161: =VLOOKUP($C161,Vertices!$A$10:$F$203, 5, FALSE) -> 0 | M161: =VLOOKUP($C161,Vertices!$A$10:$F$203, 6, FALSE) -> 20 | N161: =VLOOKUP($D161,Vertices!$A$10:$F$203, 3, FALSE) -> 100 | O161: =VLOOKUP($D161,Vertices!$A$10:$F$203, 4, FALSE) -> 0 | P161: =VLOOKUP($D161,Vertices!$A$10:$F$203, 5, FALSE) -> 0 | Q161: =VLOOKUP($D161,Vertices!$A$10:$F$203, 6, FALSE) -> 20
A162: 152 | B162: 31 | C162: 32 | D162: 98 | F162: =VLOOKUP($B162,Vertices!$A$10:$F$203, 3, FALSE) -> 100 | G162: =VLOOKUP($B162,Vertices!$A$10:$F$203, 4, FALSE) -> 0 | H162: =VLOOKUP($B162,Vertices!$A$10:$F$203, 5, FALSE) -> 0 | I162: =VLOOKUP($B162,Vertices!$A$10:$F$203, 6, FALSE) -> 0 | J162: =VLOOKUP($C162,Vertices!$A$10:$F$203, 3, FALSE) -> 100 | K162: =VLOOKUP($C162,Vertices!$A$10:$F$203, 4, FALSE) -> 10 | L162: =VLOOKUP($C162,Vertices!$A$10:$F$203, 5, FALSE) -> 0 | M162: =VLOOKUP($C162,Vertices!$A$10:$F$203, 6, FALSE) -> 0 | N162: =VLOOKUP($D162,Vertices!$A$10:$F$203, 3, FALSE) -> 100 | O162: =VLOOKUP($D162,Vertices!$A$10:$F$203, 4, FALSE) -> 10 | P162: =VLOOKUP($D162,Vertices!$A$10:$F$203, 5, FALSE) -> 0 | Q162: =VLOOKUP($D162,Vertices!$A$10:$F$203, 6, FALSE) -> 20
A163: 153 | B163: 32 | C163: 99 | D163: 98 | F163: =VLOOKUP($B163,Vertices!$A$10:$F$203, 3, FALSE) -> 100 | G163: =VLOOKUP($B163,Vertices!$A$10:$F$203, 4, FALSE) -> 10 | H163: =VLOOKUP($B163,Vertices!$A$10:$F$203, 5, FALSE) -> 0 | I163: =VLOOKUP($B163,Vertices!$A$10:$F$203, 6, FALSE) -> 0 | J163: =VLOOKUP($C163,Vertices!$A$10:$F$203, 3, FALSE) -> 100 | K163: =VLOOKUP($C163,Vertices!$A$10:$F$203, 4, FALSE) -> 20 | L163: =VLOOKUP($C163,Vertices!$A$10:$F$203, 5, FALSE) -> 0 | M163: =VLOOKUP($C163,Vertices!$A$10:$F$203, 6, FALSE) -> 20 | N163: =VLOOKUP($D163,Vertices!$A$10:$F$203, 3, FALSE) -> 100 | O163: =VLOOKUP($D163,Vertices!$A$10:$F$203, 4, FALSE) -> 10 | P163: =VLOOKUP($D163,Vertices!$A$10:$F$203, 5, FALSE) -> 0 | Q163: =VLOOKUP($D163,Vertices!$A$10:$F$203, 6, FALSE) -> 20
A164: 154 | B164: 32 | C164: 33 | D164: 99 | F164: =VLOOKUP($B164,Vertices!$A$10:$F$203, 3, FALSE) -> 100 | G164: =VLOOKUP($B164,Vertices!$A$10:$F$203, 4, FALSE) -> 10 | H164: =VLOOKUP($B164,Vertices!$A$10:$F$203, 5, FALSE) -> 0 | I164: =VLOOKUP($B164,Vertices!$A$10:$F$203, 6, FALSE) -> 0 | J164: =VLOOKUP($C164,Vertices!$A$10:$F$203, 3, FALSE) -> 100 | K164: =VLOOKUP($C164,Vertices!$A$10:$F$203, 4, FALSE) -> 20 | L164: =VLOOKUP($C164,Vertices!$A$10:$F$203, 5, FALSE) -> 0 | M164: =VLOOKUP($C164,Vertices!$A$10:$F$203, 6, FALSE) -> 0 | N164: =VLOOKUP($D164,Vertices!$A$10:$F$203, 3, FALSE) -> 100 | O164: =VLOOKUP($D164,Vertices!$A$10:$F$203, 4, FALSE) -> 20 | P164: =VLOOKUP($D164,Vertices!$A$10:$F$203, 5, FALSE) -> 0 | Q164: =VLOOKUP($D164,Vertices!$A$10:$F$203, 6, FALSE) -> 20
A165: 155 | B165: 33 | C165: 100 | D165: 99 | F165: =VLOOKUP($B165,Vertices!$A$10:$F$203, 3, FALSE) -> 100 | G165: =VLOOKUP($B165,Vertices!$A$10:$F$203, 4, FALSE) -> 20 | H165: =VLOOKUP($B165,Vertices!$A$10:$F$203, 5, FALSE) -> 0 | I165: =VLOOKUP($B165,Vertices!$A$10:$F$203, 6, FALSE) -> 0 | J165: =VLOOKUP($C165,Vertices!$A$10:$F$203, 3, FALSE) -> 100 | K165: =VLOOKUP($C165,Vertices!$A$10:$F$203, 4, FALSE) -> 40 | L165: =VLOOKUP($C165,Vertices!$A$10:$F$203, 5, FALSE) -> 0 | M165: =VLOOKUP($C165,Vertices!$A$10:$F$203, 6, FALSE) -> 20 | N165: =VLOOKUP($D165,Vertices!$A$10:$F$203, 3, FALSE) -> 100 | O165: =VLOOKUP($D165,Vertices!$A$10:$F$203, 4, FALSE) -> 20 | P165: =VLOOKUP($D165,Vertices!$A$10:$F$203, 5, FALSE) -> 0 | Q165: =VLOOKUP($D165,Vertices!$A$10:$F$203, 6, FALSE) -> 20
A166: 156 | B166: 33 | C166: 34 | D166: 100 | F166: =VLOOKUP($B166,Vertices!$A$10:$F$203, 3, FALSE) -> 100 | G166: =VLOOKUP($B166,Vertices!$A$10:$F$203, 4, FALSE) -> 20 | H166: =VLOOKUP($B166,Vertices!$A$10:$F$203, 5, FALSE) -> 0 | I166: =VLOOKUP($B166,Vertices!$A$10:$F$203, 6, FALSE) -> 0 | J166: =VLOOKUP($C166,Vertices!$A$10:$F$203, 3, FALSE) -> 100 | K166: =VLOOKUP($C166,Vertices!$A$10:$F$203, 4, FALSE) -> 40 | L166: =VLOOKUP($C166,Vertices!$A$10:$F$203, 5, FALSE) -> 0 | M166: =VLOOKUP($C166,Vertices!$A$10:$F$203, 6, FALSE) -> 0 | N166: =VLOOKUP($D166,Vertices!$A$10:$F$203, 3, FALSE) -> 100 | O166: =VLOOKUP($D166,Vertices!$A$10:$F$203, 4, FALSE) -> 40 | P166: =VLOOKUP($D166,Vertices!$A$10:$F$203, 5, FALSE) -> 0 | Q166: =VLOOKUP($D166,Vertices!$A$10:$F$203, 6, FALSE) -> 20
A167: 157 | B167: 34 | C167: 101 | D167: 100 | F167: =VLOOKUP($B167,Vertices!$A$10:$F$203, 3, FALSE) -> 100 | G167: =VLOOKUP($B167,Vertices!$A$10:$F$203, 4, FALSE) -> 40 | H167: =VLOOKUP($B167,Vertices!$A$10:$F$203, 5, FALSE) -> 0 | I167: =VLOOKUP($B167,Vertices!$A$10:$F$203, 6, FALSE) -> 0 | J167: =VLOOKUP($C167,Vertices!$A$10:$F$203, 3, FALSE) -> 100 | K167: =VLOOKUP($C167,Vertices!$A$10:$F$203, 4, FALSE) -> 70 | L167: =VLOOKUP($C167,Vertices!$A$10:$F$203, 5, FALSE) -> 0 | M167: =VLOOKUP($C167,Vertices!$A$10:$F$203, 6, FALSE) -> 20 | N167: =VLOOKUP($D167,Vertices!$A$10:$F$203, 3, FALSE) -> 100 | O167: =VLOOKUP($D167,Vertices!$A$10:$F$203, 4, FALSE) -> 40 | P167: =VLOOKUP($D167,Vertices!$A$10:$F$203, 5, FALSE) -> 0 | Q167: =VLOOKUP($D167,Vertices!$A$10:$F$203, 6, FALSE) -> 20
A168: 158 | B168: 34 | C168: 35 | D168: 101 | F168: =VLOOKUP($B168,Vertices!$A$10:$F$203, 3, FALSE) -> 100 | G168: =VLOOKUP($B168,Vertices!$A$10:$F$203, 4, FALSE) -> 40 | H168: =VLOOKUP($B168,Vertices!$A$10:$F$203, 5, FALSE) -> 0 | I168: =VLOOKUP($B168,Vertices!$A$10:$F$203, 6, FALSE) -> 0 | J168: =VLOOKUP($C168,Vertices!$A$10:$F$203, 3, FALSE) -> 100 | K168: =VLOOKUP($C168,Vertices!$A$10:$F$203, 4, FALSE) -> 70 | L168: =VLOOKUP($C168,Vertices!$A$10:$F$203, 5, FALSE) -> 0 | M168: =VLOOKUP($C168,Vertices!$A$10:$F$203, 6, FALSE) -> 0 | N168: =VLOOKUP($D168,Vertices!$A$10:$F$203, 3, FALSE) -> 100 | O168: =VLOOKUP($D168,Vertices!$A$10:$F$203, 4, FALSE) -> 70 | P168: =VLOOKUP($D168,Vertices!$A$10:$F$203, 5, FALSE) -> 0 | Q168: =VLOOKUP($D168,Vertices!$A$10:$F$203, 6, FALSE) -> 20
A169: 159 | B169: 35 | C169: 102 | D169: 101 | F169: =VLOOKUP($B169,Vertices!$A$10:$F$203, 3, FALSE) -> 100 | G169: =VLOOKUP($B169,Vertices!$A$10:$F$203, 4, FALSE) -> 70 | H169: =VLOOKUP($B169,Vertices!$A$10:$F$203, 5, FALSE) -> 0 | I169: =VLOOKUP($B169,Vertices!$A$10:$F$203, 6, FALSE) -> 0 | J169: =VLOOKUP($C169,Vertices!$A$10:$F$203, 3, FALSE) -> 100 | K169: =VLOOKUP($C169,Vertices!$A$10:$F$203, 4, FALSE) -> 100 | L169: =VLOOKUP($C169,Vertices!$A$10:$F$203, 5, FALSE) -> 0 | M169: =VLOOKUP($C169,Vertices!$A$10:$F$203, 6, FALSE) -> 20 | N169: =VLOOKUP($D169,Vertices!$A$10:$F$203, 3, FALSE) -> 100 | O169: =VLOOKUP($D169,Vertices!$A$10:$F$203, 4, FALSE) -> 70 | P169: =VLOOKUP($D169,Vertices!$A$10:$F$203, 5, FALSE) -> 0 | Q169: =VLOOKUP($D169,Vertices!$A$10:$F$203, 6, FALSE) -> 20
A170: 160 | B170: 35 | C170: 36 | D170: 102 | F170: =VLOOKUP($B170,Vertices!$A$10:$F$203, 3, FALSE) -> 100 | G170: =VLOOKUP($B170,Vertices!$A$10:$F$203, 4, FALSE) -> 70 | H170: =VLOOKUP($B170,Vertices!$A$10:$F$203, 5, FALSE) -> 0 | I170: =VLOOKUP($B170,Vertices!$A$10:$F$203, 6, FALSE) -> 0 | J170: =VLOOKUP($C170,Vertices!$A$10:$F$203, 3, FALSE) -> 100 | K170: =VLOOKUP($C170,Vertices!$A$10:$F$203, 4, FALSE) -> 100 | L170: =VLOOKUP($C170,Vertices!$A$10:$F$203, 5, FALSE) -> 0 | M170: =VLOOKUP($C170,Vertices!$A$10:$F$203, 6, FALSE) -> 0 | N170: =VLOOKUP($D170,Vertices!$A$10:$F$203, 3, FALSE) -> 100 | O170: =VLOOKUP($D170,Vertices!$A$10:$F$203, 4, FALSE) -> 100 | P170: =VLOOKUP($D170,Vertices!$A$10:$F$203, 5, FALSE) -> 0 | Q170: =VLOOKUP($D170,Vertices!$A$10:$F$203, 6, FALSE) -> 20
A171: 161 | B171: 97 | C171: 98 | D171: 126 | F171: =VLOOKUP($B171,Vertices!$A$10:$F$203, 3, FALSE) -> 100 | G171: =VLOOKUP($B171,Vertices!$A$10:$F$203, 4, FALSE) -> 0 | H171: =VLOOKUP($B171,Vertices!$A$10:$F$203, 5, FALSE) -> 0 | I171: =VLOOKUP($B171,Vertices!$A$10:$F$203, 6, FALSE) -> 20 | J171: =VLOOKUP($C171,Vertices!$A$10:$F$203, 3, FALSE) -> 100 | K171: =VLOOKUP($C171,Vertices!$A$10:$F$203, 4, FALSE) -> 10 | L171: =VLOOKUP($C171,Vertices!$A$10:$F$203, 5, FALSE) -> 0 | M171: =VLOOKUP($C171,Vertices!$A$10:$F$203, 6, FALSE) -> 20 | N171: =VLOOKUP($D171,Vertices!$A$10:$F$203, 3, FALSE) -> 100 | O171: =VLOOKUP($D171,Vertices!$A$10:$F$203, 4, FALSE) -> 0 | P171: =VLOOKUP($D171,Vertices!$A$10:$F$203, 5, FALSE) -> 0 | Q171: =VLOOKUP($D171,Vertices!$A$10:$F$203, 6, FALSE) -> 40
A172: 162 | B172: 126 | C172: 98 | D172: 127 | F172: =VLOOKUP($B172,Vertices!$A$10:$F$203, 3, FALSE) -> 100 | G172: =VLOOKUP($B172,Vertices!$A$10:$F$203, 4, FALSE) -> 0 | H172: =VLOOKUP($B172,Vertices!$A$10:$F$203, 5, FALSE) -> 0 | I172: =VLOOKUP($B172,Vertices!$A$10:$F$203, 6, FALSE) -> 40 | J172: =VLOOKUP($C172,Vertices!$A$10:$F$203, 3, FALSE) -> 100 | K172: =VLOOKUP($C172,Vertices!$A$10:$F$203, 4, FALSE) -> 10 | L172: =VLOOKUP($C172,Vertices!$A$10:$F$203, 5, FALSE) -> 0 | M172: =VLOOKUP($C172,Vertices!$A$10:$F$203, 6, FALSE) -> 20 | N172: =VLOOKUP($D172,Vertices!$A$10:$F$203, 3, FALSE) -> 100 | O172: =VLOOKUP($D172,Vertices!$A$10:$F$203, 4, FALSE) -> 20 | P172: =VLOOKUP($D172,Vertices!$A$10:$F$203, 5, FALSE) -> 0 | Q172: =VLOOKUP($D172,Vertices!$A$10:$F$203, 6, FALSE) -> 40
A173: 163 | B173: 98 | C173: 99 | D173: 127 | F173: =VLOOKUP($B173,Vertices!$A$10:$F$203, 3, FALSE) -> 100 | G173: =VLOOKUP($B173,Vertices!$A$10:$F$203, 4, FALSE) -> 10 | H173: =VLOOKUP($B173,Vertices!$A$10:$F$203, 5, FALSE) -> 0 | I173: =VLOOKUP($B173,Vertices!$A$10:$F$203, 6, FALSE) -> 20 | J173: =VLOOKUP($C173,Vertices!$A$10:$F$203, 3, FALSE) -> 100 | K173: =VLOOKUP($C173,Vertices!$A$10:$F$203, 4, FALSE) -> 20 | L173: =VLOOKUP($C173,Vertices!$A$10:$F$203, 5, FALSE) -> 0 | M173: =VLOOKUP($C173,Vertices!$A$10:$F$203, 6, FALSE) -> 20 | N173: =VLOOKUP($D173,Vertices!$A$10:$F$203, 3, FALSE) -> 100 | O173: =VLOOKUP($D173,Vertices!$A$10:$F$203, 4, FALSE) -> 20 | P173: =VLOOKUP($D173,Vertices!$A$10:$F$203, 5, FALSE) -> 0 | Q173: =VLOOKUP($D173,Vertices!$A$10:$F$203, 6, FALSE) -> 40
A174: 164 | B174: 99 | C174: 128 | D174: 127 | F174: =VLOOKUP($B174,Vertices!$A$10:$F$203, 3, FALSE) -> 100 | G174: =VLOOKUP($B174,Vertices!$A$10:$F$203, 4, FALSE) -> 20 | H174: =VLOOKUP($B174,Vertices!$A$10:$F$203, 5, FALSE) -> 0 | I174: =VLOOKUP($B174,Vertices!$A$10:$F$203, 6, FALSE) -> 20 | J174: =VLOOKUP($C174,Vertices!$A$10:$F$203, 3, FALSE) -> 100 | K174: =VLOOKUP($C174,Vertices!$A$10:$F$203, 4, FALSE) -> 40 | L174: =VLOOKUP($C174,Vertices!$A$10:$F$203, 5, FALSE) -> 0 | M174: =VLOOKUP($C174,Vertices!$A$10:$F$203, 6, FALSE) -> 40 | N174: =VLOOKUP($D174,Vertices!$A$10:$F$203, 3, FALSE) -> 100 | O174: =VLOOKUP($D174,Vertices!$A$10:$F$203, 4, FALSE) -> 20 | P174: =VLOOKUP($D174,Vertices!$A$10:$F$203, 5, FALSE) -> 0 | Q174: =VLOOKUP($D174,Vertices!$A$10:$F$203, 6, FALSE) -> 40
A175: 165 | B175: 99 | C175: 100 | D175: 128 | F175: =VLOOKUP($B175,Vertices!$A$10:$F$203, 3, FALSE) -> 100 | G175: =VLOOKUP($B175,Vertices!$A$10:$F$203, 4, FALSE) -> 20 | H175: =VLOOKUP($B175,Vertices!$A$10:$F$203, 5, FALSE) -> 0 | I175: =VLOOKUP($B175,Vertices!$A$10:$F$203, 6, FALSE) -> 20 | J175: =VLOOKUP($C175,Vertices!$A$10:$F$203, 3, FALSE) -> 100 | K175: =VLOOKUP($C175,Vertices!$A$10:$F$203, 4, FALSE) -> 40 | L175: =VLOOKUP($C175,Vertices!$A$10:$F$203, 5, FALSE) -> 0 | M175: =VLOOKUP($C175,Vertices!$A$10:$F$203, 6, FALSE) -> 20 | N175: =VLOOKUP($D175,Vertices!$A$10:$F$203, 3, FALSE) -> 100 | O175: =VLOOKUP($D175,Vertices!$A$10:$F$203, 4, FALSE) -> 40 | P175: =VLOOKUP($D175,Vertices!$A$10:$F$203, 5, FALSE) -> 0 | Q175: =VLOOKUP($D175,Vertices!$A$10:$F$203, 6, FALSE) -> 40
A176: 166 | B176: 100 | C176: 129 | D176: 128 | F176: =VLOOKUP($B176,Vertices!$A$10:$F$203, 3, FALSE) -> 100 | G176: =VLOOKUP($B176,Vertices!$A$10:$F$203, 4, FALSE) -> 40 | H176: =VLOOKUP($B176,Vertices!$A$10:$F$203, 5, FALSE) -> 0 | I176: =VLOOKUP($B176,Vertices!$A$10:$F$203, 6, FALSE) -> 20 | J176: =VLOOKUP($C176,Vertices!$A$10:$F$203, 3, FALSE) -> 100 | K176: =VLOOKUP($C176,Vertices!$A$10:$F$203, 4, FALSE) -> 70 | L176: =VLOOKUP($C176,Vertices!$A$10:$F$203, 5, FALSE) -> 0 | M176: =VLOOKUP($C176,Vertices!$A$10:$F$203, 6, FALSE) -> 40 | N176: =VLOOKUP($D176,Vertices!$A$10:$F$203, 3, FALSE) -> 100 | O176: =VLOOKUP($D176,Vertices!$A$10:$F$203, 4, FALSE) -> 40 | P176: =VLOOKUP($D176,Vertices!$A$10:$F$203, 5, FALSE) -> 0 | Q176: =VLOOKUP($D176,Vertices!$A$10:$F$203, 6, FALSE) -> 40
A177: 167 | B177: 100 | C177: 101 | D177: 129 | F177: =VLOOKUP($B177,Vertices!$A$10:$F$203, 3, FALSE) -> 100 | G177: =VLOOKUP($B177,Vertices!$A$10:$F$203, 4, FALSE) -> 40 | H177: =VLOOKUP($B177,Vertices!$A$10:$F$203, 5, FALSE) -> 0 | I177: =VLOOKUP($B177,Vertices!$A$10:$F$203, 6, FALSE) -> 20 | J177: =VLOOKUP($C177,Vertices!$A$10:$F$203, 3, FALSE) -> 100 | K177: =VLOOKUP($C177,Vertices!$A$10:$F$203, 4, FALSE) -> 70 | L177: =VLOOKUP($C177,Vertices!$A$10:$F$203, 5, FALSE) -> 0 | M177: =VLOOKUP($C177,Vertices!$A$10:$F$203, 6, FALSE) -> 20 | N177: =VLOOKUP($D177,Vertices!$A$10:$F$203, 3, FALSE) -> 100 | O177: =VLOOKUP($D177,Vertices!$A$10:$F$203, 4, FALSE) -> 70 | P177: =VLOOKUP($D177,Vertices!$A$10:$F$203, 5, FALSE) -> 0 | Q177: =VLOOKUP($D177,Vertices!$A$10:$F$203, 6, FALSE) -> 40
A178: 168 | B178: 101 | C178: 130 | D178: 129 | F178: =VLOOKUP($B178,Vertices!$A$10:$F$203, 3, FALSE) -> 100 | G178: =VLOOKUP($B178,Vertices!$A$10:$F$203, 4, FALSE) -> 70 | H178: =VLOOKUP($B178,Vertices!$A$10:$F$203, 5, FALSE) -> 0 | I178: =VLOOKUP($B178,Vertices!$A$10:$F$203, 6, FALSE) -> 20 | J178: =VLOOKUP($C178,Vertices!$A$10:$F$203, 3, FALSE) -> 100 | K178: =VLOOKUP($C178,Vertices!$A$10:$F$203, 4, FALSE) -> 100 | L178: =VLOOKUP($C178,Vertices!$A$10:$F$203, 5, FALSE) -> 0 | M178: =VLOOKUP($C178,Vertices!$A$10:$F$203, 6, FALSE) -> 40 | N178: =VLOOKUP($D178,Vertices!$A$10:$F$203, 3, FALSE) -> 100 | O178: =VLOOKUP($D178,Vertices!$A$10:$F$203, 4, FALSE) -> 70 | P178: =VLOOKUP($D178,Vertices!$A$10:$F$203, 5, FALSE) -> 0 | Q178: =VLOOKUP($D178,Vertices!$A$10:$F$203, 6, FALSE) -> 40
A179: 169 | B179: 101 | C179: 102 | D179: 130 | F179: =VLOOKUP($B179,Vertices!$A$10:$F$203, 3, FALSE) -> 100 | G179: =VLOOKUP($B179,Vertices!$A$10:$F$203, 4, FALSE) -> 70 | H179: =VLOOKUP($B179,Vertices!$A$10:$F$203, 5, FALSE) -> 0 | I179: =VLOOKUP($B179,Vertices!$A$10:$F$203, 6, FALSE) -> 20 | J179: =VLOOKUP($C179,Vertices!$A$10:$F$203, 3, FALSE) -> 100 | K179: =VLOOKUP($C179,Vertices!$A$10:$F$203, 4, FALSE) -> 100 | L179: =VLOOKUP($C179,Vertices!$A$10:$F$203, 5, FALSE) -> 0 | M179: =VLOOKUP($C179,Vertices!$A$10:$F$203, 6, FALSE) -> 20 | N179: =VLOOKUP($D179,Vertices!$A$10:$F$203, 3, FALSE) -> 100 | O179: =VLOOKUP($D179,Vertices!$A$10:$F$203, 4, FALSE) -> 100 | P179: =VLOOKUP($D179,Vertices!$A$10:$F$203, 5, FALSE) -> 0 | Q179: =VLOOKUP($D179,Vertices!$A$10:$F$203, 6, FALSE) -> 40
A180: 170 | B180: 126 | C180: 151 | D180: 150 | F180: =VLOOKUP($B180,Vertices!$A$10:$F$203, 3, FALSE) -> 100 | G180: =VLOOKUP($B180,Vertices!$A$10:$F$203, 4, FALSE) -> 0 | H180: =VLOOKUP($B180,Vertices!$A$10:$F$203, 5, FALSE) -> 0 | I180: =VLOOKUP($B180,Vertices!$A$10:$F$203, 6, FALSE) -> 40 | J180: =VLOOKUP($C180,Vertices!$A$10:$F$203, 3, FALSE) -> 100 | K180: =VLOOKUP($C180,Vertices!$A$10:$F$203, 4, FALSE) -> 20 | L180: =VLOOKUP($C180,Vertices!$A$10:$F$203, 5, FALSE) -> 0 | M180: =VLOOKUP($C180,Vertices!$A$10:$F$203, 6, FALSE) -> 60 | N180: =VLOOKUP($D180,Vertices!$A$10:$F$203, 3, FALSE) -> 100 | O180: =VLOOKUP($D180,Vertices!$A$10:$F$203, 4, FALSE) -> 0 | P180: =VLOOKUP($D180,Vertices!$A$10:$F$203, 5, FALSE) -> 0 | Q180: =VLOOKUP($D180,Vertices!$A$10:$F$203, 6, FALSE) -> 60
A181: 171 | B181: 126 | C181: 127 | D181: 151 | F181: =VLOOKUP($B181,Vertices!$A$10:$F$203, 3, FALSE) -> 100 | G181: =VLOOKUP($B181,Vertices!$A$10:$F$203, 4, FALSE) -> 0 | H181: =VLOOKUP($B181,Vertices!$A$10:$F$203, 5, FALSE) -> 0 | I181: =VLOOKUP($B181,Vertices!$A$10:$F$203, 6, FALSE) -> 40 | J181: =VLOOKUP($C181,Vertices!$A$10:$F$203, 3, FALSE) -> 100 | K181: =VLOOKUP($C181,Vertices!$A$10:$F$203, 4, FALSE) -> 20 | L181: =VLOOKUP($C181,Vertices!$A$10:$F$203, 5, FALSE) -> 0 | M181: =VLOOKUP($C181,Vertices!$A$10:$F$203, 6, FALSE) -> 40 | N181: =VLOOKUP($D181,Vertices!$A$10:$F$203, 3, FALSE) -> 100 | O181: =VLOOKUP($D181,Vertices!$A$10:$F$203, 4, FALSE) -> 20 | P181: =VLOOKUP($D181,Vertices!$A$10:$F$203, 5, FALSE) -> 0 | Q181: =VLOOKUP($D181,Vertices!$A$10:$F$203, 6, FALSE) -> 60
A182: 172 | B182: 127 | C182: 152 | D182: 151 | F182: =VLOOKUP($B182,Vertices!$A$10:$F$203, 3, FALSE) -> 100 | G182: =VLOOKUP($B182,Vertices!$A$10:$F$203, 4, FALSE) -> 20 | H182: =VLOOKUP($B182,Vertices!$A$10:$F$203, 5, FALSE) -> 0 | I182: =VLOOKUP($B182,Vertices!$A$10:$F$203, 6, FALSE) -> 40 | J182: =VLOOKUP($C182,Vertices!$A$10:$F$203, 3, FALSE) -> 100 | K182: =VLOOKUP($C182,Vertices!$A$10:$F$203, 4, FALSE) -> 40 | L182: =VLOOKUP($C182,Vertices!$A$10:$F$203, 5, FALSE) -> 0 | M182: =VLOOKUP($C182,Vertices!$A$10:$F$203, 6, FALSE) -> 60 | N182: =VLOOKUP($D182,Vertices!$A$10:$F$203, 3, FALSE) -> 100 | O182: =VLOOKUP($D182,Vertices!$A$10:$F$203, 4, FALSE) -> 20 | P182: =VLOOKUP($D182,Vertices!$A$10:$F$203, 5, FALSE) -> 0 | Q182: =VLOOKUP($D182,Vertices!$A$10:$F$203, 6, FALSE) -> 60
A183: 173 | B183: 127 | C183: 128 | D183: 152 | F183: =VLOOKUP($B183,Vertices!$A$10:$F$203, 3, FALSE) -> 100 | G183: =VLOOKUP($B183,Vertices!$A$10:$F$203, 4, FALSE) -> 20 | H183: =VLOOKUP($B183,Vertices!$A$10:$F$203, 5, FALSE) -> 0 | I183: =VLOOKUP($B183,Vertices!$A$10:$F$203, 6, FALSE) -> 40 | J183: =VLOOKUP($C183,Vertices!$A$10:$F$203, 3, FALSE) -> 100 | K183: =VLOOKUP($C183,Vertices!$A$10:$F$203, 4, FALSE) -> 40 | L183: =VLOOKUP($C183,Vertices!$A$10:$F$203, 5, FALSE) -> 0 | M183: =VLOOKUP($C183,Vertices!$A$10:$F$203, 6, FALSE) -> 40 | N183: =VLOOKUP($D183,Vertices!$A$10:$F$203, 3, FALSE) -> 100 | O183: =VLOOKUP($D183,Vertices!$A$10:$F$203, 4, FALSE) -> 40 | P183: =VLOOKUP($D183,Vertices!$A$10:$F$203, 5, FALSE) -> 0 | Q183: =VLOOKUP($D183,Vertices!$A$10:$F$203, 6, FALSE) -> 60
A184: 174 | B184: 128 | C184: 153 | D184: 152 | F184: =VLOOKUP($B184,Vertices!$A$10:$F$203, 3, FALSE) -> 100 | G184: =VLOOKUP($B184,Vertices!$A$10:$F$203, 4, FALSE) -> 40 | H184: =VLOOKUP($B184,Vertices!$A$10:$F$203, 5, FALSE) -> 0 | I184: =VLOOKUP($B184,Vertices!$A$10:$F$203, 6, FALSE) -> 40 | J184: =VLOOKUP($C184,Vertices!$A$10:$F$203, 3, FALSE) -> 100 | K184: =VLOOKUP($C184,Vertices!$A$10:$F$203, 4, FALSE) -> 70 | L184: =VLOOKUP($C184,Vertices!$A$10:$F$203, 5, FALSE) -> 0 | M184: =VLOOKUP($C184,Vertices!$A$10:$F$203, 6, FALSE) -> 60 | N184: =VLOOKUP($D184,Vertices!$A$10:$F$203, 3, FALSE) -> 100 | O184: =VLOOKUP($D184,Vertices!$A$10:$F$203, 4, FALSE) -> 40 | P184: =VLOOKUP($D184,Vertices!$A$10:$F$203, 5, FALSE) -> 0 | Q184: =VLOOKUP($D184,Vertices!$A$10:$F$203, 6, FALSE) -> 60
A185: 175 | B185: 128 | C185: 129 | D185: 153 | F185: =VLOOKUP($B185,Vertices!$A$10:$F$203, 3, FALSE) -> 100 | G185: =VLOOKUP($B185,Vertices!$A$10:$F$203, 4, FALSE) -> 40 | H185: =VLOOKUP($B185,Vertices!$A$10:$F$203, 5, FALSE) -> 0 | I185: =VLOOKUP($B185,Vertices!$A$10:$F$203, 6, FALSE) -> 40 | J185: =VLOOKUP($C185,Vertices!$A$10:$F$203, 3, FALSE) -> 100 | K185: =VLOOKUP($C185,Vertices!$A$10:$F$203, 4, FALSE) -> 70 | L185: =VLOOKUP($C185,Vertices!$A$10:$F$203, 5, FALSE) -> 0 | M185: =VLOOKUP($C185,Vertices!$A$10:$F$203, 6, FALSE) -> 40 | N185: =VLOOKUP($D185,Vertices!$A$10:$F$203, 3, FALSE) -> 100 | O185: =VLOOKUP($D185,Vertices!$A$10:$F$203, 4, FALSE) -> 70 | P185: =VLOOKUP($D185,Vertices!$A$10:$F$203, 5, FALSE) -> 0 | Q185: =VLOOKUP($D185,Vertices!$A$10:$F$203, 6, FALSE) -> 60
A186: 176 | B186: 129 | C186: 154 | D186: 153 | F186: =VLOOKUP($B186,Vertices!$A$10:$F$203, 3, FALSE) -> 100 | G186: =VLOOKUP($B186,Vertices!$A$10:$F$203, 4, FALSE) -> 70 | H186: =VLOOKUP($B186,Vertices!$A$10:$F$203, 5, FALSE) -> 0 | I186: =VLOOKUP($B186,Vertices!$A$10:$F$203, 6, FALSE) -> 40 | J186: =VLOOKUP($C186,Vertices!$A$10:$F$203, 3, FALSE) -> 100 | K186: =VLOOKUP($C186,Vertices!$A$10:$F$203, 4, FALSE) -> 100 | L186: =VLOOKUP($C186,Vertices!$A$10:$F$203, 5, FALSE) -> 0 | M186: =VLOOKUP($C186,Vertices!$A$10:$F$203, 6, FALSE) -> 60 | N186: =VLOOKUP($D186,Vertices!$A$10:$F$203, 3, FALSE) -> 100 | O186: =VLOOKUP($D186,Vertices!$A$10:$F$203, 4, FALSE) -> 70 | P186: =VLOOKUP($D186,Vertices!$A$10:$F$203, 5, FALSE) -> 0 | Q186: =VLOOKUP($D186,Vertices!$A$10:$F$203, 6, FALSE) -> 60
A187: 177 | B187: 129 | C187: 130 | D187: 154 | F187: =VLOOKUP($B187,Vertices!$A$10:$F$203, 3, FALSE) -> 100 | G187: =VLOOKUP($B187,Vertices!$A$10:$F$203, 4, FALSE) -> 70 | H187: =VLOOKUP($B187,Vertices!$A$10:$F$203, 5, FALSE) -> 0 | I187: =VLOOKUP($B187,Vertices!$A$10:$F$203, 6, FALSE) -> 40 | J187: =VLOOKUP($C187,Vertices!$A$10:$F$203, 3, FALSE) -> 100 | K187: =VLOOKUP($C187,Vertices!$A$10:$F$203, 4, FALSE) -> 100 | L187: =VLOOKUP($C187,Vertices!$A$10:$F$203, 5, FALSE) -> 0 | M187: =VLOOKUP($C187,Vertices!$A$10:$F$203, 6, FALSE) -> 40 | N187: =VLOOKUP($D187,Vertices!$A$10:$F$203, 3, FALSE) -> 100 | O187: =VLOOKUP($D187,Vertices!$A$10:$F$203, 4, FALSE) -> 100 | P187: =VLOOKUP($D187,Vertices!$A$10:$F$203, 5, FALSE) -> 0 | Q187: =VLOOKUP($D187,Vertices!$A$10:$F$203, 6, FALSE) -> 60
A188: 178 | B188: 150 | C188: 151 | D188: 173 | F188: =VLOOKUP($B188,Vertices!$A$10:$F$203, 3, FALSE) -> 100 | G188: =VLOOKUP($B188,Vertices!$A$10:$F$203, 4, FALSE) -> 0 | H188: =VLOOKUP($B188,Vertices!$A$10:$F$203, 5, FALSE) -> 0 | I188: =VLOOKUP($B188,Vertices!$A$10:$F$203, 6, FALSE) -> 60 | J188: =VLOOKUP($C188,Vertices!$A$10:$F$203, 3, FALSE) -> 100 | K188: =VLOOKUP($C188,Vertices!$A$10:$F$203, 4, FALSE) -> 20 | L188: =VLOOKUP($C188,Vertices!$A$10:$F$203, 5, FALSE) -> 0 | M188: =VLOOKUP($C188,Vertices!$A$10:$F$203, 6, FALSE) -> 60 | N188: =VLOOKUP($D188,Vertices!$A$10:$F$203, 3, FALSE) -> 100 | O188: =VLOOKUP($D188,Vertices!$A$10:$F$203, 4, FALSE) -> 0 | P188: =VLOOKUP($D188,Vertices!$A$10:$F$203, 5, FALSE) -> 0 | Q188: =VLOOKUP($D188,Vertices!$A$10:$F$203, 6, FALSE) -> 80
A189: 179 | B189: 151 | C189: 174 | D189: 173 | F189: =VLOOKUP($B189,Vertices!$A$10:$F$203, 3, FALSE) -> 100 | G189: =VLOOKUP($B189,Vertices!$A$10:$F$203, 4, FALSE) -> 20 | H189: =VLOOKUP($B189,Vertices!$A$10:$F$203, 5, FALSE) -> 0 | I189: =VLOOKUP($B189,Vertices!$A$10:$F$203, 6, FALSE) -> 60 | J189: =VLOOKUP($C189,Vertices!$A$10:$F$203, 3, FALSE) -> 100 | K189: =VLOOKUP($C189,Vertices!$A$10:$F$203, 4, FALSE) -> 40 | L189: =VLOOKUP($C189,Vertices!$A$10:$F$203, 5, FALSE) -> 0 | M189: =VLOOKUP($C189,Vertices!$A$10:$F$203, 6, FALSE) -> 80 | N189: =VLOOKUP($D189,Vertices!$A$10:$F$203, 3, FALSE) -> 100 | O189: =VLOOKUP($D189,Vertices!$A$10:$F$203, 4, FALSE) -> 0 | P189: =VLOOKUP($D189,Vertices!$A$10:$F$203, 5, FALSE) -> 0 | Q189: =VLOOKUP($D189,Vertices!$A$10:$F$203, 6, FALSE) -> 80
A190: 180 | B190: 151 | C190: 152 | D190: 174 | F190: =VLOOKUP($B190,Vertices!$A$10:$F$203, 3, FALSE) -> 100 | G190: =VLOOKUP($B190,Vertices!$A$10:$F$203, 4, FALSE) -> 20 | H190: =VLOOKUP($B190,Vertices!$A$10:$F$203, 5, FALSE) -> 0 | I190: =VLOOKUP($B190,Vertices!$A$10:$F$203, 6, FALSE) -> 60 | J190: =VLOOKUP($C190,Vertices!$A$10:$F$203, 3, FALSE) -> 100 | K190: =VLOOKUP($C190,Vertices!$A$10:$F$203, 4, FALSE) -> 40 | L190: =VLOOKUP($C190,Vertices!$A$10:$F$203, 5, FALSE) -> 0 | M190: =VLOOKUP($C190,Vertices!$A$10:$F$203, 6, FALSE) -> 60 | N190: =VLOOKUP($D190,Vertices!$A$10:$F$203, 3, FALSE) -> 100 | O190: =VLOOKUP($D190,Vertices!$A$10:$F$203, 4, FALSE) -> 40 | P190: =VLOOKUP($D190,Vertices!$A$10:$F$203, 5, FALSE) -> 0 | Q190: =VLOOKUP($D190,Vertices!$A$10:$F$203, 6, FALSE) -> 80
A191: 181 | B191: 152 | C191: 175 | D191: 174 | F191: =VLOOKUP($B191,Vertices!$A$10:$F$203, 3, FALSE) -> 100 | G191: =VLOOKUP($B191,Vertices!$A$10:$F$203, 4, FALSE) -> 40 | H191: =VLOOKUP($B191,Vertices!$A$10:$F$203, 5, FALSE) -> 0 | I191: =VLOOKUP($B191,Vertices!$A$10:$F$203, 6, FALSE) -> 60 | J191: =VLOOKUP($C191,Vertices!$A$10:$F$203, 3, FALSE) -> 100 | K191: =VLOOKUP($C191,Vertices!$A$10:$F$203, 4, FALSE) -> 70 | L191: =VLOOKUP($C191,Vertices!$A$10:$F$203, 5, FALSE) -> 0 | M191: =VLOOKUP($C191,Vertices!$A$10:$F$203, 6, FALSE) -> 80 | N191: =VLOOKUP($D191,Vertices!$A$10:$F$203, 3, FALSE) -> 100 | O191: =VLOOKUP($D191,Vertices!$A$10:$F$203, 4, FALSE) -> 40 | P191: =VLOOKUP($D191,Vertices!$A$10:$F$203, 5, FALSE) -> 0 | Q191: =VLOOKUP($D191,Vertices!$A$10:$F$203, 6, FALSE) -> 80
A192: 182 | B192: 152 | C192: 153 | D192: 175 | F192: =VLOOKUP($B192,Vertices!$A$10:$F$203, 3, FALSE) -> 100 | G192: =VLOOKUP($B192,Vertices!$A$10:$F$203, 4, FALSE) -> 40 | H192: =VLOOKUP($B192,Vertices!$A$10:$F$203, 5, FALSE) -> 0 | I192: =VLOOKUP($B192,Vertices!$A$10:$F$203, 6, FALSE) -> 60 | J192: =VLOOKUP($C192,Vertices!$A$10:$F$203, 3, FALSE) -> 100 | K192: =VLOOKUP($C192,Vertices!$A$10:$F$203, 4, FALSE) -> 70 | L192: =VLOOKUP($C192,Vertices!$A$10:$F$203, 5, FALSE) -> 0 | M192: =VLOOKUP($C192,Vertices!$A$10:$F$203, 6, FALSE) -> 60 | N192: =VLOOKUP($D192,Vertices!$A$10:$F$203, 3, FALSE) -> 100 | O192: =VLOOKUP($D192,Vertices!$A$10:$F$203, 4, FALSE) -> 70 | P192: =VLOOKUP($D192,Vertices!$A$10:$F$203, 5, FALSE) -> 0 | Q192: =VLOOKUP($D192,Vertices!$A$10:$F$203, 6, FALSE) -> 80
A193: 183 | B193: 153 | C193: 176 | D193: 175 | F193: =VLOOKUP($B193,Vertices!$A$10:$F$203, 3, FALSE) -> 100 | G193: =VLOOKUP($B193,Vertices!$A$10:$F$203, 4, FALSE) -> 70 | H193: =VLOOKUP($B193,Vertices!$A$10:$F$203, 5, FALSE) -> 0 | I193: =VLOOKUP($B193,Vertices!$A$10:$F$203, 6, FALSE) -> 60 | J193: =VLOOKUP($C193,Vertices!$A$10:$F$203, 3, FALSE) -> 100 | K193: =VLOOKUP($C193,Vertices!$A$10:$F$203, 4, FALSE) -> 100 | L193: =VLOOKUP($C193,Vertices!$A$10:$F$203, 5, FALSE) -> 0 | M193: =VLOOKUP($C193,Vertices!$A$10:$F$203, 6, FALSE) -> 80 | N193: =VLOOKUP($D193,Vertices!$A$10:$F$203, 3, FALSE) -> 100 | O193: =VLOOKUP($D193,Vertices!$A$10:$F$203, 4, FALSE) -> 70 | P193: =VLOOKUP($D193,Vertices!$A$10:$F$203, 5, FALSE) -> 0 | Q193: =VLOOKUP($D193,Vertices!$A$10:$F$203, 6, FALSE) -> 80
A194: 184 | B194: 153 | C194: 154 | D194: 176 | F194: =VLOOKUP($B194,Vertices!$A$10:$F$203, 3, FALSE) -> 100 | G194: =VLOOKUP($B194,Vertices!$A$10:$F$203, 4, FALSE) -> 70 | H194: =VLOOKUP($B194,Vertices!$A$10:$F$203, 5, FALSE) -> 0 | I194: =VLOOKUP($B194,Vertices!$A$10:$F$203, 6, FALSE) -> 60 | J194: =VLOOKUP($C194,Vertices!$A$10:$F$203, 3, FALSE) -> 100 | K194: =VLOOKUP($C194,Vertices!$A$10:$F$203, 4, FALSE) -> 100 | L194: =VLOOKUP($C194,Vertices!$A$10:$F$203, 5, FALSE) -> 0 | M194: =VLOOKUP($C194,Vertices!$A$10:$F$203, 6, FALSE) -> 60 | N194: =VLOOKUP($D194,Vertices!$A$10:$F$203, 3, FALSE) -> 100 | O194: =VLOOKUP($D194,Vertices!$A$10:$F$203, 4, FALSE) -> 100 | P194: =VLOOKUP($D194,Vertices!$A$10:$F$203, 5, FALSE) -> 0 | Q194: =VLOOKUP($D194,Vertices!$A$10:$F$203, 6, FALSE) -> 80
A195: 185 | B195: 173 | C195: 174 | D195: 189 | F195: =VLOOKUP($B195,Vertices!$A$10:$F$203, 3, FALSE) -> 100 | G195: =VLOOKUP($B195,Vertices!$A$10:$F$203, 4, FALSE) -> 0 | H195: =VLOOKUP($B195,Vertices!$A$10:$F$203, 5, FALSE) -> 0 | I195: =VLOOKUP($B195,Vertices!$A$10:$F$203, 6, FALSE) -> 80 | J195: =VLOOKUP($C195,Vertices!$A$10:$F$203, 3, FALSE) -> 100 | K195: =VLOOKUP($C195,Vertices!$A$10:$F$203, 4, FALSE) -> 40 | L195: =VLOOKUP($C195,Vertices!$A$10:$F$203, 5, FALSE) -> 0 | M195: =VLOOKUP($C195,Vertices!$A$10:$F$203, 6, FALSE) -> 80 | N195: =VLOOKUP($D195,Vertices!$A$10:$F$203, 3, FALSE) -> 100 | O195: =VLOOKUP($D195,Vertices!$A$10:$F$203, 4, FALSE) -> 0 | P195: =VLOOKUP($D195,Vertices!$A$10:$F$203, 5, FALSE) -> 0 | Q195: =VLOOKUP($D195,Vertices!$A$10:$F$203, 6, FALSE) -> 100
A196: 186 | B196: 174 | C196: 190 | D196: 189 | F196: =VLOOKUP($B196,Vertices!$A$10:$F$203, 3, FALSE) -> 100 | G196: =VLOOKUP($B196,Vertices!$A$10:$F$203, 4, FALSE) -> 40 | H196: =VLOOKUP($B196,Vertices!$A$10:$F$203, 5, FALSE) -> 0 | I196: =VLOOKUP($B196,Vertices!$A$10:$F$203, 6, FALSE) -> 80 | J196: =VLOOKUP($C196,Vertices!$A$10:$F$203, 3, FALSE) -> 100 | K196: =VLOOKUP($C196,Vertices!$A$10:$F$203, 4, FALSE) -> 100 | L196: =VLOOKUP($C196,Vertices!$A$10:$F$203, 5, FALSE) -> 0 | M196: =VLOOKUP($C196,Vertices!$A$10:$F$203, 6, FALSE) -> 100 | N196: =VLOOKUP($D196,Vertices!$A$10:$F$203, 3, FALSE) -> 100 | O196: =VLOOKUP($D196,Vertices!$A$10:$F$203, 4, FALSE) -> 0 | P196: =VLOOKUP($D196,Vertices!$A$10:$F$203, 5, FALSE) -> 0 | Q196: =VLOOKUP($D196,Vertices!$A$10:$F$203, 6, FALSE) -> 100
A197: 187 | B197: 174 | C197: 175 | D197: 190 | F197: =VLOOKUP($B197,Vertices!$A$10:$F$203, 3, FALSE) -> 100 | G197: =VLOOKUP($B197,Vertices!$A$10:$F$203, 4, FALSE) -> 40 | H197: =VLOOKUP($B197,Vertices!$A$10:$F$203, 5, FALSE) -> 0 | I197: =VLOOKUP($B197,Vertices!$A$10:$F$203, 6, FALSE) -> 80 | J197: =VLOOKUP($C197,Vertices!$A$10:$F$203, 3, FALSE) -> 100 | K197: =VLOOKUP($C197,Vertices!$A$10:$F$203, 4, FALSE) -> 70 | L197: =VLOOKUP($C197,Vertices!$A$10:$F$203, 5, FALSE) -> 0 | M197: =VLOOKUP($C197,Vertices!$A$10:$F$203, 6, FALSE) -> 80 | N197: =VLOOKUP($D197,Vertices!$A$10:$F$203, 3, FALSE) -> 100 | O197: =VLOOKUP($D197,Vertices!$A$10:$F$203, 4, FALSE) -> 100 | P197: =VLOOKUP($D197,Vertices!$A$10:$F$203, 5, FALSE) -> 0 | Q197: =VLOOKUP($D197,Vertices!$A$10:$F$203, 6, FALSE) -> 100
A198: 188 | B198: 175 | C198: 176 | D198: 190 | F198: =VLOOKUP($B198,Vertices!$A$10:$F$203, 3, FALSE) -> 100 | G198: =VLOOKUP($B198,Vertices!$A$10:$F$203, 4, FALSE) -> 70 | H198: =VLOOKUP($B198,Vertices!$A$10:$F$203, 5, FALSE) -> 0 | I198: =VLOOKUP($B198,Vertices!$A$10:$F$203, 6, FALSE) -> 80 | J198: =VLOOKUP($C198,Vertices!$A$10:$F$203, 3, FALSE) -> 100 | K198: =VLOOKUP($C198,Vertices!$A$10:$F$203, 4, FALSE) -> 100 | L198: =VLOOKUP($C198,Vertices!$A$10:$F$203, 5, FALSE) -> 0 | M198: =VLOOKUP($C198,Vertices!$A$10:$F$203, 6, FALSE) -> 80 | N198: =VLOOKUP($D198,Vertices!$A$10:$F$203, 3, FALSE) -> 100 | O198: =VLOOKUP($D198,Vertices!$A$10:$F$203, 4, FALSE) -> 100 | P198: =VLOOKUP($D198,Vertices!$A$10:$F$203, 5, FALSE) -> 0 | Q198: =VLOOKUP($D198,Vertices!$A$10:$F$203, 6, FALSE) -> 100
A199: 189 | B199: 6 | C199: 92 | D199: 93 | F199: =VLOOKUP($B199,Vertices!$A$10:$F$203, 3, FALSE) -> 0 | G199: =VLOOKUP($B199,Vertices!$A$10:$F$203, 4, FALSE) -> 100 | H199: =VLOOKUP($B199,Vertices!$A$10:$F$203, 5, FALSE) -> 0 | I199: =VLOOKUP($B199,Vertices!$A$10:$F$203, 6, FALSE) -> 0 | J199: =VLOOKUP($C199,Vertices!$A$10:$F$203, 3, FALSE) -> 0 | K199: =VLOOKUP($C199,Vertices!$A$10:$F$203, 4, FALSE) -> 100 | L199: =VLOOKUP($C199,Vertices!$A$10:$F$203, 5, FALSE) -> 0 | M199: =VLOOKUP($C199,Vertices!$A$10:$F$203, 6, FALSE) -> 20 | N199: =VLOOKUP($D199,Vertices!$A$10:$F$203, 3, FALSE) -> 10 | O199: =VLOOKUP($D199,Vertices!$A$10:$F$203, 4, FALSE) -> 100 | P199: =VLOOKUP($D199,Vertices!$A$10:$F$203, 5, FALSE) -> 0 | Q199: =VLOOKUP($D199,Vertices!$A$10:$F$203, 6, FALSE) -> 20
A200: 190 | B200: 6 | C200: 93 | D200: 12 | F200: =VLOOKUP($B200,Vertices!$A$10:$F$203, 3, FALSE) -> 0 | G200: =VLOOKUP($B200,Vertices!$A$10:$F$203, 4, FALSE) -> 100 | H200: =VLOOKUP($B200,Vertices!$A$10:$F$203, 5, FALSE) -> 0 | I200: =VLOOKUP($B200,Vertices!$A$10:$F$203, 6, FALSE) -> 0 | J200: =VLOOKUP($C200,Vertices!$A$10:$F$203, 3, FALSE) -> 10 | K200: =VLOOKUP($C200,Vertices!$A$10:$F$203, 4, FALSE) -> 100 | L200: =VLOOKUP($C200,Vertices!$A$10:$F$203, 5, FALSE) -> 0 | M200: =VLOOKUP($C200,Vertices!$A$10:$F$203, 6, FALSE) -> 20 | N200: =VLOOKUP($D200,Vertices!$A$10:$F$203, 3, FALSE) -> 10 | O200: =VLOOKUP($D200,Vertices!$A$10:$F$203, 4, FALSE) -> 100 | P200: =VLOOKUP($D200,Vertices!$A$10:$F$203, 5, FALSE) -> 0 | Q200: =VLOOKUP($D200,Vertices!$A$10:$F$203, 6, FALSE) -> 0
A201: 191 | B201: 12 | C201: 93 | D201: 94 | F201: =VLOOKUP($B201,Vertices!$A$10:$F$203, 3, FALSE) -> 10 | G201: =VLOOKUP($B201,Vertices!$A$10:$F$203, 4, FALSE) -> 100 | H201: =VLOOKUP($B201,Vertices!$A$10:$F$203, 5, FALSE) -> 0 | I201: =VLOOKUP($B201,Vertices!$A$10:$F$203, 6, FALSE) -> 0 | J201: =VLOOKUP($C201,Vertices!$A$10:$F$203, 3, FALSE) -> 10 | K201: =VLOOKUP($C201,Vertices!$A$10:$F$203, 4, FALSE) -> 100 | L201: =VLOOKUP($C201,Vertices!$A$10:$F$203, 5, FALSE) -> 0 | M201: =VLOOKUP($C201,Vertices!$A$10:$F$203, 6, FALSE) -> 20 | N201: =VLOOKUP($D201,Vertices!$A$10:$F$203, 3, FALSE) -> 20 | O201: =VLOOKUP($D201,Vertices!$A$10:$F$203, 4, FALSE) -> 100 | P201: =VLOOKUP($D201,Vertices!$A$10:$F$203, 5, FALSE) -> 0 | Q201: =VLOOKUP($D201,Vertices!$A$10:$F$203, 6, FALSE) -> 20
A202: 192 | B202: 12 | C202: 94 | D202: 18 | F202: =VLOOKUP($B202,Vertices!$A$10:$F$203, 3, FALSE) -> 10 | G202: =VLOOKUP($B202,Vertices!$A$10:$F$203, 4, FALSE) -> 100 | H202: =VLOOKUP($B202,Vertices!$A$10:$F$203, 5, FALSE) -> 0 | I202: =VLOOKUP($B202,Vertices!$A$10:$F$203, 6, FALSE) -> 0 | J202: =VLOOKUP($C202,Vertices!$A$10:$F$203, 3, FALSE) -> 20 | K202: =VLOOKUP($C202,Vertices!$A$10:$F$203, 4, FALSE) -> 100 | L202: =VLOOKUP($C202,Vertices!$A$10:$F$203, 5, FALSE) -> 0 | M202: =VLOOKUP($C202,Vertices!$A$10:$F$203, 6, FALSE) -> 20 | N202: =VLOOKUP($D202,Vertices!$A$10:$F$203, 3, FALSE) -> 20 | O202: =VLOOKUP($D202,Vertices!$A$10:$F$203, 4, FALSE) -> 100 | P202: =VLOOKUP($D202,Vertices!$A$10:$F$203, 5, FALSE) -> 0 | Q202: =VLOOKUP($D202,Vertices!$A$10:$F$203, 6, FALSE) -> 0
A203: 193 | B203: 18 | C203: 94 | D203: 95 | F203: =VLOOKUP($B203,Vertices!$A$10:$F$203, 3, FALSE) -> 20 | G203: =VLOOKUP($B203,Vertices!$A$10:$F$203, 4, FALSE) -> 100 | H203: =VLOOKUP($B203,Vertices!$A$10:$F$203, 5, FALSE) -> 0 | I203: =VLOOKUP($B203,Vertices!$A$10:$F$203, 6, FALSE) -> 0 | J203: =VLOOKUP($C203,Vertices!$A$10:$F$203, 3, FALSE) -> 20 | K203: =VLOOKUP($C203,Vertices!$A$10:$F$203, 4, FALSE) -> 100 | L203: =VLOOKUP($C203,Vertices!$A$10:$F$203, 5, FALSE) -> 0 | M203: =VLOOKUP($C203,Vertices!$A$10:$F$203, 6, FALSE) -> 20 | N203: =VLOOKUP($D203,Vertices!$A$10:$F$203, 3, FALSE) -> 40 | O203: =VLOOKUP($D203,Vertices!$A$10:$F$203, 4, FALSE) -> 100 | P203: =VLOOKUP($D203,Vertices!$A$10:$F$203, 5, FALSE) -> 0 | Q203: =VLOOKUP($D203,Vertices!$A$10:$F$203, 6, FALSE) -> 20
... 189 more rows

Sheet Volumes
A1: ISO 18621-11 Gamut Volume Computation Tool: Volume Computation
B3: Sample Name: | C3: =IF(ISTEXT(INDEX(INPUTdata!$B1:$B40, MATCH("DESCRIPTOR",INPUTdata!$A1:$A40,FALSE))),INDEX(INPUTdata!$B1:$B40,MATCH("DESCRIPTOR",INPUTdata!$A1:$A40,FALSE)), IF(ISTEXT(INDEX(INPUTdata!$B1:$B40,MATCH("FILE_DESCRIPTOR",INPUTdata!$A1:$A40,FALSE))),INDEX(INPUTdata!$B1:$B40,MATCH("FILE_DESCRIPTOR",INPUTdata!$A1:$A40,FALSE)),"")) -> ISO15339-2-CRPC6
B4: Gamut Volume: | C4: =N8 -> 389562
C6: L* | D6: a* | E6: b* | M6: NegativeValuesCount: | N6: =COUNTIF(N11:N1522,"<-0.001") -> 0
B7: Vertex_p4: | C7: =AVERAGE(Vertices!G11,Vertices!G200) -> 51.46 | D7: 0.00 | E7: 0.00
N8: =SUM(N11:N392) -> 389562 | O8: =SUM(O11:O392) -> 389562
B9: Vertex_p1 - Vertex_p4 | F9: Vertex_p2 - Vertex_p4 | J9: Vertex_p3 - Vertex_p4 | N9: signed | O9: absolute
A10: Face# | B10: Vertex# | C10: dL* | D10: da* | E10: db* | F10: Vertex# | G10: dL* | H10: da* | I10: db* | J10: Vertex# | K10: dL* | L10: da* | M10: db* | N10: Volume (tetrahedrons) | O10: Volume
A11: =Faces!A11 -> 1 | B11: =Faces!B11 -> 1 | C11: =VLOOKUP(B11,Vertices!$A$11:$J$203,7,FALSE )-$C$7 -> 43.55 | D11: =VLOOKUP(B11,Vertices!$A$11:$J$203,8,FALSE )-$D$7 -> 1.00 | E11: =VLOOKUP(B11,Vertices!$A$11:$J$203,9,FALSE )-$E$7 -> -4.00 | F11: =Faces!C11 -> 8 | G11: =VLOOKUP(F11,Vertices!$A$11:$J$203,7,FALSE )-$C$7 -> 34.71 | H11: =VLOOKUP(F11,Vertices!$A$11:$J$203,8,FALSE )-$D$7 -> 4.15 | I11: =VLOOKUP(F11,Vertices!$A$11:$J$203,9,FALSE )-$E$7 -> -9.70 | J11: =Faces!D11 -> 7 | K11: =VLOOKUP(J11,Vertices!$A$11:$J$203,7,FALSE )-$C$7 -> 39.54 | L11: =VLOOKUP(J11,Vertices!$A$11:$J$203,8,FALSE )-$D$7 -> -2.33 | M11: =VLOOKUP(J11,Vertices!$A$11:$J$203,9,FALSE )-$E$7 -> -8.84 | N11: =-1*(C11*H11*M11+D11*I11*K11+E11*G11*L11-C11*I11*L11-D11*G11*M11-E11*H11*K11)/6 -> 279.77 | O11: =ABS(N11) -> 279.77
A12: =Faces!A12 -> 2 | B12: =Faces!B12 -> 1 | C12: =VLOOKUP(B12,Vertices!$A$11:$J$203,7,FALSE )-$C$7 -> 43.55 | D12: =VLOOKUP(B12,Vertices!$A$11:$J$203,8,FALSE )-$D$7 -> 1.00 | E12: =VLOOKUP(B12,Vertices!$A$11:$J$203,9,FALSE )-$E$7 -> -4.00 | F12: =Faces!C12 -> 2 | G12: =VLOOKUP(F12,Vertices!$A$11:$J$203,7,FALSE )-$C$7 -> 38.44 | H12: =VLOOKUP(F12,Vertices!$A$11:$J$203,8,FALSE )-$D$7 -> 7.72 | I12: =VLOOKUP(F12,Vertices!$A$11:$J$203,9,FALSE )-$E$7 -> -5.04 | J12: =Faces!D12 -> 8 | K12: =VLOOKUP(J12,Vertices!$A$11:$J$203,7,FALSE )-$C$7 -> 34.71 | L12: =VLOOKUP(J12,Vertices!$A$11:$J$203,8,FALSE )-$D$7 -> 4.15 | M12: =VLOOKUP(J12,Vertices!$A$11:$J$203,9,FALSE )-$E$7 -> -9.70 | N12: =-1*(C12*H12*M12+D12*I12*K12+E12*G12*L12-C12*I12*L12-D12*G12*M12-E12*H12*K12)/6 -> 286.41 | O12: =ABS(N12) -> 286.41
A13: =Faces!A13 -> 3 | B13: =Faces!B13 -> 7 | C13: =VLOOKUP(B13,Vertices!$A$11:$J$203,7,FALSE )-$C$7 -> 39.54 | D13: =VLOOKUP(B13,Vertices!$A$11:$J$203,8,FALSE )-$D$7 -> -2.33 | E13: =VLOOKUP(B13,Vertices!$A$11:$J$203,9,FALSE )-$E$7 -> -8.84 | F13: =Faces!C13 -> 14 | G13: =VLOOKUP(F13,Vertices!$A$11:$J$203,7,FALSE )-$C$7 -> 31.00 | H13: =VLOOKUP(F13,Vertices!$A$11:$J$203,8,FALSE )-$D$7 -> 0.61 | I13: =VLOOKUP(F13,Vertices!$A$11:$J$203,9,FALSE )-$E$7 -> -14.26 | J13: =Faces!D13 -> 13 | K13: =VLOOKUP(J13,Vertices!$A$11:$J$203,7,FALSE )-$C$7 -> 35.64 | L13: =VLOOKUP(J13,Vertices!$A$11:$J$203,8,FALSE )-$D$7 -> -5.66 | M13: =VLOOKUP(J13,Vertices!$A$11:$J$203,9,FALSE )-$E$7 -> -13.59 | N13: 262.19 | O13: 262.19
A14: =Faces!A14 -> 4 | B14: =Faces!B14 -> 7 | C14: =VLOOKUP(B14,Vertices!$A$11:$J$203,7,FALSE )-$C$7 -> 39.54 | D14: =VLOOKUP(B14,Vertices!$A$11:$J$203,8,FALSE )-$D$7 -> -2.33 | E14: =VLOOKUP(B14,Vertices!$A$11:$J$203,9,FALSE )-$E$7 -> -8.84 | F14: =Faces!C14 -> 8 | G14: =VLOOKUP(F14,Vertices!$A$11:$J$203,7,FALSE )-$C$7 -> 34.71 | H14: =VLOOKUP(F14,Vertices!$A$11:$J$203,8,FALSE )-$D$7 -> 4.15 | I14: =VLOOKUP(F14,Vertices!$A$11:$J$203,9,FALSE )-$E$7 -> -9.70 | J14: =Faces!D14 -> 14 | K14: =VLOOKUP(J14,Vertices!$A$11:$J$203,7,FALSE )-$C$7 -> 31.00 | L14: =VLOOKUP(J14,Vertices!$A$11:$J$203,8,FALSE )-$D$7 -> 0.61 | M14: =VLOOKUP(J14,Vertices!$A$11:$J$203,9,FALSE )-$E$7 -> -14.26 | N14: 268.06 | O14: 268.06
A15: =Faces!A15 -> 5 | B15: =Faces!B15 -> 8 | C15: =VLOOKUP(B15,Vertices!$A$11:$J$203,7,FALSE )-$C$7 -> 34.71 | D15: =VLOOKUP(B15,Vertices!$A$11:$J$203,8,FALSE )-$D$7 -> 4.15 | E15: =VLOOKUP(B15,Vertices!$A$11:$J$203,9,FALSE )-$E$7 -> -9.70 | F15: =Faces!C15 -> 15 | G15: =VLOOKUP(F15,Vertices!$A$11:$J$203,7,FALSE )-$C$7 -> 26.58 | H15: =VLOOKUP(F15,Vertices!$A$11:$J$203,8,FALSE )-$D$7 -> 6.71 | I15: =VLOOKUP(F15,Vertices!$A$11:$J$203,9,FALSE )-$E$7 -> -14.88 | J15: =Faces!D15 -> 14 | K15: =VLOOKUP(J15,Vertices!$A$11:$J$203,7,FALSE )-$C$7 -> 31.00 | L15: =VLOOKUP(J15,Vertices!$A$11:$J$203,8,FALSE )-$D$7 -> 0.61 | M15: =VLOOKUP(J15,Vertices!$A$11:$J$203,9,FALSE )-$E$7 -> -14.26 | N15: 247.82 | O15: 247.82
A16: =Faces!A16 -> 6 | B16: =Faces!B16 -> 8 | C16: =VLOOKUP(B16,Vertices!$A$11:$J$203,7,FALSE )-$C$7 -> 34.71 | D16: =VLOOKUP(B16,Vertices!$A$11:$J$203,8,FALSE )-$D$7 -> 4.15 | E16: =VLOOKUP(B16,Vertices!$A$11:$J$203,9,FALSE )-$E$7 -> -9.70 | F16: =Faces!C16 -> 9 | G16: =VLOOKUP(F16,Vertices!$A$11:$J$203,7,FALSE )-$C$7 -> 30.06 | H16: =VLOOKUP(F16,Vertices!$A$11:$J$203,8,FALSE )-$D$7 -> 10.45 | I16: =VLOOKUP(F16,Vertices!$A$11:$J$203,9,FALSE )-$E$7 -> -10.46 | J16: =Faces!D16 -> 15 | K16: =VLOOKUP(J16,Vertices!$A$11:$J$203,7,FALSE )-$C$7 -> 26.58 | L16: =VLOOKUP(J16,Vertices!$A$11:$J$203,8,FALSE )-$D$7 -> 6.71 | M16: =VLOOKUP(J16,Vertices!$A$11:$J$203,9,FALSE )-$E$7 -> -14.88 | N16: 253.45 | O16: 253.45
A17: =Faces!A17 -> 7 | B17: =Faces!B17 -> 2 | C17: =VLOOKUP(B17,Vertices!$A$11:$J$203,7,FALSE )-$C$7 -> 38.44 | D17: =VLOOKUP(B17,Vertices!$A$11:$J$203,8,FALSE )-$D$7 -> 7.72 | E17: =VLOOKUP(B17,Vertices!$A$11:$J$203,9,FALSE )-$E$7 -> -5.04 | F17: =Faces!C17 -> 9 | G17: =VLOOKUP(F17,Vertices!$A$11:$J$203,7,FALSE )-$C$7 -> 30.06 | H17: =VLOOKUP(F17,Vertices!$A$11:$J$203,8,FALSE )-$D$7 -> 10.45 | I17: =VLOOKUP(F17,Vertices!$A$11:$J$203,9,FALSE )-$E$7 -> -10.46 | J17: =Faces!D17 -> 8 | K17: =VLOOKUP(J17,Vertices!$A$11:$J$203,7,FALSE )-$C$7 -> 34.71 | L17: =VLOOKUP(J17,Vertices!$A$11:$J$203,8,FALSE )-$D$7 -> 4.15 | M17: =VLOOKUP(J17,Vertices!$A$11:$J$203,9,FALSE )-$E$7 -> -9.70 | N17: 263.36 | O17: 263.36
A18: =Faces!A18 -> 8 | B18: =Faces!B18 -> 2 | C18: =VLOOKUP(B18,Vertices!$A$11:$J$203,7,FALSE )-$C$7 -> 38.44 | D18: =VLOOKUP(B18,Vertices!$A$11:$J$203,8,FALSE )-$D$7 -> 7.72 | E18: =VLOOKUP(B18,Vertices!$A$11:$J$203,9,FALSE )-$E$7 -> -5.04 | F18: =Faces!C18 -> 3 | G18: =VLOOKUP(F18,Vertices!$A$11:$J$203,7,FALSE )-$C$7 -> 33.60 | H18: =VLOOKUP(F18,Vertices!$A$11:$J$203,8,FALSE )-$D$7 -> 14.22 | I18: =VLOOKUP(F18,Vertices!$A$11:$J$203,9,FALSE )-$E$7 -> -5.96 | J18: =Faces!D18 -> 9 | K18: =VLOOKUP(J18,Vertices!$A$11:$J$203,7,FALSE )-$C$7 -> 30.06 | L18: =VLOOKUP(J18,Vertices!$A$11:$J$203,8,FALSE )-$D$7 -> 10.45 | M18: =VLOOKUP(J18,Vertices!$A$11:$J$203,9,FALSE )-$E$7 -> -10.46 | N18: 268.08 | O18: 268.08
A19: =Faces!A19 -> 9 | B19: =Faces!B19 -> 13 | C19: =VLOOKUP(B19,Vertices!$A$11:$J$203,7,FALSE )-$C$7 -> 35.64 | D19: =VLOOKUP(B19,Vertices!$A$11:$J$203,8,FALSE )-$D$7 -> -5.66 | E19: =VLOOKUP(B19,Vertices!$A$11:$J$203,9,FALSE )-$E$7 -> -13.59 | F19: =Faces!C19 -> 20 | G19: =VLOOKUP(F19,Vertices!$A$11:$J$203,7,FALSE )-$C$7 -> 23.48 | H19: =VLOOKUP(F19,Vertices!$A$11:$J$203,8,FALSE )-$D$7 -> -6.85 | I19: =VLOOKUP(F19,Vertices!$A$11:$J$203,9,FALSE )-$E$7 -> -23.48 | J19: =Faces!D19 -> 19 | K19: =VLOOKUP(J19,Vertices!$A$11:$J$203,7,FALSE )-$C$7 -> 27.70 | L19: =VLOOKUP(J19,Vertices!$A$11:$J$203,8,FALSE )-$D$7 -> -12.76 | M19: =VLOOKUP(J19,Vertices!$A$11:$J$203,9,FALSE )-$E$7 -> -23.17 | N19: 487.67 | O19: 487.67
A20: =Faces!A20 -> 10 | B20: =Faces!B20 -> 13 | C20: =VLOOKUP(B20,Vertices!$A$11:$J$203,7,FALSE )-$C$7 -> 35.64 | D20: =VLOOKUP(B20,Vertices!$A$11:$J$203,8,FALSE )-$D$7 -> -5.66 | E20: =VLOOKUP(B20,Vertices!$A$11:$J$203,9,FALSE )-$E$7 -> -13.59 | F20: =Faces!C20 -> 14 | G20: =VLOOKUP(F20,Vertices!$A$11:$J$203,7,FALSE )-$C$7 -> 31.00 | H20: =VLOOKUP(F20,Vertices!$A$11:$J$203,8,FALSE )-$D$7 -> 0.61 | I20: =VLOOKUP(F20,Vertices!$A$11:$J$203,9,FALSE )-$E$7 -> -14.26 | J20: =Faces!D20 -> 20 | K20: =VLOOKUP(J20,Vertices!$A$11:$J$203,7,FALSE )-$C$7 -> 23.48 | L20: =VLOOKUP(J20,Vertices!$A$11:$J$203,8,FALSE )-$D$7 -> -6.85 | M20: =VLOOKUP(J20,Vertices!$A$11:$J$203,9,FALSE )-$E$7 -> -23.48 | N20: 522.62 | O20: 522.62
A21: =Faces!A21 -> 11 | B21: =Faces!B21 -> 14 | C21: =VLOOKUP(B21,Vertices!$A$11:$J$203,7,FALSE )-$C$7 -> 31.00 | D21: =VLOOKUP(B21,Vertices!$A$11:$J$203,8,FALSE )-$D$7 -> 0.61 | E21: =VLOOKUP(B21,Vertices!$A$11:$J$203,9,FALSE )-$E$7 -> -14.26 | F21: =Faces!C21 -> 21 | G21: =VLOOKUP(F21,Vertices!$A$11:$J$203,7,FALSE )-$C$7 -> 19.46 | H21: =VLOOKUP(F21,Vertices!$A$11:$J$203,8,FALSE )-$D$7 -> -1.14 | I21: =VLOOKUP(F21,Vertices!$A$11:$J$203,9,FALSE )-$E$7 -> -23.78 | J21: =Faces!D21 -> 20 | K21: =VLOOKUP(J21,Vertices!$A$11:$J$203,7,FALSE )-$C$7 -> 23.48 | L21: =VLOOKUP(J21,Vertices!$A$11:$J$203,8,FALSE )-$D$7 -> -6.85 | M21: =VLOOKUP(J21,Vertices!$A$11:$J$203,9,FALSE )-$E$7 -> -23.48 | N21: 460.39 | O21: 460.39
A22: =Faces!A22 -> 12 | B22: =Faces!B22 -> 14 | C22: =VLOOKUP(B22,Vertices!$A$11:$J$203,7,FALSE )-$C$7 -> 31.00 | D22: =VLOOKUP(B22,Vertices!$A$11:$J$203,8,FALSE )-$D$7 -> 0.61 | E22: =VLOOKUP(B22,Vertices!$A$11:$J$203,9,FALSE )-$E$7 -> -14.26 | F22: =Faces!C22 -> 15 | G22: =VLOOKUP(F22,Vertices!$A$11:$J$203,7,FALSE )-$C$7 -> 26.58 | H22: =VLOOKUP(F22,Vertices!$A$11:$J$203,8,FALSE )-$D$7 -> 6.71 | I22: =VLOOKUP(F22,Vertices!$A$11:$J$203,9,FALSE )-$E$7 -> -14.88 | J22: =Faces!D22 -> 21 | K22: =VLOOKUP(J22,Vertices!$A$11:$J$203,7,FALSE )-$C$7 -> 19.46 | L22: =VLOOKUP(J22,Vertices!$A$11:$J$203,8,FALSE )-$D$7 -> -1.14 | M22: =VLOOKUP(J22,Vertices!$A$11:$J$203,9,FALSE )-$E$7 -> -23.78 | N22: 494.83 | O22: 494.83
A23: =Faces!A23 -> 13 | B23: =Faces!B23 -> 15 | C23: =VLOOKUP(B23,Vertices!$A$11:$J$203,7,FALSE )-$C$7 -> 26.58 | D23: =VLOOKUP(B23,Vertices!$A$11:$J$203,8,FALSE )-$D$7 -> 6.71 | E23: =VLOOKUP(B23,Vertices!$A$11:$J$203,9,FALSE )-$E$7 -> -14.88 | F23: =Faces!C23 -> 22 | G23: =VLOOKUP(F23,Vertices!$A$11:$J$203,7,FALSE )-$C$7 -> 11.16 | H23: =VLOOKUP(F23,Vertices!$A$11:$J$203,8,FALSE )-$D$7 -> 11.35 | I23: =VLOOKUP(F23,Vertices!$A$11:$J$203,9,FALSE )-$E$7 -> -24.11 | J23: =Faces!D23 -> 21 | K23: =VLOOKUP(J23,Vertices!$A$11:$J$203,7,FALSE )-$C$7 -> 19.46 | L23: =VLOOKUP(J23,Vertices!$A$11:$J$203,8,FALSE )-$D$7 -> -1.14 | M23: =VLOOKUP(J23,Vertices!$A$11:$J$203,9,FALSE )-$E$7 -> -23.78 | N23: 965.94 | O23: 965.94
A24: =Faces!A24 -> 14 | B24: =Faces!B24 -> 15 | C24: =VLOOKUP(B24,Vertices!$A$11:$J$203,7,FALSE )-$C$7 -> 26.58 | D24: =VLOOKUP(B24,Vertices!$A$11:$J$203,8,FALSE )-$D$7 -> 6.71 | E24: =VLOOKUP(B24,Vertices!$A$11:$J$203,9,FALSE )-$E$7 -> -14.88 | F24: =Faces!C24 -> 16 | G24: =VLOOKUP(F24,Vertices!$A$11:$J$203,7,FALSE )-$C$7 -> 17.40 | H24: =VLOOKUP(F24,Vertices!$A$11:$J$203,8,FALSE )-$D$7 -> 20.07 | I24: =VLOOKUP(F24,Vertices!$A$11:$J$203,9,FALSE )-$E$7 -> -15.71 | J24: =Faces!D24 -> 22 | K24: =VLOOKUP(J24,Vertices!$A$11:$J$203,7,FALSE )-$C$7 -> 11.16 | L24: =VLOOKUP(J24,Vertices!$A$11:$J$203,8,FALSE )-$D$7 -> 11.35 | M24: =VLOOKUP(J24,Vertices!$A$11:$J$203,9,FALSE )-$E$7 -> -24.11 | N24: 1014.83 | O24: 1014.83
A25: =Faces!A25 -> 15 | B25: =Faces!B25 -> 9 | C25: =VLOOKUP(B25,Vertices!$A$11:$J$203,7,FALSE )-$C$7 -> 30.06 | D25: =VLOOKUP(B25,Vertices!$A$11:$J$203,8,FALSE )-$D$7 -> 10.45 | E25: =VLOOKUP(B25,Vertices!$A$11:$J$203,9,FALSE )-$E$7 -> -10.46 | F25: =Faces!C25 -> 16 | G25: =VLOOKUP(F25,Vertices!$A$11:$J$203,7,FALSE )-$C$7 -> 17.40 | H25: =VLOOKUP(F25,Vertices!$A$11:$J$203,8,FALSE )-$D$7 -> 20.07 | I25: =VLOOKUP(F25,Vertices!$A$11:$J$203,9,FALSE )-$E$7 -> -15.71 | J25: =Faces!D25 -> 15 | K25: =VLOOKUP(J25,Vertices!$A$11:$J$203,7,FALSE )-$C$7 -> 26.58 | L25: =VLOOKUP(J25,Vertices!$A$11:$J$203,8,FALSE )-$D$7 -> 6.71 | M25: =VLOOKUP(J25,Vertices!$A$11:$J$203,9,FALSE )-$E$7 -> -14.88 | N25: 517.89 | O25: 517.89
A26: =Faces!A26 -> 16 | B26: =Faces!B26 -> 9 | C26: =VLOOKUP(B26,Vertices!$A$11:$J$203,7,FALSE )-$C$7 -> 30.06 | D26: =VLOOKUP(B26,Vertices!$A$11:$J$203,8,FALSE )-$D$7 -> 10.45 | E26: =VLOOKUP(B26,Vertices!$A$11:$J$203,9,FALSE )-$E$7 -> -10.46 | F26: =Faces!C26 -> 10 | G26: =VLOOKUP(F26,Vertices!$A$11:$J$203,7,FALSE )-$C$7 -> 20.48 | H26: =VLOOKUP(F26,Vertices!$A$11:$J$203,8,FALSE )-$D$7 -> 24.14 | I26: =VLOOKUP(F26,Vertices!$A$11:$J$203,9,FALSE )-$E$7 -> -11.59 | J26: =Faces!D26 -> 16 | K26: =VLOOKUP(J26,Vertices!$A$11:$J$203,7,FALSE )-$C$7 -> 17.40 | L26: =VLOOKUP(J26,Vertices!$A$11:$J$203,8,FALSE )-$D$7 -> 20.07 | M26: =VLOOKUP(J26,Vertices!$A$11:$J$203,9,FALSE )-$E$7 -> -15.71 | N26: 509.73 | O26: 509.73
A27: =Faces!A27 -> 17 | B27: =Faces!B27 -> 3 | C27: =VLOOKUP(B27,Vertices!$A$11:$J$203,7,FALSE )-$C$7 -> 33.60 | D27: =VLOOKUP(B27,Vertices!$A$11:$J$203,8,FALSE )-$D$7 -> 14.22 | E27: =VLOOKUP(B27,Vertices!$A$11:$J$203,9,FALSE )-$E$7 -> -5.96 | F27: =Faces!C27 -> 10 | G27: =VLOOKUP(F27,Vertices!$A$11:$J$203,7,FALSE )-$C$7 -> 20.48 | H27: =VLOOKUP(F27,Vertices!$A$11:$J$203,8,FALSE )-$D$7 -> 24.14 | I27: =VLOOKUP(F27,Vertices!$A$11:$J$203,9,FALSE )-$E$7 -> -11.59 | J27: =Faces!D27 -> 9 | K27: =VLOOKUP(J27,Vertices!$A$11:$J$203,7,FALSE )-$C$7 -> 30.06 | L27: =VLOOKUP(J27,Vertices!$A$11:$J$203,8,FALSE )-$D$7 -> 10.45 | M27: =VLOOKUP(J27,Vertices!$A$11:$J$203,9,FALSE )-$E$7 -> -10.46 | N27: 545.50 | O27: 545.50
A28: =Faces!A28 -> 18 | B28: =Faces!B28 -> 3 | C28: =VLOOKUP(B28,Vertices!$A$11:$J$203,7,FALSE )-$C$7 -> 33.60 | D28: =VLOOKUP(B28,Vertices!$A$11:$J$203,8,FALSE )-$D$7 -> 14.22 | E28: =VLOOKUP(B28,Vertices!$A$11:$J$203,9,FALSE )-$E$7 -> -5.96 | F28: =Faces!C28 -> 4 | G28: =VLOOKUP(F28,Vertices!$A$11:$J$203,7,FALSE )-$C$7 -> 23.64 | H28: =VLOOKUP(F28,Vertices!$A$11:$J$203,8,FALSE )-$D$7 -> 28.30 | I28: =VLOOKUP(F28,Vertices!$A$11:$J$203,9,FALSE )-$E$7 -> -7.25 | J28: =Faces!D28 -> 10 | K28: =VLOOKUP(J28,Vertices!$A$11:$J$203,7,FALSE )-$C$7 -> 20.48 | L28: =VLOOKUP(J28,Vertices!$A$11:$J$203,8,FALSE )-$D$7 -> 24.14 | M28: =VLOOKUP(J28,Vertices!$A$11:$J$203,9,FALSE )-$E$7 -> -11.59 | N28: 550.34 | O28: 550.34
A29: =Faces!A29 -> 19 | B29: =Faces!B29 -> 19 | C29: =VLOOKUP(B29,Vertices!$A$11:$J$203,7,FALSE )-$C$7 -> 27.70 | D29: =VLOOKUP(B29,Vertices!$A$11:$J$203,8,FALSE )-$D$7 -> -12.76 | E29: =VLOOKUP(B29,Vertices!$A$11:$J$203,9,FALSE )-$E$7 -> -23.17 | F29: =Faces!C29 -> 26 | G29: =VLOOKUP(F29,Vertices!$A$11:$J$203,7,FALSE )-$C$7 -> 11.78 | H29: =VLOOKUP(F29,Vertices!$A$11:$J$203,8,FALSE )-$D$7 -> -19.67 | I29: =VLOOKUP(F29,Vertices!$A$11:$J$203,9,FALSE )-$E$7 -> -37.40 | J29: =Faces!D29 -> 25 | K29: =VLOOKUP(J29,Vertices!$A$11:$J$203,7,FALSE )-$C$7 -> 15.34 | L29: =VLOOKUP(J29,Vertices!$A$11:$J$203,8,FALSE )-$D$7 -> -25.16 | M29: =VLOOKUP(J29,Vertices!$A$11:$J$203,9,FALSE )-$E$7 -> -37.63 | N29: 670.25 | O29: 670.25
A30: =Faces!A30 -> 20 | B30: =Faces!B30 -> 19 | C30: =VLOOKUP(B30,Vertices!$A$11:$J$203,7,FALSE )-$C$7 -> 27.70 | D30: =VLOOKUP(B30,Vertices!$A$11:$J$203,8,FALSE )-$D$7 -> -12.76 | E30: =VLOOKUP(B30,Vertices!$A$11:$J$203,9,FALSE )-$E$7 -> -23.17 | F30: =Faces!C30 -> 20 | G30: =VLOOKUP(F30,Vertices!$A$11:$J$203,7,FALSE )-$C$7 -> 23.48 | H30: =VLOOKUP(F30,Vertices!$A$11:$J$203,8,FALSE )-$D$7 -> -6.85 | I30: =VLOOKUP(F30,Vertices!$A$11:$J$203,9,FALSE )-$E$7 -> -23.48 | J30: =Faces!D30 -> 26 | K30: =VLOOKUP(J30,Vertices!$A$11:$J$203,7,FALSE )-$C$7 -> 11.78 | L30: =VLOOKUP(J30,Vertices!$A$11:$J$203,8,FALSE )-$D$7 -> -19.67 | M30: =VLOOKUP(J30,Vertices!$A$11:$J$203,9,FALSE )-$E$7 -> -37.40 | N30: 756.80 | O30: 756.80
A31: =Faces!A31 -> 21 | B31: =Faces!B31 -> 20 | C31: =VLOOKUP(B31,Vertices!$A$11:$J$203,7,FALSE )-$C$7 -> 23.48 | D31: =VLOOKUP(B31,Vertices!$A$11:$J$203,8,FALSE )-$D$7 -> -6.85 | E31: =VLOOKUP(B31,Vertices!$A$11:$J$203,9,FALSE )-$E$7 -> -23.48 | F31: =Faces!C31 -> 27 | G31: =VLOOKUP(F31,Vertices!$A$11:$J$203,7,FALSE )-$C$7 -> 8.40 | H31: =VLOOKUP(F31,Vertices!$A$11:$J$203,8,FALSE )-$D$7 -> -14.41 | I31: =VLOOKUP(F31,Vertices!$A$11:$J$203,9,FALSE )-$E$7 -> -37.22 | J31: =Faces!D31 -> 26 | K31: =VLOOKUP(J31,Vertices!$A$11:$J$203,7,FALSE )-$C$7 -> 11.78 | L31: =VLOOKUP(J31,Vertices!$A$11:$J$203,8,FALSE )-$D$7 -> -19.67 | M31: =VLOOKUP(J31,Vertices!$A$11:$J$203,9,FALSE )-$E$7 -> -37.40 | N31: 631.73 | O31: 631.73
A32: =Faces!A32 -> 22 | B32: =Faces!B32 -> 20 | C32: =VLOOKUP(B32,Vertices!$A$11:$J$203,7,FALSE )-$C$7 -> 23.48 | D32: =VLOOKUP(B32,Vertices!$A$11:$J$203,8,FALSE )-$D$7 -> -6.85 | E32: =VLOOKUP(B32,Vertices!$A$11:$J$203,9,FALSE )-$E$7 -> -23.48 | F32: =Faces!C32 -> 21 | G32: =VLOOKUP(F32,Vertices!$A$11:$J$203,7,FALSE )-$C$7 -> 19.46 | H32: =VLOOKUP(F32,Vertices!$A$11:$J$203,8,FALSE )-$D$7 -> -1.14 | I32: =VLOOKUP(F32,Vertices!$A$11:$J$203,9,FALSE )-$E$7 -> -23.78 | J32: =Faces!D32 -> 27 | K32: =VLOOKUP(J32,Vertices!$A$11:$J$203,7,FALSE )-$C$7 -> 8.40 | L32: =VLOOKUP(J32,Vertices!$A$11:$J$203,8,FALSE )-$D$7 -> -14.41 | M32: =VLOOKUP(J32,Vertices!$A$11:$J$203,9,FALSE )-$E$7 -> -37.22 | N32: 713.83 | O32: 713.83
A33: =Faces!A33 -> 23 | B33: =Faces!B33 -> 21 | C33: =VLOOKUP(B33,Vertices!$A$11:$J$203,7,FALSE )-$C$7 -> 19.46 | D33: =VLOOKUP(B33,Vertices!$A$11:$J$203,8,FALSE )-$D$7 -> -1.14 | E33: =VLOOKUP(B33,Vertices!$A$11:$J$203,9,FALSE )-$E$7 -> -23.78 | F33: =Faces!C33 -> 28 | G33: =VLOOKUP(F33,Vertices!$A$11:$J$203,7,FALSE )-$C$7 -> 1.31 | H33: =VLOOKUP(F33,Vertices!$A$11:$J$203,8,FALSE )-$D$7 -> -2.91 | I33: =VLOOKUP(F33,Vertices!$A$11:$J$203,9,FALSE )-$E$7 -> -36.75 | J33: =Faces!D33 -> 27 | K33: =VLOOKUP(J33,Vertices!$A$11:$J$203,7,FALSE )-$C$7 -> 8.40 | L33: =VLOOKUP(J33,Vertices!$A$11:$J$203,8,FALSE )-$D$7 -> -14.41 | M33: =VLOOKUP(J33,Vertices!$A$11:$J$203,9,FALSE )-$E$7 -> -37.22 | N33: 1338.83 | O33: 1338.83
A34: =Faces!A34 -> 24 | B34: =Faces!B34 -> 21 | C34: =VLOOKUP(B34,Vertices!$A$11:$J$203,7,FALSE )-$C$7 -> 19.46 | D34: =VLOOKUP(B34,Vertices!$A$11:$J$203,8,FALSE )-$D$7 -> -1.14 | E34: =VLOOKUP(B34,Vertices!$A$11:$J$203,9,FALSE )-$E$7 -> -23.78 | F34: =Faces!C34 -> 22 | G34: =VLOOKUP(F34,Vertices!$A$11:$J$203,7,FALSE )-$C$7 -> 11.16 | H34: =VLOOKUP(F34,Vertices!$A$11:$J$203,8,FALSE )-$D$7 -> 11.35 | I34: =VLOOKUP(F34,Vertices!$A$11:$J$203,9,FALSE )-$E$7 -> -24.11 | J34: =Faces!D34 -> 28 | K34: =VLOOKUP(J34,Vertices!$A$11:$J$203,7,FALSE )-$C$7 -> 1.31 | L34: =VLOOKUP(J34,Vertices!$A$11:$J$203,8,FALSE )-$D$7 -> -2.91 | M34: =VLOOKUP(J34,Vertices!$A$11:$J$203,9,FALSE )-$E$7 -> -36.75 | N34: 1464.54 | O34: 1464.54
A35: =Faces!A35 -> 25 | B35: =Faces!B35 -> 22 | C35: =VLOOKUP(B35,Vertices!$A$11:$J$203,7,FALSE )-$C$7 -> 11.16 | D35: =VLOOKUP(B35,Vertices!$A$11:$J$203,8,FALSE )-$D$7 -> 11.35 | E35: =VLOOKUP(B35,Vertices!$A$11:$J$203,9,FALSE )-$E$7 -> -24.11 | F35: =Faces!C35 -> 29 | G35: =VLOOKUP(F35,Vertices!$A$11:$J$203,7,FALSE )-$C$7 -> -10.00 | H35: =VLOOKUP(F35,Vertices!$A$11:$J$203,8,FALSE )-$D$7 -> 16.82 | I35: =VLOOKUP(F35,Vertices!$A$11:$J$203,9,FALSE )-$E$7 -> -35.88 | J35: =Faces!D35 -> 28 | K35: =VLOOKUP(J35,Vertices!$A$11:$J$203,7,FALSE )-$C$7 -> 1.31 | L35: =VLOOKUP(J35,Vertices!$A$11:$J$203,8,FALSE )-$D$7 -> -2.91 | M35: =VLOOKUP(J35,Vertices!$A$11:$J$203,9,FALSE )-$E$7 -> -36.75 | N35: 2155.42 | O35: 2155.42
A36: =Faces!A36 -> 26 | B36: =Faces!B36 -> 22 | C36: =VLOOKUP(B36,Vertices!$A$11:$J$203,7,FALSE )-$C$7 -> 11.16 | D36: =VLOOKUP(B36,Vertices!$A$11:$J$203,8,FALSE )-$D$7 -> 11.35 | E36: =VLOOKUP(B36,Vertices!$A$11:$J$203,9,FALSE )-$E$7 -> -24.11 | F36: =Faces!C36 -> 23 | G36: =VLOOKUP(F36,Vertices!$A$11:$J$203,7,FALSE )-$C$7 -> -1.80 | H36: =VLOOKUP(F36,Vertices!$A$11:$J$203,8,FALSE )-$D$7 -> 32.93 | I36: =VLOOKUP(F36,Vertices!$A$11:$J$203,9,FALSE )-$E$7 -> -23.47 | J36: =Faces!D36 -> 29 | K36: =VLOOKUP(J36,Vertices!$A$11:$J$203,7,FALSE )-$C$7 -> -10.00 | L36: =VLOOKUP(J36,Vertices!$A$11:$J$203,8,FALSE )-$D$7 -> 16.82 | M36: =VLOOKUP(J36,Vertices!$A$11:$J$203,9,FALSE )-$E$7 -> -35.88 | N36: 2342.06 | O36: 2342.06
A37: =Faces!A37 -> 27 | B37: =Faces!B37 -> 16 | C37: =VLOOKUP(B37,Vertices!$A$11:$J$203,7,FALSE )-$C$7 -> 17.40 | D37: =VLOOKUP(B37,Vertices!$A$11:$J$203,8,FALSE )-$D$7 -> 20.07 | E37: =VLOOKUP(B37,Vertices!$A$11:$J$203,9,FALSE )-$E$7 -> -15.71 | F37: =Faces!C37 -> 23 | G37: =VLOOKUP(F37,Vertices!$A$11:$J$203,7,FALSE )-$C$7 -> -1.80 | H37: =VLOOKUP(F37,Vertices!$A$11:$J$203,8,FALSE )-$D$7 -> 32.93 | I37: =VLOOKUP(F37,Vertices!$A$11:$J$203,9,FALSE )-$E$7 -> -23.47 | J37: =Faces!D37 -> 22 | K37: =VLOOKUP(J37,Vertices!$A$11:$J$203,7,FALSE )-$C$7 -> 11.16 | L37: =VLOOKUP(J37,Vertices!$A$11:$J$203,8,FALSE )-$D$7 -> 11.35 | M37: =VLOOKUP(J37,Vertices!$A$11:$J$203,9,FALSE )-$E$7 -> -24.11 | N37: 1534.84 | O37: 1534.84
A38: =Faces!A38 -> 28 | B38: =Faces!B38 -> 16 | C38: =VLOOKUP(B38,Vertices!$A$11:$J$203,7,FALSE )-$C$7 -> 17.40 | D38: =VLOOKUP(B38,Vertices!$A$11:$J$203,8,FALSE )-$D$7 -> 20.07 | E38: =VLOOKUP(B38,Vertices!$A$11:$J$203,9,FALSE )-$E$7 -> -15.71 | F38: =Faces!C38 -> 17 | G38: =VLOOKUP(F38,Vertices!$A$11:$J$203,7,FALSE )-$C$7 -> 3.41 | H38: =VLOOKUP(F38,Vertices!$A$11:$J$203,8,FALSE )-$D$7 -> 42.94 | I38: =VLOOKUP(F38,Vertices!$A$11:$J$203,9,FALSE )-$E$7 -> -15.19 | J38: =Faces!D38 -> 23 | K38: =VLOOKUP(J38,Vertices!$A$11:$J$203,7,FALSE )-$C$7 -> -1.80 | L38: =VLOOKUP(J38,Vertices!$A$11:$J$203,8,FALSE )-$D$7 -> 32.93 | M38: =VLOOKUP(J38,Vertices!$A$11:$J$203,9,FALSE )-$E$7 -> -23.47 | N38: 1608.48 | O38: 1608.48
A39: =Faces!A39 -> 29 | B39: =Faces!B39 -> 10 | C39: =VLOOKUP(B39,Vertices!$A$11:$J$203,7,FALSE )-$C$7 -> 20.48 | D39: =VLOOKUP(B39,Vertices!$A$11:$J$203,8,FALSE )-$D$7 -> 24.14 | E39: =VLOOKUP(B39,Vertices!$A$11:$J$203,9,FALSE )-$E$7 -> -11.59 | F39: =Faces!C39 -> 17 | G39: =VLOOKUP(F39,Vertices!$A$11:$J$203,7,FALSE )-$C$7 -> 3.41 | H39: =VLOOKUP(F39,Vertices!$A$11:$J$203,8,FALSE )-$D$7 -> 42.94 | I39: =VLOOKUP(F39,Vertices!$A$11:$J$203,9,FALSE )-$E$7 -> -15.19 | J39: =Faces!D39 -> 16 | K39: =VLOOKUP(J39,Vertices!$A$11:$J$203,7,FALSE )-$C$7 -> 17.40 | L39: =VLOOKUP(J39,Vertices!$A$11:$J$203,8,FALSE )-$D$7 -> 20.07 | M39: =VLOOKUP(J39,Vertices!$A$11:$J$203,9,FALSE )-$E$7 -> -15.71 | N39: 798.72 | O39: 798.72
A40: =Faces!A40 -> 30 | B40: =Faces!B40 -> 10 | C40: =VLOOKUP(B40,Vertices!$A$11:$J$203,7,FALSE )-$C$7 -> 20.48 | D40: =VLOOKUP(B40,Vertices!$A$11:$J$203,8,FALSE )-$D$7 -> 24.14 | E40: =VLOOKUP(B40,Vertices!$A$11:$J$203,9,FALSE )-$E$7 -> -11.59 | F40: =Faces!C40 -> 11 | G40: =VLOOKUP(F40,Vertices!$A$11:$J$203,7,FALSE )-$C$7 -> 5.95 | H40: =VLOOKUP(F40,Vertices!$A$11:$J$203,8,FALSE )-$D$7 -> 47.81 | I40: =VLOOKUP(F40,Vertices!$A$11:$J$203,9,FALSE )-$E$7 -> -11.05 | J40: =Faces!D40 -> 17 | K40: =VLOOKUP(J40,Vertices!$A$11:$J$203,7,FALSE )-$C$7 -> 3.41 | L40: =VLOOKUP(J40,Vertices!$A$11:$J$203,8,FALSE )-$D$7 -> 42.94 | M40: =VLOOKUP(J40,Vertices!$A$11:$J$203,9,FALSE )-$E$7 -> -15.19 | N40: 825.79 | O40: 825.79
A41: =Faces!A41 -> 31 | B41: =Faces!B41 -> 4 | C41: =VLOOKUP(B41,Vertices!$A$11:$J$203,7,FALSE )-$C$7 -> 23.64 | D41: =VLOOKUP(B41,Vertices!$A$11:$J$203,8,FALSE )-$D$7 -> 28.30 | E41: =VLOOKUP(B41,Vertices!$A$11:$J$203,9,FALSE )-$E$7 -> -7.25 | F41: =Faces!C41 -> 11 | G41: =VLOOKUP(F41,Vertices!$A$11:$J$203,7,FALSE )-$C$7 -> 5.95 | H41: =VLOOKUP(F41,Vertices!$A$11:$J$203,8,FALSE )-$D$7 -> 47.81 | I41: =VLOOKUP(F41,Vertices!$A$11:$J$203,9,FALSE )-$E$7 -> -11.05 | J41: =Faces!D41 -> 10 | K41: =VLOOKUP(J41,Vertices!$A$11:$J$203,7,FALSE )-$C$7 -> 20.48 | L41: =VLOOKUP(J41,Vertices!$A$11:$J$203,8,FALSE )-$D$7 -> 24.14 | M41: =VLOOKUP(J41,Vertices!$A$11:$J$203,9,FALSE )-$E$7 -> -11.59 | N41: 864.71 | O41: 864.71
A42: =Faces!A42 -> 32 | B42: =Faces!B42 -> 4 | C42: =VLOOKUP(B42,Vertices!$A$11:$J$203,7,FALSE )-$C$7 -> 23.64 | D42: =VLOOKUP(B42,Vertices!$A$11:$J$203,8,FALSE )-$D$7 -> 28.30 | E42: =VLOOKUP(B42,Vertices!$A$11:$J$203,9,FALSE )-$E$7 -> -7.25 | F42: =Faces!C42 -> 5 | G42: =VLOOKUP(F42,Vertices!$A$11:$J$203,7,FALSE )-$C$7 -> 8.52 | H42: =VLOOKUP(F42,Vertices!$A$11:$J$203,8,FALSE )-$D$7 -> 52.78 | I42: =VLOOKUP(F42,Vertices!$A$11:$J$203,9,FALSE )-$E$7 -> -6.79 | J42: =Faces!D42 -> 11 | K42: =VLOOKUP(J42,Vertices!$A$11:$J$203,7,FALSE )-$C$7 -> 5.95 | L42: =VLOOKUP(J42,Vertices!$A$11:$J$203,8,FALSE )-$D$7 -> 47.81 | M42: =VLOOKUP(J42,Vertices!$A$11:$J$203,9,FALSE )-$E$7 -> -11.05 | N42: 877.99 | O42: 877.99
A43: =Faces!A43 -> 33 | B43: =Faces!B43 -> 25 | C43: =VLOOKUP(B43,Vertices!$A$11:$J$203,7,FALSE )-$C$7 -> 15.34 | D43: =VLOOKUP(B43,Vertices!$A$11:$J$203,8,FALSE )-$D$7 -> -25.16 | E43: =VLOOKUP(B43,Vertices!$A$11:$J$203,9,FALSE )-$E$7 -> -37.63 | F43: =Faces!C43 -> 32 | G43: =VLOOKUP(F43,Vertices!$A$11:$J$203,7,FALSE )-$C$7 -> 1.62 | H43: =VLOOKUP(F43,Vertices!$A$11:$J$203,8,FALSE )-$D$7 -> -32.10 | I43: =VLOOKUP(F43,Vertices!$A$11:$J$203,9,FALSE )-$E$7 -> -49.14 | J43: =Faces!D43 -> 31 | K43: =VLOOKUP(J43,Vertices!$A$11:$J$203,7,FALSE )-$C$7 -> 4.55 | L43: =VLOOKUP(J43,Vertices!$A$11:$J$203,8,FALSE )-$D$7 -> -37.00 | M43: =VLOOKUP(J43,Vertices!$A$11:$J$203,9,FALSE )-$E$7 -> -50.00 | N43: 487.16 | O43: 487.16
A44: =Faces!A44 -> 34 | B44: =Faces!B44 -> 25 | C44: =VLOOKUP(B44,Vertices!$A$11:$J$203,7,FALSE )-$C$7 -> 15.34 | D44: =VLOOKUP(B44,Vertices!$A$11:$J$203,8,FALSE )-$D$7 -> -25.16 | E44: =VLOOKUP(B44,Vertices!$A$11:$J$203,9,FALSE )-$E$7 -> -37.63 | F44: =Faces!C44 -> 26 | G44: =VLOOKUP(F44,Vertices!$A$11:$J$203,7,FALSE )-$C$7 -> 11.78 | H44: =VLOOKUP(F44,Vertices!$A$11:$J$203,8,FALSE )-$D$7 -> -19.67 | I44: =VLOOKUP(F44,Vertices!$A$11:$J$203,9,FALSE )-$E$7 -> -37.40 | J44: =Faces!D44 -> 32 | K44: =VLOOKUP(J44,Vertices!$A$11:$J$203,7,FALSE )-$C$7 -> 1.62 | L44: =VLOOKUP(J44,Vertices!$A$11:$J$203,8,FALSE )-$D$7 -> -32.10 | M44: =VLOOKUP(J44,Vertices!$A$11:$J$203,9,FALSE )-$E$7 -> -49.14 | N44: 599.72 | O44: 599.72
A45: =Faces!A45 -> 35 | B45: =Faces!B45 -> 26 | C45: =VLOOKUP(B45,Vertices!$A$11:$J$203,7,FALSE )-$C$7 -> 11.78 | D45: =VLOOKUP(B45,Vertices!$A$11:$J$203,8,FALSE )-$D$7 -> -19.67 | E45: =VLOOKUP(B45,Vertices!$A$11:$J$203,9,FALSE )-$E$7 -> -37.40 | F45: =Faces!C45 -> 33 | G45: =VLOOKUP(F45,Vertices!$A$11:$J$203,7,FALSE )-$C$7 -> -1.23 | H45: =VLOOKUP(F45,Vertices!$A$11:$J$203,8,FALSE )-$D$7 -> -27.18 | I45: =VLOOKUP(F45,Vertices!$A$11:$J$203,9,FALSE )-$E$7 -> -48.51 | J45: =Faces!D45 -> 32 | K45: =VLOOKUP(J45,Vertices!$A$11:$J$203,7,FALSE )-$C$7 -> 1.62 | L45: =VLOOKUP(J45,Vertices!$A$11:$J$203,8,FALSE )-$D$7 -> -32.10 | M45: =VLOOKUP(J45,Vertices!$A$11:$J$203,9,FALSE )-$E$7 -> -49.14 | N45: 499.33 | O45: 499.33
A46: =Faces!A46 -> 36 | B46: =Faces!B46 -> 26 | C46: =VLOOKUP(B46,Vertices!$A$11:$J$203,7,FALSE )-$C$7 -> 11.78 | D46: =VLOOKUP(B46,Vertices!$A$11:$J$203,8,FALSE )-$D$7 -> -19.67 | E46: =VLOOKUP(B46,Vertices!$A$11:$J$203,9,FALSE )-$E$7 -> -37.40 | F46: =Faces!C46 -> 27 | G46: =VLOOKUP(F46,Vertices!$A$11:$J$203,7,FALSE )-$C$7 -> 8.40 | H46: =VLOOKUP(F46,Vertices!$A$11:$J$203,8,FALSE )-$D$7 -> -14.41 | I46: =VLOOKUP(F46,Vertices!$A$11:$J$203,9,FALSE )-$E$7 -> -37.22 | J46: =Faces!D46 -> 33 | K46: =VLOOKUP(J46,Vertices!$A$11:$J$203,7,FALSE )-$C$7 -> -1.23 | L46: =VLOOKUP(J46,Vertices!$A$11:$J$203,8,FALSE )-$D$7 -> -27.18 | M46: =VLOOKUP(J46,Vertices!$A$11:$J$203,9,FALSE )-$E$7 -> -48.51 | N46: 565.72 | O46: 565.72
A47: =Faces!A47 -> 37 | B47: =Faces!B47 -> 27 | C47: =VLOOKUP(B47,Vertices!$A$11:$J$203,7,FALSE )-$C$7 -> 8.40 | D47: =VLOOKUP(B47,Vertices!$A$11:$J$203,8,FALSE )-$D$7 -> -14.41 | E47: =VLOOKUP(B47,Vertices!$A$11:$J$203,9,FALSE )-$E$7 -> -37.22 | F47: =Faces!C47 -> 34 | G47: =VLOOKUP(F47,Vertices!$A$11:$J$203,7,FALSE )-$C$7 -> -7.34 | H47: =VLOOKUP(F47,Vertices!$A$11:$J$203,8,FALSE )-$D$7 -> -16.25 | I47: =VLOOKUP(F47,Vertices!$A$11:$J$203,9,FALSE )-$E$7 -> -47.39 | J47: =Faces!D47 -> 33 | K47: =VLOOKUP(J47,Vertices!$A$11:$J$203,7,FALSE )-$C$7 -> -1.23 | L47: =VLOOKUP(J47,Vertices!$A$11:$J$203,8,FALSE )-$D$7 -> -27.18 | M47: =VLOOKUP(J47,Vertices!$A$11:$J$203,9,FALSE )-$E$7 -> -48.51 | N47: 1097.37 | O47: 1097.37
A48: =Faces!A48 -> 38 | B48: =Faces!B48 -> 27 | C48: =VLOOKUP(B48,Vertices!$A$11:$J$203,7,FALSE )-$C$7 -> 8.40 | D48: =VLOOKUP(B48,Vertices!$A$11:$J$203,8,FALSE )-$D$7 -> -14.41 | E48: =VLOOKUP(B48,Vertices!$A$11:$J$203,9,FALSE )-$E$7 -> -37.22 | F48: =Faces!C48 -> 28 | G48: =VLOOKUP(F48,Vertices!$A$11:$J$203,7,FALSE )-$C$7 -> 1.31 | H48: =VLOOKUP(F48,Vertices!$A$11:$J$203,8,FALSE )-$D$7 -> -2.91 | I48: =VLOOKUP(F48,Vertices!$A$11:$J$203,9,FALSE )-$E$7 -> -36.75 | J48: =Faces!D48 -> 34 | K48: =VLOOKUP(J48,Vertices!$A$11:$J$203,7,FALSE )-$C$7 -> -7.34 | L48: =VLOOKUP(J48,Vertices!$A$11:$J$203,8,FALSE )-$D$7 -> -16.25 | M48: =VLOOKUP(J48,Vertices!$A$11:$J$203,9,FALSE )-$E$7 -> -47.39 | N48: 1174.58 | O48: 1174.58
A49: =Faces!A49 -> 39 | B49: =Faces!B49 -> 28 | C49: =VLOOKUP(B49,Vertices!$A$11:$J$203,7,FALSE )-$C$7 -> 1.31 | D49: =VLOOKUP(B49,Vertices!$A$11:$J$203,8,FALSE )-$D$7 -> -2.91 | E49: =VLOOKUP(B49,Vertices!$A$11:$J$203,9,FALSE )-$E$7 -> -36.75 | F49: =Faces!C49 -> 35 | G49: =VLOOKUP(F49,Vertices!$A$11:$J$203,7,FALSE )-$C$7 -> -17.23 | H49: =VLOOKUP(F49,Vertices!$A$11:$J$203,8,FALSE )-$D$7 -> 2.27 | I49: =VLOOKUP(F49,Vertices!$A$11:$J$203,9,FALSE )-$E$7 -> -46.20 | J49: =Faces!D49 -> 34 | K49: =VLOOKUP(J49,Vertices!$A$11:$J$203,7,FALSE )-$C$7 -> -7.34 | L49: =VLOOKUP(J49,Vertices!$A$11:$J$203,8,FALSE )-$D$7 -> -16.25 | M49: =VLOOKUP(J49,Vertices!$A$11:$J$203,9,FALSE )-$E$7 -> -47.39 | N49: 1771.55 | O49: 1771.55
A50: =Faces!A50 -> 40 | B50: =Faces!B50 -> 28 | C50: =VLOOKUP(B50,Vertices!$A$11:$J$203,7,FALSE )-$C$7 -> 1.31 | D50: =VLOOKUP(B50,Vertices!$A$11:$J$203,8,FALSE )-$D$7 -> -2.91 | E50: =VLOOKUP(B50,Vertices!$A$11:$J$203,9,FALSE )-$E$7 -> -36.75 | F50: =Faces!C50 -> 29 | G50: =VLOOKUP(F50,Vertices!$A$11:$J$203,7,FALSE )-$C$7 -> -10.00 | H50: =VLOOKUP(F50,Vertices!$A$11:$J$203,8,FALSE )-$D$7 -> 16.82 | I50: =VLOOKUP(F50,Vertices!$A$11:$J$203,9,FALSE )-$E$7 -> -35.88 | J50: =Faces!D50 -> 35 | K50: =VLOOKUP(J50,Vertices!$A$11:$J$203,7,FALSE )-$C$7 -> -17.23 | L50: =VLOOKUP(J50,Vertices!$A$11:$J$203,8,FALSE )-$D$7 -> 2.27 | M50: =VLOOKUP(J50,Vertices!$A$11:$J$203,9,FALSE )-$E$7 -> -46.20 | N50: 1862.68 | O50: 1862.68
A51: =Faces!A51 -> 41 | B51: =Faces!B51 -> 29 | C51: =VLOOKUP(B51,Vertices!$A$11:$J$203,7,FALSE )-$C$7 -> -10.00 | D51: =VLOOKUP(B51,Vertices!$A$11:$J$203,8,FALSE )-$D$7 -> 16.82 | E51: =VLOOKUP(B51,Vertices!$A$11:$J$203,9,FALSE )-$E$7 -> -35.88 | F51: =Faces!C51 -> 36 | G51: =VLOOKUP(F51,Vertices!$A$11:$J$203,7,FALSE )-$C$7 -> -26.46 | H51: =VLOOKUP(F51,Vertices!$A$11:$J$203,8,FALSE )-$D$7 -> 20.00 | I51: =VLOOKUP(F51,Vertices!$A$11:$J$203,9,FALSE )-$E$7 -> -46.00 | J51: =Faces!D51 -> 35 | K51: =VLOOKUP(J51,Vertices!$A$11:$J$203,7,FALSE )-$C$7 -> -17.23 | L51: =VLOOKUP(J51,Vertices!$A$11:$J$203,8,FALSE )-$D$7 -> 2.27 | M51: =VLOOKUP(J51,Vertices!$A$11:$J$203,9,FALSE )-$E$7 -> -46.20 | N51: 1540.78 | O51: 1540.78
A52: =Faces!A52 -> 42 | B52: =Faces!B52 -> 29 | C52: =VLOOKUP(B52,Vertices!$A$11:$J$203,7,FALSE )-$C$7 -> -10.00 | D52: =VLOOKUP(B52,Vertices!$A$11:$J$203,8,FALSE )-$D$7 -> 16.82 | E52: =VLOOKUP(B52,Vertices!$A$11:$J$203,9,FALSE )-$E$7 -> -35.88 | F52: =Faces!C52 -> 30 | G52: =VLOOKUP(F52,Vertices!$A$11:$J$203,7,FALSE )-$C$7 -> -19.62 | H52: =VLOOKUP(F52,Vertices!$A$11:$J$203,8,FALSE )-$D$7 -> 35.11 | I52: =VLOOKUP(F52,Vertices!$A$11:$J$203,9,FALSE )-$E$7 -> -35.02 | J52: =Faces!D52 -> 36 | K52: =VLOOKUP(J52,Vertices!$A$11:$J$203,7,FALSE )-$C$7 -> -26.46 | L52: =VLOOKUP(J52,Vertices!$A$11:$J$203,8,FALSE )-$D$7 -> 20.00 | M52: =VLOOKUP(J52,Vertices!$A$11:$J$203,9,FALSE )-$E$7 -> -46.00 | N52: 1617.07 | O52: 1617.07
A53: =Faces!A53 -> 43 | B53: =Faces!B53 -> 23 | C53: =VLOOKUP(B53,Vertices!$A$11:$J$203,7,FALSE )-$C$7 -> -1.80 | D53: =VLOOKUP(B53,Vertices!$A$11:$J$203,8,FALSE )-$D$7 -> 32.93 | E53: =VLOOKUP(B53,Vertices!$A$11:$J$203,9,FALSE )-$E$7 -> -23.47 | F53: =Faces!C53 -> 30 | G53: =VLOOKUP(F53,Vertices!$A$11:$J$203,7,FALSE )-$C$7 -> -19.62 | H53: =VLOOKUP(F53,Vertices!$A$11:$J$203,8,FALSE )-$D$7 -> 35.11 | I53: =VLOOKUP(F53,Vertices!$A$11:$J$203,9,FALSE )-$E$7 -> -35.02 | J53: =Faces!D53 -> 29 | K53: =VLOOKUP(J53,Vertices!$A$11:$J$203,7,FALSE )-$C$7 -> -10.00 | L53: =VLOOKUP(J53,Vertices!$A$11:$J$203,8,FALSE )-$D$7 -> 16.82 | M53: =VLOOKUP(J53,Vertices!$A$11:$J$203,9,FALSE )-$E$7 -> -35.88 | N53: 1823.05 | O53: 1823.05
A54: =Faces!A54 -> 44 | B54: =Faces!B54 -> 23 | C54: =VLOOKUP(B54,Vertices!$A$11:$J$203,7,FALSE )-$C$7 -> -1.80 | D54: =VLOOKUP(B54,Vertices!$A$11:$J$203,8,FALSE )-$D$7 -> 32.93 | E54: =VLOOKUP(B54,Vertices!$A$11:$J$203,9,FALSE )-$E$7 -> -23.47 | F54: =Faces!C54 -> 24 | G54: =VLOOKUP(F54,Vertices!$A$11:$J$203,7,FALSE )-$C$7 -> -12.43 | H54: =VLOOKUP(F54,Vertices!$A$11:$J$203,8,FALSE )-$D$7 -> 52.81 | I54: =VLOOKUP(F54,Vertices!$A$11:$J$203,9,FALSE )-$E$7 -> -21.85 | J54: =Faces!D54 -> 30 | K54: =VLOOKUP(J54,Vertices!$A$11:$J$203,7,FALSE )-$C$7 -> -19.62 | L54: =VLOOKUP(J54,Vertices!$A$11:$J$203,8,FALSE )-$D$7 -> 35.11 | M54: =VLOOKUP(J54,Vertices!$A$11:$J$203,9,FALSE )-$E$7 -> -35.02 | N54: 2057.64 | O54: 2057.64
A55: =Faces!A55 -> 45 | B55: =Faces!B55 -> 17 | C55: =VLOOKUP(B55,Vertices!$A$11:$J$203,7,FALSE )-$C$7 -> 3.41 | D55: =VLOOKUP(B55,Vertices!$A$11:$J$203,8,FALSE )-$D$7 -> 42.94 | E55: =VLOOKUP(B55,Vertices!$A$11:$J$203,9,FALSE )-$E$7 -> -15.19 | F55: =Faces!C55 -> 24 | G55: =VLOOKUP(F55,Vertices!$A$11:$J$203,7,FALSE )-$C$7 -> -12.43 | H55: =VLOOKUP(F55,Vertices!$A$11:$J$203,8,FALSE )-$D$7 -> 52.81 | I55: =VLOOKUP(F55,Vertices!$A$11:$J$203,9,FALSE )-$E$7 -> -21.85 | J55: =Faces!D55 -> 23 | K55: =VLOOKUP(J55,Vertices!$A$11:$J$203,7,FALSE )-$C$7 -> -1.80 | L55: =VLOOKUP(J55,Vertices!$A$11:$J$203,8,FALSE )-$D$7 -> 32.93 | M55: =VLOOKUP(J55,Vertices!$A$11:$J$203,9,FALSE )-$E$7 -> -23.47 | N55: 1305.50 | O55: 1305.50
A56: =Faces!A56 -> 46 | B56: =Faces!B56 -> 17 | C56: =VLOOKUP(B56,Vertices!$A$11:$J$203,7,FALSE )-$C$7 -> 3.41 | D56: =VLOOKUP(B56,Vertices!$A$11:$J$203,8,FALSE )-$D$7 -> 42.94 | E56: =VLOOKUP(B56,Vertices!$A$11:$J$203,9,FALSE )-$E$7 -> -15.19 | F56: =Faces!C56 -> 18 | G56: =VLOOKUP(F56,Vertices!$A$11:$J$203,7,FALSE )-$C$7 -> -7.86 | H56: =VLOOKUP(F56,Vertices!$A$11:$J$203,8,FALSE )-$D$7 -> 63.95 | I56: =VLOOKUP(F56,Vertices!$A$11:$J$203,9,FALSE )-$E$7 -> -13.07 | J56: =Faces!D56 -> 24 | K56: =VLOOKUP(J56,Vertices!$A$11:$J$203,7,FALSE )-$C$7 -> -12.43 | L56: =VLOOKUP(J56,Vertices!$A$11:$J$203,8,FALSE )-$D$7 -> 52.81 | M56: =VLOOKUP(J56,Vertices!$A$11:$J$203,9,FALSE )-$E$7 -> -21.85 | N56: 1428.79 | O56: 1428.79
A57: =Faces!A57 -> 47 | B57: =Faces!B57 -> 11 | C57: =VLOOKUP(B57,Vertices!$A$11:$J$203,7,FALSE )-$C$7 -> 5.95 | D57: =VLOOKUP(B57,Vertices!$A$11:$J$203,8,FALSE )-$D$7 -> 47.81 | E57: =VLOOKUP(B57,Vertices!$A$11:$J$203,9,FALSE )-$E$7 -> -11.05 | F57: =Faces!C57 -> 18 | G57: =VLOOKUP(F57,Vertices!$A$11:$J$203,7,FALSE )-$C$7 -> -7.86 | H57: =VLOOKUP(F57,Vertices!$A$11:$J$203,8,FALSE )-$D$7 -> 63.95 | I57: =VLOOKUP(F57,Vertices!$A$11:$J$203,9,FALSE )-$E$7 -> -13.07 | J57: =Faces!D57 -> 17 | K57: =VLOOKUP(J57,Vertices!$A$11:$J$203,7,FALSE )-$C$7 -> 3.41 | L57: =VLOOKUP(J57,Vertices!$A$11:$J$203,8,FALSE )-$D$7 -> 42.94 | M57: =VLOOKUP(J57,Vertices!$A$11:$J$203,9,FALSE )-$E$7 -> -15.19 | N57: 689.59 | O57: 689.59
A58: =Faces!A58 -> 48 | B58: =Faces!B58 -> 11 | C58: =VLOOKUP(B58,Vertices!$A$11:$J$203,7,FALSE )-$C$7 -> 5.95 | D58: =VLOOKUP(B58,Vertices!$A$11:$J$203,8,FALSE )-$D$7 -> 47.81 | E58: =VLOOKUP(B58,Vertices!$A$11:$J$203,9,FALSE )-$E$7 -> -11.05 | F58: =Faces!C58 -> 12 | G58: =VLOOKUP(F58,Vertices!$A$11:$J$203,7,FALSE )-$C$7 -> -5.64 | H58: =VLOOKUP(F58,Vertices!$A$11:$J$203,8,FALSE )-$D$7 -> 69.39 | I58: =VLOOKUP(F58,Vertices!$A$11:$J$203,9,FALSE )-$E$7 -> -8.63 | J58: =Faces!D58 -> 18 | K58: =VLOOKUP(J58,Vertices!$A$11:$J$203,7,FALSE )-$C$7 -> -7.86 | L58: =VLOOKUP(J58,Vertices!$A$11:$J$203,8,FALSE )-$D$7 -> 63.95 | M58: =VLOOKUP(J58,Vertices!$A$11:$J$203,9,FALSE )-$E$7 -> -13.07 | N58: 738.64 | O58: 738.64
A59: =Faces!A59 -> 49 | B59: =Faces!B59 -> 5 | C59: =VLOOKUP(B59,Vertices!$A$11:$J$203,7,FALSE )-$C$7 -> 8.52 | D59: =VLOOKUP(B59,Vertices!$A$11:$J$203,8,FALSE )-$D$7 -> 52.78 | E59: =VLOOKUP(B59,Vertices!$A$11:$J$203,9,FALSE )-$E$7 -> -6.79 | F59: =Faces!C59 -> 12 | G59: =VLOOKUP(F59,Vertices!$A$11:$J$203,7,FALSE )-$C$7 -> -5.64 | H59: =VLOOKUP(F59,Vertices!$A$11:$J$203,8,FALSE )-$D$7 -> 69.39 | I59: =VLOOKUP(F59,Vertices!$A$11:$J$203,9,FALSE )-$E$7 -> -8.63 | J59: =Faces!D59 -> 11 | K59: =VLOOKUP(J59,Vertices!$A$11:$J$203,7,FALSE )-$C$7 -> 5.95 | L59: =VLOOKUP(J59,Vertices!$A$11:$J$203,8,FALSE )-$D$7 -> 47.81 | M59: =VLOOKUP(J59,Vertices!$A$11:$J$203,9,FALSE )-$E$7 -> -11.05 | N59: 729.95 | O59: 729.95
A60: =Faces!A60 -> 50 | B60: =Faces!B60 -> 5 | C60: =VLOOKUP(B60,Vertices!$A$11:$J$203,7,FALSE )-$C$7 -> 8.52 | D60: =VLOOKUP(B60,Vertices!$A$11:$J$203,8,FALSE )-$D$7 -> 52.78 | E60: =VLOOKUP(B60,Vertices!$A$11:$J$203,9,FALSE )-$E$7 -> -6.79 | F60: =Faces!C60 -> 6 | G60: =VLOOKUP(F60,Vertices!$A$11:$J$203,7,FALSE )-$C$7 -> -3.46 | H60: =VLOOKUP(F60,Vertices!$A$11:$J$203,8,FALSE )-$D$7 -> 75.00 | I60: =VLOOKUP(F60,Vertices!$A$11:$J$203,9,FALSE )-$E$7 -> -4.00 | J60: =Faces!D60 -> 12 | K60: =VLOOKUP(J60,Vertices!$A$11:$J$203,7,FALSE )-$C$7 -> -5.64 | L60: =VLOOKUP(J60,Vertices!$A$11:$J$203,8,FALSE )-$D$7 -> 69.39 | M60: =VLOOKUP(J60,Vertices!$A$11:$J$203,9,FALSE )-$E$7 -> -8.63 | N60: 795.62 | O60: 795.62
A61: =Faces!A61 -> 51 | B61: =Faces!B61 -> 1 | C61: =VLOOKUP(B61,Vertices!$A$11:$J$203,7,FALSE )-$C$7 -> 43.55 | D61: =VLOOKUP(B61,Vertices!$A$11:$J$203,8,FALSE )-$D$7 -> 1.00 | E61: =VLOOKUP(B61,Vertices!$A$11:$J$203,9,FALSE )-$E$7 -> -4.00 | F61: =Faces!C61 -> 38 | G61: =VLOOKUP(F61,Vertices!$A$11:$J$203,7,FALSE )-$C$7 -> 37.81 | H61: =VLOOKUP(F61,Vertices!$A$11:$J$203,8,FALSE )-$D$7 -> 6.85 | I61: =VLOOKUP(F61,Vertices!$A$11:$J$203,9,FALSE )-$E$7 -> 3.27 | J61: =Faces!D61 -> 2 | K61: =VLOOKUP(J61,Vertices!$A$11:$J$203,7,FALSE )-$C$7 -> 38.44 | L61: =VLOOKUP(J61,Vertices!$A$11:$J$203,8,FALSE )-$D$7 -> 7.72 | M61: =VLOOKUP(J61,Vertices!$A$11:$J$203,9,FALSE )-$E$7 -> -5.04 | N61: 400.12 | O61: 400.12
